Workbook

Sheet Intro

Sheet Notes & Assumptions
B88: Product | C88: WAPC Charge Component | D88: nbn Network | E88: Date Withdrawn
B89: nbn Ethernet | C89: Subsequent Installation of power supply with battery backup | D89: Fibre Network | E89: 2024-06-26
B90: nbn Ethernet | C90: Supply, installation and migration of one replacement fibre termination tray / patch panel of 72 terminated fibres | D90: n/a (Facilities Access) | E90: 2024-08-15
C91: Supply, installation and migration of one replacement fibre termination tray / patch panel of 144 terminated fibres
B92: Sky Muster Plus | C92: 25GB+ Plan | D92: Sky Muster Plus | E92: 2025-03-01
C93: 50GB+ Plan
C94: 100GB+ Plan
C95: 150GB+ Plan
C96: 5GB Peak Period Metered Data Allowance + 5GB Off-peak Period Metered Data Allowance (if applicable)
C97: Sky Muster Plus 1GB Peak Period Top-Up Allowance + 1GB Off-peak Period Top-Up Allowance (if applicable)
B98: nbn Ethernet | C98: Site Survey Charge | D98: Satellite network | E98: 2025-03-12
C99: On Site Maintenance Call Out | D99: Fibre, Wireless and Satellite Network
C100: Late Rescheduling (Co-ordinated Appointment) (Day) | D100: Fibre, Wireless, FTTB, FTTN, FTTC, HFC Network
C101: Late Rescheduling (Co-ordinated Appointment) (Night) | D101: Fibre, Wireless, FTTB, FTTN, FTTC and HFC Network
C102: Restoration of an Ordered Product | D102: Fibre, Wireless, FTTB, FTTN, FTTC and HFC Network, Satellite
C103: Incorrect Callout | D103: FTTB, FTTN, FTTC, HFC Network
C104: Additional / Replacement Access Card (excluding the First Access Card) | D104: n/a (Facilities Access)
C105: Missed Appointment (During Business Hours)
C106: Missed Appointment (Outside Business Hours)
B107: Smart Places | C107: Restoration | D107: Fibre Network
C108: Late Rescheduling (Smart Places Co-ordinated Appointment) (Day)
C109: Late Rescheduling (Smart Places Co-ordinated Appointment) (After Hours)
C110: On Site Maintenance Call Out
B111: CSAS | C111: On Site Maintenance Call Out
B112: nbn Ethernet | C112: Initial Standard Installation | D112: Fibre Network | E112: 2025-09-14
C113: Fibre Upgrade Installation

Sheet Version History
B1: Version History
B2: Version | C2: Description | D2: Date Published
B3: 1 | C3: SAU Price Control Model FY27−FY29 | D3: 1 May 2026

Sheet Compliance Summary
B1: Cell colour meanings
B2: Input cell
B3: Calculation cell
B5: Compliance Summary
B6: 2D.2 Weighted average price control (WAPC)
B7: Note: For the first financial year (i.e., prices stated in the FY27 Tariff List), nbn has confirmed that the prices comply with the WAPC formula in clause 2D.2.2 of the SAU. For the second and third financial years in the Pricing Roadmap, nbn has assessed whether the prices are expected to comply with the WAPC formula based on forecasts of CPI and forecast quantities of WAPC Charge Components.
C11: FY27 | D11: FY28 | E11: FY29
B12: WAPC allowance | C12: =_xlfn.XLOOKUP('Compliance Summary'!C$11,'WAPC Inputs'!$C$9:$E$9,'WAPC Inputs'!$C$17:$E$17) -> 0.03603333106 | D12: =_xlfn.XLOOKUP('Compliance Summary'!D$11,'WAPC Inputs'!$C$9:$E$9,'WAPC Inputs'!$C$17:$E$17) -> 0.03473063572 | E12: =_xlfn.XLOOKUP('Compliance Summary'!E$11,'WAPC Inputs'!$C$9:$E$9,'WAPC Inputs'!$C$17:$E$17) -> 0.0268136929
B14: Weighted average price change | C14: =SUMPRODUCT('WAPC Price & Quantity'!G$19:G$1000,'WAPC Price & Quantity'!O$19:O$1000)/SUMPRODUCT('WAPC Price & Quantity'!F$19:F$1000,'WAPC Price & Quantity'!O$19:O$1000)-1 -> 0.03603279022 | D14: =SUMPRODUCT('WAPC Price & Quantity'!H$19:H$1000,'WAPC Price & Quantity'!P$19:P$1000)/SUMPRODUCT('WAPC Price & Quantity'!G$19:G$1000,'WAPC Price & Quantity'!P$19:P$1000)-1 -> 0.03428060718 | E14: =SUMPRODUCT('WAPC Price & Quantity'!I$19:I$1000,'WAPC Price & Quantity'!Q$19:Q$1000)/SUMPRODUCT('WAPC Price & Quantity'!H$19:H$1000,'WAPC Price & Quantity'!Q$19:Q$1000)-1 -> 0.02674461425
C15: =IF(C14<=C12,"Compliant","Not compliant") -> Compliant | D15: =IF(D14<=D12,"Compliant","Not compliant") -> Compliant | E15: Compliant
B18: 2C.2 Restriction on changes to price relativities
B19: Note: The reference to 'Year 2 Indicative Prices in Roadmap t − 1' is to the indicative FY27 prices included in Year 2 of the FY26-FY28 Pricing Roadmap.
C21: Minimum price difference | D21: Maximum price difference | E21: Price difference delta
B22: TC-4 price relativity restriction | C22: =MIN($H$26:$H$59) -> -0.09 | D22: =MAX($H$26:$H$59) -> 0.91 | E22: =D22-C22 -> 1 | F22: =IF(AND(E22<=1,E22>=-1),"Compliant","Not compliant") -> Compliant
B25: Tariff List Table References | C25: WAPC Charge Component | D25: Access Network | E25: Individual Price Control | F25: FY27 Tariff List | G25: Year 2 Indicative Prices in Roadmap t − 1 | H25: Price Difference
B26: =_xlfn._xlws.FILTER('WAPC Price & Quantity'!$B:$E,ISNUMBER(SEARCH("TC-4",'WAPC Price & Quantity'!$C:$C))*NOT(ISNUMBER(SEARCH("CVC",'WAPC Price & Quantity'!$C:$C)))) -> 1.1 Flat-Rate Offers (formerly 1.3 Bundled TC-4 Offers) | C26: AVC TC-4 12/1 Mbps (Basic Bundled Offer) | D26: Fibre, FTTB, FTTN, FTTC, HFC | E26: Other fixed line and fixed wireless TC-4 | F26: =_xlfn._xlws.FILTER('WAPC Price & Quantity'!$G:$G,('WAPC Price & Quantity'!$C:$C=$C26)*('WAPC Price & Quantity'!$D:$D=$D26)) -> 12 | G26: =_xlfn._xlws.FILTER('TC-4 Price Relativity Inputs'!$E:$E,('TC-4 Price Relativity Inputs'!$C:$C=$C26)*('TC-4 Price Relativity Inputs'!$D:$D=$D26)) -> 12 | H26: =IF($G26="n/a","n/a",$F26-$G26) -> 0
B27: 1.1 Flat-Rate Offers (formerly 1.3 Bundled TC-4 Offers) | C27: AVC TC-4 12/1 Mbps | D27: Fibre, FTTB, FTTN, FTTC, HFC, Wireless | E27: Other fixed line and fixed wireless TC-4 | F27: =_xlfn._xlws.FILTER('WAPC Price & Quantity'!$G:$G,('WAPC Price & Quantity'!$C:$C=$C27)*('WAPC Price & Quantity'!$D:$D=$D27)) -> 35.59 | G27: =_xlfn._xlws.FILTER('TC-4 Price Relativity Inputs'!$E:$E,('TC-4 Price Relativity Inputs'!$C:$C=$C27)*('TC-4 Price Relativity Inputs'!$D:$D=$D27)) -> 35.14 | H27: =IF($G27="n/a","n/a",$F27-$G27) -> 0.45
B28: 1.1 Flat-Rate Offers (formerly 1.3 Bundled TC-4 Offers) | C28: AVC TC-4 25/5 Mbps | D28: Fibre, FTTB, FTTN, FTTC, HFC | E28: Entry level TC-4 | F28: =_xlfn._xlws.FILTER('WAPC Price & Quantity'!$G:$G,('WAPC Price & Quantity'!$C:$C=$C28)*('WAPC Price & Quantity'!$D:$D=$D28)) -> 36.15 | G28: =_xlfn._xlws.FILTER('TC-4 Price Relativity Inputs'!$E:$E,('TC-4 Price Relativity Inputs'!$C:$C=$C28)*('TC-4 Price Relativity Inputs'!$D:$D=$D28)) -> 35.92 | H28: 0.23
B29: 1.1 Flat-Rate Offers (formerly 1.3 Bundled TC-4 Offers) | C29: AVC TC-4 25/5 Mbps | D29: Wireless | E29: Entry level TC-4 | F29: =_xlfn._xlws.FILTER('WAPC Price & Quantity'!$G:$G,('WAPC Price & Quantity'!$C:$C=$C29)*('WAPC Price & Quantity'!$D:$D=$D29)) -> 36.15 | G29: =_xlfn._xlws.FILTER('TC-4 Price Relativity Inputs'!$E:$E,('TC-4 Price Relativity Inputs'!$C:$C=$C29)*('TC-4 Price Relativity Inputs'!$D:$D=$D29)) -> 35.92 | H29: 0.23
B30: 1.1 Flat-Rate Offers (formerly 1.3 Bundled TC-4 Offers) | C30: AVC TC-4 25/5-10 Mbps | D30: FTTB, FTTN | E30: Other fixed line and fixed wireless TC-4 | F30: =_xlfn._xlws.FILTER('WAPC Price & Quantity'!$G:$G,('WAPC Price & Quantity'!$C:$C=$C30)*('WAPC Price & Quantity'!$D:$D=$D30)) -> 36.15 | G30: =_xlfn._xlws.FILTER('TC-4 Price Relativity Inputs'!$E:$E,('TC-4 Price Relativity Inputs'!$C:$C=$C30)*('TC-4 Price Relativity Inputs'!$D:$D=$D30)) -> 35.92 | H30: 0.23
B31: 1.1 Flat-Rate Offers (formerly 1.3 Bundled TC-4 Offers) | C31: AVC TC-4 25/10 Mbps | D31: Fibre, FTTC, HFC | E31: Other fixed line and fixed wireless TC-4 | F31: =_xlfn._xlws.FILTER('WAPC Price & Quantity'!$G:$G,('WAPC Price & Quantity'!$C:$C=$C31)*('WAPC Price & Quantity'!$D:$D=$D31)) -> 36.15 | G31: =_xlfn._xlws.FILTER('TC-4 Price Relativity Inputs'!$E:$E,('TC-4 Price Relativity Inputs'!$C:$C=$C31)*('TC-4 Price Relativity Inputs'!$D:$D=$D31)) -> 35.92 | H31: 0.23
B32: 1.1 Flat-Rate Offers (formerly 1.3 Bundled TC-4 Offers) | C32: AVC TC-4 25-50/5-20 Mbps | D32: FTTB, FTTN | E32: Other fixed line and fixed wireless TC-4 | F32: =_xlfn._xlws.FILTER('WAPC Price & Quantity'!$G:$G,('WAPC Price & Quantity'!$C:$C=$C32)*('WAPC Price & Quantity'!$D:$D=$D32)) -> 57.6 | G32: =_xlfn._xlws.FILTER('TC-4 Price Relativity Inputs'!$E:$E,('TC-4 Price Relativity Inputs'!$C:$C=$C32)*('TC-4 Price Relativity Inputs'!$D:$D=$D32)) -> 57.69 | H32: -0.09
B33: 1.1 Flat-Rate Offers (formerly 1.3 Bundled TC-4 Offers) | C33: AVC TC-4 50/20 Mbps | D33: Fibre, FTTC, HFC | E33: Other fixed line and fixed wireless TC-4 | F33: =_xlfn._xlws.FILTER('WAPC Price & Quantity'!$G:$G,('WAPC Price & Quantity'!$C:$C=$C33)*('WAPC Price & Quantity'!$D:$D=$D33)) -> 57.6 | G33: =_xlfn._xlws.FILTER('TC-4 Price Relativity Inputs'!$E:$E,('TC-4 Price Relativity Inputs'!$C:$C=$C33)*('TC-4 Price Relativity Inputs'!$D:$D=$D33)) -> 57.69 | H33: -0.09
B34: 1.1 Flat-Rate Offers (formerly 1.3 Bundled TC-4 Offers) | C34: AVC TC-4 up to 100/up to 20 Mbps | D34: Wireless | E34: Other fixed line and fixed wireless TC-4 | F34: =_xlfn._xlws.FILTER('WAPC Price & Quantity'!$G:$G,('WAPC Price & Quantity'!$C:$C=$C34)*('WAPC Price & Quantity'!$D:$D=$D34)) -> 57.6 | G34: =_xlfn._xlws.FILTER('TC-4 Price Relativity Inputs'!$E:$E,('TC-4 Price Relativity Inputs'!$C:$C=$C34)*('TC-4 Price Relativity Inputs'!$D:$D=$D34)) -> 57.69 | H34: -0.09
B35: 1.2 Flat-Rate Offers - Smart Places (formerly 1.4 Bundled TC-4 Offers: Smart Places) | C35: Smart Places - AVC TC-4 25/10 Mbps | D35: Fibre | E35: Other fixed line and fixed wireless TC-4 | F35: =_xlfn._xlws.FILTER('WAPC Price & Quantity'!$G:$G,('WAPC Price & Quantity'!$C:$C=$C35)*('WAPC Price & Quantity'!$D:$D=$D35)) -> 36.15 | G35: =_xlfn._xlws.FILTER('TC-4 Price Relativity Inputs'!$E:$E,('TC-4 Price Relativity Inputs'!$C:$C=$C35)*('TC-4 Price Relativity Inputs'!$D:$D=$D35)) -> 35.92 | H35: 0.23
B36: 1.2 Flat-Rate Offers - Smart Places (formerly 1.4 Bundled TC-4 Offers: Smart Places) | C36: Smart Places - AVC TC-4 50/20 Mbps | D36: Fibre | E36: Other fixed line and fixed wireless TC-4 | F36: =_xlfn._xlws.FILTER('WAPC Price & Quantity'!$G:$G,('WAPC Price & Quantity'!$C:$C=$C36)*('WAPC Price & Quantity'!$D:$D=$D36)) -> 57.6 | G36: =_xlfn._xlws.FILTER('TC-4 Price Relativity Inputs'!$E:$E,('TC-4 Price Relativity Inputs'!$C:$C=$C36)*('TC-4 Price Relativity Inputs'!$D:$D=$D36)) -> 57.69 | H36: -0.09
B37: 1.1 Flat-Rate Offers | C37: AVC TC-4 25-100/5-20 Mbps | D37: FTTB, FTTN | E37: Other fixed line and fixed wireless TC-4 | F37: =_xlfn._xlws.FILTER('WAPC Price & Quantity'!$G:$G,('WAPC Price & Quantity'!$C:$C=$C37)*('WAPC Price & Quantity'!$D:$D=$D37)) -> 60.85 | G37: =_xlfn._xlws.FILTER('TC-4 Price Relativity Inputs'!$E:$E,('TC-4 Price Relativity Inputs'!$C:$C=$C37)*('TC-4 Price Relativity Inputs'!$D:$D=$D37)) -> 60.94 | H37: -0.09
B38: 1.1 Flat-Rate Offers | C38: AVC TC-4 50-100/20 Mbps | D38: FTTC | E38: Other fixed line and fixed wireless TC-4 | F38: =_xlfn._xlws.FILTER('WAPC Price & Quantity'!$G:$G,('WAPC Price & Quantity'!$C:$C=$C38)*('WAPC Price & Quantity'!$D:$D=$D38)) -> 60.85 | G38: =_xlfn._xlws.FILTER('TC-4 Price Relativity Inputs'!$E:$E,('TC-4 Price Relativity Inputs'!$C:$C=$C38)*('TC-4 Price Relativity Inputs'!$D:$D=$D38)) -> 60.94 | H38: -0.09
B39: 1.1 Flat-Rate Offers | C39: AVC TC-4 500/50 Mbps | D39: Fibre, HFC | E39: Other fixed line and fixed wireless TC-4 | F39: =_xlfn._xlws.FILTER('WAPC Price & Quantity'!$G:$G,('WAPC Price & Quantity'!$C:$C=$C39)*('WAPC Price & Quantity'!$D:$D=$D39)) -> 60.85 | G39: =_xlfn._xlws.FILTER('TC-4 Price Relativity Inputs'!$E:$E,('TC-4 Price Relativity Inputs'!$C:$C=$C39)*('TC-4 Price Relativity Inputs'!$D:$D=$D39)) -> 60.94 | H39: -0.09
B40: 1.1 Flat-Rate Offers | C40: AVC TC-4 200-250/8-20 Mbps | D40: Wireless | E40: Other fixed line and fixed wireless TC-4 | F40: =_xlfn._xlws.FILTER('WAPC Price & Quantity'!$G:$G,('WAPC Price & Quantity'!$C:$C=$C40)*('WAPC Price & Quantity'!$D:$D=$D40)) -> 60.85 | G40: =_xlfn._xlws.FILTER('TC-4 Price Relativity Inputs'!$E:$E,('TC-4 Price Relativity Inputs'!$C:$C=$C40)*('TC-4 Price Relativity Inputs'!$D:$D=$D40)) -> 60.94 | H40: -0.09
B41: 1.1 Flat-Rate Offers | C41: AVC TC-4 25-100/5-40 Mbps | D41: FTTB, FTTN | E41: Other fixed line and fixed wireless TC-4 | F41: =_xlfn._xlws.FILTER('WAPC Price & Quantity'!$G:$G,('WAPC Price & Quantity'!$C:$C=$C41)*('WAPC Price & Quantity'!$D:$D=$D41)) -> 64.6 | G41: =_xlfn._xlws.FILTER('TC-4 Price Relativity Inputs'!$E:$E,('TC-4 Price Relativity Inputs'!$C:$C=$C41)*('TC-4 Price Relativity Inputs'!$D:$D=$D41)) -> 63.94 | H41: 0.66
B42: 1.1 Flat-Rate Offers | C42: AVC TC-4 50-100/20-40 Mbps | D42: FTTC | E42: Other fixed line and fixed wireless TC-4 | F42: =_xlfn._xlws.FILTER('WAPC Price & Quantity'!$G:$G,('WAPC Price & Quantity'!$C:$C=$C42)*('WAPC Price & Quantity'!$D:$D=$D42)) -> 64.6 | G42: =_xlfn._xlws.FILTER('TC-4 Price Relativity Inputs'!$E:$E,('TC-4 Price Relativity Inputs'!$C:$C=$C42)*('TC-4 Price Relativity Inputs'!$D:$D=$D42)) -> 63.94 | H42: 0.66
B43: 1.1 Flat-Rate Offers | C43: AVC TC-4 100/40 Mbps | D43: Fibre, HFC | E43: Other fixed line and fixed wireless TC-4 | F43: =_xlfn._xlws.FILTER('WAPC Price & Quantity'!$G:$G,('WAPC Price & Quantity'!$C:$C=$C43)*('WAPC Price & Quantity'!$D:$D=$D43)) -> 64.6 | G43: =_xlfn._xlws.FILTER('TC-4 Price Relativity Inputs'!$E:$E,('TC-4 Price Relativity Inputs'!$C:$C=$C43)*('TC-4 Price Relativity Inputs'!$D:$D=$D43)) -> 63.94 | H43: 0.66
B44: 1.1 Flat-Rate Offers | C44: AVC TC-4 750/50 Mbps | D44: Fibre, HFC | E44: Other fixed line and fixed wireless TC-4 | F44: =_xlfn._xlws.FILTER('WAPC Price & Quantity'!$G:$G,('WAPC Price & Quantity'!$C:$C=$C44)*('WAPC Price & Quantity'!$D:$D=$D44)) -> 67.12 | G44: =_xlfn._xlws.FILTER('TC-4 Price Relativity Inputs'!$E:$E,('TC-4 Price Relativity Inputs'!$C:$C=$C44)*('TC-4 Price Relativity Inputs'!$D:$D=$D44)) -> 66.8 | H44: 0.32
B45: 1.1 Flat-Rate Offers | C45: AVC TC-4 400/10-40 Mbps | D45: Wireless | E45: Other fixed line and fixed wireless TC-4 | F45: =_xlfn._xlws.FILTER('WAPC Price & Quantity'!$G:$G,('WAPC Price & Quantity'!$C:$C=$C45)*('WAPC Price & Quantity'!$D:$D=$D45)) -> 67.12 | G45: =_xlfn._xlws.FILTER('TC-4 Price Relativity Inputs'!$E:$E,('TC-4 Price Relativity Inputs'!$C:$C=$C45)*('TC-4 Price Relativity Inputs'!$D:$D=$D45)) -> 66.8 | H45: 0.32
B46: 1.1 Flat-Rate Offers | C46: AVC TC-4 250/100 Mbps | D46: Fibre | E46: Other fixed line and fixed wireless TC-4 | F46: =_xlfn._xlws.FILTER('WAPC Price & Quantity'!$G:$G,('WAPC Price & Quantity'!$C:$C=$C46)*('WAPC Price & Quantity'!$D:$D=$D46)) -> 64.6 | G46: =_xlfn._xlws.FILTER('TC-4 Price Relativity Inputs'!$E:$E,('TC-4 Price Relativity Inputs'!$C:$C=$C46)*('TC-4 Price Relativity Inputs'!$D:$D=$D46)) -> 63.94 | H46: 0.66
B47: 1.1 Flat-Rate Offers | C47: AVC TC-4 250/100 Mbps | D47: HFC | E47: Other fixed line and fixed wireless TC-4 | F47: =_xlfn._xlws.FILTER('WAPC Price & Quantity'!$G:$G,('WAPC Price & Quantity'!$C:$C=$C47)*('WAPC Price & Quantity'!$D:$D=$D47)) -> 64.6 | G47: =_xlfn._xlws.FILTER('TC-4 Price Relativity Inputs'!$E:$E,('TC-4 Price Relativity Inputs'!$C:$C=$C47)*('TC-4 Price Relativity Inputs'!$D:$D=$D47)) -> 63.94 | H47: 0.66
B48: 1.1 Flat-Rate Offers | C48: AVC TC-4 500/200 Mbps | D48: Fibre | E48: Other fixed line and fixed wireless TC-4 | F48: =_xlfn._xlws.FILTER('WAPC Price & Quantity'!$G:$G,('WAPC Price & Quantity'!$C:$C=$C48)*('WAPC Price & Quantity'!$D:$D=$D48)) -> 79 | G48: =_xlfn._xlws.FILTER('TC-4 Price Relativity Inputs'!$E:$E,('TC-4 Price Relativity Inputs'!$C:$C=$C48)*('TC-4 Price Relativity Inputs'!$D:$D=$D48)) -> 79 | H48: 0
B49: 1.1 Flat-Rate Offers | C49: AVC TC-4 1000/100 Mbps | D49: Fibre, HFC | E49: Other fixed line and fixed wireless TC-4 | F49: =_xlfn._xlws.FILTER('WAPC Price & Quantity'!$G:$G,('WAPC Price & Quantity'!$C:$C=$C49)*('WAPC Price & Quantity'!$D:$D=$D49)) -> 75.88 | G49: =_xlfn._xlws.FILTER('TC-4 Price Relativity Inputs'!$E:$E,('TC-4 Price Relativity Inputs'!$C:$C=$C49)*('TC-4 Price Relativity Inputs'!$D:$D=$D49)) -> 75.94 | H49: -0.06
B50: 1.1 Flat-Rate Offers | C50: AVC TC-4 1000/400 Mbps | D50: Fibre | E50: Other fixed line and fixed wireless TC-4 | F50: =_xlfn._xlws.FILTER('WAPC Price & Quantity'!$G:$G,('WAPC Price & Quantity'!$C:$C=$C50)*('WAPC Price & Quantity'!$D:$D=$D50)) -> 96.91 | G50: =_xlfn._xlws.FILTER('TC-4 Price Relativity Inputs'!$E:$E,('TC-4 Price Relativity Inputs'!$C:$C=$C50)*('TC-4 Price Relativity Inputs'!$D:$D=$D50)) -> 96 | H50: 0.91
B51: 1.1 Flat-Rate Offers | C51: AVC TC-4 2000/100 Mbps | D51: HFC | E51: Other fixed line and fixed wireless TC-4 | F51: =_xlfn._xlws.FILTER('WAPC Price & Quantity'!$G:$G,('WAPC Price & Quantity'!$C:$C=$C51)*('WAPC Price & Quantity'!$D:$D=$D51)) -> 119.04 | G51: =_xlfn._xlws.FILTER('TC-4 Price Relativity Inputs'!$E:$E,('TC-4 Price Relativity Inputs'!$C:$C=$C51)*('TC-4 Price Relativity Inputs'!$D:$D=$D51)) -> 118.13 | H51: 0.91
B52: 1.1 Flat-Rate Offers | C52: AVC TC-4 2000/200 Mbps | D52: Fibre | E52: Other fixed line and fixed wireless TC-4 | F52: =_xlfn._xlws.FILTER('WAPC Price & Quantity'!$G:$G,('WAPC Price & Quantity'!$C:$C=$C52)*('WAPC Price & Quantity'!$D:$D=$D52)) -> 119.04 | G52: =_xlfn._xlws.FILTER('TC-4 Price Relativity Inputs'!$E:$E,('TC-4 Price Relativity Inputs'!$C:$C=$C52)*('TC-4 Price Relativity Inputs'!$D:$D=$D52)) -> 118.13 | H52: 0.91
B53: 1.1 Flat-Rate Offers | C53: AVC TC-4 2000/500 Mbps | D53: Fibre | E53: Other fixed line and fixed wireless TC-4 | F53: =_xlfn._xlws.FILTER('WAPC Price & Quantity'!$G:$G,('WAPC Price & Quantity'!$C:$C=$C53)*('WAPC Price & Quantity'!$D:$D=$D53)) -> 154.99 | G53: =_xlfn._xlws.FILTER('TC-4 Price Relativity Inputs'!$E:$E,('TC-4 Price Relativity Inputs'!$C:$C=$C53)*('TC-4 Price Relativity Inputs'!$D:$D=$D53)) -> 154.08 | H53: 0.91
B54: 1.2 Flat-Rate Offers - Smart Places | C54: Smart Places - AVC TC-4 100/40 Mbps | D54: Fibre | E54: Other fixed line and fixed wireless TC-4 | F54: =_xlfn._xlws.FILTER('WAPC Price & Quantity'!$G:$G,('WAPC Price & Quantity'!$C:$C=$C54)*('WAPC Price & Quantity'!$D:$D=$D54)) -> 64.6 | G54: =_xlfn._xlws.FILTER('TC-4 Price Relativity Inputs'!$E:$E,('TC-4 Price Relativity Inputs'!$C:$C=$C54)*('TC-4 Price Relativity Inputs'!$D:$D=$D54)) -> 63.94 | H54: 0.66
B55: 1.2 Flat-Rate Offers - Smart Places | C55: Smart Places - AVC TC-4 250/100 Mbps | D55: Fibre | E55: Other fixed line and fixed wireless TC-4 | F55: =_xlfn._xlws.FILTER('WAPC Price & Quantity'!$G:$G,('WAPC Price & Quantity'!$C:$C=$C55)*('WAPC Price & Quantity'!$D:$D=$D55)) -> 64.6 | G55: =_xlfn._xlws.FILTER('TC-4 Price Relativity Inputs'!$E:$E,('TC-4 Price Relativity Inputs'!$C:$C=$C55)*('TC-4 Price Relativity Inputs'!$D:$D=$D55)) -> 63.94 | H55: 0.66
B56: 1.2 Flat-Rate Offers - Smart Places | C56: Smart Places - AVC TC-4 500/200 Mbps | D56: Fibre | E56: Other fixed line and fixed wireless TC-4 | F56: =_xlfn._xlws.FILTER('WAPC Price & Quantity'!$G:$G,('WAPC Price & Quantity'!$C:$C=$C56)*('WAPC Price & Quantity'!$D:$D=$D56)) -> 79 | G56: =_xlfn._xlws.FILTER('TC-4 Price Relativity Inputs'!$E:$E,('TC-4 Price Relativity Inputs'!$C:$C=$C56)*('TC-4 Price Relativity Inputs'!$D:$D=$D56)) -> 79 | H56: 0
B57: 1.2 Flat-Rate Offers - Smart Places | C57: Smart Places - AVC TC-4 1000/400 Mbps | D57: Fibre | E57: Other fixed line and fixed wireless TC-4 | F57: =_xlfn._xlws.FILTER('WAPC Price & Quantity'!$G:$G,('WAPC Price & Quantity'!$C:$C=$C57)*('WAPC Price & Quantity'!$D:$D=$D57)) -> 96.91 | G57: =_xlfn._xlws.FILTER('TC-4 Price Relativity Inputs'!$E:$E,('TC-4 Price Relativity Inputs'!$C:$C=$C57)*('TC-4 Price Relativity Inputs'!$D:$D=$D57)) -> 96 | H57: 0.91
B58: 1.5 Asymmetric AVC Offers in respect of the NBN Co Satellite Network | C58: AVC TC-4 12/1 Mbps | D58: Satellite | E58: Satellite AVC TC-4 | F58: =_xlfn._xlws.FILTER('WAPC Price & Quantity'!$G:$G,('WAPC Price & Quantity'!$C:$C=$C58)*('WAPC Price & Quantity'!$D:$D=$D58)) -> 24 | G58: =_xlfn._xlws.FILTER('TC-4 Price Relativity Inputs'!$E:$E,('TC-4 Price Relativity Inputs'!$C:$C=$C58)*('TC-4 Price Relativity Inputs'!$D:$D=$D58)) -> 24 | H58: 0
B59: 1.5 Asymmetric AVC Offers in respect of the NBN Co Satellite Network | C59: AVC TC-4 25/5 Mbps | D59: Satellite | E59: Satellite AVC TC-4 | F59: =_xlfn._xlws.FILTER('WAPC Price & Quantity'!$G:$G,('WAPC Price & Quantity'!$C:$C=$C59)*('WAPC Price & Quantity'!$D:$D=$D59)) -> 27 | G59: =_xlfn._xlws.FILTER('TC-4 Price Relativity Inputs'!$E:$E,('TC-4 Price Relativity Inputs'!$C:$C=$C59)*('TC-4 Price Relativity Inputs'!$D:$D=$D59)) -> 27 | H59: 0
B62: 2E.2 Individual price controls
B63: 2E.2.1 Entry Level Offers, 2E.2.2(a)-(c) Fixed line and fixed wireless TC-4 offers, 2E.2.3 Satellite TC-4 products
B64: Note: For the first financial year (i.e., prices stated in the FY27 Tariff List), nbn has confirmed that the prices comply with the Individual Price Controls. For the second and third financial years in the Pricing Roadmap, nbn has assessed whether the prices are expected to comply with the Individual Price Controls based on forecasts of CPI.
B67: Input for price increase limit | C67: 0.05
C69: Price Increase Limit
B70: Individual Price Control | C70: FY27 | D70: FY28 | E70: FY29
B71: CPI | C71: =_xlfn.XLOOKUP(C$70,'WAPC Inputs'!$C$9:$E$9,'WAPC Inputs'!$C$11:$E$11) -> 0.03625658506 | D71: =_xlfn.XLOOKUP(D$70,'WAPC Inputs'!$C$9:$E$9,'WAPC Inputs'!$C$11:$E$11) -> 0.036 | E71: =_xlfn.XLOOKUP(E$70,'WAPC Inputs'!$C$9:$E$9,'WAPC Inputs'!$C$11:$E$11) -> 0.027
B72: Entry level TC-4 | C72: =_xlfn.XLOOKUP(C$70,'WAPC Inputs'!$C$9:$E$9,'WAPC Inputs'!$C$11:$E$11) -> 0.03625658506 | D72: =_xlfn.XLOOKUP(D$70,'WAPC Inputs'!$C$9:$E$9,'WAPC Inputs'!$C$11:$E$11) -> 0.036 | E72: =_xlfn.XLOOKUP(E$70,'WAPC Inputs'!$C$9:$E$9,'WAPC Inputs'!$C$11:$E$11) -> 0.027
B73: Other fixed line and fixed wireless TC-4 | C73: =MAX(C$71,'Compliance Summary'!$C$67) -> 0.05 | D73: =MAX(D$71,'Compliance Summary'!$C$67) -> 0.05 | E73: =MAX(E$71,'Compliance Summary'!$C$67) -> 0.05
B74: Satellite AVC TC-4 | C74: =C$71 -> 0.03625658506 | D74: =D$71 -> 0.036 | E74: 0.027
B75: Satellite CVC TC-4 | C75: 0 | D75: 0 | E75: 0
C77: Maximum Tariff Change
B78: Individual Price Control | C78: FY27 | D78: FY28 | E78: FY29
B79: Entry level TC-4 | C79: =IF((COUNTIF($E$215:$E$216, $B79) > 0), MAX((_xlfn.MAXIFS('WAPC Price & Quantity'!$K:$K, 'WAPC Price & Quantity'!$E:$E, 'Compliance Summary'!$B79)),(_xlfn.MAXIFS($H$215:$H$216, $E$215:$E$216, 'Compliance Summary'!$B79))), (_xlfn.MAXIFS('WAPC Price & Quantity'!$K:$K, 'WAPC Price & Quantity'!$E:$E, 'Compliance Summary'!$B79))) -> 0.03618240021 | D79: =_xlfn.MAXIFS('WAPC Price & Quantity'!L:L,'WAPC Price & Quantity'!$E:$E,'Compliance Summary'!$B79) -> 0.03596127248 | E79: =_xlfn.MAXIFS('WAPC Price & Quantity'!M:M,'WAPC Price & Quantity'!$E:$E,'Compliance Summary'!$B79) -> 0.02696929239
B80: Other fixed line and fixed wireless TC-4 | C80: =IF((COUNTIF($E$215:$E$216, $B80) > 0), MAX((_xlfn.MAXIFS('WAPC Price & Quantity'!$K:$K, 'WAPC Price & Quantity'!$E:$E, 'Compliance Summary'!$B80)),(_xlfn.MAXIFS($H$215:$H$216, $E$215:$E$216, 'Compliance Summary'!$B80))), (_xlfn.MAXIFS('WAPC Price & Quantity'!$K:$K, 'WAPC Price & Quantity'!$E:$E, 'Compliance Summary'!$B80))) -> 0.04989832629 | D80: =_xlfn.MAXIFS('WAPC Price & Quantity'!L:L,'WAPC Price & Quantity'!$E:$E,'Compliance Summary'!$B80) -> 0.05 | E80: =_xlfn.MAXIFS('WAPC Price & Quantity'!M:M,'WAPC Price & Quantity'!$E:$E,'Compliance Summary'!$B80) -> 0.04997788589
B81: Satellite AVC TC-4 | C81: =IF((COUNTIF($E$215:$E$216, $B81) > 0), MAX((_xlfn.MAXIFS('WAPC Price & Quantity'!$K:$K, 'WAPC Price & Quantity'!$E:$E, 'Compliance Summary'!$B81)),(_xlfn.MAXIFS($H$215:$H$216, $E$215:$E$216, 'Compliance Summary'!$B81))), (_xlfn.MAXIFS('WAPC Price & Quantity'!$K:$K, 'WAPC Price & Quantity'!$E:$E, 'Compliance Summary'!$B81))) -> 0 | D81: =_xlfn.MAXIFS('WAPC Price & Quantity'!L:L,'WAPC Price & Quantity'!$E:$E,'Compliance Summary'!$B81) -> 0 | E81: =_xlfn.MAXIFS('WAPC Price & Quantity'!M:M,'WAPC Price & Quantity'!$E:$E,'Compliance Summary'!$B81) -> 0
B82: Satellite CVC TC-4 | C82: =IF((COUNTIF($E$215:$E$216, $B82) > 0), MAX((_xlfn.MAXIFS('WAPC Price & Quantity'!$K:$K, 'WAPC Price & Quantity'!$E:$E, 'Compliance Summary'!$B82)),(_xlfn.MAXIFS($H$215:$H$216, $E$215:$E$216, 'Compliance Summary'!$B82))), (_xlfn.MAXIFS('WAPC Price & Quantity'!$K:$K, 'WAPC Price & Quantity'!$E:$E, 'Compliance Summary'!$B82))) -> 0 | D82: =_xlfn.MAXIFS('WAPC Price & Quantity'!L:L,'WAPC Price & Quantity'!$E:$E,'Compliance Summary'!$B82) -> 0 | E82: =_xlfn.MAXIFS('WAPC Price & Quantity'!M:M,'WAPC Price & Quantity'!$E:$E,'Compliance Summary'!$B82) -> 0
B85: Tariff List Table References | C85: WAPC Charge Component | D85: Access Network | E85: Individual Price Control | F85: FY26 pt − 1 | G85: FY27 pt | H85: FY28 pt + 1 | I85: FY29 pt + 2 | J85: FY27 % Tariff Change | K85: FY28 % Tariff Change | L85: FY29 % Tariff Change | M85: FY27 Compliant / Not Compliant | N85: FY28 Compliant / Not Compliant | O85: FY29 Compliant / Not Compliant
B86: 1.3 Bundled TC-4 Offers | C86: AVC TC-4 25/5 Mbps | D86: Fibre, FTTB, FTTN, FTTC, HFC | E86: Entry level TC-4 | F86: =IF(AND(COUNTIF($C$215:$C$216, C86) > 0, COUNTIF($D$215:$D$216, D86) > 0), (_xlfn._xlws.FILTER($F$215:$F$216,($C$215:$C$216=$C86)*($D$215:$D$216=$D86))), (_xlfn._xlws.FILTER('WAPC Price & Quantity'!F:F,('WAPC Price & Quantity'!$C:$C=$C86)*('WAPC Price & Quantity'!$D:$D=$D86)))) -> 34.88768 | G86: =_xlfn._xlws.FILTER('WAPC Price & Quantity'!G:G,('WAPC Price & Quantity'!$C:$C=$C86)*('WAPC Price & Quantity'!$D:$D=$D86)) -> 36.15 | H86: =_xlfn._xlws.FILTER('WAPC Price & Quantity'!H:H,('WAPC Price & Quantity'!$C:$C=$C86)*('WAPC Price & Quantity'!$D:$D=$D86)) -> 37.45 | I86: =_xlfn._xlws.FILTER('WAPC Price & Quantity'!I:I,('WAPC Price & Quantity'!$C:$C=$C86)*('WAPC Price & Quantity'!$D:$D=$D86)) -> 38.46 | J86: =IF(F86>0,G86/F86-1,0) -> 0.03618240021 | K86: =IF(G86>0,H86/G86-1,0) -> 0.03596127248 | L86: =IF(H86>0,I86/H86-1,0) -> 0.02696929239 | M86: =IF(J86<=(_xlfn.XLOOKUP($E86,$B$70:$B$75,C$70:C$75,,0)),"Compliant","Not compliant") -> Compliant | N86: =IF(K86<=(_xlfn.XLOOKUP($E86,$B$70:$B$75,D$70:D$75,,0)),"Compliant","Not compliant") -> Compliant | O86: =IF(L86<=(_xlfn.XLOOKUP($E86,$B$70:$B$75,E$70:E$75,,0)),"Compliant","Not compliant") -> Compliant
B87: 1.3 Bundled TC-4 Offers | C87: AVC TC-4 25/5 Mbps | D87: Wireless | E87: Entry level TC-4 | F87: =IF(AND(COUNTIF($C$215:$C$216, C87) > 0, COUNTIF($D$215:$D$216, D87) > 0), (_xlfn._xlws.FILTER($F$215:$F$216,($C$215:$C$216=$C87)*($D$215:$D$216=$D87))), (_xlfn._xlws.FILTER('WAPC Price & Quantity'!F:F,('WAPC Price & Quantity'!$C:$C=$C87)*('WAPC Price & Quantity'!$D:$D=$D87)))) -> 34.88768 | G87: =_xlfn._xlws.FILTER('WAPC Price & Quantity'!G:G,('WAPC Price & Quantity'!$C:$C=$C87)*('WAPC Price & Quantity'!$D:$D=$D87)) -> 36.15 | H87: =_xlfn._xlws.FILTER('WAPC Price & Quantity'!H:H,('WAPC Price & Quantity'!$C:$C=$C87)*('WAPC Price & Quantity'!$D:$D=$D87)) -> 37.45 | I87: =_xlfn._xlws.FILTER('WAPC Price & Quantity'!I:I,('WAPC Price & Quantity'!$C:$C=$C87)*('WAPC Price & Quantity'!$D:$D=$D87)) -> 38.46 | J87: =IF(F87>0,G87/F87-1,0) -> 0.03618240021 | K87: =IF(G87>0,H87/G87-1,0) -> 0.03596127248 | L87: =IF(H87>0,I87/H87-1,0) -> 0.02696929239 | M87: =IF(J87<=(_xlfn.XLOOKUP($E87,$B$70:$B$75,C$70:C$75,,0)),"Compliant","Not compliant") -> Compliant | N87: =IF(K87<=(_xlfn.XLOOKUP($E87,$B$70:$B$75,D$70:D$75,,0)),"Compliant","Not compliant") -> Compliant | O87: =IF(L87<=(_xlfn.XLOOKUP($E87,$B$70:$B$75,E$70:E$75,,0)),"Compliant","Not compliant") -> Compliant
B88: 1.3 Bundled TC-4 Offers | C88: AVC TC-4 25/5-10 Mbps | D88: FTTB, FTTN | E88: Other fixed line and fixed wireless TC-4 | F88: =IF(AND(COUNTIF($C$215:$C$216, C88) > 0, COUNTIF($D$215:$D$216, D88) > 0), (_xlfn._xlws.FILTER($F$215:$F$216,($C$215:$C$216=$C88)*($D$215:$D$216=$D88))), (_xlfn._xlws.FILTER('WAPC Price & Quantity'!F:F,('WAPC Price & Quantity'!$C:$C=$C88)*('WAPC Price & Quantity'!$D:$D=$D88)))) -> 35.07 | G88: =_xlfn._xlws.FILTER('WAPC Price & Quantity'!G:G,('WAPC Price & Quantity'!$C:$C=$C88)*('WAPC Price & Quantity'!$D:$D=$D88)) -> 36.15 | H88: =_xlfn._xlws.FILTER('WAPC Price & Quantity'!H:H,('WAPC Price & Quantity'!$C:$C=$C88)*('WAPC Price & Quantity'!$D:$D=$D88)) -> 37.45 | I88: =_xlfn._xlws.FILTER('WAPC Price & Quantity'!I:I,('WAPC Price & Quantity'!$C:$C=$C88)*('WAPC Price & Quantity'!$D:$D=$D88)) -> 38.46 | J88: 0.03079555175 | K88: 0.03596127248 | L88: 0.02696929239 | M88: Compliant | N88: Compliant | O88: Compliant
B89: 1.3 Bundled TC-4 Offers | C89: AVC TC-4 25/10 Mbps | D89: Fibre, FTTC, HFC | E89: Other fixed line and fixed wireless TC-4 | F89: =IF(AND(COUNTIF($C$215:$C$216, C89) > 0, COUNTIF($D$215:$D$216, D89) > 0), (_xlfn._xlws.FILTER($F$215:$F$216,($C$215:$C$216=$C89)*($D$215:$D$216=$D89))), (_xlfn._xlws.FILTER('WAPC Price & Quantity'!F:F,('WAPC Price & Quantity'!$C:$C=$C89)*('WAPC Price & Quantity'!$D:$D=$D89)))) -> 35.07 | G89: =_xlfn._xlws.FILTER('WAPC Price & Quantity'!G:G,('WAPC Price & Quantity'!$C:$C=$C89)*('WAPC Price & Quantity'!$D:$D=$D89)) -> 36.15 | H89: =_xlfn._xlws.FILTER('WAPC Price & Quantity'!H:H,('WAPC Price & Quantity'!$C:$C=$C89)*('WAPC Price & Quantity'!$D:$D=$D89)) -> 37.45 | I89: =_xlfn._xlws.FILTER('WAPC Price & Quantity'!I:I,('WAPC Price & Quantity'!$C:$C=$C89)*('WAPC Price & Quantity'!$D:$D=$D89)) -> 38.46 | J89: 0.03079555175 | K89: 0.03596127248 | L89: 0.02696929239 | M89: Compliant | N89: Compliant | O89: Compliant
B90: 1.4 Bundled TC-4 Offers: Smart Places | C90: Smart Places - AVC TC-4 25/10 Mbps | D90: Fibre | E90: Other fixed line and fixed wireless TC-4 | F90: =IF(AND(COUNTIF($C$215:$C$216, C90) > 0, COUNTIF($D$215:$D$216, D90) > 0), (_xlfn._xlws.FILTER($F$215:$F$216,($C$215:$C$216=$C90)*($D$215:$D$216=$D90))), (_xlfn._xlws.FILTER('WAPC Price & Quantity'!F:F,('WAPC Price & Quantity'!$C:$C=$C90)*('WAPC Price & Quantity'!$D:$D=$D90)))) -> 35.07 | G90: =_xlfn._xlws.FILTER('WAPC Price & Quantity'!G:G,('WAPC Price & Quantity'!$C:$C=$C90)*('WAPC Price & Quantity'!$D:$D=$D90)) -> 36.15 | H90: =_xlfn._xlws.FILTER('WAPC Price & Quantity'!H:H,('WAPC Price & Quantity'!$C:$C=$C90)*('WAPC Price & Quantity'!$D:$D=$D90)) -> 37.45 | I90: =_xlfn._xlws.FILTER('WAPC Price & Quantity'!I:I,('WAPC Price & Quantity'!$C:$C=$C90)*('WAPC Price & Quantity'!$D:$D=$D90)) -> 38.46 | J90: 0.03079555175 | K90: 0.03596127248 | L90: 0.02696929239 | M90: Compliant | N90: Compliant | O90: Compliant
B91: 1.3 Bundled TC-4 Offers | C91: AVC TC-4 12/1 Mbps (Basic Bundled Offer) | D91: Fibre, FTTB, FTTN, FTTC, HFC | E91: Other fixed line and fixed wireless TC-4 | F91: =IF(AND(COUNTIF($C$215:$C$216, C91) > 0, COUNTIF($D$215:$D$216, D91) > 0), (_xlfn._xlws.FILTER($F$215:$F$216,($C$215:$C$216=$C91)*($D$215:$D$216=$D91))), (_xlfn._xlws.FILTER('WAPC Price & Quantity'!F:F,('WAPC Price & Quantity'!$C:$C=$C91)*('WAPC Price & Quantity'!$D:$D=$D91)))) -> 12.01 | G91: =_xlfn._xlws.FILTER('WAPC Price & Quantity'!G:G,('WAPC Price & Quantity'!$C:$C=$C91)*('WAPC Price & Quantity'!$D:$D=$D91)) -> 12 | H91: =_xlfn._xlws.FILTER('WAPC Price & Quantity'!H:H,('WAPC Price & Quantity'!$C:$C=$C91)*('WAPC Price & Quantity'!$D:$D=$D91)) -> 12 | I91: =_xlfn._xlws.FILTER('WAPC Price & Quantity'!I:I,('WAPC Price & Quantity'!$C:$C=$C91)*('WAPC Price & Quantity'!$D:$D=$D91)) -> 12 | J91: -0.0008326394671 | K91: 0 | L91: 0 | M91: Compliant | N91: Compliant | O91: Compliant
B92: 1.3 Bundled TC-4 Offers | C92: AVC TC-4 12/1 Mbps | D92: Fibre, FTTB, FTTN, FTTC, HFC, Wireless | E92: Other fixed line and fixed wireless TC-4 | F92: =IF(AND(COUNTIF($C$215:$C$216, C92) > 0, COUNTIF($D$215:$D$216, D92) > 0), (_xlfn._xlws.FILTER($F$215:$F$216,($C$215:$C$216=$C92)*($D$215:$D$216=$D92))), (_xlfn._xlws.FILTER('WAPC Price & Quantity'!F:F,('WAPC Price & Quantity'!$C:$C=$C92)*('WAPC Price & Quantity'!$D:$D=$D92)))) -> 33.9 | G92: =_xlfn._xlws.FILTER('WAPC Price & Quantity'!G:G,('WAPC Price & Quantity'!$C:$C=$C92)*('WAPC Price & Quantity'!$D:$D=$D92)) -> 35.59 | H92: =_xlfn._xlws.FILTER('WAPC Price & Quantity'!H:H,('WAPC Price & Quantity'!$C:$C=$C92)*('WAPC Price & Quantity'!$D:$D=$D92)) -> 37.36 | I92: =_xlfn._xlws.FILTER('WAPC Price & Quantity'!I:I,('WAPC Price & Quantity'!$C:$C=$C92)*('WAPC Price & Quantity'!$D:$D=$D92)) -> 39.22 | J92: 0.04985250737 | K92: 0.04973307109 | L92: 0.04978586724 | M92: Compliant | N92: Compliant | O92: Compliant
B93: 1.3 Bundled TC-4 Offers | C93: AVC TC-4 25-50/5-20 Mbps | D93: FTTB, FTTN | E93: Other fixed line and fixed wireless TC-4 | F93: =IF(AND(COUNTIF($C$215:$C$216, C93) > 0, COUNTIF($D$215:$D$216, D93) > 0), (_xlfn._xlws.FILTER($F$215:$F$216,($C$215:$C$216=$C93)*($D$215:$D$216=$D93))), (_xlfn._xlws.FILTER('WAPC Price & Quantity'!F:F,('WAPC Price & Quantity'!$C:$C=$C93)*('WAPC Price & Quantity'!$D:$D=$D93)))) -> 55.26 | G93: =_xlfn._xlws.FILTER('WAPC Price & Quantity'!G:G,('WAPC Price & Quantity'!$C:$C=$C93)*('WAPC Price & Quantity'!$D:$D=$D93)) -> 57.6 | H93: =_xlfn._xlws.FILTER('WAPC Price & Quantity'!H:H,('WAPC Price & Quantity'!$C:$C=$C93)*('WAPC Price & Quantity'!$D:$D=$D93)) -> 59.68 | I93: =_xlfn._xlws.FILTER('WAPC Price & Quantity'!I:I,('WAPC Price & Quantity'!$C:$C=$C93)*('WAPC Price & Quantity'!$D:$D=$D93)) -> 61.31 | J93: 0.04234527687 | K93: 0.03611111111 | L93: 0.02731233244 | M93: Compliant | N93: Compliant | O93: Compliant
B94: 1.3 Bundled TC-4 Offers | C94: AVC TC-4 50/20 Mbps | D94: Fibre, FTTC, HFC | E94: Other fixed line and fixed wireless TC-4 | F94: =IF(AND(COUNTIF($C$215:$C$216, C94) > 0, COUNTIF($D$215:$D$216, D94) > 0), (_xlfn._xlws.FILTER($F$215:$F$216,($C$215:$C$216=$C94)*($D$215:$D$216=$D94))), (_xlfn._xlws.FILTER('WAPC Price & Quantity'!F:F,('WAPC Price & Quantity'!$C:$C=$C94)*('WAPC Price & Quantity'!$D:$D=$D94)))) -> 55.26 | G94: =_xlfn._xlws.FILTER('WAPC Price & Quantity'!G:G,('WAPC Price & Quantity'!$C:$C=$C94)*('WAPC Price & Quantity'!$D:$D=$D94)) -> 57.6 | H94: =_xlfn._xlws.FILTER('WAPC Price & Quantity'!H:H,('WAPC Price & Quantity'!$C:$C=$C94)*('WAPC Price & Quantity'!$D:$D=$D94)) -> 59.68 | I94: =_xlfn._xlws.FILTER('WAPC Price & Quantity'!I:I,('WAPC Price & Quantity'!$C:$C=$C94)*('WAPC Price & Quantity'!$D:$D=$D94)) -> 61.31 | J94: 0.04234527687 | K94: 0.03611111111 | L94: 0.02731233244 | M94: Compliant | N94: Compliant | O94: Compliant
B95: 1.3 Bundled TC-4 Offers | C95: AVC TC-4 up to 100/up to 20 Mbps | D95: Wireless | E95: Other fixed line and fixed wireless TC-4 | F95: =IF(AND(COUNTIF($C$215:$C$216, C95) > 0, COUNTIF($D$215:$D$216, D95) > 0), (_xlfn._xlws.FILTER($F$215:$F$216,($C$215:$C$216=$C95)*($D$215:$D$216=$D95))), (_xlfn._xlws.FILTER('WAPC Price & Quantity'!F:F,('WAPC Price & Quantity'!$C:$C=$C95)*('WAPC Price & Quantity'!$D:$D=$D95)))) -> 55.26 | G95: =_xlfn._xlws.FILTER('WAPC Price & Quantity'!G:G,('WAPC Price & Quantity'!$C:$C=$C95)*('WAPC Price & Quantity'!$D:$D=$D95)) -> 57.6 | H95: =_xlfn._xlws.FILTER('WAPC Price & Quantity'!H:H,('WAPC Price & Quantity'!$C:$C=$C95)*('WAPC Price & Quantity'!$D:$D=$D95)) -> 59.68 | I95: =_xlfn._xlws.FILTER('WAPC Price & Quantity'!I:I,('WAPC Price & Quantity'!$C:$C=$C95)*('WAPC Price & Quantity'!$D:$D=$D95)) -> 61.31 | J95: 0.04234527687 | K95: 0.03611111111 | L95: 0.02731233244 | M95: Compliant | N95: Compliant | O95: Compliant
B96: 1.4 Bundled TC-4 Offers: Smart Places | C96: Smart Places - AVC TC-4 50/20 Mbps | D96: Fibre | E96: Other fixed line and fixed wireless TC-4 | F96: =IF(AND(COUNTIF($C$215:$C$216, C96) > 0, COUNTIF($D$215:$D$216, D96) > 0), (_xlfn._xlws.FILTER($F$215:$F$216,($C$215:$C$216=$C96)*($D$215:$D$216=$D96))), (_xlfn._xlws.FILTER('WAPC Price & Quantity'!F:F,('WAPC Price & Quantity'!$C:$C=$C96)*('WAPC Price & Quantity'!$D:$D=$D96)))) -> 55.26 | G96: =_xlfn._xlws.FILTER('WAPC Price & Quantity'!G:G,('WAPC Price & Quantity'!$C:$C=$C96)*('WAPC Price & Quantity'!$D:$D=$D96)) -> 57.6 | H96: =_xlfn._xlws.FILTER('WAPC Price & Quantity'!H:H,('WAPC Price & Quantity'!$C:$C=$C96)*('WAPC Price & Quantity'!$D:$D=$D96)) -> 59.68 | I96: =_xlfn._xlws.FILTER('WAPC Price & Quantity'!I:I,('WAPC Price & Quantity'!$C:$C=$C96)*('WAPC Price & Quantity'!$D:$D=$D96)) -> 61.31 | J96: 0.04234527687 | K96: 0.03611111111 | L96: 0.02731233244 | M96: Compliant | N96: Compliant | O96: Compliant
B97: 1.1 Flat-Rate Offers | C97: AVC TC-4 25-100/5-20 Mbps | D97: FTTB, FTTN | E97: Other fixed line and fixed wireless TC-4 | F97: =IF(AND(COUNTIF($C$215:$C$216, C97) > 0, COUNTIF($D$215:$D$216, D97) > 0), (_xlfn._xlws.FILTER($F$215:$F$216,($C$215:$C$216=$C97)*($D$215:$D$216=$D97))), (_xlfn._xlws.FILTER('WAPC Price & Quantity'!F:F,('WAPC Price & Quantity'!$C:$C=$C97)*('WAPC Price & Quantity'!$D:$D=$D97)))) -> 58.53 | G97: =_xlfn._xlws.FILTER('WAPC Price & Quantity'!G:G,('WAPC Price & Quantity'!$C:$C=$C97)*('WAPC Price & Quantity'!$D:$D=$D97)) -> 60.85 | H97: =_xlfn._xlws.FILTER('WAPC Price & Quantity'!H:H,('WAPC Price & Quantity'!$C:$C=$C97)*('WAPC Price & Quantity'!$D:$D=$D97)) -> 62.93 | I97: =_xlfn._xlws.FILTER('WAPC Price & Quantity'!I:I,('WAPC Price & Quantity'!$C:$C=$C97)*('WAPC Price & Quantity'!$D:$D=$D97)) -> 64.56 | J97: 0.03963779258 | K97: 0.03418241578 | L97: 0.02590179565 | M97: Compliant | N97: Compliant | O97: Compliant
B98: 1.1 Flat-Rate Offers | C98: AVC TC-4 50-100/20 Mbps | D98: FTTC | E98: Other fixed line and fixed wireless TC-4 | F98: =IF(AND(COUNTIF($C$215:$C$216, C98) > 0, COUNTIF($D$215:$D$216, D98) > 0), (_xlfn._xlws.FILTER($F$215:$F$216,($C$215:$C$216=$C98)*($D$215:$D$216=$D98))), (_xlfn._xlws.FILTER('WAPC Price & Quantity'!F:F,('WAPC Price & Quantity'!$C:$C=$C98)*('WAPC Price & Quantity'!$D:$D=$D98)))) -> 58.53 | G98: =_xlfn._xlws.FILTER('WAPC Price & Quantity'!G:G,('WAPC Price & Quantity'!$C:$C=$C98)*('WAPC Price & Quantity'!$D:$D=$D98)) -> 60.85 | H98: =_xlfn._xlws.FILTER('WAPC Price & Quantity'!H:H,('WAPC Price & Quantity'!$C:$C=$C98)*('WAPC Price & Quantity'!$D:$D=$D98)) -> 62.93 | I98: =_xlfn._xlws.FILTER('WAPC Price & Quantity'!I:I,('WAPC Price & Quantity'!$C:$C=$C98)*('WAPC Price & Quantity'!$D:$D=$D98)) -> 64.56 | J98: 0.03963779258 | K98: 0.03418241578 | L98: 0.02590179565 | M98: Compliant | N98: Compliant | O98: Compliant
B99: 1.1 Flat-Rate Offers | C99: AVC TC-4 500/50 Mbps | D99: Fibre, HFC | E99: Other fixed line and fixed wireless TC-4 | F99: =IF(AND(COUNTIF($C$215:$C$216, C99) > 0, COUNTIF($D$215:$D$216, D99) > 0), (_xlfn._xlws.FILTER($F$215:$F$216,($C$215:$C$216=$C99)*($D$215:$D$216=$D99))), (_xlfn._xlws.FILTER('WAPC Price & Quantity'!F:F,('WAPC Price & Quantity'!$C:$C=$C99)*('WAPC Price & Quantity'!$D:$D=$D99)))) -> 58.53 | G99: =_xlfn._xlws.FILTER('WAPC Price & Quantity'!G:G,('WAPC Price & Quantity'!$C:$C=$C99)*('WAPC Price & Quantity'!$D:$D=$D99)) -> 60.85 | H99: =_xlfn._xlws.FILTER('WAPC Price & Quantity'!H:H,('WAPC Price & Quantity'!$C:$C=$C99)*('WAPC Price & Quantity'!$D:$D=$D99)) -> 62.93 | I99: =_xlfn._xlws.FILTER('WAPC Price & Quantity'!I:I,('WAPC Price & Quantity'!$C:$C=$C99)*('WAPC Price & Quantity'!$D:$D=$D99)) -> 64.56 | J99: 0.03963779258 | K99: 0.03418241578 | L99: 0.02590179565 | M99: Compliant | N99: Compliant | O99: Compliant
B100: 1.1 Flat-Rate Offers | C100: AVC TC-4 200-250/8-20 Mbps | D100: Wireless | E100: Other fixed line and fixed wireless TC-4 | F100: =IF(AND(COUNTIF($C$215:$C$216, C100) > 0, COUNTIF($D$215:$D$216, D100) > 0), (_xlfn._xlws.FILTER($F$215:$F$216,($C$215:$C$216=$C100)*($D$215:$D$216=$D100))), (_xlfn._xlws.FILTER('WAPC Price & Quantity'!F:F,('WAPC Price & Quantity'!$C:$C=$C100)*('WAPC Price & Quantity'!$D:$D=$D100)))) -> 58.53 | G100: =_xlfn._xlws.FILTER('WAPC Price & Quantity'!G:G,('WAPC Price & Quantity'!$C:$C=$C100)*('WAPC Price & Quantity'!$D:$D=$D100)) -> 60.85 | H100: =_xlfn._xlws.FILTER('WAPC Price & Quantity'!H:H,('WAPC Price & Quantity'!$C:$C=$C100)*('WAPC Price & Quantity'!$D:$D=$D100)) -> 62.93 | I100: =_xlfn._xlws.FILTER('WAPC Price & Quantity'!I:I,('WAPC Price & Quantity'!$C:$C=$C100)*('WAPC Price & Quantity'!$D:$D=$D100)) -> 64.56 | J100: 0.03963779258 | K100: 0.03418241578 | L100: 0.02590179565 | M100: Compliant | N100: Compliant | O100: Compliant
B101: 1.1 Flat-Rate Offers | C101: AVC TC-4 25-100/5-40 Mbps | D101: FTTB, FTTN | E101: Other fixed line and fixed wireless TC-4 | F101: =IF(AND(COUNTIF($C$215:$C$216, C101) > 0, COUNTIF($D$215:$D$216, D101) > 0), (_xlfn._xlws.FILTER($F$215:$F$216,($C$215:$C$216=$C101)*($D$215:$D$216=$D101))), (_xlfn._xlws.FILTER('WAPC Price & Quantity'!F:F,('WAPC Price & Quantity'!$C:$C=$C101)*('WAPC Price & Quantity'!$D:$D=$D101)))) -> 61.53 | G101: =_xlfn._xlws.FILTER('WAPC Price & Quantity'!G:G,('WAPC Price & Quantity'!$C:$C=$C101)*('WAPC Price & Quantity'!$D:$D=$D101)) -> 64.6 | H101: =_xlfn._xlws.FILTER('WAPC Price & Quantity'!H:H,('WAPC Price & Quantity'!$C:$C=$C101)*('WAPC Price & Quantity'!$D:$D=$D101)) -> 67.83 | I101: =_xlfn._xlws.FILTER('WAPC Price & Quantity'!I:I,('WAPC Price & Quantity'!$C:$C=$C101)*('WAPC Price & Quantity'!$D:$D=$D101)) -> 71.22 | J101: 0.04989436047 | K101: 0.05 | L101: 0.04997788589 | M101: Compliant | N101: Compliant | O101: Compliant
B102: 1.1 Flat-Rate Offers | C102: AVC TC-4 50-100/20-40 Mbps | D102: FTTC | E102: Other fixed line and fixed wireless TC-4 | F102: =IF(AND(COUNTIF($C$215:$C$216, C102) > 0, COUNTIF($D$215:$D$216, D102) > 0), (_xlfn._xlws.FILTER($F$215:$F$216,($C$215:$C$216=$C102)*($D$215:$D$216=$D102))), (_xlfn._xlws.FILTER('WAPC Price & Quantity'!F:F,('WAPC Price & Quantity'!$C:$C=$C102)*('WAPC Price & Quantity'!$D:$D=$D102)))) -> 61.53 | G102: =_xlfn._xlws.FILTER('WAPC Price & Quantity'!G:G,('WAPC Price & Quantity'!$C:$C=$C102)*('WAPC Price & Quantity'!$D:$D=$D102)) -> 64.6 | H102: =_xlfn._xlws.FILTER('WAPC Price & Quantity'!H:H,('WAPC Price & Quantity'!$C:$C=$C102)*('WAPC Price & Quantity'!$D:$D=$D102)) -> 67.83 | I102: =_xlfn._xlws.FILTER('WAPC Price & Quantity'!I:I,('WAPC Price & Quantity'!$C:$C=$C102)*('WAPC Price & Quantity'!$D:$D=$D102)) -> 71.22 | J102: 0.04989436047 | K102: 0.05 | L102: 0.04997788589 | M102: Compliant | N102: Compliant | O102: Compliant
B103: 1.1 Flat-Rate Offers | C103: AVC TC-4 100/40 Mbps | D103: Fibre, HFC | E103: Other fixed line and fixed wireless TC-4 | F103: =IF(AND(COUNTIF($C$215:$C$216, C103) > 0, COUNTIF($D$215:$D$216, D103) > 0), (_xlfn._xlws.FILTER($F$215:$F$216,($C$215:$C$216=$C103)*($D$215:$D$216=$D103))), (_xlfn._xlws.FILTER('WAPC Price & Quantity'!F:F,('WAPC Price & Quantity'!$C:$C=$C103)*('WAPC Price & Quantity'!$D:$D=$D103)))) -> 61.53 | G103: =_xlfn._xlws.FILTER('WAPC Price & Quantity'!G:G,('WAPC Price & Quantity'!$C:$C=$C103)*('WAPC Price & Quantity'!$D:$D=$D103)) -> 64.6 | H103: =_xlfn._xlws.FILTER('WAPC Price & Quantity'!H:H,('WAPC Price & Quantity'!$C:$C=$C103)*('WAPC Price & Quantity'!$D:$D=$D103)) -> 67.83 | I103: =_xlfn._xlws.FILTER('WAPC Price & Quantity'!I:I,('WAPC Price & Quantity'!$C:$C=$C103)*('WAPC Price & Quantity'!$D:$D=$D103)) -> 71.22 | J103: 0.04989436047 | K103: 0.05 | L103: 0.04997788589 | M103: Compliant | N103: Compliant | O103: Compliant
B104: 1.1 Flat-Rate Offers | C104: AVC TC-4 750/50 Mbps | D104: Fibre, HFC | E104: Other fixed line and fixed wireless TC-4 | F104: =IF(AND(COUNTIF($C$215:$C$216, C104) > 0, COUNTIF($D$215:$D$216, D104) > 0), (_xlfn._xlws.FILTER($F$215:$F$216,($C$215:$C$216=$C104)*($D$215:$D$216=$D104))), (_xlfn._xlws.FILTER('WAPC Price & Quantity'!F:F,('WAPC Price & Quantity'!$C:$C=$C104)*('WAPC Price & Quantity'!$D:$D=$D104)))) -> 63.93 | G104: =_xlfn._xlws.FILTER('WAPC Price & Quantity'!G:G,('WAPC Price & Quantity'!$C:$C=$C104)*('WAPC Price & Quantity'!$D:$D=$D104)) -> 67.12 | H104: =_xlfn._xlws.FILTER('WAPC Price & Quantity'!H:H,('WAPC Price & Quantity'!$C:$C=$C104)*('WAPC Price & Quantity'!$D:$D=$D104)) -> 70.47 | I104: =_xlfn._xlws.FILTER('WAPC Price & Quantity'!I:I,('WAPC Price & Quantity'!$C:$C=$C104)*('WAPC Price & Quantity'!$D:$D=$D104)) -> 73.99 | J104: 0.04989832629 | K104: 0.04991060787 | L104: 0.04995033348 | M104: Compliant | N104: Compliant | O104: Compliant
B105: 1.1 Flat-Rate Offers | C105: AVC TC-4 400/10-40 Mbps | D105: Wireless | E105: Other fixed line and fixed wireless TC-4 | F105: =IF(AND(COUNTIF($C$215:$C$216, C105) > 0, COUNTIF($D$215:$D$216, D105) > 0), (_xlfn._xlws.FILTER($F$215:$F$216,($C$215:$C$216=$C105)*($D$215:$D$216=$D105))), (_xlfn._xlws.FILTER('WAPC Price & Quantity'!F:F,('WAPC Price & Quantity'!$C:$C=$C105)*('WAPC Price & Quantity'!$D:$D=$D105)))) -> 63.93 | G105: =_xlfn._xlws.FILTER('WAPC Price & Quantity'!G:G,('WAPC Price & Quantity'!$C:$C=$C105)*('WAPC Price & Quantity'!$D:$D=$D105)) -> 67.12 | H105: =_xlfn._xlws.FILTER('WAPC Price & Quantity'!H:H,('WAPC Price & Quantity'!$C:$C=$C105)*('WAPC Price & Quantity'!$D:$D=$D105)) -> 70.47 | I105: =_xlfn._xlws.FILTER('WAPC Price & Quantity'!I:I,('WAPC Price & Quantity'!$C:$C=$C105)*('WAPC Price & Quantity'!$D:$D=$D105)) -> 73.99 | J105: 0.04989832629 | K105: 0.04991060787 | L105: 0.04995033348 | M105: Compliant | N105: Compliant | O105: Compliant
B106: 1.1 Flat-Rate Offers | C106: AVC TC-4 250/100 Mbps | D106: Fibre | E106: Other fixed line and fixed wireless TC-4 | F106: =IF(AND(COUNTIF($C$215:$C$216, C106) > 0, COUNTIF($D$215:$D$216, D106) > 0), (_xlfn._xlws.FILTER($F$215:$F$216,($C$215:$C$216=$C106)*($D$215:$D$216=$D106))), (_xlfn._xlws.FILTER('WAPC Price & Quantity'!F:F,('WAPC Price & Quantity'!$C:$C=$C106)*('WAPC Price & Quantity'!$D:$D=$D106)))) -> 75.5 | G106: =_xlfn._xlws.FILTER('WAPC Price & Quantity'!G:G,('WAPC Price & Quantity'!$C:$C=$C106)*('WAPC Price & Quantity'!$D:$D=$D106)) -> 64.6 | H106: =_xlfn._xlws.FILTER('WAPC Price & Quantity'!H:H,('WAPC Price & Quantity'!$C:$C=$C106)*('WAPC Price & Quantity'!$D:$D=$D106)) -> 67.83 | I106: =_xlfn._xlws.FILTER('WAPC Price & Quantity'!I:I,('WAPC Price & Quantity'!$C:$C=$C106)*('WAPC Price & Quantity'!$D:$D=$D106)) -> 71.22 | J106: -0.1443708609 | K106: 0.05 | L106: 0.04997788589 | M106: Compliant | N106: Compliant | O106: Compliant
B107: 1.1 Flat-Rate Offers | C107: AVC TC-4 250/100 Mbps | D107: HFC | E107: Other fixed line and fixed wireless TC-4 | F107: =IF(AND(COUNTIF($C$215:$C$216, C107) > 0, COUNTIF($D$215:$D$216, D107) > 0), (_xlfn._xlws.FILTER($F$215:$F$216,($C$215:$C$216=$C107)*($D$215:$D$216=$D107))), (_xlfn._xlws.FILTER('WAPC Price & Quantity'!F:F,('WAPC Price & Quantity'!$C:$C=$C107)*('WAPC Price & Quantity'!$D:$D=$D107)))) -> 61.53 | G107: =_xlfn._xlws.FILTER('WAPC Price & Quantity'!G:G,('WAPC Price & Quantity'!$C:$C=$C107)*('WAPC Price & Quantity'!$D:$D=$D107)) -> 64.6 | H107: =_xlfn._xlws.FILTER('WAPC Price & Quantity'!H:H,('WAPC Price & Quantity'!$C:$C=$C107)*('WAPC Price & Quantity'!$D:$D=$D107)) -> 67.83 | I107: =_xlfn._xlws.FILTER('WAPC Price & Quantity'!I:I,('WAPC Price & Quantity'!$C:$C=$C107)*('WAPC Price & Quantity'!$D:$D=$D107)) -> 71.22 | J107: 0.04989436047 | K107: 0.05 | L107: 0.04997788589 | M107: Compliant | N107: Compliant | O107: Compliant
B108: 1.1 Flat-Rate Offers | C108: AVC TC-4 500/200 Mbps | D108: Fibre | E108: Other fixed line and fixed wireless TC-4 | F108: =IF(AND(COUNTIF($C$215:$C$216, C108) > 0, COUNTIF($D$215:$D$216, D108) > 0), (_xlfn._xlws.FILTER($F$215:$F$216,($C$215:$C$216=$C108)*($D$215:$D$216=$D108))), (_xlfn._xlws.FILTER('WAPC Price & Quantity'!F:F,('WAPC Price & Quantity'!$C:$C=$C108)*('WAPC Price & Quantity'!$D:$D=$D108)))) -> 101 | G108: =_xlfn._xlws.FILTER('WAPC Price & Quantity'!G:G,('WAPC Price & Quantity'!$C:$C=$C108)*('WAPC Price & Quantity'!$D:$D=$D108)) -> 79 | H108: =_xlfn._xlws.FILTER('WAPC Price & Quantity'!H:H,('WAPC Price & Quantity'!$C:$C=$C108)*('WAPC Price & Quantity'!$D:$D=$D108)) -> 81.37 | I108: =_xlfn._xlws.FILTER('WAPC Price & Quantity'!I:I,('WAPC Price & Quantity'!$C:$C=$C108)*('WAPC Price & Quantity'!$D:$D=$D108)) -> 83.57 | J108: -0.2178217822 | K108: 0.03 | L108: 0.02703699152 | M108: Compliant | N108: Compliant | O108: Compliant
B109: 1.1 Flat-Rate Offers | C109: AVC TC-4 1000/100 Mbps | D109: Fibre, HFC | E109: Other fixed line and fixed wireless TC-4 | F109: =IF(AND(COUNTIF($C$215:$C$216, C109) > 0, COUNTIF($D$215:$D$216, D109) > 0), (_xlfn._xlws.FILTER($F$215:$F$216,($C$215:$C$216=$C109)*($D$215:$D$216=$D109))), (_xlfn._xlws.FILTER('WAPC Price & Quantity'!F:F,('WAPC Price & Quantity'!$C:$C=$C109)*('WAPC Price & Quantity'!$D:$D=$D109)))) -> 73.93 | G109: =_xlfn._xlws.FILTER('WAPC Price & Quantity'!G:G,('WAPC Price & Quantity'!$C:$C=$C109)*('WAPC Price & Quantity'!$D:$D=$D109)) -> 75.88 | H109: =_xlfn._xlws.FILTER('WAPC Price & Quantity'!H:H,('WAPC Price & Quantity'!$C:$C=$C109)*('WAPC Price & Quantity'!$D:$D=$D109)) -> 77.5 | I109: =_xlfn._xlws.FILTER('WAPC Price & Quantity'!I:I,('WAPC Price & Quantity'!$C:$C=$C109)*('WAPC Price & Quantity'!$D:$D=$D109)) -> 78.56 | J109: 0.02637630191 | K109: 0.02134949921 | L109: 0.01367741935 | M109: Compliant | N109: Compliant | O109: Compliant
B110: 1.1 Flat-Rate Offers | C110: AVC TC-4 1000/400 Mbps | D110: Fibre | E110: Other fixed line and fixed wireless TC-4 | F110: =IF(AND(COUNTIF($C$215:$C$216, C110) > 0, COUNTIF($D$215:$D$216, D110) > 0), (_xlfn._xlws.FILTER($F$215:$F$216,($C$215:$C$216=$C110)*($D$215:$D$216=$D110))), (_xlfn._xlws.FILTER('WAPC Price & Quantity'!F:F,('WAPC Price & Quantity'!$C:$C=$C110)*('WAPC Price & Quantity'!$D:$D=$D110)))) -> 126.5 | G110: =_xlfn._xlws.FILTER('WAPC Price & Quantity'!G:G,('WAPC Price & Quantity'!$C:$C=$C110)*('WAPC Price & Quantity'!$D:$D=$D110)) -> 96.91 | H110: =_xlfn._xlws.FILTER('WAPC Price & Quantity'!H:H,('WAPC Price & Quantity'!$C:$C=$C110)*('WAPC Price & Quantity'!$D:$D=$D110)) -> 101.75 | I110: =_xlfn._xlws.FILTER('WAPC Price & Quantity'!I:I,('WAPC Price & Quantity'!$C:$C=$C110)*('WAPC Price & Quantity'!$D:$D=$D110)) -> 106.83 | J110: -0.2339130435 | K110: 0.04994324631 | L110: 0.04992628993 | M110: Compliant | N110: Compliant | O110: Compliant
B111: 1.1 Flat-Rate Offers | C111: AVC TC-4 2000/100 Mbps | D111: HFC | E111: Other fixed line and fixed wireless TC-4 | F111: =IF(AND(COUNTIF($C$215:$C$216, C111) > 0, COUNTIF($D$215:$D$216, D111) > 0), (_xlfn._xlws.FILTER($F$215:$F$216,($C$215:$C$216=$C111)*($D$215:$D$216=$D111))), (_xlfn._xlws.FILTER('WAPC Price & Quantity'!F:F,('WAPC Price & Quantity'!$C:$C=$C111)*('WAPC Price & Quantity'!$D:$D=$D111)))) -> 115 | G111: =_xlfn._xlws.FILTER('WAPC Price & Quantity'!G:G,('WAPC Price & Quantity'!$C:$C=$C111)*('WAPC Price & Quantity'!$D:$D=$D111)) -> 119.04 | H111: =_xlfn._xlws.FILTER('WAPC Price & Quantity'!H:H,('WAPC Price & Quantity'!$C:$C=$C111)*('WAPC Price & Quantity'!$D:$D=$D111)) -> 123.7140248 | I111: =_xlfn._xlws.FILTER('WAPC Price & Quantity'!I:I,('WAPC Price & Quantity'!$C:$C=$C111)*('WAPC Price & Quantity'!$D:$D=$D111)) -> 127.05 | J111: 0.03513043478 | K111: 0.03926432103 | L111: 0.02696521458 | M111: Compliant | N111: Compliant | O111: Compliant
B112: 1.1 Flat-Rate Offers | C112: AVC TC-4 2000/200 Mbps | D112: Fibre | E112: Other fixed line and fixed wireless TC-4 | F112: =IF(AND(COUNTIF($C$215:$C$216, C112) > 0, COUNTIF($D$215:$D$216, D112) > 0), (_xlfn._xlws.FILTER($F$215:$F$216,($C$215:$C$216=$C112)*($D$215:$D$216=$D112))), (_xlfn._xlws.FILTER('WAPC Price & Quantity'!F:F,('WAPC Price & Quantity'!$C:$C=$C112)*('WAPC Price & Quantity'!$D:$D=$D112)))) -> 115 | G112: =_xlfn._xlws.FILTER('WAPC Price & Quantity'!G:G,('WAPC Price & Quantity'!$C:$C=$C112)*('WAPC Price & Quantity'!$D:$D=$D112)) -> 119.04 | H112: =_xlfn._xlws.FILTER('WAPC Price & Quantity'!H:H,('WAPC Price & Quantity'!$C:$C=$C112)*('WAPC Price & Quantity'!$D:$D=$D112)) -> 123.7140248 | I112: =_xlfn._xlws.FILTER('WAPC Price & Quantity'!I:I,('WAPC Price & Quantity'!$C:$C=$C112)*('WAPC Price & Quantity'!$D:$D=$D112)) -> 127.05 | J112: 0.03513043478 | K112: 0.03926432103 | L112: 0.02696521458 | M112: Compliant | N112: Compliant | O112: Compliant
B113: 1.1 Flat-Rate Offers | C113: AVC TC-4 2000/500 Mbps | D113: Fibre | E113: Other fixed line and fixed wireless TC-4 | F113: =IF(AND(COUNTIF($C$215:$C$216, C113) > 0, COUNTIF($D$215:$D$216, D113) > 0), (_xlfn._xlws.FILTER($F$215:$F$216,($C$215:$C$216=$C113)*($D$215:$D$216=$D113))), (_xlfn._xlws.FILTER('WAPC Price & Quantity'!F:F,('WAPC Price & Quantity'!$C:$C=$C113)*('WAPC Price & Quantity'!$D:$D=$D113)))) -> 150 | G113: =_xlfn._xlws.FILTER('WAPC Price & Quantity'!G:G,('WAPC Price & Quantity'!$C:$C=$C113)*('WAPC Price & Quantity'!$D:$D=$D113)) -> 154.99 | H113: =_xlfn._xlws.FILTER('WAPC Price & Quantity'!H:H,('WAPC Price & Quantity'!$C:$C=$C113)*('WAPC Price & Quantity'!$D:$D=$D113)) -> 161.07 | I113: =_xlfn._xlws.FILTER('WAPC Price & Quantity'!I:I,('WAPC Price & Quantity'!$C:$C=$C113)*('WAPC Price & Quantity'!$D:$D=$D113)) -> 165.42 | J113: 0.03326666667 | K113: 0.03922833731 | L113: 0.02700689141 | M113: Compliant | N113: Compliant | O113: Compliant
B114: 1.2 Flat-Rate Offers - Smart Places | C114: Smart Places - AVC TC-4 100/40 Mbps | D114: Fibre | E114: Other fixed line and fixed wireless TC-4 | F114: =IF(AND(COUNTIF($C$215:$C$216, C114) > 0, COUNTIF($D$215:$D$216, D114) > 0), (_xlfn._xlws.FILTER($F$215:$F$216,($C$215:$C$216=$C114)*($D$215:$D$216=$D114))), (_xlfn._xlws.FILTER('WAPC Price & Quantity'!F:F,('WAPC Price & Quantity'!$C:$C=$C114)*('WAPC Price & Quantity'!$D:$D=$D114)))) -> 61.53 | G114: =_xlfn._xlws.FILTER('WAPC Price & Quantity'!G:G,('WAPC Price & Quantity'!$C:$C=$C114)*('WAPC Price & Quantity'!$D:$D=$D114)) -> 64.6 | H114: =_xlfn._xlws.FILTER('WAPC Price & Quantity'!H:H,('WAPC Price & Quantity'!$C:$C=$C114)*('WAPC Price & Quantity'!$D:$D=$D114)) -> 67.83 | I114: =_xlfn._xlws.FILTER('WAPC Price & Quantity'!I:I,('WAPC Price & Quantity'!$C:$C=$C114)*('WAPC Price & Quantity'!$D:$D=$D114)) -> 71.22 | J114: 0.04989436047 | K114: 0.05 | L114: 0.04997788589 | M114: Compliant | N114: Compliant | O114: Compliant
B115: 1.2 Flat-Rate Offers - Smart Places | C115: Smart Places - AVC TC-4 250/100 Mbps | D115: Fibre | E115: Other fixed line and fixed wireless TC-4 | F115: =IF(AND(COUNTIF($C$215:$C$216, C115) > 0, COUNTIF($D$215:$D$216, D115) > 0), (_xlfn._xlws.FILTER($F$215:$F$216,($C$215:$C$216=$C115)*($D$215:$D$216=$D115))), (_xlfn._xlws.FILTER('WAPC Price & Quantity'!F:F,('WAPC Price & Quantity'!$C:$C=$C115)*('WAPC Price & Quantity'!$D:$D=$D115)))) -> 75.5 | G115: =_xlfn._xlws.FILTER('WAPC Price & Quantity'!G:G,('WAPC Price & Quantity'!$C:$C=$C115)*('WAPC Price & Quantity'!$D:$D=$D115)) -> 64.6 | H115: =_xlfn._xlws.FILTER('WAPC Price & Quantity'!H:H,('WAPC Price & Quantity'!$C:$C=$C115)*('WAPC Price & Quantity'!$D:$D=$D115)) -> 67.83 | I115: =_xlfn._xlws.FILTER('WAPC Price & Quantity'!I:I,('WAPC Price & Quantity'!$C:$C=$C115)*('WAPC Price & Quantity'!$D:$D=$D115)) -> 71.22 | J115: -0.1443708609 | K115: 0.05 | L115: 0.04997788589 | M115: Compliant | N115: Compliant | O115: Compliant
B116: 1.2 Flat-Rate Offers - Smart Places | C116: Smart Places - AVC TC-4 500/200 Mbps | D116: Fibre | E116: Other fixed line and fixed wireless TC-4 | F116: =IF(AND(COUNTIF($C$215:$C$216, C116) > 0, COUNTIF($D$215:$D$216, D116) > 0), (_xlfn._xlws.FILTER($F$215:$F$216,($C$215:$C$216=$C116)*($D$215:$D$216=$D116))), (_xlfn._xlws.FILTER('WAPC Price & Quantity'!F:F,('WAPC Price & Quantity'!$C:$C=$C116)*('WAPC Price & Quantity'!$D:$D=$D116)))) -> 101 | G116: =_xlfn._xlws.FILTER('WAPC Price & Quantity'!G:G,('WAPC Price & Quantity'!$C:$C=$C116)*('WAPC Price & Quantity'!$D:$D=$D116)) -> 79 | H116: =_xlfn._xlws.FILTER('WAPC Price & Quantity'!H:H,('WAPC Price & Quantity'!$C:$C=$C116)*('WAPC Price & Quantity'!$D:$D=$D116)) -> 81.37 | I116: =_xlfn._xlws.FILTER('WAPC Price & Quantity'!I:I,('WAPC Price & Quantity'!$C:$C=$C116)*('WAPC Price & Quantity'!$D:$D=$D116)) -> 83.57 | J116: -0.2178217822 | K116: 0.03 | L116: 0.02703699152 | M116: Compliant | N116: Compliant | O116: Compliant
B117: 1.2 Flat-Rate Offers - Smart Places | C117: Smart Places - AVC TC-4 1000/400 Mbps | D117: Fibre | E117: Other fixed line and fixed wireless TC-4 | F117: =IF(AND(COUNTIF($C$215:$C$216, C117) > 0, COUNTIF($D$215:$D$216, D117) > 0), (_xlfn._xlws.FILTER($F$215:$F$216,($C$215:$C$216=$C117)*($D$215:$D$216=$D117))), (_xlfn._xlws.FILTER('WAPC Price & Quantity'!F:F,('WAPC Price & Quantity'!$C:$C=$C117)*('WAPC Price & Quantity'!$D:$D=$D117)))) -> 126.5 | G117: =_xlfn._xlws.FILTER('WAPC Price & Quantity'!G:G,('WAPC Price & Quantity'!$C:$C=$C117)*('WAPC Price & Quantity'!$D:$D=$D117)) -> 96.91 | H117: =_xlfn._xlws.FILTER('WAPC Price & Quantity'!H:H,('WAPC Price & Quantity'!$C:$C=$C117)*('WAPC Price & Quantity'!$D:$D=$D117)) -> 101.75 | I117: =_xlfn._xlws.FILTER('WAPC Price & Quantity'!I:I,('WAPC Price & Quantity'!$C:$C=$C117)*('WAPC Price & Quantity'!$D:$D=$D117)) -> 106.83 | J117: -0.2339130435 | K117: 0.04994324631 | L117: 0.04992628993 | M117: Compliant | N117: Compliant | O117: Compliant
B118: 1.5 Asymmetric AVC Offers in respect of the NBN Co Satellite Network | C118: AVC TC-4 12/1 Mbps | D118: Satellite | E118: Satellite AVC TC-4 | F118: =IF(AND(COUNTIF($C$215:$C$216, C118) > 0, COUNTIF($D$215:$D$216, D118) > 0), (_xlfn._xlws.FILTER($F$215:$F$216,($C$215:$C$216=$C118)*($D$215:$D$216=$D118))), (_xlfn._xlws.FILTER('WAPC Price & Quantity'!F:F,('WAPC Price & Quantity'!$C:$C=$C118)*('WAPC Price & Quantity'!$D:$D=$D118)))) -> 24 | G118: =_xlfn._xlws.FILTER('WAPC Price & Quantity'!G:G,('WAPC Price & Quantity'!$C:$C=$C118)*('WAPC Price & Quantity'!$D:$D=$D118)) -> 24 | H118: =_xlfn._xlws.FILTER('WAPC Price & Quantity'!H:H,('WAPC Price & Quantity'!$C:$C=$C118)*('WAPC Price & Quantity'!$D:$D=$D118)) -> 24 | I118: =_xlfn._xlws.FILTER('WAPC Price & Quantity'!I:I,('WAPC Price & Quantity'!$C:$C=$C118)*('WAPC Price & Quantity'!$D:$D=$D118)) -> 24 | J118: 0 | K118: 0 | L118: 0 | M118: Compliant | N118: Compliant | O118: Compliant
B119: 1.5 Asymmetric AVC Offers in respect of the NBN Co Satellite Network | C119: AVC TC-4 25/5 Mbps | D119: Satellite | E119: Satellite AVC TC-4 | F119: =IF(AND(COUNTIF($C$215:$C$216, C119) > 0, COUNTIF($D$215:$D$216, D119) > 0), (_xlfn._xlws.FILTER($F$215:$F$216,($C$215:$C$216=$C119)*($D$215:$D$216=$D119))), (_xlfn._xlws.FILTER('WAPC Price & Quantity'!F:F,('WAPC Price & Quantity'!$C:$C=$C119)*('WAPC Price & Quantity'!$D:$D=$D119)))) -> 27 | G119: =_xlfn._xlws.FILTER('WAPC Price & Quantity'!G:G,('WAPC Price & Quantity'!$C:$C=$C119)*('WAPC Price & Quantity'!$D:$D=$D119)) -> 27 | H119: =_xlfn._xlws.FILTER('WAPC Price & Quantity'!H:H,('WAPC Price & Quantity'!$C:$C=$C119)*('WAPC Price & Quantity'!$D:$D=$D119)) -> 27 | I119: =_xlfn._xlws.FILTER('WAPC Price & Quantity'!I:I,('WAPC Price & Quantity'!$C:$C=$C119)*('WAPC Price & Quantity'!$D:$D=$D119)) -> 27 | J119: 0 | K119: 0 | L119: 0 | M119: Compliant | N119: Compliant | O119: Compliant
B120: 3.2 Connectivity Virtual Circuit Offers | C120: CVC TC-4 (Satellite) | D120: Satellite | E120: Satellite CVC TC-4 | F120: =IF(AND(COUNTIF($C$215:$C$216, C120) > 0, COUNTIF($D$215:$D$216, D120) > 0), (_xlfn._xlws.FILTER($F$215:$F$216,($C$215:$C$216=$C120)*($D$215:$D$216=$D120))), (_xlfn._xlws.FILTER('WAPC Price & Quantity'!F:F,('WAPC Price & Quantity'!$C:$C=$C120)*('WAPC Price & Quantity'!$D:$D=$D120)))) -> 15.75 | G120: =_xlfn._xlws.FILTER('WAPC Price & Quantity'!G:G,('WAPC Price & Quantity'!$C:$C=$C120)*('WAPC Price & Quantity'!$D:$D=$D120)) -> 15.75 | H120: =_xlfn._xlws.FILTER('WAPC Price & Quantity'!H:H,('WAPC Price & Quantity'!$C:$C=$C120)*('WAPC Price & Quantity'!$D:$D=$D120)) -> 15.75 | I120: =_xlfn._xlws.FILTER('WAPC Price & Quantity'!I:I,('WAPC Price & Quantity'!$C:$C=$C120)*('WAPC Price & Quantity'!$D:$D=$D120)) -> 15.75 | J120: 0 | K120: 0 | L120: 0 | M120: Compliant | N120: Compliant | O120: Compliant
B121: 4 CVC Class Offers for the NBN Co Satellite Network | C121: CVC Class 0 | D121: Satellite | E121: Satellite CVC TC-4 | F121: =IF(AND(COUNTIF($C$215:$C$216, C121) > 0, COUNTIF($D$215:$D$216, D121) > 0), (_xlfn._xlws.FILTER($F$215:$F$216,($C$215:$C$216=$C121)*($D$215:$D$216=$D121))), (_xlfn._xlws.FILTER('WAPC Price & Quantity'!F:F,('WAPC Price & Quantity'!$C:$C=$C121)*('WAPC Price & Quantity'!$D:$D=$D121)))) -> 0 | G121: =_xlfn._xlws.FILTER('WAPC Price & Quantity'!G:G,('WAPC Price & Quantity'!$C:$C=$C121)*('WAPC Price & Quantity'!$D:$D=$D121)) -> 0 | H121: =_xlfn._xlws.FILTER('WAPC Price & Quantity'!H:H,('WAPC Price & Quantity'!$C:$C=$C121)*('WAPC Price & Quantity'!$D:$D=$D121)) -> 0 | I121: =_xlfn._xlws.FILTER('WAPC Price & Quantity'!I:I,('WAPC Price & Quantity'!$C:$C=$C121)*('WAPC Price & Quantity'!$D:$D=$D121)) -> 0 | J121: 0 | K121: 0 | L121: 0 | M121: Compliant | N121: Compliant | O121: Compliant
B122: 4 CVC Class Offers for the NBN Co Satellite Network | C122: CVC Class 1 | D122: Satellite | E122: Satellite CVC TC-4 | F122: =IF(AND(COUNTIF($C$215:$C$216, C122) > 0, COUNTIF($D$215:$D$216, D122) > 0), (_xlfn._xlws.FILTER($F$215:$F$216,($C$215:$C$216=$C122)*($D$215:$D$216=$D122))), (_xlfn._xlws.FILTER('WAPC Price & Quantity'!F:F,('WAPC Price & Quantity'!$C:$C=$C122)*('WAPC Price & Quantity'!$D:$D=$D122)))) -> 18 | G122: =_xlfn._xlws.FILTER('WAPC Price & Quantity'!G:G,('WAPC Price & Quantity'!$C:$C=$C122)*('WAPC Price & Quantity'!$D:$D=$D122)) -> 18 | H122: =_xlfn._xlws.FILTER('WAPC Price & Quantity'!H:H,('WAPC Price & Quantity'!$C:$C=$C122)*('WAPC Price & Quantity'!$D:$D=$D122)) -> 18 | I122: =_xlfn._xlws.FILTER('WAPC Price & Quantity'!I:I,('WAPC Price & Quantity'!$C:$C=$C122)*('WAPC Price & Quantity'!$D:$D=$D122)) -> 18 | J122: 0 | K122: 0 | L122: 0 | M122: Compliant | N122: Compliant | O122: Compliant
B123: 4 CVC Class Offers for the NBN Co Satellite Network | C123: CVC Class 2 | D123: Satellite | E123: Satellite CVC TC-4 | F123: =IF(AND(COUNTIF($C$215:$C$216, C123) > 0, COUNTIF($D$215:$D$216, D123) > 0), (_xlfn._xlws.FILTER($F$215:$F$216,($C$215:$C$216=$C123)*($D$215:$D$216=$D123))), (_xlfn._xlws.FILTER('WAPC Price & Quantity'!F:F,('WAPC Price & Quantity'!$C:$C=$C123)*('WAPC Price & Quantity'!$D:$D=$D123)))) -> 40 | G123: =_xlfn._xlws.FILTER('WAPC Price & Quantity'!G:G,('WAPC Price & Quantity'!$C:$C=$C123)*('WAPC Price & Quantity'!$D:$D=$D123)) -> 40 | H123: =_xlfn._xlws.FILTER('WAPC Price & Quantity'!H:H,('WAPC Price & Quantity'!$C:$C=$C123)*('WAPC Price & Quantity'!$D:$D=$D123)) -> 40 | I123: =_xlfn._xlws.FILTER('WAPC Price & Quantity'!I:I,('WAPC Price & Quantity'!$C:$C=$C123)*('WAPC Price & Quantity'!$D:$D=$D123)) -> 40 | J123: 0 | K123: 0 | L123: 0 | M123: Compliant | N123: Compliant | O123: Compliant
B126: 2E.2.2(d) Fixed line and fixed wireless TC-4 offers
B128: Financial Year beginning | C128: Price Commitment (per utilised Mbps) | D128: CVC TC-4 (non-Satellite) Price | E128: Compliant / Not Compliant
B129: Beginning 1 July 2025 | C129: 3.5 | D129: ='FY26 FACC'!$C$60 -> 3.5 | E129: =IF($D129<=$C129,"Compliant","Not compliant") -> Compliant
B130: Beginning 1 July 2026 and later | C130: 0 | D130: 0 | E130: =IF($D130<=$C130,"Compliant","Not compliant") -> Compliant
B132: 2E.2.2(h) Fixed line and fixed wireless TC-4 offers
B133: nbn confirms that it has not changed the Price structure of a Flat-Rate Offer such that it ceases to be a Flat Rate Offer. No additional charges apply for CVC TC-4 utilised in conjunction with a Flat-Rate Offer.
B137: 2E.2.4 Other Changes based on hourly labour rate and/or cost of materials
B138: The SAU provides that, in respect of an Other Charge that consists of an hourly labour rate (or such other labour-based charge) and/or costs of materials: (a) the labour-based component of the Other Charge may only be increased by indexing it to the ABS Wage Price Index for Private Sector Construction or by periodically resetting it with reference to the relevant rates charged to nbn by its contractors; and (b) materials will be charged at cost. nbn is not increasing the labour-based component of any such Other Charge in FY27 and is not forecasting any increase to the labour-based component in FY28 and FY29.
B145: 2E.2.5(a)(iii) Recurring WAPC Charge Components of Products withdrawn under clause 2H.6.2(a)
B146: Note 1: On 13 November 2024, nbn provided notice under clause 2H.6.2(a) of the SAU of its intention to withdraw the ‘Cell Site Access Service’ (CSAS) Product on 13 November 2026. Note 2: Column F (Monthly Recurring Charge as at 13 November 2024) sets out the Price of each Recurring WAPC Charge Component for the CSAS Product, for which nbn issued a withdrawal notice under clause 2H.2.6(a) of the SAU. Consistent with clause 2E.2.5 of the SAU, the Price of each Recurring WAPC Charge Component for CSAS in the FY27 Tariff List does not exceed the respective Price of that Recurring WAPC Charge Component for CSAS as at 13 November 2024.
B151: FY26 Tariff List Table References | C151: WAPC Charge Component | D151: Access Network | E151: Individual Price Control | F151: Monthly Recurring Charge as at 13 November 2024 | G151: FY27 pt | H151: Compliant / Not Compliant
B152: =_xlfn._xlws.FILTER('WAPC Price & Quantity'!$B:$D,ISNUMBER(SEARCH("14 CSAS Symmetric Access Capacity Offers",'WAPC Price & Quantity'!$B:$B))+ISNUMBER(SEARCH("15 CSAS Network to Network Interface Offers",'WAPC Price & Quantity'!$B:$B))) -> 14 CSAS Symmetric Access Capacity Offers | C152: CSAS - Access Capacity 50 Mbps Metro and Outer Metro | D152: Fibre | E152: =_xlfn._xlws.FILTER('Compliance Summary'!$E$85:$E$123,('Compliance Summary'!$C$85:$C$123=$C152)*('Compliance Summary'!$D$85:$D$123=$D152),"n/a") -> n/a | F152: 910 | G152: =_xlfn._xlws.FILTER('WAPC Price & Quantity'!$G:$G,('WAPC Price & Quantity'!$C:$C=$C152)*('WAPC Price & Quantity'!$D:$D=$D152)) -> 910 | H152: =IF($G152<=$F152,"Compliant","Not compliant") -> Compliant
B153: 14 CSAS Symmetric Access Capacity Offers | C153: CSAS - Access Capacity 50 Mbps Regional | D153: Fibre | E153: =_xlfn._xlws.FILTER('Compliance Summary'!$E$85:$E$123,('Compliance Summary'!$C$85:$C$123=$C153)*('Compliance Summary'!$D$85:$D$123=$D153),"n/a") -> n/a | F153: 1245 | G153: =_xlfn._xlws.FILTER('WAPC Price & Quantity'!$G:$G,('WAPC Price & Quantity'!$C:$C=$C153)*('WAPC Price & Quantity'!$D:$D=$D153)) -> 1245 | H153: =IF($G153<=$F153,"Compliant","Not compliant") -> Compliant
B154: 14 CSAS Symmetric Access Capacity Offers | C154: CSAS - Access Capacity 100 Mbps Metro and Outer Metro | D154: Fibre | E154: =_xlfn._xlws.FILTER('Compliance Summary'!$E$85:$E$123,('Compliance Summary'!$C$85:$C$123=$C154)*('Compliance Summary'!$D$85:$D$123=$D154),"n/a") -> n/a | F154: 1250 | G154: =_xlfn._xlws.FILTER('WAPC Price & Quantity'!$G:$G,('WAPC Price & Quantity'!$C:$C=$C154)*('WAPC Price & Quantity'!$D:$D=$D154)) -> 1250 | H154: Compliant
B155: 14 CSAS Symmetric Access Capacity Offers | C155: CSAS - Access Capacity 100 Mbps Regional | D155: Fibre | E155: =_xlfn._xlws.FILTER('Compliance Summary'!$E$85:$E$123,('Compliance Summary'!$C$85:$C$123=$C155)*('Compliance Summary'!$D$85:$D$123=$D155),"n/a") -> n/a | F155: 1800 | G155: =_xlfn._xlws.FILTER('WAPC Price & Quantity'!$G:$G,('WAPC Price & Quantity'!$C:$C=$C155)*('WAPC Price & Quantity'!$D:$D=$D155)) -> 1800 | H155: Compliant
B156: 14 CSAS Symmetric Access Capacity Offers | C156: CSAS - Access Capacity 150 Mbps Metro and Outer Metro | D156: Fibre | E156: =_xlfn._xlws.FILTER('Compliance Summary'!$E$85:$E$123,('Compliance Summary'!$C$85:$C$123=$C156)*('Compliance Summary'!$D$85:$D$123=$D156),"n/a") -> n/a | F156: 1500 | G156: =_xlfn._xlws.FILTER('WAPC Price & Quantity'!$G:$G,('WAPC Price & Quantity'!$C:$C=$C156)*('WAPC Price & Quantity'!$D:$D=$D156)) -> 1500 | H156: Compliant
B157: 14 CSAS Symmetric Access Capacity Offers | C157: CSAS - Access Capacity 150 Mbps Regional | D157: Fibre | E157: =_xlfn._xlws.FILTER('Compliance Summary'!$E$85:$E$123,('Compliance Summary'!$C$85:$C$123=$C157)*('Compliance Summary'!$D$85:$D$123=$D157),"n/a") -> n/a | F157: 2235 | G157: =_xlfn._xlws.FILTER('WAPC Price & Quantity'!$G:$G,('WAPC Price & Quantity'!$C:$C=$C157)*('WAPC Price & Quantity'!$D:$D=$D157)) -> 2235 | H157: Compliant
B158: 14 CSAS Symmetric Access Capacity Offers | C158: CSAS - Access Capacity 200 Mbps Metro and Outer Metro | D158: Fibre | E158: =_xlfn._xlws.FILTER('Compliance Summary'!$E$85:$E$123,('Compliance Summary'!$C$85:$C$123=$C158)*('Compliance Summary'!$D$85:$D$123=$D158),"n/a") -> n/a | F158: 1720 | G158: =_xlfn._xlws.FILTER('WAPC Price & Quantity'!$G:$G,('WAPC Price & Quantity'!$C:$C=$C158)*('WAPC Price & Quantity'!$D:$D=$D158)) -> 1720 | H158: Compliant
B159: 14 CSAS Symmetric Access Capacity Offers | C159: CSAS - Access Capacity 200 Mbps Regional | D159: Fibre | E159: =_xlfn._xlws.FILTER('Compliance Summary'!$E$85:$E$123,('Compliance Summary'!$C$85:$C$123=$C159)*('Compliance Summary'!$D$85:$D$123=$D159),"n/a") -> n/a | F159: 2600 | G159: =_xlfn._xlws.FILTER('WAPC Price & Quantity'!$G:$G,('WAPC Price & Quantity'!$C:$C=$C159)*('WAPC Price & Quantity'!$D:$D=$D159)) -> 2600 | H159: Compliant
B160: 14 CSAS Symmetric Access Capacity Offers | C160: CSAS - Access Capacity 300 Mbps Metro and Outer Metro | D160: Fibre | E160: =_xlfn._xlws.FILTER('Compliance Summary'!$E$85:$E$123,('Compliance Summary'!$C$85:$C$123=$C160)*('Compliance Summary'!$D$85:$D$123=$D160),"n/a") -> n/a | F160: 2070 | G160: =_xlfn._xlws.FILTER('WAPC Price & Quantity'!$G:$G,('WAPC Price & Quantity'!$C:$C=$C160)*('WAPC Price & Quantity'!$D:$D=$D160)) -> 2070 | H160: Compliant
B161: 14 CSAS Symmetric Access Capacity Offers | C161: CSAS - Access Capacity 300 Mbps Regional | D161: Fibre | E161: =_xlfn._xlws.FILTER('Compliance Summary'!$E$85:$E$123,('Compliance Summary'!$C$85:$C$123=$C161)*('Compliance Summary'!$D$85:$D$123=$D161),"n/a") -> n/a | F161: 3210 | G161: =_xlfn._xlws.FILTER('WAPC Price & Quantity'!$G:$G,('WAPC Price & Quantity'!$C:$C=$C161)*('WAPC Price & Quantity'!$D:$D=$D161)) -> 3210 | H161: Compliant
B162: 14 CSAS Symmetric Access Capacity Offers | C162: CSAS - Access Capacity 500 Mbps Metro and Outer Metro | D162: Fibre | E162: =_xlfn._xlws.FILTER('Compliance Summary'!$E$85:$E$123,('Compliance Summary'!$C$85:$C$123=$C162)*('Compliance Summary'!$D$85:$D$123=$D162),"n/a") -> n/a | F162: 2550 | G162: =_xlfn._xlws.FILTER('WAPC Price & Quantity'!$G:$G,('WAPC Price & Quantity'!$C:$C=$C162)*('WAPC Price & Quantity'!$D:$D=$D162)) -> 2550 | H162: Compliant
B163: 14 CSAS Symmetric Access Capacity Offers | C163: CSAS - Access Capacity 500 Mbps Regional | D163: Fibre | E163: =_xlfn._xlws.FILTER('Compliance Summary'!$E$85:$E$123,('Compliance Summary'!$C$85:$C$123=$C163)*('Compliance Summary'!$D$85:$D$123=$D163),"n/a") -> n/a | F163: 4200 | G163: =_xlfn._xlws.FILTER('WAPC Price & Quantity'!$G:$G,('WAPC Price & Quantity'!$C:$C=$C163)*('WAPC Price & Quantity'!$D:$D=$D163)) -> 4200 | H163: Compliant
B164: 14 CSAS Symmetric Access Capacity Offers | C164: CSAS - Access Capacity 900 Mbps Metro and Outer Metro | D164: Fibre | E164: =_xlfn._xlws.FILTER('Compliance Summary'!$E$85:$E$123,('Compliance Summary'!$C$85:$C$123=$C164)*('Compliance Summary'!$D$85:$D$123=$D164),"n/a") -> n/a | F164: 3240 | G164: =_xlfn._xlws.FILTER('WAPC Price & Quantity'!$G:$G,('WAPC Price & Quantity'!$C:$C=$C164)*('WAPC Price & Quantity'!$D:$D=$D164)) -> 3240 | H164: Compliant
B165: 14 CSAS Symmetric Access Capacity Offers | C165: CSAS - Access Capacity 900 Mbps Regional | D165: Fibre | E165: =_xlfn._xlws.FILTER('Compliance Summary'!$E$85:$E$123,('Compliance Summary'!$C$85:$C$123=$C165)*('Compliance Summary'!$D$85:$D$123=$D165),"n/a") -> n/a | F165: 5760 | G165: =_xlfn._xlws.FILTER('WAPC Price & Quantity'!$G:$G,('WAPC Price & Quantity'!$C:$C=$C165)*('WAPC Price & Quantity'!$D:$D=$D165)) -> 5760 | H165: Compliant
B166: 15 CSAS Network to Network Interface Offers | C166: CSAS - NNI 1000BaseLX - Recurring | D166: Fibre | E166: =_xlfn._xlws.FILTER('Compliance Summary'!$E$85:$E$123,('Compliance Summary'!$C$85:$C$123=$C166)*('Compliance Summary'!$D$85:$D$123=$D166),"n/a") -> n/a | F166: 100 | G166: =_xlfn._xlws.FILTER('WAPC Price & Quantity'!$G:$G,('WAPC Price & Quantity'!$C:$C=$C166)*('WAPC Price & Quantity'!$D:$D=$D166)) -> 100 | H166: Compliant
B167: 15 CSAS Network to Network Interface Offers | C167: CSAS - NNI 10GBaseLR - Recurring | D167: Fibre | E167: =_xlfn._xlws.FILTER('Compliance Summary'!$E$85:$E$123,('Compliance Summary'!$C$85:$C$123=$C167)*('Compliance Summary'!$D$85:$D$123=$D167),"n/a") -> n/a | F167: 400 | G167: =_xlfn._xlws.FILTER('WAPC Price & Quantity'!$G:$G,('WAPC Price & Quantity'!$C:$C=$C167)*('WAPC Price & Quantity'!$D:$D=$D167)) -> 390 | H167: Compliant
B168: 15 CSAS Network to Network Interface Offers | C168: CSAS - NNI 1000BaseEX - Recurring | D168: Fibre | E168: =_xlfn._xlws.FILTER('Compliance Summary'!$E$85:$E$123,('Compliance Summary'!$C$85:$C$123=$C168)*('Compliance Summary'!$D$85:$D$123=$D168),"n/a") -> n/a | F168: 125 | G168: =_xlfn._xlws.FILTER('WAPC Price & Quantity'!$G:$G,('WAPC Price & Quantity'!$C:$C=$C168)*('WAPC Price & Quantity'!$D:$D=$D168)) -> 125 | H168: Compliant
B169: 15 CSAS Network to Network Interface Offers | C169: CSAS - NNI 10GBaseER - Recurring | D169: Fibre | E169: =_xlfn._xlws.FILTER('Compliance Summary'!$E$85:$E$123,('Compliance Summary'!$C$85:$C$123=$C169)*('Compliance Summary'!$D$85:$D$123=$D169),"n/a") -> n/a | F169: 500 | G169: =_xlfn._xlws.FILTER('WAPC Price & Quantity'!$G:$G,('WAPC Price & Quantity'!$C:$C=$C169)*('WAPC Price & Quantity'!$D:$D=$D169)) -> 490 | H169: Compliant
B172: 2E.2.6(a)(iii) Recurring WAPC Charge Components of Products where withdrawal is required by law or directed by Shareholder Ministers
B173: nbn confirms that clause 2E.2.6(a)(iii) of the SAU has no relevant application to the Prices in the Tariff List published on 1 May 2026 (noting that the circumstances in which those controls would apply have not arisen).
B177: 2E.3 Backward-looking compliance in respect of Average Combined Charges
B178: Note: Bundled TC-4 Offers have a two-part AVC-CVC price structure. In that context, the individual price controls limit the prices of Bundled TC-4 Offers essentially by limiting their Forecast Average Combined Charge (FACC) for the upcoming year (based on a forecast of Daily AVC Peak Utilisation) as compared to their Average Combined Charge (ACC) for the current year (based on actual Daily AVC Peak Utilisation). Subsequently, over the course of a year, it’s possible that the ACC for a Bundled TC-4 Offer would exceed the FACC for that offer as stated in the Pricing Roadmap at the start of that year (e.g. because actual Daily AVC Peak Utilisation is higher than forecast). The 'backwards-looking price controls’ account for that possibility – and act to ensure that the relevant baseline when applying the individual price controls for the next year is based on the notional allowed ACC from the year before, not any higher actual ACC – see clauses 2E.3 and 2E.4 of the SAU. For the purposes of the FY27 price control model, the backwards-looking price controls essentially check whether actual Daily AVC Peak Utilisation (and therefore the average of the Average Daily AVC Overage Charge) for each Bundled TC-4 Offer exceeded the forecast that was used for FY26. Where this occurs, ACCt − 1 for the relevant Bundled TC-4 Offer (as used in applying the individual price controls for FY27) is adjusted such that it would not have exceeded the backward-looking price control. This sets a lower baseline for those individual price controls and constrains the prices of such Bundled TC-4 Offers. The ‘adjusted’ ACCt − 1 for such Bundled TC-4 Offers is not also used as the ‘pt − 1’ value in the WAPC (which is a separate price control). Rather, the ‘pt − 1’ value for Bundled TC-4 Offers for the purposes of the WAPC is based on the ACC for year t − 1 – see clause 2D.2.2(e) of the SAU. This reflects that the WAPC has a separate mechanism designed to account for the possibility that the ACC of Bundled TC-4 Offers may exceed the FACC for those offers for a given year (the ‘excess adjustment’ mechanism, which will first be applied in applying the WAPC from FY27 – see clause 2D.2.6 of the SAU).
B191: December quarter CPI in FY25 | C191: 0.024
C193: Tariff List Table References | D193: WAPC Charge Component | E193: Access Network | F193: Individual Price Control | G193: FY25 Average Combined Charge | H193: Backward-looking Price Control | I193: FY26 ACC | J193: Exceeded / Not Exceeded
B194: =_xlfn._xlws.FILTER('FY26 FACC'!$B:$B,('FY26 FACC'!$D:$D=$D194)*('FY26 FACC'!$E:$E=$E194)) -> 12/1 Mbps (Basic Bundled Offer) | C194: =_xlfn._xlws.FILTER('WAPC Price & Quantity'!$B:$E,ISNUMBER(SEARCH("Bundled TC-4 Offers",'WAPC Price & Quantity'!$B:$B))) -> 1.1 Flat-Rate Offers (formerly 1.3 Bundled TC-4 Offers) | D194: AVC TC-4 12/1 Mbps (Basic Bundled Offer) | E194: Fibre, FTTB, FTTN, FTTC, HFC | F194: Other fixed line and fixed wireless TC-4 | G194: =INDEX('FY25 Average Combined Charges'!$C$17:$F$17,,MATCH($B194,'FY25 Average Combined Charges'!$C$16:$F$16,0)) -> 12.01 | H194: =$G194*IF($F194="Entry level TC-4",(1+$C$191),(1+MAX('Compliance Summary'!$C$67,$C$191))) -> 12.6105 | I194: =INDEX('FY26 FACC'!$C$15:$F$15,,MATCH($B194,'FY26 FACC'!$C$14:$F$14,0)) -> 12.01 | J194: =IF($I194>$H194,"Exceeded","Not exceeded") -> Not exceeded
B195: =_xlfn._xlws.FILTER('FY26 FACC'!$B:$B,('FY26 FACC'!$D:$D=$D195)*('FY26 FACC'!$E:$E=$E195)) -> 12/1 Mbps (Non-Basic Bundled Offer) | C195: 1.1 Flat-Rate Offers (formerly 1.3 Bundled TC-4 Offers) | D195: AVC TC-4 12/1 Mbps | E195: Fibre, FTTB, FTTN, FTTC, HFC, Wireless | F195: Other fixed line and fixed wireless TC-4 | G195: =INDEX('FY25 Average Combined Charges'!$C$17:$F$17,,MATCH($B195,'FY25 Average Combined Charges'!$C$16:$F$16,0)) -> 32.68 | H195: =$G195*IF($F195="Entry level TC-4",(1+$C$191),(1+MAX('Compliance Summary'!$C$67,$C$191))) -> 34.314 | I195: =INDEX('FY26 FACC'!$C$15:$F$15,,MATCH($B195,'FY26 FACC'!$C$14:$F$14,0)) -> 33.9 | J195: =IF($I195>$H195,"Exceeded","Not exceeded") -> Not exceeded
B196: =_xlfn._xlws.FILTER('FY26 FACC'!$B:$B,('FY26 FACC'!$D:$D=$D196)*('FY26 FACC'!$E:$E=$E196)) -> 25/5 Mbps and 25/10 Mbps | C196: 1.1 Flat-Rate Offers (formerly 1.3 Bundled TC-4 Offers) | D196: AVC TC-4 25/5 Mbps | E196: Fibre, FTTB, FTTN, FTTC, HFC | F196: Entry level TC-4 | G196: =INDEX('FY25 Average Combined Charges'!$C$17:$F$17,,MATCH($B196,'FY25 Average Combined Charges'!$C$16:$F$16,0)) -> 34.07 | H196: =$G196*IF($F196="Entry level TC-4",(1+$C$191),(1+MAX('Compliance Summary'!$C$67,$C$191))) -> 34.88768 | I196: =INDEX('FY26 FACC'!$C$15:$F$15,,MATCH($B196,'FY26 FACC'!$C$14:$F$14,0)) -> 35.07 | J196: Exceeded
B197: =_xlfn._xlws.FILTER('FY26 FACC'!$B:$B,('FY26 FACC'!$D:$D=$D197)*('FY26 FACC'!$E:$E=$E197)) -> 25/5 Mbps and 25/10 Mbps | C197: 1.1 Flat-Rate Offers (formerly 1.3 Bundled TC-4 Offers) | D197: AVC TC-4 25/5 Mbps | E197: Wireless | F197: Entry level TC-4 | G197: =INDEX('FY25 Average Combined Charges'!$C$17:$F$17,,MATCH($B197,'FY25 Average Combined Charges'!$C$16:$F$16,0)) -> 34.07 | H197: =$G197*IF($F197="Entry level TC-4",(1+$C$191),(1+MAX('Compliance Summary'!$C$67,$C$191))) -> 34.88768 | I197: =INDEX('FY26 FACC'!$C$15:$F$15,,MATCH($B197,'FY26 FACC'!$C$14:$F$14,0)) -> 35.07 | J197: Exceeded
B198: =_xlfn._xlws.FILTER('FY26 FACC'!$B:$B,('FY26 FACC'!$D:$D=$D198)*('FY26 FACC'!$E:$E=$E198)) -> 25/5 Mbps and 25/10 Mbps | C198: 1.1 Flat-Rate Offers (formerly 1.3 Bundled TC-4 Offers) | D198: AVC TC-4 25/5-10 Mbps | E198: FTTB, FTTN | F198: Other fixed line and fixed wireless TC-4 | G198: =INDEX('FY25 Average Combined Charges'!$C$17:$F$17,,MATCH($B198,'FY25 Average Combined Charges'!$C$16:$F$16,0)) -> 34.07 | H198: =$G198*IF($F198="Entry level TC-4",(1+$C$191),(1+MAX('Compliance Summary'!$C$67,$C$191))) -> 35.7735 | I198: =INDEX('FY26 FACC'!$C$15:$F$15,,MATCH($B198,'FY26 FACC'!$C$14:$F$14,0)) -> 35.07 | J198: Not exceeded
B199: =_xlfn._xlws.FILTER('FY26 FACC'!$B:$B,('FY26 FACC'!$D:$D=$D199)*('FY26 FACC'!$E:$E=$E199)) -> 25/5 Mbps and 25/10 Mbps | C199: 1.1 Flat-Rate Offers (formerly 1.3 Bundled TC-4 Offers) | D199: AVC TC-4 25/10 Mbps | E199: Fibre, FTTC, HFC | F199: Other fixed line and fixed wireless TC-4 | G199: =INDEX('FY25 Average Combined Charges'!$C$17:$F$17,,MATCH($B199,'FY25 Average Combined Charges'!$C$16:$F$16,0)) -> 34.07 | H199: =$G199*IF($F199="Entry level TC-4",(1+$C$191),(1+MAX('Compliance Summary'!$C$67,$C$191))) -> 35.7735 | I199: =INDEX('FY26 FACC'!$C$15:$F$15,,MATCH($B199,'FY26 FACC'!$C$14:$F$14,0)) -> 35.07 | J199: =IF($I199>$H199,"Exceeded","Not exceeded") -> Not exceeded
B200: =_xlfn._xlws.FILTER('FY26 FACC'!$B:$B,('FY26 FACC'!$D:$D=$D200)*('FY26 FACC'!$E:$E=$E200)) -> 50/20 Mbps and Up to 100/Up to 20 Mbps | C200: 1.1 Flat-Rate Offers (formerly 1.3 Bundled TC-4 Offers) | D200: AVC TC-4 25-50/5-20 Mbps | E200: FTTB, FTTN | F200: Other fixed line and fixed wireless TC-4 | G200: =INDEX('FY25 Average Combined Charges'!$C$17:$F$17,,MATCH($B200,'FY25 Average Combined Charges'!$C$16:$F$16,0)) -> 53.62 | H200: =$G200*IF($F200="Entry level TC-4",(1+$C$191),(1+MAX('Compliance Summary'!$C$67,$C$191))) -> 56.301 | I200: =INDEX('FY26 FACC'!$C$15:$F$15,,MATCH($B200,'FY26 FACC'!$C$14:$F$14,0)) -> 55.26 | J200: Not exceeded
B201: =_xlfn._xlws.FILTER('FY26 FACC'!$B:$B,('FY26 FACC'!$D:$D=$D201)*('FY26 FACC'!$E:$E=$E201)) -> 50/20 Mbps and Up to 100/Up to 20 Mbps | C201: 1.1 Flat-Rate Offers (formerly 1.3 Bundled TC-4 Offers) | D201: AVC TC-4 50/20 Mbps | E201: Fibre, FTTC, HFC | F201: Other fixed line and fixed wireless TC-4 | G201: =INDEX('FY25 Average Combined Charges'!$C$17:$F$17,,MATCH($B201,'FY25 Average Combined Charges'!$C$16:$F$16,0)) -> 53.62 | H201: =$G201*IF($F201="Entry level TC-4",(1+$C$191),(1+MAX('Compliance Summary'!$C$67,$C$191))) -> 56.301 | I201: =INDEX('FY26 FACC'!$C$15:$F$15,,MATCH($B201,'FY26 FACC'!$C$14:$F$14,0)) -> 55.26 | J201: Not exceeded
B202: =_xlfn._xlws.FILTER('FY26 FACC'!$B:$B,('FY26 FACC'!$D:$D=$D202)*('FY26 FACC'!$E:$E=$E202)) -> 50/20 Mbps and Up to 100/Up to 20 Mbps | C202: 1.1 Flat-Rate Offers (formerly 1.3 Bundled TC-4 Offers) | D202: AVC TC-4 up to 100/up to 20 Mbps | E202: Wireless | F202: Other fixed line and fixed wireless TC-4 | G202: =INDEX('FY25 Average Combined Charges'!$C$17:$F$17,,MATCH($B202,'FY25 Average Combined Charges'!$C$16:$F$16,0)) -> 53.62 | H202: =$G202*IF($F202="Entry level TC-4",(1+$C$191),(1+MAX('Compliance Summary'!$C$67,$C$191))) -> 56.301 | I202: =INDEX('FY26 FACC'!$C$15:$F$15,,MATCH($B202,'FY26 FACC'!$C$14:$F$14,0)) -> 55.26 | J202: Not exceeded
B203: =_xlfn._xlws.FILTER('FY26 FACC'!$B:$B,('FY26 FACC'!$D:$D=$D203)*('FY26 FACC'!$E:$E=$E203)) -> 25/5 Mbps and 25/10 Mbps | C203: 1.2 Flat-Rate Offers - Smart Places (formerly 1.4 Bundled TC-4 Offers: Smart Places) | D203: Smart Places - AVC TC-4 25/10 Mbps | E203: Fibre | F203: Other fixed line and fixed wireless TC-4 | G203: =INDEX('FY25 Average Combined Charges'!$C$17:$F$17,,MATCH($B203,'FY25 Average Combined Charges'!$C$16:$F$16,0)) -> 34.07 | H203: =$G203*IF($F203="Entry level TC-4",(1+$C$191),(1+MAX('Compliance Summary'!$C$67,$C$191))) -> 35.7735 | I203: =INDEX('FY26 FACC'!$C$15:$F$15,,MATCH($B203,'FY26 FACC'!$C$14:$F$14,0)) -> 35.07 | J203: Not exceeded
B204: =_xlfn._xlws.FILTER('FY26 FACC'!$B:$B,('FY26 FACC'!$D:$D=$D204)*('FY26 FACC'!$E:$E=$E204)) -> 50/20 Mbps and Up to 100/Up to 20 Mbps | C204: 1.2 Flat-Rate Offers - Smart Places (formerly 1.4 Bundled TC-4 Offers: Smart Places) | D204: Smart Places - AVC TC-4 50/20 Mbps | E204: Fibre | F204: Other fixed line and fixed wireless TC-4 | G204: =INDEX('FY25 Average Combined Charges'!$C$17:$F$17,,MATCH($B204,'FY25 Average Combined Charges'!$C$16:$F$16,0)) -> 53.62 | H204: =$G204*IF($F204="Entry level TC-4",(1+$C$191),(1+MAX('Compliance Summary'!$C$67,$C$191))) -> 56.301 | I204: =INDEX('FY26 FACC'!$C$15:$F$15,,MATCH($B204,'FY26 FACC'!$C$14:$F$14,0)) -> 55.26 | J204: Not exceeded
B207: 2E.4 Effect of exceeding a Backward-looking Price Control
B208: Note: The ACCt of the AVC TC-4 25/5 Mbps (Entry Level Offer) Bundled TC-4 Offer in FY26 exceeded the Backward-looking Price Controls under clause 2E.3(a). In this case, clause 2E.4 of the SAU requires nbn to use the following (lower) ACCt − 1 values when applying the Individual Price Controls to set FY27 prices for the 25/5 Mbps Entry level TC-4 Offers (which nbn has used in the table below): • $34.89 for the 25/5 Mbps Bundled TC-4 Offer (being the ACCt − 1 value that would not have exceeded the Backward-looking Price Control – see cells H196:197), instead of $35.07 (cells I196:I197).
B214: Tariff List Table References | C214: WAPC Charge Component | D214: Access Network | E214: Individual Price Control | F214: ACCt − 1 required to comply with Backward-looking Price Control | G214: FY27 Price | H214: % Tariff Change | I214: Compliant / Not Compliant
B215: =_xlfn._xlws.FILTER(_xlfn.ANCHORARRAY(C194),$J$194:$J$204="Exceeded") -> 1.1 Flat-Rate Offers (formerly 1.3 Bundled TC-4 Offers) | C215: AVC TC-4 25/5 Mbps | D215: Fibre, FTTB, FTTN, FTTC, HFC | E215: Entry level TC-4 | F215: =_xlfn._xlws.FILTER($H$194:$H$204,($D$194:$D$204=$C215)*($E$194:$E$204=$D215)) -> 34.88768 | G215: =_xlfn._xlws.FILTER('WAPC Price & Quantity'!$G:$G,('WAPC Price & Quantity'!$C:$C='Compliance Summary'!$C215)*('WAPC Price & Quantity'!$D:$D='Compliance Summary'!$D215)) -> 36.15 | H215: =IF($F215>0,$G215/$F215-1,0) -> 0.03618240021 | I215: =IF(H215<=(_xlfn.XLOOKUP(E215,$B$70:$B$75,C$70:C$75,,0)),"Compliant","Not compliant") -> Compliant
B216: 1.1 Flat-Rate Offers (formerly 1.3 Bundled TC-4 Offers) | C216: AVC TC-4 25/5 Mbps | D216: Wireless | E216: Entry level TC-4 | F216: =_xlfn._xlws.FILTER($H$194:$H$204,($D$194:$D$204=$C216)*($E$194:$E$204=$D216)) -> 34.88768 | G216: =_xlfn._xlws.FILTER('WAPC Price & Quantity'!$G:$G,('WAPC Price & Quantity'!$C:$C='Compliance Summary'!$C216)*('WAPC Price & Quantity'!$D:$D='Compliance Summary'!$D216)) -> 36.15 | H216: =IF($F216>0,$G216/$F216-1,0) -> 0.03618240021 | I216: =IF(H216<=(_xlfn.XLOOKUP(E216,$B$70:$B$75,C$70:C$75,,0)),"Compliant","Not compliant") -> Compliant

Sheet Price Control Inputs ->

Sheet WAPC Price & Quantity
B1: Cell colour meanings
B2: Input cell | C2: nbn is a wholesaler and does not control retail prices charged by service providers. The wholesale prices in this document are exclusive of GST. References to speeds or bandwidth profiles in this document are not to end customer speeds; they are wholesale layer 2 peak or committed information rates (PIR or CIR) or potential maximum information rate bandwidth provided to retail providers unless stated otherwise. An end customer’s experience, including the speeds actually achieved over the nbn network, depends on the network technology and configuration over which services are delivered to their premises, whether they are using the internet during the busy period, and some factors outside of nbn’s control (like their equipment quality, software, chosen broadband plan, signal reception, or how their provider designs its network). Refer to nbn’s website and the Wholesale Broadband Agreement for further information.
B3: Calculation cell
B9: Price & Quantity Inputs
B10: Note 1: nbn notes that quantities are annualised, consistent with clause 2D.2.2(g) of the SAU. For example, the quantities for monthly charges are multiplied by 12 for an annualised quantity. Quantities for charges with other billing periods are adjusted as required to an annualised basis. Note 2: The qt − 1.25 volumes shown in the t = FY27 column represent volumes supplied from 1 April 2025 and 31 March 2026, annualised in accordance with clause 2D.2.2(g) of the SAU. The qt − 1.25 volumes shown in the t = FY28 and t = FY29 columns represent forecast volumes for the periods 1 April 2026 to 31 March 2027 and 1 April 2027 to 31 March 2028, respectively.
F16: Prices | K16: % Tariff Change | O16: Quantities
F17: pt − 1 | G17: pt | H17: pt + 1 | I17: pt + 2 | O17: qt − 1.25 | P17: qt − 1.25 | Q17: qt − 1.25 | S17: Notes
B18: Tariff List Table References | C18: WAPC Charge Component | D18: Access Network | E18: Individual Price Control | F18: FY26 | G18: FY27 | H18: FY28 | I18: FY29 | K18: FY27 | L18: FY28 | M18: FY29 | O18: t = FY27 | P18: t = FY28 | Q18: t = FY29 | R18: Recurring / Non-Recurring Charge | S18: Note numbering below refers to 'Notes & Assumptions' tab
B19: 1.1 Flat-Rate Offers (formerly 1.3 Bundled TC-4 Offers) | C19: AVC TC-4 12/1 Mbps (Basic Bundled Offer) | D19: Fibre, FTTB, FTTN, FTTC, HFC | E19: =_xlfn._xlws.FILTER('Compliance Summary'!$E$85:$E$123,('Compliance Summary'!$C$85:$C$123=$C19)*('Compliance Summary'!$D$85:$D$123=$D19),"n/a") -> Other fixed line and fixed wireless TC-4 | F19: =INDEX('FY26 FACC'!$C$15:$F$15,,MATCH(_xlfn._xlws.FILTER('FY26 FACC'!$B$68:$B$79,('FY26 FACC'!$D$68:$D$79=$C19)*('FY26 FACC'!$E$68:$E$79=$D19)),'FY26 FACC'!$C$14:$F$14,0)) -> 12.01 | G19: 12 | H19: 12 | I19: 12 | K19: =IF(AND(F19=0,G19=0),0,IF(F19>0,G19/F19-1,"-")) -> -0.0008326394671 | L19: =IF(AND(G19=0,H19=0),0,IF(G19>0,H19/G19-1,"-")) -> 0 | M19: =IF(AND(H19=0,I19=0),0,IF(H19>0,I19/H19-1,"-")) -> 0 | O19: 2847056.42 | P19: 2339939.23 | Q19: 1897293.41 | R19: Monthly Recurring Charge | S19: 3
B20: 1.1 Flat-Rate Offers (formerly 1.3 Bundled TC-4 Offers) | C20: AVC TC-4 12/1 Mbps | D20: Fibre, FTTB, FTTN, FTTC, HFC, Wireless | E20: =_xlfn._xlws.FILTER('Compliance Summary'!$E$85:$E$123,('Compliance Summary'!$C$85:$C$123=$C20)*('Compliance Summary'!$D$85:$D$123=$D20),"n/a") -> Other fixed line and fixed wireless TC-4 | F20: =INDEX('FY26 FACC'!$C$15:$F$15,,MATCH(_xlfn._xlws.FILTER('FY26 FACC'!$B$68:$B$79,('FY26 FACC'!$D$68:$D$79=$C20)*('FY26 FACC'!$E$68:$E$79=$D20)),'FY26 FACC'!$C$14:$F$14,0)) -> 33.9 | G20: 35.59 | H20: 37.36 | I20: 39.22 | K20: =IF(AND(F20=0,G20=0),0,IF(F20>0,G20/F20-1,"-")) -> 0.04985250737 | L20: =IF(AND(G20=0,H20=0),0,IF(G20>0,H20/G20-1,"-")) -> 0.04973307109 | M20: =IF(AND(H20=0,I20=0),0,IF(H20>0,I20/H20-1,"-")) -> 0.04978586724 | O20: 2067396.36 | P20: 1721162.18 | Q20: 1333761.93 | R20: Monthly Recurring Charge | S20: 3
B21: 1.1 Flat-Rate Offers (formerly 1.3 Bundled TC-4 Offers) | C21: AVC TC-4 25/5 Mbps | D21: Fibre, FTTB, FTTN, FTTC, HFC | E21: =_xlfn._xlws.FILTER('Compliance Summary'!$E$85:$E$123,('Compliance Summary'!$C$85:$C$123=$C21)*('Compliance Summary'!$D$85:$D$123=$D21),"n/a") -> Entry level TC-4 | F21: =INDEX('FY26 FACC'!$C$15:$F$15,,MATCH(_xlfn._xlws.FILTER('FY26 FACC'!$B$68:$B$79,('FY26 FACC'!$D$68:$D$79=$C21)*('FY26 FACC'!$E$68:$E$79=$D21)),'FY26 FACC'!$C$14:$F$14,0)) -> 35.07 | G21: 36.15 | H21: 37.45 | I21: 38.46 | K21: 0.03079555175 | L21: 0.03596127248 | M21: 0.02696929239 | O21: 13627131.95 | P21: 11159891.05 | Q21: 9348312.12 | R21: Monthly Recurring Charge | S21: 3
B22: 1.1 Flat-Rate Offers (formerly 1.3 Bundled TC-4 Offers) | C22: AVC TC-4 25/5 Mbps | D22: Wireless | E22: =_xlfn._xlws.FILTER('Compliance Summary'!$E$85:$E$123,('Compliance Summary'!$C$85:$C$123=$C22)*('Compliance Summary'!$D$85:$D$123=$D22),"n/a") -> Entry level TC-4 | F22: =INDEX('FY26 FACC'!$C$15:$F$15,,MATCH(_xlfn._xlws.FILTER('FY26 FACC'!$B$68:$B$79,('FY26 FACC'!$D$68:$D$79=$C22)*('FY26 FACC'!$E$68:$E$79=$D22)),'FY26 FACC'!$C$14:$F$14,0)) -> 35.07 | G22: 36.15 | H22: 37.45 | I22: 38.46 | K22: 0.03079555175 | L22: 0.03596127248 | M22: 0.02696929239 | O22: 1568759.74 | P22: 1483633.8 | Q22: 1509114.89 | R22: Monthly Recurring Charge | S22: 3
B23: 1.1 Flat-Rate Offers (formerly 1.3 Bundled TC-4 Offers) | C23: AVC TC-4 25/5-10 Mbps | D23: FTTB, FTTN | E23: =_xlfn._xlws.FILTER('Compliance Summary'!$E$85:$E$123,('Compliance Summary'!$C$85:$C$123=$C23)*('Compliance Summary'!$D$85:$D$123=$D23),"n/a") -> Other fixed line and fixed wireless TC-4 | F23: =INDEX('FY26 FACC'!$C$15:$F$15,,MATCH(_xlfn._xlws.FILTER('FY26 FACC'!$B$68:$B$79,('FY26 FACC'!$D$68:$D$79=$C23)*('FY26 FACC'!$E$68:$E$79=$D23)),'FY26 FACC'!$C$14:$F$14,0)) -> 35.07 | G23: 36.15 | H23: 37.45 | I23: 38.46 | K23: 0.03079555175 | L23: 0.03596127248 | M23: 0.02696929239 | O23: 2384708.52 | P23: 3058617.45 | Q23: 3428106.21 | R23: Monthly Recurring Charge | S23: 3
B24: 1.1 Flat-Rate Offers (formerly 1.3 Bundled TC-4 Offers) | C24: AVC TC-4 25/10 Mbps | D24: Fibre, FTTC, HFC | E24: =_xlfn._xlws.FILTER('Compliance Summary'!$E$85:$E$123,('Compliance Summary'!$C$85:$C$123=$C24)*('Compliance Summary'!$D$85:$D$123=$D24),"n/a") -> Other fixed line and fixed wireless TC-4 | F24: =INDEX('FY26 FACC'!$C$15:$F$15,,MATCH(_xlfn._xlws.FILTER('FY26 FACC'!$B$68:$B$79,('FY26 FACC'!$D$68:$D$79=$C24)*('FY26 FACC'!$E$68:$E$79=$D24)),'FY26 FACC'!$C$14:$F$14,0)) -> 35.07 | G24: 36.15 | H24: 37.45 | I24: 38.46 | K24: 0.03079555175 | L24: 0.03596127248 | M24: 0.02696929239 | O24: 3642547.56 | P24: 4961111.19 | Q24: 6262887.9 | R24: Monthly Recurring Charge | S24: 3
B25: 1.1 Flat-Rate Offers (formerly 1.3 Bundled TC-4 Offers) | C25: AVC TC-4 25-50/5-20 Mbps | D25: FTTB, FTTN | E25: =_xlfn._xlws.FILTER('Compliance Summary'!$E$85:$E$123,('Compliance Summary'!$C$85:$C$123=$C25)*('Compliance Summary'!$D$85:$D$123=$D25),"n/a") -> Other fixed line and fixed wireless TC-4 | F25: =INDEX('FY26 FACC'!$C$15:$F$15,,MATCH(_xlfn._xlws.FILTER('FY26 FACC'!$B$68:$B$79,('FY26 FACC'!$D$68:$D$79=$C25)*('FY26 FACC'!$E$68:$E$79=$D25)),'FY26 FACC'!$C$14:$F$14,0)) -> 55.26 | G25: 57.6 | H25: 59.68 | I25: 61.31 | K25: 0.04234527687 | L25: 0.03611111111 | M25: 0.02731233244 | O25: 15502738.72 | P25: 11806117.45 | Q25: 8931317.98 | R25: Monthly Recurring Charge | S25: 3
B26: 1.1 Flat-Rate Offers (formerly 1.3 Bundled TC-4 Offers) | C26: AVC TC-4 50/20 Mbps | D26: Fibre, FTTC, HFC | E26: =_xlfn._xlws.FILTER('Compliance Summary'!$E$85:$E$123,('Compliance Summary'!$C$85:$C$123=$C26)*('Compliance Summary'!$D$85:$D$123=$D26),"n/a") -> Other fixed line and fixed wireless TC-4 | F26: =INDEX('FY26 FACC'!$C$15:$F$15,,MATCH(_xlfn._xlws.FILTER('FY26 FACC'!$B$68:$B$79,('FY26 FACC'!$D$68:$D$79=$C26)*('FY26 FACC'!$E$68:$E$79=$D26)),'FY26 FACC'!$C$14:$F$14,0)) -> 55.26 | G26: 57.6 | H26: 59.68 | I26: 61.31 | K26: 0.04234527687 | L26: 0.03611111111 | M26: 0.02731233244 | O26: 22223977.35 | P26: 18579617.01 | Q26: 16153985.14 | R26: Monthly Recurring Charge | S26: 3
B27: 1.1 Flat-Rate Offers (formerly 1.3 Bundled TC-4 Offers) | C27: AVC TC-4 up to 100/up to 20 Mbps | D27: Wireless | E27: =_xlfn._xlws.FILTER('Compliance Summary'!$E$85:$E$123,('Compliance Summary'!$C$85:$C$123=$C27)*('Compliance Summary'!$D$85:$D$123=$D27),"n/a") -> Other fixed line and fixed wireless TC-4 | F27: =INDEX('FY26 FACC'!$C$15:$F$15,,MATCH(_xlfn._xlws.FILTER('FY26 FACC'!$B$68:$B$79,('FY26 FACC'!$D$68:$D$79=$C27)*('FY26 FACC'!$E$68:$E$79=$D27)),'FY26 FACC'!$C$14:$F$14,0)) -> 55.26 | G27: 57.6 | H27: 59.68 | I27: 61.31 | K27: 0.04234527687 | L27: 0.03611111111 | M27: 0.02731233244 | O27: 2807753.26 | P27: 2624235.38 | Q27: 2372628.01 | R27: Monthly Recurring Charge | S27: 3
B28: 1.2 Flat-Rate Offers - Smart Places (formerly 1.4 Bundled TC-4 Offers: Smart Places) | C28: Smart Places - AVC TC-4 25/10 Mbps | D28: Fibre | E28: =_xlfn._xlws.FILTER('Compliance Summary'!$E$85:$E$123,('Compliance Summary'!$C$85:$C$123=$C28)*('Compliance Summary'!$D$85:$D$123=$D28),"n/a") -> Other fixed line and fixed wireless TC-4 | F28: =INDEX('FY26 FACC'!$C$15:$F$15,,MATCH(_xlfn._xlws.FILTER('FY26 FACC'!$B$68:$B$79,('FY26 FACC'!$D$68:$D$79=$C28)*('FY26 FACC'!$E$68:$E$79=$D28)),'FY26 FACC'!$C$14:$F$14,0)) -> 35.07 | G28: 36.15 | H28: 37.45 | I28: 38.46 | K28: 0.03079555175 | L28: 0.03596127248 | M28: 0.02696929239 | O28: 9814.65 | P28: 13200.53 | Q28: 8763.05 | R28: Monthly Recurring Charge | S28: 3
B29: 1.2 Flat-Rate Offers - Smart Places (formerly 1.4 Bundled TC-4 Offers: Smart Places) | C29: Smart Places - AVC TC-4 50/20 Mbps | D29: Fibre | E29: =_xlfn._xlws.FILTER('Compliance Summary'!$E$85:$E$123,('Compliance Summary'!$C$85:$C$123=$C29)*('Compliance Summary'!$D$85:$D$123=$D29),"n/a") -> Other fixed line and fixed wireless TC-4 | F29: =INDEX('FY26 FACC'!$C$15:$F$15,,MATCH(_xlfn._xlws.FILTER('FY26 FACC'!$B$68:$B$79,('FY26 FACC'!$D$68:$D$79=$C29)*('FY26 FACC'!$E$68:$E$79=$D29)),'FY26 FACC'!$C$14:$F$14,0)) -> 55.26 | G29: 57.6 | H29: 59.68 | I29: 61.31 | K29: 0.04234527687 | L29: 0.03611111111 | M29: 0.02731233244 | O29: 2457.67 | P29: 5012.8 | Q29: 12501.9 | R29: Monthly Recurring Charge | S29: 3
B30: 1.1 Flat-Rate Offers | C30: AVC TC-4 25-100/5-20 Mbps | D30: FTTB, FTTN | E30: =_xlfn._xlws.FILTER('Compliance Summary'!$E$85:$E$123,('Compliance Summary'!$C$85:$C$123=$C30)*('Compliance Summary'!$D$85:$D$123=$D30),"n/a") -> Other fixed line and fixed wireless TC-4 | F30: 58.53 | G30: 60.85 | H30: 62.93 | I30: 64.56 | K30: 0.03963779258 | L30: 0.03418241578 | M30: 0.02590179565 | O30: 4038436.77 | P30: 3866365.04 | Q30: 3319554.13 | R30: Monthly Recurring Charge
B31: 1.1 Flat-Rate Offers | C31: AVC TC-4 50-100/20 Mbps | D31: FTTC | E31: =_xlfn._xlws.FILTER('Compliance Summary'!$E$85:$E$123,('Compliance Summary'!$C$85:$C$123=$C31)*('Compliance Summary'!$D$85:$D$123=$D31),"n/a") -> Other fixed line and fixed wireless TC-4 | F31: 58.53 | G31: 60.85 | H31: 62.93 | I31: 64.56 | K31: 0.03963779258 | L31: 0.03418241578 | M31: 0.02590179565 | O31: 1991203.99 | P31: 1621855.1 | Q31: 1128155.03 | R31: Monthly Recurring Charge
B32: 1.1 Flat-Rate Offers | C32: AVC TC-4 500/50 Mbps | D32: Fibre, HFC | E32: =_xlfn._xlws.FILTER('Compliance Summary'!$E$85:$E$123,('Compliance Summary'!$C$85:$C$123=$C32)*('Compliance Summary'!$D$85:$D$123=$D32),"n/a") -> Other fixed line and fixed wireless TC-4 | F32: 58.53 | G32: 60.85 | H32: 62.93 | I32: 64.56 | K32: 0.03963779258 | L32: 0.03418241578 | M32: 0.02590179565 | O32: 19733874.28 | P32: 29909185.74 | Q32: 37696055.96 | R32: Monthly Recurring Charge
B33: 1.1 Flat-Rate Offers | C33: AVC TC-4 200-250/8-20 Mbps | D33: Wireless | E33: =_xlfn._xlws.FILTER('Compliance Summary'!$E$85:$E$123,('Compliance Summary'!$C$85:$C$123=$C33)*('Compliance Summary'!$D$85:$D$123=$D33),"n/a") -> Other fixed line and fixed wireless TC-4 | F33: 58.53 | G33: 60.85 | H33: 62.93 | I33: 64.56 | K33: 0.03963779258 | L33: 0.03418241578 | M33: 0.02590179565 | O33: 207882.38 | P33: 357447.82 | Q33: 479908.13 | R33: Monthly Recurring Charge
B34: 1.1 Flat-Rate Offers | C34: AVC TC-4 25-100/5-40 Mbps | D34: FTTB, FTTN | E34: =_xlfn._xlws.FILTER('Compliance Summary'!$E$85:$E$123,('Compliance Summary'!$C$85:$C$123=$C34)*('Compliance Summary'!$D$85:$D$123=$D34),"n/a") -> Other fixed line and fixed wireless TC-4 | F34: 61.53 | G34: 64.6 | H34: 67.83 | I34: 71.22 | K34: 0.04989436047 | L34: 0.05 | M34: 0.04997788589 | O34: 1243314.35 | P34: 1161548.12 | Q34: 1045874.23 | R34: Monthly Recurring Charge
B35: 1.1 Flat-Rate Offers | C35: AVC TC-4 50-100/20-40 Mbps | D35: FTTC | E35: =_xlfn._xlws.FILTER('Compliance Summary'!$E$85:$E$123,('Compliance Summary'!$C$85:$C$123=$C35)*('Compliance Summary'!$D$85:$D$123=$D35),"n/a") -> Other fixed line and fixed wireless TC-4 | F35: 61.53 | G35: 64.6 | H35: 67.83 | I35: 71.22 | K35: 0.04989436047 | L35: 0.05 | M35: 0.04997788589 | O35: 476998.82 | P35: 448051.96 | Q35: 393294.87 | R35: Monthly Recurring Charge
B36: 1.1 Flat-Rate Offers | C36: AVC TC-4 100/40 Mbps | D36: Fibre, HFC | E36: =_xlfn._xlws.FILTER('Compliance Summary'!$E$85:$E$123,('Compliance Summary'!$C$85:$C$123=$C36)*('Compliance Summary'!$D$85:$D$123=$D36),"n/a") -> Other fixed line and fixed wireless TC-4 | F36: 61.53 | G36: 64.6 | H36: 67.83 | I36: 71.22 | K36: 0.04989436047 | L36: 0.05 | M36: 0.04997788589 | O36: 1628327.05 | P36: 610901.75 | Q36: 470677.86 | R36: Monthly Recurring Charge
B37: 1.1 Flat-Rate Offers | C37: AVC TC-4 750/50 Mbps | D37: Fibre, HFC | E37: =_xlfn._xlws.FILTER('Compliance Summary'!$E$85:$E$123,('Compliance Summary'!$C$85:$C$123=$C37)*('Compliance Summary'!$D$85:$D$123=$D37),"n/a") -> Other fixed line and fixed wireless TC-4 | F37: 63.93 | G37: 67.12 | H37: 70.47 | I37: 73.99 | K37: 0.04989832629 | L37: 0.04991060787 | M37: 0.04995033348 | O37: 3781372.21 | P37: 3265141.59 | Q37: 2831078.88 | R37: Monthly Recurring Charge
B38: 1.1 Flat-Rate Offers | C38: AVC TC-4 400/10-40 Mbps | D38: Wireless | E38: =_xlfn._xlws.FILTER('Compliance Summary'!$E$85:$E$123,('Compliance Summary'!$C$85:$C$123=$C38)*('Compliance Summary'!$D$85:$D$123=$D38),"n/a") -> Other fixed line and fixed wireless TC-4 | F38: 63.93 | G38: 67.12 | H38: 70.47 | I38: 73.99 | K38: 0.04989832629 | L38: 0.04991060787 | M38: 0.04995033348 | O38: 35471.34 | P38: 52763.71 | Q38: 58329.24 | R38: Monthly Recurring Charge
B39: 1.1 Flat-Rate Offers | C39: AVC TC-4 250/100 Mbps | D39: Fibre | E39: =_xlfn._xlws.FILTER('Compliance Summary'!$E$85:$E$123,('Compliance Summary'!$C$85:$C$123=$C39)*('Compliance Summary'!$D$85:$D$123=$D39),"n/a") -> Other fixed line and fixed wireless TC-4 | F39: 75.5 | G39: 64.6 | H39: 67.83 | I39: 71.22 | K39: -0.1443708609 | L39: 0.05 | M39: 0.04997788589 | O39: 533547.95 | P39: 1040386.49 | Q39: 1352736.85 | R39: Monthly Recurring Charge
B40: 1.1 Flat-Rate Offers | C40: AVC TC-4 250/100 Mbps | D40: HFC | E40: =_xlfn._xlws.FILTER('Compliance Summary'!$E$85:$E$123,('Compliance Summary'!$C$85:$C$123=$C40)*('Compliance Summary'!$D$85:$D$123=$D40),"n/a") -> Other fixed line and fixed wireless TC-4 | F40: 61.53 | G40: 64.6 | H40: 67.83 | I40: 71.22 | K40: 0.04989436047 | L40: 0.05 | M40: 0.04997788589 | O40: 117039.25 | P40: 343104.66 | Q40: 455560.84 | R40: Monthly Recurring Charge | S40: 5
B41: 1.1 Flat-Rate Offers | C41: AVC TC-4 500/200 Mbps | D41: Fibre | E41: =_xlfn._xlws.FILTER('Compliance Summary'!$E$85:$E$123,('Compliance Summary'!$C$85:$C$123=$C41)*('Compliance Summary'!$D$85:$D$123=$D41),"n/a") -> Other fixed line and fixed wireless TC-4 | F41: 101 | G41: 79 | H41: 81.37 | I41: 83.57 | K41: -0.2178217822 | L41: 0.03 | M41: 0.02703699152 | O41: 87149.29 | P41: 161478.37 | Q41: 239023.93 | R41: Monthly Recurring Charge
B42: 1.1 Flat-Rate Offers | C42: AVC TC-4 1000/100 Mbps | D42: Fibre, HFC | E42: =_xlfn._xlws.FILTER('Compliance Summary'!$E$85:$E$123,('Compliance Summary'!$C$85:$C$123=$C42)*('Compliance Summary'!$D$85:$D$123=$D42),"n/a") -> Other fixed line and fixed wireless TC-4 | F42: 73.93 | G42: 75.88 | H42: 77.5 | I42: 78.56 | K42: 0.02637630191 | L42: 0.02134949921 | M42: 0.01367741935 | O42: 4174717.84 | P42: 4575672.58 | Q42: 5053301.67 | R42: Monthly Recurring Charge
B43: 1.1 Flat-Rate Offers | C43: AVC TC-4 1000/400 Mbps | D43: Fibre | E43: =_xlfn._xlws.FILTER('Compliance Summary'!$E$85:$E$123,('Compliance Summary'!$C$85:$C$123=$C43)*('Compliance Summary'!$D$85:$D$123=$D43),"n/a") -> Other fixed line and fixed wireless TC-4 | F43: 126.5 | G43: 96.91 | H43: 101.75 | I43: 106.83 | K43: -0.2339130435 | L43: 0.04994324631 | M43: 0.04992628993 | O43: 116967.19 | P43: 212314.24 | Q43: 280160.62 | R43: Monthly Recurring Charge
B44: 1.1 Flat-Rate Offers | C44: AVC TC-4 2000/100 Mbps | D44: HFC | E44: =_xlfn._xlws.FILTER('Compliance Summary'!$E$85:$E$123,('Compliance Summary'!$C$85:$C$123=$C44)*('Compliance Summary'!$D$85:$D$123=$D44),"n/a") -> Other fixed line and fixed wireless TC-4 | F44: 115 | G44: 119.04 | H44: 123.7140248 | I44: 127.05 | K44: 0.03513043478 | L44: 0.03926432103 | M44: 0.02696521458 | O44: 9873.7 | P44: 33632.79 | Q44: 38934.25 | R44: Monthly Recurring Charge | S44: 5
B45: 1.1 Flat-Rate Offers | C45: AVC TC-4 2000/200 Mbps | D45: Fibre | E45: =_xlfn._xlws.FILTER('Compliance Summary'!$E$85:$E$123,('Compliance Summary'!$C$85:$C$123=$C45)*('Compliance Summary'!$D$85:$D$123=$D45),"n/a") -> Other fixed line and fixed wireless TC-4 | F45: 115 | G45: 119.04 | H45: 123.7140248 | I45: 127.05 | K45: 0.03513043478 | L45: 0.03926432103 | M45: 0.02696521458 | O45: 18594.94 | P45: 61168.8 | Q45: 74737.96 | R45: Monthly Recurring Charge | S45: 5
B46: 1.1 Flat-Rate Offers | C46: AVC TC-4 2000/500 Mbps | D46: Fibre | E46: =_xlfn._xlws.FILTER('Compliance Summary'!$E$85:$E$123,('Compliance Summary'!$C$85:$C$123=$C46)*('Compliance Summary'!$D$85:$D$123=$D46),"n/a") -> Other fixed line and fixed wireless TC-4 | F46: 150 | G46: 154.99 | H46: 161.07 | I46: 165.42 | K46: 0.03326666667 | L46: 0.03922833731 | M46: 0.02700689141 | O46: 7229.98 | P46: 23744.36 | Q46: 30046.1 | R46: Monthly Recurring Charge | S46: 5
B47: 1.2 Flat-Rate Offers - Smart Places | C47: Smart Places - AVC TC-4 100/40 Mbps | D47: Fibre | E47: =_xlfn._xlws.FILTER('Compliance Summary'!$E$85:$E$123,('Compliance Summary'!$C$85:$C$123=$C47)*('Compliance Summary'!$D$85:$D$123=$D47),"n/a") -> Other fixed line and fixed wireless TC-4 | F47: 61.53 | G47: 64.6 | H47: 67.83 | I47: 71.22 | K47: 0.04989436047 | L47: 0.05 | M47: 0.04997788589 | O47: 81.63 | P47: 102.05 | Q47: 129.45 | R47: Monthly Recurring Charge
B48: 1.2 Flat-Rate Offers - Smart Places | C48: Smart Places - AVC TC-4 250/100 Mbps | D48: Fibre | E48: =_xlfn._xlws.FILTER('Compliance Summary'!$E$85:$E$123,('Compliance Summary'!$C$85:$C$123=$C48)*('Compliance Summary'!$D$85:$D$123=$D48),"n/a") -> Other fixed line and fixed wireless TC-4 | F48: 75.5 | G48: 64.6 | H48: 67.83 | I48: 71.22 | K48: -0.1443708609 | L48: 0.05 | M48: 0.04997788589 | O48: 11.05 | P48: 808.8 | Q48: 2298.26 | R48: Monthly Recurring Charge
B49: 1.2 Flat-Rate Offers - Smart Places | C49: Smart Places - AVC TC-4 500/200 Mbps | D49: Fibre | E49: =_xlfn._xlws.FILTER('Compliance Summary'!$E$85:$E$123,('Compliance Summary'!$C$85:$C$123=$C49)*('Compliance Summary'!$D$85:$D$123=$D49),"n/a") -> Other fixed line and fixed wireless TC-4 | F49: 101 | G49: 79 | H49: 81.37 | I49: 83.57 | K49: -0.2178217822 | L49: 0.03 | M49: 0.02703699152 | O49: 0 | P49: 316.16 | Q49: 517.8 | R49: Monthly Recurring Charge
B50: 1.2 Flat-Rate Offers - Smart Places | C50: Smart Places - AVC TC-4 1000/400 Mbps | D50: Fibre | E50: =_xlfn._xlws.FILTER('Compliance Summary'!$E$85:$E$123,('Compliance Summary'!$C$85:$C$123=$C50)*('Compliance Summary'!$D$85:$D$123=$D50),"n/a") -> Other fixed line and fixed wireless TC-4 | F50: 126.5 | G50: 96.91 | H50: 101.75 | I50: 106.83 | K50: -0.2339130435 | L50: 0.04994324631 | M50: 0.04992628993 | O50: 0 | P50: 158.08 | Q50: 258.9 | R50: Monthly Recurring Charge
B51: 1.5 Asymmetric AVC Offers in respect of the NBN Co Satellite Network | C51: AVC TC-4 12/1 Mbps | D51: Satellite | E51: =_xlfn._xlws.FILTER('Compliance Summary'!$E$85:$E$123,('Compliance Summary'!$C$85:$C$123=$C51)*('Compliance Summary'!$D$85:$D$123=$D51),"n/a") -> Satellite AVC TC-4 | F51: 24 | G51: 24 | H51: 24 | I51: 24 | K51: 0 | L51: 0 | M51: 0 | O51: 104141.29 | P51: 100523.04 | Q51: 30407.95 | R51: Monthly Recurring Charge
B52: 1.5 Asymmetric AVC Offers in respect of the NBN Co Satellite Network | C52: AVC TC-4 25/5 Mbps | D52: Satellite | E52: =_xlfn._xlws.FILTER('Compliance Summary'!$E$85:$E$123,('Compliance Summary'!$C$85:$C$123=$C52)*('Compliance Summary'!$D$85:$D$123=$D52),"n/a") -> Satellite AVC TC-4 | F52: 27 | G52: 27 | H52: 27 | I52: 27 | K52: 0 | L52: 0 | M52: 0 | O52: 147867.16 | P52: 110353.69 | Q52: 30407.95 | R52: Monthly Recurring Charge
B53: 2.1 Bundled TC-2 Offers | C53: AVC TC-2 5/5 Mbps | D53: Fibre, FTTB, FTTN, FTTC, HFC | E53: =_xlfn._xlws.FILTER('Compliance Summary'!$E$85:$E$123,('Compliance Summary'!$C$85:$C$123=$C53)*('Compliance Summary'!$D$85:$D$123=$D53),"n/a") -> n/a | F53: 51.2 | G53: 53.2 | H53: 55 | I53: 56 | K53: 0.0390625 | L53: 0.03383458647 | M53: 0.01818181818 | O53: 87128.19 | P53: 63472.45 | Q53: 29533.81 | R53: Monthly Recurring Charge
B54: 2.1 Bundled TC-2 Offers | C54: AVC TC-2 10/10 Mbps | D54: Fibre, FTTB, FTTN, FTTC, HFC | E54: =_xlfn._xlws.FILTER('Compliance Summary'!$E$85:$E$123,('Compliance Summary'!$C$85:$C$123=$C54)*('Compliance Summary'!$D$85:$D$123=$D54),"n/a") -> n/a | F54: 134.14 | G54: 139 | H54: 144 | I54: 148 | K54: 0.03623080364 | L54: 0.03597122302 | M54: 0.02777777778 | O54: 51855.09 | P54: 35789.48 | Q54: 15447.02 | R54: Monthly Recurring Charge
B55: 2.1 Bundled TC-2 Offers | C55: AVC TC-2 20/20 Mbps | D55: Fibre, FTTB, FTTN, FTTC | E55: =_xlfn._xlws.FILTER('Compliance Summary'!$E$85:$E$123,('Compliance Summary'!$C$85:$C$123=$C55)*('Compliance Summary'!$D$85:$D$123=$D55),"n/a") -> n/a | F55: 175 | G55: 175 | H55: 175 | I55: 175 | K55: 0 | L55: 0 | M55: 0 | O55: 30043.27 | P55: 18137.94 | Q55: 7836.26 | R55: Monthly Recurring Charge
B56: 2.1 Bundled TC-2 Offers | C56: AVC TC-2 30/30 Mbps | D56: Fibre | E56: =_xlfn._xlws.FILTER('Compliance Summary'!$E$85:$E$123,('Compliance Summary'!$C$85:$C$123=$C56)*('Compliance Summary'!$D$85:$D$123=$D56),"n/a") -> n/a | F56: 175 | G56: 175 | H56: 175 | I56: 175 | K56: 0 | L56: 0 | M56: 0 | O56: 1042.88 | P56: 734.21 | Q56: 315.71 | R56: Monthly Recurring Charge
B57: 2.1 Bundled TC-2 Offers | C57: AVC TC-2 40/40 Mbps | D57: Fibre | E57: =_xlfn._xlws.FILTER('Compliance Summary'!$E$85:$E$123,('Compliance Summary'!$C$85:$C$123=$C57)*('Compliance Summary'!$D$85:$D$123=$D57),"n/a") -> n/a | F57: 175 | G57: 175 | H57: 175 | I57: 175 | K57: 0 | L57: 0 | M57: 0 | O57: 7160.52 | P57: 4348.06 | Q57: 1691.28 | R57: Monthly Recurring Charge
B58: 2.1 Bundled TC-2 Offers | C58: AVC TC-2 50/50 Mbps | D58: Fibre | E58: =_xlfn._xlws.FILTER('Compliance Summary'!$E$85:$E$123,('Compliance Summary'!$C$85:$C$123=$C58)*('Compliance Summary'!$D$85:$D$123=$D58),"n/a") -> n/a | F58: 175 | G58: 175 | H58: 175 | I58: 175 | K58: 0 | L58: 0 | M58: 0 | O58: 9342.44 | P58: 3957.8 | Q58: 1127.52 | R58: Monthly Recurring Charge
B59: 2.1 Bundled TC-2 Offers | C59: AVC TC-2 60/60 Mbps | D59: Fibre | E59: =_xlfn._xlws.FILTER('Compliance Summary'!$E$85:$E$123,('Compliance Summary'!$C$85:$C$123=$C59)*('Compliance Summary'!$D$85:$D$123=$D59),"n/a") -> n/a | F59: 175 | G59: 175 | H59: 175 | I59: 175 | K59: 0 | L59: 0 | M59: 0 | O59: 485.19 | P59: 311.49 | Q59: 134.06 | R59: Monthly Recurring Charge
B60: 2.1 Bundled TC-2 Offers | C60: AVC TC-2 70/70 Mbps | D60: Fibre | E60: =_xlfn._xlws.FILTER('Compliance Summary'!$E$85:$E$123,('Compliance Summary'!$C$85:$C$123=$C60)*('Compliance Summary'!$D$85:$D$123=$D60),"n/a") -> n/a | F60: 175 | G60: 175 | H60: 175 | I60: 175 | K60: 0 | L60: 0 | M60: 0 | O60: 0 | P60: 0 | Q60: 0 | R60: Monthly Recurring Charge
B61: 2.1 Bundled TC-2 Offers | C61: AVC TC-2 80/80 Mbps | D61: Fibre | E61: =_xlfn._xlws.FILTER('Compliance Summary'!$E$85:$E$123,('Compliance Summary'!$C$85:$C$123=$C61)*('Compliance Summary'!$D$85:$D$123=$D61),"n/a") -> n/a | F61: 175 | G61: 175 | H61: 175 | I61: 175 | K61: 0 | L61: 0 | M61: 0 | O61: 32.05 | P61: 18.84 | Q61: 8.46 | R61: Monthly Recurring Charge
B62: 2.1 Bundled TC-2 Offers | C62: AVC TC-2 90/90 Mbps | D62: Fibre | E62: =_xlfn._xlws.FILTER('Compliance Summary'!$E$85:$E$123,('Compliance Summary'!$C$85:$C$123=$C62)*('Compliance Summary'!$D$85:$D$123=$D62),"n/a") -> n/a | F62: 175 | G62: 175 | H62: 175 | I62: 175 | K62: 0 | L62: 0 | M62: 0 | O62: 0 | P62: 0 | Q62: 0 | R62: Monthly Recurring Charge
B63: 2.1 Bundled TC-2 Offers | C63: AVC TC-2 100/100 Mbps | D63: Fibre | E63: =_xlfn._xlws.FILTER('Compliance Summary'!$E$85:$E$123,('Compliance Summary'!$C$85:$C$123=$C63)*('Compliance Summary'!$D$85:$D$123=$D63),"n/a") -> n/a | F63: 175 | G63: 175 | H63: 175 | I63: 175 | K63: 0 | L63: 0 | M63: 0 | O63: 1977.57 | P63: 940.09 | Q63: 281.88 | R63: Monthly Recurring Charge
B64: 2.2 Bundled TC-2 Offers: Smart Places | C64: Smart Places - AVC TC-2 5/5 Mbps | D64: Fibre | E64: =_xlfn._xlws.FILTER('Compliance Summary'!$E$85:$E$123,('Compliance Summary'!$C$85:$C$123=$C64)*('Compliance Summary'!$D$85:$D$123=$D64),"n/a") -> n/a | F64: 51.2 | G64: 53.2 | H64: 55 | I64: 56 | K64: 0.0390625 | L64: 0.03383458647 | M64: 0.01818181818 | O64: 60 | P64: 20.41 | Q64: 25.89 | R64: Monthly Recurring Charge
B65: 2.2 Bundled TC-2 Offers: Smart Places | C65: Smart Places - AVC TC-2 10/10 Mbps | D65: Fibre | E65: =_xlfn._xlws.FILTER('Compliance Summary'!$E$85:$E$123,('Compliance Summary'!$C$85:$C$123=$C65)*('Compliance Summary'!$D$85:$D$123=$D65),"n/a") -> n/a | F65: 134.14 | G65: 139 | H65: 144 | I65: 148 | K65: 0.03623080364 | L65: 0.03597122302 | M65: 0.02777777778 | O65: 0 | P65: 0 | Q65: 0 | R65: Monthly Recurring Charge
B66: 2.2 Bundled TC-2 Offers: Smart Places | C66: Smart Places - AVC TC-2 20/20 Mbps | D66: Fibre | E66: =_xlfn._xlws.FILTER('Compliance Summary'!$E$85:$E$123,('Compliance Summary'!$C$85:$C$123=$C66)*('Compliance Summary'!$D$85:$D$123=$D66),"n/a") -> n/a | F66: 175 | G66: 175 | H66: 175 | I66: 175 | K66: 0 | L66: 0 | M66: 0 | O66: 12 | P66: 0 | Q66: 0 | R66: Monthly Recurring Charge
B67: 2.2 Bundled TC-2 Offers: Smart Places | C67: Smart Places - AVC TC-2 50/50 Mbps | D67: Fibre | E67: =_xlfn._xlws.FILTER('Compliance Summary'!$E$85:$E$123,('Compliance Summary'!$C$85:$C$123=$C67)*('Compliance Summary'!$D$85:$D$123=$D67),"n/a") -> n/a | F67: 175 | G67: 175 | H67: 175 | I67: 175 | K67: 0 | L67: 0 | M67: 0 | O67: 0 | P67: 790.39 | Q67: 1294.51 | R67: Monthly Recurring Charge
B68: 2.3 Symmetric Access Capacity Offers (TC-1) | C68: AVC TC-1 0.15 Mbps | D68: Fibre, FTTB, FTTN, FTTC, HFC, Wireless, Satellite | E68: =_xlfn._xlws.FILTER('Compliance Summary'!$E$85:$E$123,('Compliance Summary'!$C$85:$C$123=$C68)*('Compliance Summary'!$D$85:$D$123=$D68),"n/a") -> n/a | F68: 10 | G68: 10 | H68: 10 | I68: 10 | K68: 0 | L68: 0 | M68: 0 | O68: 0 | P68: 0 | Q68: 0 | R68: Monthly Recurring Charge | S68: 4
B69: 2.3 Symmetric Access Capacity Offers (TC-1) | C69: AVC TC-1 0.3 Mbps | D69: Fibre, FTTB, FTTN, FTTC, HFC, Wireless | E69: =_xlfn._xlws.FILTER('Compliance Summary'!$E$85:$E$123,('Compliance Summary'!$C$85:$C$123=$C69)*('Compliance Summary'!$D$85:$D$123=$D69),"n/a") -> n/a | F69: 18.5 | G69: 19.3 | H69: 19.9 | I69: 20.4 | K69: 0.04324324324 | L69: 0.0310880829 | M69: 0.02512562814 | O69: 510373.25 | P69: 390631.93 | Q69: 246931.12 | R69: Monthly Recurring Charge
B70: 2.3 Symmetric Access Capacity Offers (TC-1) | C70: AVC TC-1 0.5 Mbps | D70: Fibre, FTTB, FTTN, FTTC, HFC | E70: =_xlfn._xlws.FILTER('Compliance Summary'!$E$85:$E$123,('Compliance Summary'!$C$85:$C$123=$C70)*('Compliance Summary'!$D$85:$D$123=$D70),"n/a") -> n/a | F70: 18.5 | G70: 19.3 | H70: 19.9 | I70: 20.4 | K70: 0.04324324324 | L70: 0.0310880829 | M70: 0.02512562814 | O70: 84664.24 | P70: 62826.23 | Q70: 39714.5 | R70: Monthly Recurring Charge
B71: 2.3 Symmetric Access Capacity Offers (TC-1) | C71: AVC TC-1 1 Mbps | D71: Fibre, FTTB, FTTN, FTTC, HFC | E71: =_xlfn._xlws.FILTER('Compliance Summary'!$E$85:$E$123,('Compliance Summary'!$C$85:$C$123=$C71)*('Compliance Summary'!$D$85:$D$123=$D71),"n/a") -> n/a | F71: 18.5 | G71: 19.3 | H71: 19.9 | I71: 20.4 | K71: 0.04324324324 | L71: 0.0310880829 | M71: 0.02512562814 | O71: 38935.5 | P71: 28798.15 | Q71: 18204.25 | R71: Monthly Recurring Charge
B72: 2.3 Symmetric Access Capacity Offers (TC-1) | C72: AVC TC-1 2 Mbps | D72: Fibre, FTTB, FTTN, FTTC, HFC | E72: =_xlfn._xlws.FILTER('Compliance Summary'!$E$85:$E$123,('Compliance Summary'!$C$85:$C$123=$C72)*('Compliance Summary'!$D$85:$D$123=$D72),"n/a") -> n/a | F72: 18.5 | G72: 19.3 | H72: 19.9 | I72: 20.4 | K72: 0.04324324324 | L72: 0.0310880829 | M72: 0.02512562814 | O72: 1012.57 | P72: 1055.58 | Q72: 667.27 | R72: Monthly Recurring Charge
B73: 2.3 Symmetric Access Capacity Offers (TC-1) | C73: AVC TC-1 5 Mbps | D73: Fibre, FTTB, FTTN, FTTC, HFC | E73: =_xlfn._xlws.FILTER('Compliance Summary'!$E$85:$E$123,('Compliance Summary'!$C$85:$C$123=$C73)*('Compliance Summary'!$D$85:$D$123=$D73),"n/a") -> n/a | F73: 60 | G73: 63 | H73: 65 | I73: 66 | K73: 0.05 | L73: 0.03174603175 | M73: 0.01538461538 | O73: 304.67 | P73: 220.71 | Q73: 139.52 | R73: Monthly Recurring Charge
B74: 3.2 Connectivity Virtual Circuit Offers | C74: CVC TC-4 (Satellite) | D74: Satellite | E74: =_xlfn._xlws.FILTER('Compliance Summary'!$E$85:$E$123,('Compliance Summary'!$C$85:$C$123=$C74)*('Compliance Summary'!$D$85:$D$123=$D74),"n/a") -> Satellite CVC TC-4 | F74: 15.75 | G74: 15.75 | H74: 15.75 | I74: 15.75 | K74: 0 | L74: 0 | M74: 0 | O74: 91375.07 | P74: 88574.96 | Q74: 28158.88 | R74: Monthly Recurring Charge
B75: 3.2 Connectivity Virtual Circuit Offers | C75: CVC TC-1 | D75: Fibre, FTTB, FTTN, FTTC, HFC, Wireless | E75: =_xlfn._xlws.FILTER('Compliance Summary'!$E$85:$E$123,('Compliance Summary'!$C$85:$C$123=$C75)*('Compliance Summary'!$D$85:$D$123=$D75),"n/a") -> n/a | F75: 17.5 | G75: 17.5 | H75: 17.5 | I75: 17.5 | K75: 0 | L75: 0 | M75: 0 | O75: 421581.86 | P75: 420106.94 | Q75: 420477.61 | R75: Monthly Recurring Charge
B76: 3.2 Connectivity Virtual Circuit Offers | C76: CVC TC-1 | D76: Satellite | E76: =_xlfn._xlws.FILTER('Compliance Summary'!$E$85:$E$123,('Compliance Summary'!$C$85:$C$123=$C76)*('Compliance Summary'!$D$85:$D$123=$D76),"n/a") -> n/a | F76: 17.5 | G76: 17.5 | H76: 17.5 | I76: 17.5 | K76: 0 | L76: 0 | M76: 0 | O76: 960 | P76: 960 | Q76: 299.02 | R76: Monthly Recurring Charge
B77: 3.2 Connectivity Virtual Circuit Offers | C77: CVC TC-2 | D77: Fibre, FTTB, FTTN, FTTC, HFC | E77: =_xlfn._xlws.FILTER('Compliance Summary'!$E$85:$E$123,('Compliance Summary'!$C$85:$C$123=$C77)*('Compliance Summary'!$D$85:$D$123=$D77),"n/a") -> n/a | F77: 17.5 | G77: 17.5 | H77: 17.5 | I77: 17.5 | K77: 0 | L77: 0 | M77: 0 | O77: 0 | P77: 0 | Q77: 0 | R77: Monthly Recurring Charge
B78: 4 CVC Class Offers for the NBN Co Satellite Network | C78: CVC Class 0 | D78: Satellite | E78: =_xlfn._xlws.FILTER('Compliance Summary'!$E$85:$E$123,('Compliance Summary'!$C$85:$C$123=$C78)*('Compliance Summary'!$D$85:$D$123=$D78),"n/a") -> Satellite CVC TC-4 | F78: 0 | G78: 0 | H78: 0 | I78: 0 | K78: 0 | L78: 0 | M78: 0 | O78: 0 | P78: 0 | Q78: 0 | R78: Monthly Recurring Charge | S78: 11
B79: 4 CVC Class Offers for the NBN Co Satellite Network | C79: CVC Class 1 | D79: Satellite | E79: =_xlfn._xlws.FILTER('Compliance Summary'!$E$85:$E$123,('Compliance Summary'!$C$85:$C$123=$C79)*('Compliance Summary'!$D$85:$D$123=$D79),"n/a") -> Satellite CVC TC-4 | F79: 18 | G79: 18 | H79: 18 | I79: 18 | K79: 0 | L79: 0 | M79: 0 | O79: 111.91 | P79: 12 | Q79: 12 | R79: Monthly Recurring Charge
B80: 4 CVC Class Offers for the NBN Co Satellite Network | C80: CVC Class 2 | D80: Satellite | E80: =_xlfn._xlws.FILTER('Compliance Summary'!$E$85:$E$123,('Compliance Summary'!$C$85:$C$123=$C80)*('Compliance Summary'!$D$85:$D$123=$D80),"n/a") -> Satellite CVC TC-4 | F80: 40 | G80: 40 | H80: 40 | I80: 40 | K80: 0 | L80: 0 | M80: 0 | O80: 481.51 | P80: 0 | Q80: 0 | R80: Monthly Recurring Charge
B81: 5.1 Network to Network Interface Offers | C81: NNI 1000BaseLX - per NNI Bearer - Recurring | D81: Fibre, FTTB, FTTN, FTTC, HFC, Wireless | E81: =_xlfn._xlws.FILTER('Compliance Summary'!$E$85:$E$123,('Compliance Summary'!$C$85:$C$123=$C81)*('Compliance Summary'!$D$85:$D$123=$D81),"n/a") -> n/a | F81: 100 | G81: 100 | H81: 100 | I81: 100 | K81: 0 | L81: 0 | M81: 0 | O81: 2921.92 | P81: 2819.38 | Q81: 2791.64 | R81: Monthly Recurring Charge
B82: 5.1 Network to Network Interface Offers | C82: NNI 1000BaseLX - per NNI Bearer - Recurring | D82: Satellite | E82: =_xlfn._xlws.FILTER('Compliance Summary'!$E$85:$E$123,('Compliance Summary'!$C$85:$C$123=$C82)*('Compliance Summary'!$D$85:$D$123=$D82),"n/a") -> n/a | F82: 100 | G82: 100 | H82: 100 | I82: 100 | K82: 0 | L82: 0 | M82: 0 | O82: 48 | P82: 36 | Q82: 36 | R82: Monthly Recurring Charge
B83: 5.1 Network to Network Interface Offers | C83: NNI 10GBaseLR - per NNI Bearer - Recurring | D83: Fibre, FTTB, FTTN, FTTC, HFC, Wireless | E83: =_xlfn._xlws.FILTER('Compliance Summary'!$E$85:$E$123,('Compliance Summary'!$C$85:$C$123=$C83)*('Compliance Summary'!$D$85:$D$123=$D83),"n/a") -> n/a | F83: 375 | G83: 390 | H83: 390 | I83: 390 | K83: 0.04 | L83: 0 | M83: 0 | O83: 100947.42 | P83: 99774.97 | Q83: 99206.13 | R83: Monthly Recurring Charge
B84: 5.1 Network to Network Interface Offers | C84: NNI 10GBaseLR - per NNI Bearer - Recurring | D84: Satellite | E84: =_xlfn._xlws.FILTER('Compliance Summary'!$E$85:$E$123,('Compliance Summary'!$C$85:$C$123=$C84)*('Compliance Summary'!$D$85:$D$123=$D84),"n/a") -> n/a | F84: 375 | G84: 390 | H84: 390 | I84: 390 | K84: =IF(AND(F84=0,G84=0),0,IF(F84>0,G84/F84-1,"-")) -> 0.04 | L84: =IF(AND(G84=0,H84=0),0,IF(G84>0,H84/G84-1,"-")) -> 0 | M84: =IF(AND(H84=0,I84=0),0,IF(H84>0,I84/H84-1,"-")) -> 0 | O84: 78.05 | P84: 72 | Q84: 72 | R84: Monthly Recurring Charge
B85: 5.1 Network to Network Interface Offers | C85: NNI 100GBaseLR4 - per NNI Bearer - Recurring | D85: Fibre, FTTB, FTTN, FTTC, HFC, Wireless | E85: =_xlfn._xlws.FILTER('Compliance Summary'!$E$85:$E$123,('Compliance Summary'!$C$85:$C$123=$C85)*('Compliance Summary'!$D$85:$D$123=$D85),"n/a") -> n/a | F85: 2250 | G85: 2340 | H85: 2340 | I85: 2340 | K85: 0.04 | L85: 0 | M85: 0 | O85: 4755.09 | P85: 6336.84 | Q85: 7057.58 | R85: Monthly Recurring Charge
B86: 5.1 Network to Network Interface Offers | C86: NNI 1000BaseEX - per NNI Bearer - Recurring | D86: Fibre, FTTB, FTTN, FTTC, HFC, Wireless | E86: =_xlfn._xlws.FILTER('Compliance Summary'!$E$85:$E$123,('Compliance Summary'!$C$85:$C$123=$C86)*('Compliance Summary'!$D$85:$D$123=$D86),"n/a") -> n/a | F86: 125 | G86: 125 | H86: 125 | I86: 125 | K86: 0 | L86: 0 | M86: 0 | O86: 12 | P86: 12 | Q86: 12 | R86: Monthly Recurring Charge
B87: 5.1 Network to Network Interface Offers | C87: NNI 1000BaseEX - per NNI Bearer - Recurring | D87: Satellite | E87: =_xlfn._xlws.FILTER('Compliance Summary'!$E$85:$E$123,('Compliance Summary'!$C$85:$C$123=$C87)*('Compliance Summary'!$D$85:$D$123=$D87),"n/a") -> n/a | F87: 125 | G87: 125 | H87: 125 | I87: 125 | K87: 0 | L87: 0 | M87: 0 | O87: 0 | P87: 0 | Q87: 0 | R87: Monthly Recurring Charge
B88: 5.1 Network to Network Interface Offers | C88: NNI 10GBaseER - per NNI Bearer - Recurring | D88: Fibre, FTTB, FTTN, FTTC, HFC, Wireless | E88: =_xlfn._xlws.FILTER('Compliance Summary'!$E$85:$E$123,('Compliance Summary'!$C$85:$C$123=$C88)*('Compliance Summary'!$D$85:$D$123=$D88),"n/a") -> n/a | F88: 470 | G88: 490 | H88: 490 | I88: 490 | K88: 0.04255319149 | L88: 0 | M88: 0 | O88: 2411.77 | P88: 2181.1 | Q88: 2091.5 | R88: Monthly Recurring Charge
B89: 5.1 Network to Network Interface Offers | C89: NNI 10GBaseER - per NNI Bearer - Recurring | D89: Satellite | E89: =_xlfn._xlws.FILTER('Compliance Summary'!$E$85:$E$123,('Compliance Summary'!$C$85:$C$123=$C89)*('Compliance Summary'!$D$85:$D$123=$D89),"n/a") -> n/a | F89: 470 | G89: 490 | H89: 490 | I89: 490 | K89: 0.04255319149 | L89: 0 | M89: 0 | O89: 0 | P89: 0 | Q89: 0 | R89: Monthly Recurring Charge
B90: 5.1 Network to Network Interface Offers | C90: NNI 100GBaseER4 - per NNI Bearer - Recurring | D90: Fibre, FTTB, FTTN, FTTC, HFC, Wireless | E90: =_xlfn._xlws.FILTER('Compliance Summary'!$E$85:$E$123,('Compliance Summary'!$C$85:$C$123=$C90)*('Compliance Summary'!$D$85:$D$123=$D90),"n/a") -> n/a | F90: 2800 | G90: 2940 | H90: 2940 | I90: 2940 | K90: 0.05 | L90: 0 | M90: 0 | O90: 601.41 | P90: 713.88 | Q90: 785.97 | R90: Monthly Recurring Charge
B91: 5.1 Network to Network Interface Offers | C91: V-NNI | D91: Fibre, FTTB, FTTN, FTTC, HFC, Wireless | E91: =_xlfn._xlws.FILTER('Compliance Summary'!$E$85:$E$123,('Compliance Summary'!$C$85:$C$123=$C91)*('Compliance Summary'!$D$85:$D$123=$D91),"n/a") -> n/a | F91: 30 | G91: 31.5 | H91: 31.5 | I91: 31.5 | K91: 0.05 | L91: 0 | M91: 0 | O91: 20287.76 | P91: 19374.29 | Q91: 18960.11 | R91: Monthly Recurring Charge
B92: 5.1 Network to Network Interface Offers | C92: NNI Link | D92: Fibre, FTTB, FTTN, FTTC, HFC, Wireless | E92: =_xlfn._xlws.FILTER('Compliance Summary'!$E$85:$E$123,('Compliance Summary'!$C$85:$C$123=$C92)*('Compliance Summary'!$D$85:$D$123=$D92),"n/a") -> n/a | F92: 0 | G92: 0 | H92: 0 | I92: 0 | K92: 0 | L92: 0 | M92: 0 | O92: 21848.65 | P92: 0 | Q92: 0 | R92: Monthly Recurring Charge
B93: 5.2 10G NNI Starter Offers | C93: NNI 10GBaseLR (in single chassis configuration or as one of a pair in a chassis diverse configuration) – per NNI Bearer | D93: Fibre, FTTB, FTTN, FTTC, HFC, Wireless | E93: =_xlfn._xlws.FILTER('Compliance Summary'!$E$85:$E$123,('Compliance Summary'!$C$85:$C$123=$C93)*('Compliance Summary'!$D$85:$D$123=$D93),"n/a") -> n/a | F93: 187.5 | G93: 195 | H93: 195 | I93: 195 | K93: 0.04 | L93: 0 | M93: 0 | O93: 10698.38 | P93: 11685.99 | Q93: 11996.62 | R93: Monthly Recurring Charge
B94: 5.2 10G NNI Starter Offers | C94: NNI 10GBaseLR (in single chassis configuration or as one of a pair in a chassis diverse configuration) – per NNI Bearer | D94: Satellite | E94: =_xlfn._xlws.FILTER('Compliance Summary'!$E$85:$E$123,('Compliance Summary'!$C$85:$C$123=$C94)*('Compliance Summary'!$D$85:$D$123=$D94),"n/a") -> n/a | F94: 187.5 | G94: 195 | H94: 195 | I94: 195 | K94: 0.04 | L94: 0 | M94: 0 | O94: 0 | P94: 0 | Q94: 0 | R94: Monthly Recurring Charge
B95: 5.2 10G NNI Starter Offers | C95: NNI 10GBaseER (in single chassis configuration or as one of a pair in a chassis diverse configuration) – per NNI Bearer | D95: Fibre, FTTB, FTTN, FTTC, HFC, Wireless | E95: =_xlfn._xlws.FILTER('Compliance Summary'!$E$85:$E$123,('Compliance Summary'!$C$85:$C$123=$C95)*('Compliance Summary'!$D$85:$D$123=$D95),"n/a") -> n/a | F95: 235 | G95: 245 | H95: 245 | I95: 245 | K95: 0.04255319149 | L95: 0 | M95: 0 | O95: 1598.5 | P95: 1628.13 | Q95: 1628.13 | R95: Monthly Recurring Charge
B96: 5.2 10G NNI Starter Offers | C96: NNI 10GBaseER (in single chassis configuration or as one of a pair in a chassis diverse configuration) – per NNI Bearer | D96: Satellite | E96: =_xlfn._xlws.FILTER('Compliance Summary'!$E$85:$E$123,('Compliance Summary'!$C$85:$C$123=$C96)*('Compliance Summary'!$D$85:$D$123=$D96),"n/a") -> n/a | F96: 235 | G96: 245 | H96: 245 | I96: 245 | K96: 0.04255319149 | L96: 0 | M96: 0 | O96: 0 | P96: 0 | Q96: 0 | R96: Monthly Recurring Charge
B97: 6 Second UNI-V and AVC Offer | C97: Second UNI-V and AVC offer | D97: Fibre | E97: =_xlfn._xlws.FILTER('Compliance Summary'!$E$85:$E$123,('Compliance Summary'!$C$85:$C$123=$C97)*('Compliance Summary'!$D$85:$D$123=$D97),"n/a") -> n/a | F97: 17.5 | G97: 17.5 | H97: 17.5 | I97: 17.5 | K97: 0 | L97: 0 | M97: 0 | O97: 15614.6 | P97: 12647.88 | Q97: 9677.17 | R97: Monthly Recurring Charge
B98: 7.1 Enhanced Fault Service Level Offers | C98: Enhanced SLA - 12 | D98: Fibre, FTTB, FTTN, FTTC, HFC | E98: =_xlfn._xlws.FILTER('Compliance Summary'!$E$85:$E$123,('Compliance Summary'!$C$85:$C$123=$C98)*('Compliance Summary'!$D$85:$D$123=$D98),"n/a") -> n/a | F98: 15 | G98: 15.5 | H98: 16.1 | I98: 16.5 | K98: 0.03333333333 | L98: 0.03870967742 | M98: 0.0248447205 | O98: 81841.91 | P98: 41789.75 | Q98: 10542.43 | R98: Monthly Recurring Charge
B99: 7.1 Enhanced Fault Service Level Offers | C99: Enhanced SLA - 12 (24/7) | D99: Fibre, FTTB, FTTN, FTTC, HFC | E99: =_xlfn._xlws.FILTER('Compliance Summary'!$E$85:$E$123,('Compliance Summary'!$C$85:$C$123=$C99)*('Compliance Summary'!$D$85:$D$123=$D99),"n/a") -> n/a | F99: 15 | G99: 15 | H99: 15 | I99: 15 | K99: 0 | L99: 0 | M99: 0 | O99: 887124.56 | P99: 1506223.94 | Q99: 2027950.58 | R99: Monthly Recurring Charge
B100: 7.1 Enhanced Fault Service Level Offers | C100: Enhanced SLA - 8 | D100: Fibre, FTTB, FTTN, FTTC, HFC | E100: =_xlfn._xlws.FILTER('Compliance Summary'!$E$85:$E$123,('Compliance Summary'!$C$85:$C$123=$C100)*('Compliance Summary'!$D$85:$D$123=$D100),"n/a") -> n/a | F100: 25.6 | G100: 26.5 | H100: 27.5 | I100: 28.2 | K100: 0.03515625 | L100: 0.03773584906 | M100: 0.02545454545 | O100: 6503.57 | P100: 4677.7 | Q100: 1914.56 | R100: Monthly Recurring Charge
B101: 7.1 Enhanced Fault Service Level Offers | C101: Enhanced SLA - 8 (24/7) | D101: Fibre, FTTB, FTTN, FTTC, HFC | E101: =_xlfn._xlws.FILTER('Compliance Summary'!$E$85:$E$123,('Compliance Summary'!$C$85:$C$123=$C101)*('Compliance Summary'!$D$85:$D$123=$D101),"n/a") -> n/a | F101: 56.32 | G101: 58 | H101: 60 | I101: 62 | K101: 0.02982954545 | L101: 0.03448275862 | M101: 0.03333333333 | O101: 7159.69 | P101: 7491.62 | Q101: 5507.67 | R101: Monthly Recurring Charge
B102: 7.1 Enhanced Fault Service Level Offers | C102: Enhanced SLA - 6 | D102: Fibre, FTTB, FTTN, FTTC, HFC | E102: =_xlfn._xlws.FILTER('Compliance Summary'!$E$85:$E$123,('Compliance Summary'!$C$85:$C$123=$C102)*('Compliance Summary'!$D$85:$D$123=$D102),"n/a") -> n/a | F102: 33.28 | G102: 34.5 | H102: 35.7 | I102: 36.7 | K102: 0.03665865385 | L102: 0.0347826087 | M102: 0.02801120448 | O102: 97.61 | P102: 54.05 | Q102: 14.98 | R102: Monthly Recurring Charge
B103: 7.1 Enhanced Fault Service Level Offers | C103: Enhanced SLA - 6 (24/7) | D103: Fibre, FTTB, FTTN, FTTC, HFC | E103: =_xlfn._xlws.FILTER('Compliance Summary'!$E$85:$E$123,('Compliance Summary'!$C$85:$C$123=$C103)*('Compliance Summary'!$D$85:$D$123=$D103),"n/a") -> n/a | F103: 66.56 | G103: 69 | H103: 71 | I103: 73 | K103: 0.03665865385 | L103: 0.02898550725 | M103: 0.02816901408 | O103: 290.89 | P103: 173.92 | Q103: 96 | R103: Monthly Recurring Charge
B104: 7.1 Enhanced Fault Service Level Offers | C104: Enhanced SLA - 4 | D104: Fibre, FTTB, FTTN, FTTC, HFC | E104: =_xlfn._xlws.FILTER('Compliance Summary'!$E$85:$E$123,('Compliance Summary'!$C$85:$C$123=$C104)*('Compliance Summary'!$D$85:$D$123=$D104),"n/a") -> n/a | F104: 40.96 | G104: 42.4 | H104: 44 | I104: 45.2 | K104: 0.03515625 | L104: 0.03773584906 | M104: 0.02727272727 | O104: 4193.69 | P104: 3610.85 | Q104: 1824.72 | R104: Monthly Recurring Charge
B105: 7.1 Enhanced Fault Service Level Offers | C105: Enhanced SLA - 4 (24/7) | D105: Fibre, FTTB, FTTN, FTTC, HFC | E105: =_xlfn._xlws.FILTER('Compliance Summary'!$E$85:$E$123,('Compliance Summary'!$C$85:$C$123=$C105)*('Compliance Summary'!$D$85:$D$123=$D105),"n/a") -> n/a | F105: 25 | G105: 25 | H105: 25 | I105: 25 | K105: 0 | L105: 0 | M105: 0 | O105: 168049.74 | P105: 319290.28 | Q105: 511113.36 | R105: Monthly Recurring Charge
B106: 7.2 Enhanced Fault Service Level Offers | C106: Enhanced (90 Day) - 12 (24/7) Fault Service Levels | D106: Fibre, FTTB, FTTN, FTTC, HFC | E106: =_xlfn._xlws.FILTER('Compliance Summary'!$E$85:$E$123,('Compliance Summary'!$C$85:$C$123=$C106)*('Compliance Summary'!$D$85:$D$123=$D106),"n/a") -> n/a | F106: 150 | G106: 150 | H106: 150 | I106: 150 | K106: 0 | L106: 0 | M106: 0 | O106: 149 | P106: 31 | Q106: 0 | R106: Non-Recurring Charge
B107: 7.3 Enhanced Fault Service Level Offers: Smart Places | C107: Smart Places - Enhanced SLA - 12 | D107: Fibre | E107: =_xlfn._xlws.FILTER('Compliance Summary'!$E$85:$E$123,('Compliance Summary'!$C$85:$C$123=$C107)*('Compliance Summary'!$D$85:$D$123=$D107),"n/a") -> n/a | F107: 15 | G107: 15.5 | H107: 16.1 | I107: 16.5 | K107: 0.03333333333 | L107: 0.03870967742 | M107: 0.0248447205 | O107: 0 | P107: 0 | Q107: 0 | R107: Monthly Recurring Charge | S107: 14
B108: 7.3 Enhanced Fault Service Level Offers: Smart Places | C108: Smart Places - Enhanced SLA - 12 (24/7) | D108: Fibre | E108: =_xlfn._xlws.FILTER('Compliance Summary'!$E$85:$E$123,('Compliance Summary'!$C$85:$C$123=$C108)*('Compliance Summary'!$D$85:$D$123=$D108),"n/a") -> n/a | F108: 15 | G108: 15 | H108: 15 | I108: 15 | K108: 0 | L108: 0 | M108: 0 | O108: 0 | P108: 0 | Q108: 0 | R108: Monthly Recurring Charge | S108: 14
B109: 7.3 Enhanced Fault Service Level Offers: Smart Places | C109: Smart Places - Enhanced SLA - 8 | D109: Fibre | E109: =_xlfn._xlws.FILTER('Compliance Summary'!$E$85:$E$123,('Compliance Summary'!$C$85:$C$123=$C109)*('Compliance Summary'!$D$85:$D$123=$D109),"n/a") -> n/a | F109: 25.6 | G109: 26.5 | H109: 27.5 | I109: 28.2 | K109: 0.03515625 | L109: 0.03773584906 | M109: 0.02545454545 | O109: 0 | P109: 0 | Q109: 0 | R109: Monthly Recurring Charge | S109: 14
B110: 7.3 Enhanced Fault Service Level Offers: Smart Places | C110: Smart places - Enhanced SLA - 8 (24/7) | D110: Fibre | E110: =_xlfn._xlws.FILTER('Compliance Summary'!$E$85:$E$123,('Compliance Summary'!$C$85:$C$123=$C110)*('Compliance Summary'!$D$85:$D$123=$D110),"n/a") -> n/a | F110: 56.32 | G110: 58 | H110: 60 | I110: 62 | K110: 0.02982954545 | L110: 0.03448275862 | M110: 0.03333333333 | O110: 0 | P110: 0 | Q110: 0 | R110: Monthly Recurring Charge | S110: 14
B111: 8.1 Installations and activations – NBN Co Networks other than the NBN Co Satellite Network | C111: Initial Standard Installation | D111: FTTB, FTTN, FTTC, HFC, Wireless | E111: =_xlfn._xlws.FILTER('Compliance Summary'!$E$85:$E$123,('Compliance Summary'!$C$85:$C$123=$C111)*('Compliance Summary'!$D$85:$D$123=$D111),"n/a") -> n/a | F111: 0 | G111: 0 | H111: 0 | I111: 0 | K111: 0 | L111: 0 | M111: 0 | O111: 80188 | P111: 51499.73 | Q111: 23419.12 | R111: Non-Recurring Charge
B112: 8.1 Installations and activations – NBN Co Networks other than the NBN Co Satellite Network | C112: Initial Standard Installation (1 Port NTD) | D112: Fibre | E112: =_xlfn._xlws.FILTER('Compliance Summary'!$E$85:$E$123,('Compliance Summary'!$C$85:$C$123=$C112)*('Compliance Summary'!$D$85:$D$123=$D112),"n/a") -> n/a | F112: 0 | G112: 0 | H112: 0 | I112: 0 | K112: 0 | L112: 0 | M112: 0 | O112: 137196 | P112: 271500 | Q112: 271500 | R112: Non-Recurring Charge | S112: 5
B113: 8.1 Installations and activations – NBN Co Networks other than the NBN Co Satellite Network | C113: Initial Standard Installation (4 Port NTD) | D113: Fibre | E113: =_xlfn._xlws.FILTER('Compliance Summary'!$E$85:$E$123,('Compliance Summary'!$C$85:$C$123=$C113)*('Compliance Summary'!$D$85:$D$123=$D113),"n/a") -> n/a | F113: 100 | G113: 100 | H113: 100 | I113: 100 | K113: 0 | L113: 0 | M113: 0 | O113: 3173 | P113: 7308 | Q113: 7308 | R113: Non-Recurring Charge | S113: 5
B114: 8.1 Installations and activations – NBN Co Networks other than the NBN Co Satellite Network | C114: After Hours Installation | D114: Fibre, FTTB, FTTN, FTTC, HFC | E114: =_xlfn._xlws.FILTER('Compliance Summary'!$E$85:$E$123,('Compliance Summary'!$C$85:$C$123=$C114)*('Compliance Summary'!$D$85:$D$123=$D114),"n/a") -> n/a | F114: 150 | G114: 150 | H114: 150 | I114: 150 | K114: 0 | L114: 0 | M114: 0 | O114: 4 | P114: 4.36 | Q114: 4.36 | R114: Non-Recurring Charge
B115: 8.1 Installations and activations – NBN Co Networks other than the NBN Co Satellite Network | C115: Fibre Upgrade Installation (1 Port NTD) | D115: Fibre | E115: =_xlfn._xlws.FILTER('Compliance Summary'!$E$85:$E$123,('Compliance Summary'!$C$85:$C$123=$C115)*('Compliance Summary'!$D$85:$D$123=$D115),"n/a") -> n/a | F115: 200 | G115: 200 | H115: 200 | I115: 200 | K115: 0 | L115: 0 | M115: 0 | O115: 174184 | P115: 324888 | Q115: 324888 | R115: Non-Recurring Charge | S115: 5
B116: 8.1 Installations and activations – NBN Co Networks other than the NBN Co Satellite Network | C116: Fibre Upgrade Installation (4 Port NTD) | D116: Fibre | E116: =_xlfn._xlws.FILTER('Compliance Summary'!$E$85:$E$123,('Compliance Summary'!$C$85:$C$123=$C116)*('Compliance Summary'!$D$85:$D$123=$D116),"n/a") -> n/a | F116: 300 | G116: 300 | H116: 300 | I116: 300 | K116: 0 | L116: 0 | M116: 0 | O116: 4848 | P116: 10224 | Q116: 10224 | R116: Non-Recurring Charge | S116: 5
B117: 8.1 Installations and activations – NBN Co Networks other than the NBN Co Satellite Network | C117: W-NTD Upgrade Installation | D117: Wireless | E117: =_xlfn._xlws.FILTER('Compliance Summary'!$E$85:$E$123,('Compliance Summary'!$C$85:$C$123=$C117)*('Compliance Summary'!$D$85:$D$123=$D117),"n/a") -> n/a | F117: 200 | G117: 200 | H117: 200 | I117: 200 | K117: 0 | L117: 0 | M117: 0 | O117: 6001 | P117: 6564.38 | Q117: 1608.86 | R117: Non-Recurring Charge
B118: 8.1 Installations and activations – NBN Co Networks other than the NBN Co Satellite Network | C118: Access Component Reactivation | D118: Fibre, FTTB, FTTN, FTTC, HFC, Wireless | E118: =_xlfn._xlws.FILTER('Compliance Summary'!$E$85:$E$123,('Compliance Summary'!$C$85:$C$123=$C118)*('Compliance Summary'!$D$85:$D$123=$D118),"n/a") -> n/a | F118: 5 | G118: 5 | H118: 5 | I118: 5 | K118: 0 | L118: 0 | M118: 0 | O118: 1185000 | P118: 1396032 | Q118: 1396032 | R118: Non-Recurring Charge | S118: 10
B119: 8.1 Installations and activations – NBN Co Networks other than the NBN Co Satellite Network | C119: CVC Set-up & Activation | D119: Fibre, FTTB, FTTN, FTTC, HFC, Wireless | E119: =_xlfn._xlws.FILTER('Compliance Summary'!$E$85:$E$123,('Compliance Summary'!$C$85:$C$123=$C119)*('Compliance Summary'!$D$85:$D$123=$D119),"n/a") -> n/a | F119: 0 | G119: 0 | H119: 0 | I119: 0 | K119: 0 | L119: 0 | M119: 0 | O119: 1376 | P119: 0 | Q119: 0 | R119: Non-Recurring Charge | S119: 11
B120: 8.1 Installations and activations – NBN Co Networks other than the NBN Co Satellite Network | C120: NNI 1000BaseLX - Set-up & Activation | D120: Fibre, FTTB, FTTN, FTTC, HFC, Wireless | E120: =_xlfn._xlws.FILTER('Compliance Summary'!$E$85:$E$123,('Compliance Summary'!$C$85:$C$123=$C120)*('Compliance Summary'!$D$85:$D$123=$D120),"n/a") -> n/a | F120: 1000 | G120: 1000 | H120: 1000 | I120: 1000 | K120: 0 | L120: 0 | M120: 0 | O120: 21 | P120: 0 | Q120: 0 | R120: Non-Recurring Charge
B121: 8.1 Installations and activations – NBN Co Networks other than the NBN Co Satellite Network | C121: NNI 10GBaseLR - Set-up & Activation | D121: Fibre, FTTB, FTTN, FTTC, HFC, Wireless | E121: =_xlfn._xlws.FILTER('Compliance Summary'!$E$85:$E$123,('Compliance Summary'!$C$85:$C$123=$C121)*('Compliance Summary'!$D$85:$D$123=$D121),"n/a") -> n/a | F121: 3000 | G121: 3000 | H121: 3000 | I121: 3000 | K121: 0 | L121: 0 | M121: 0 | O121: 841 | P121: 388.67 | Q121: 420.67 | R121: Non-Recurring Charge
B122: 8.1 Installations and activations – NBN Co Networks other than the NBN Co Satellite Network | C122: NNI 100GBaseLR4 - Set-up & Activation | D122: Fibre, FTTB, FTTN, FTTC, HFC, Wireless | E122: =_xlfn._xlws.FILTER('Compliance Summary'!$E$85:$E$123,('Compliance Summary'!$C$85:$C$123=$C122)*('Compliance Summary'!$D$85:$D$123=$D122),"n/a") -> n/a | F122: 20000 | G122: 20000 | H122: 20000 | I122: 20000 | K122: 0 | L122: 0 | M122: 0 | O122: 208 | P122: 60 | Q122: 60 | R122: Non-Recurring Charge
B123: 8.1 Installations and activations – NBN Co Networks other than the NBN Co Satellite Network | C123: NNI 1000BaseEX - Set-up & Activation | D123: Fibre, FTTB, FTTN, FTTC, HFC, Wireless | E123: =_xlfn._xlws.FILTER('Compliance Summary'!$E$85:$E$123,('Compliance Summary'!$C$85:$C$123=$C123)*('Compliance Summary'!$D$85:$D$123=$D123),"n/a") -> n/a | F123: 2000 | G123: 2000 | H123: 2000 | I123: 2000 | K123: 0 | L123: 0 | M123: 0 | O123: 0 | P123: 0 | Q123: 0 | R123: Non-Recurring Charge
B124: 8.1 Installations and activations – NBN Co Networks other than the NBN Co Satellite Network | C124: NNI 10GBaseER - Set-up & Activation | D124: Fibre, FTTB, FTTN, FTTC, HFC, Wireless | E124: =_xlfn._xlws.FILTER('Compliance Summary'!$E$85:$E$123,('Compliance Summary'!$C$85:$C$123=$C124)*('Compliance Summary'!$D$85:$D$123=$D124),"n/a") -> n/a | F124: 4000 | G124: 4000 | H124: 4000 | I124: 4000 | K124: 0 | L124: 0 | M124: 0 | O124: 56 | P124: 12 | Q124: 12 | R124: Non-Recurring Charge
B125: 8.1 Installations and activations – NBN Co Networks other than the NBN Co Satellite Network | C125: NNI 100GBaseER4 - Set-up & Activation | D125: Fibre, FTTB, FTTN, FTTC, HFC, Wireless | E125: =_xlfn._xlws.FILTER('Compliance Summary'!$E$85:$E$123,('Compliance Summary'!$C$85:$C$123=$C125)*('Compliance Summary'!$D$85:$D$123=$D125),"n/a") -> n/a | F125: 24000 | G125: 24000 | H125: 24000 | I125: 24000 | K125: 0 | L125: 0 | M125: 0 | O125: 10 | P125: 6 | Q125: 6 | R125: Non-Recurring Charge
B126: 8.1 Installations and activations – NBN Co Networks other than the NBN Co Satellite Network | C126: NNI Link Activation | D126: Fibre, FTTB, FTTN, FTTC, HFC, Wireless | E126: =_xlfn._xlws.FILTER('Compliance Summary'!$E$85:$E$123,('Compliance Summary'!$C$85:$C$123=$C126)*('Compliance Summary'!$D$85:$D$123=$D126),"n/a") -> n/a | F126: 0 | G126: 0 | H126: 0 | I126: 0 | K126: 0 | L126: 0 | M126: 0 | O126: 243 | P126: 0 | Q126: 0 | R126: Non-Recurring Charge | S126: 11
B127: 8.1 Installations and activations – NBN Co Networks other than the NBN Co Satellite Network | C127: V-NNI Activation | D127: Fibre, FTTB, FTTN, FTTC, HFC, Wireless | E127: =_xlfn._xlws.FILTER('Compliance Summary'!$E$85:$E$123,('Compliance Summary'!$C$85:$C$123=$C127)*('Compliance Summary'!$D$85:$D$123=$D127),"n/a") -> n/a | F127: 250 | G127: 250 | H127: 250 | I127: 250 | K127: 0 | L127: 0 | M127: 0 | O127: 247 | P127: 142.83 | Q127: 242.83 | R127: Non-Recurring Charge
B128: 8.1 Installations and activations – NBN Co Networks other than the NBN Co Satellite Network | C128: Service Qualification Enquiry | D128: Fibre, FTTB, FTTN, FTTC, HFC, Wireless | E128: =_xlfn._xlws.FILTER('Compliance Summary'!$E$85:$E$123,('Compliance Summary'!$C$85:$C$123=$C128)*('Compliance Summary'!$D$85:$D$123=$D128),"n/a") -> n/a | F128: 0 | G128: 0 | H128: 0 | I128: 0 | K128: 0 | L128: 0 | M128: 0 | O128: 0 | P128: 0 | Q128: 0 | R128: Non-Recurring Charge | S128: 11
B129: 8.2 Installations and activations – Smart Places | C129: Smart Places - Initial Standard Installation | D129: Fibre | E129: =_xlfn._xlws.FILTER('Compliance Summary'!$E$85:$E$123,('Compliance Summary'!$C$85:$C$123=$C129)*('Compliance Summary'!$D$85:$D$123=$D129),"n/a") -> n/a | F129: 0 | G129: 0 | H129: 0 | I129: 0 | K129: 0 | L129: 0 | M129: 0 | O129: 0 | P129: 0 | Q129: 0 | R129: Non-Recurring Charge | S129: 11
B130: 8.2 Installations and activations – Smart Places | C130: Smart Places - Access Component Reactivation | D130: Fibre | E130: =_xlfn._xlws.FILTER('Compliance Summary'!$E$85:$E$123,('Compliance Summary'!$C$85:$C$123=$C130)*('Compliance Summary'!$D$85:$D$123=$D130),"n/a") -> n/a | F130: 5 | G130: 5 | H130: 5 | I130: 5 | K130: 0 | L130: 0 | M130: 0 | O130: 0 | P130: 0 | Q130: 0 | R130: Non-Recurring Charge | S130: 14
B131: 8.2 Installations and activations – Smart Places | C131: Smart Places - CVC Set-up & Activation | D131: Fibre | E131: =_xlfn._xlws.FILTER('Compliance Summary'!$E$85:$E$123,('Compliance Summary'!$C$85:$C$123=$C131)*('Compliance Summary'!$D$85:$D$123=$D131),"n/a") -> n/a | F131: 0 | G131: 0 | H131: 0 | I131: 0 | K131: 0 | L131: 0 | M131: 0 | O131: 0 | P131: 0 | Q131: 0 | R131: Non-Recurring Charge | S131: 11
B132: 8.2 Installations and activations – Smart Places | C132: Smart Places - NNI 1000BaseLX - Set-up & Activation | D132: Fibre | E132: =_xlfn._xlws.FILTER('Compliance Summary'!$E$85:$E$123,('Compliance Summary'!$C$85:$C$123=$C132)*('Compliance Summary'!$D$85:$D$123=$D132),"n/a") -> n/a | F132: 1000 | G132: 1000 | H132: 1000 | I132: 1000 | K132: 0 | L132: 0 | M132: 0 | O132: 0 | P132: 0 | Q132: 0 | R132: Non-Recurring Charge | S132: 14
B133: 8.2 Installations and activations – Smart Places | C133: Smart Places - NNI 10GBaseLR - Set-up & Activation | D133: Fibre | E133: =_xlfn._xlws.FILTER('Compliance Summary'!$E$85:$E$123,('Compliance Summary'!$C$85:$C$123=$C133)*('Compliance Summary'!$D$85:$D$123=$D133),"n/a") -> n/a | F133: 3000 | G133: 3000 | H133: 3000 | I133: 3000 | K133: 0 | L133: 0 | M133: 0 | O133: 0 | P133: 0 | Q133: 0 | R133: Non-Recurring Charge | S133: 14
B134: 8.2 Installations and activations – Smart Places | C134: Smart Places - NNI 100GBaseLR4 - Set-up & Activation | D134: Fibre | E134: =_xlfn._xlws.FILTER('Compliance Summary'!$E$85:$E$123,('Compliance Summary'!$C$85:$C$123=$C134)*('Compliance Summary'!$D$85:$D$123=$D134),"n/a") -> n/a | F134: 20000 | G134: 20000 | H134: 20000 | I134: 20000 | K134: 0 | L134: 0 | M134: 0 | O134: 0 | P134: 0 | Q134: 0 | R134: Non-Recurring Charge | S134: 14
B135: 8.2 Installations and activations – Smart Places | C135: Smart Places - NNI 1000BaseEX - Set-up & Activation | D135: Fibre | E135: =_xlfn._xlws.FILTER('Compliance Summary'!$E$85:$E$123,('Compliance Summary'!$C$85:$C$123=$C135)*('Compliance Summary'!$D$85:$D$123=$D135),"n/a") -> n/a | F135: 2000 | G135: 2000 | H135: 2000 | I135: 2000 | K135: 0 | L135: 0 | M135: 0 | O135: 0 | P135: 0 | Q135: 0 | R135: Non-Recurring Charge | S135: 14
B136: 8.2 Installations and activations – Smart Places | C136: Smart Places - NNI 10GBaseER - Set-up & Activation | D136: Fibre | E136: =_xlfn._xlws.FILTER('Compliance Summary'!$E$85:$E$123,('Compliance Summary'!$C$85:$C$123=$C136)*('Compliance Summary'!$D$85:$D$123=$D136),"n/a") -> n/a | F136: 4000 | G136: 4000 | H136: 4000 | I136: 4000 | K136: 0 | L136: 0 | M136: 0 | O136: 0 | P136: 0 | Q136: 0 | R136: Non-Recurring Charge | S136: 14
B137: 8.2 Installations and activations – Smart Places | C137: Smart Places - NNI 100GBaseER4 - Set-up & Activation | D137: Fibre | E137: =_xlfn._xlws.FILTER('Compliance Summary'!$E$85:$E$123,('Compliance Summary'!$C$85:$C$123=$C137)*('Compliance Summary'!$D$85:$D$123=$D137),"n/a") -> n/a | F137: 24000 | G137: 24000 | H137: 24000 | I137: 24000 | K137: 0 | L137: 0 | M137: 0 | O137: 0 | P137: 0 | Q137: 0 | R137: Non-Recurring Charge | S137: 14
B138: 8.2 Installations and activations – Smart Places | C138: Smart Places - NNI Link Activation | D138: Fibre | E138: =_xlfn._xlws.FILTER('Compliance Summary'!$E$85:$E$123,('Compliance Summary'!$C$85:$C$123=$C138)*('Compliance Summary'!$D$85:$D$123=$D138),"n/a") -> n/a | F138: 0 | G138: 0 | H138: 0 | I138: 0 | K138: 0 | L138: 0 | M138: 0 | O138: 0 | P138: 0 | Q138: 0 | R138: Non-Recurring Charge | S138: 11
B139: 8.2 Installations and activations – Smart Places | C139: Smart Places - Virtual NNI Activation | D139: Fibre | E139: =_xlfn._xlws.FILTER('Compliance Summary'!$E$85:$E$123,('Compliance Summary'!$C$85:$C$123=$C139)*('Compliance Summary'!$D$85:$D$123=$D139),"n/a") -> n/a | F139: 250 | G139: 250 | H139: 250 | I139: 250 | K139: 0 | L139: 0 | M139: 0 | O139: 0 | P139: 0 | Q139: 0 | R139: Non-Recurring Charge | S139: 14
B140: 8.3 Installations and activations – NBN Co Satellite Network | C140: Initial Standard Installation (excluding any additional incidental charges which may apply for Limited Access Areas) | D140: Satellite, Sky Muster Plus | E140: =_xlfn._xlws.FILTER('Compliance Summary'!$E$85:$E$123,('Compliance Summary'!$C$85:$C$123=$C140)*('Compliance Summary'!$D$85:$D$123=$D140),"n/a") -> n/a | F140: 0 | G140: 0 | H140: 0 | I140: 0 | K140: 0 | L140: 0 | M140: 0 | O140: 119 | P140: 0 | Q140: 0 | R140: Non-Recurring Charge
B141: 8.3 Installations and activations – NBN Co Satellite Network | C141: Access Component Reactivation (excluding any additional incidental charges which may apply for Limited Access Areas) | D141: Satellite, Sky Muster Plus | E141: =_xlfn._xlws.FILTER('Compliance Summary'!$E$85:$E$123,('Compliance Summary'!$C$85:$C$123=$C141)*('Compliance Summary'!$D$85:$D$123=$D141),"n/a") -> n/a | F141: 5 | G141: 5 | H141: 5 | I141: 5 | K141: 0 | L141: 0 | M141: 0 | O141: 480 | P141: 0 | Q141: 0 | R141: Non-Recurring Charge | S141: 14
B142: 8.3 Installations and activations – NBN Co Satellite Network | C142: Subsequent Installation in Urban Area, Major Rural Area, Minor Rural Area or Remote Area - 0.8m NTD outdoor unit dish | D142: Satellite, Sky Muster Plus | E142: =_xlfn._xlws.FILTER('Compliance Summary'!$E$85:$E$123,('Compliance Summary'!$C$85:$C$123=$C142)*('Compliance Summary'!$D$85:$D$123=$D142),"n/a") -> n/a | F142: 692 | G142: 692 | H142: 692 | I142: 692 | K142: 0 | L142: 0 | M142: 0 | O142: 0 | P142: 0 | Q142: 0 | R142: Non-Recurring Charge
B143: 8.3 Installations and activations – NBN Co Satellite Network | C143: Subsequent Installation in Urban Area, Major Rural Area, Minor Rural Area or Remote Area - 1.2m NTD outdoor unit dish | D143: Satellite, Sky Muster Plus | E143: =_xlfn._xlws.FILTER('Compliance Summary'!$E$85:$E$123,('Compliance Summary'!$C$85:$C$123=$C143)*('Compliance Summary'!$D$85:$D$123=$D143),"n/a") -> n/a | F143: 1057 | G143: 1057 | H143: 1057 | I143: 1057 | K143: 0 | L143: 0 | M143: 0 | O143: 0 | P143: 0 | Q143: 0 | R143: Non-Recurring Charge
B144: 8.3 Installations and activations – NBN Co Satellite Network | C144: Subsequent Installation in Urban Area, Major Rural Area, Minor Rural Area or Remote Area - 1.8m NTD outdoor unit dish | D144: Satellite, Sky Muster Plus | E144: =_xlfn._xlws.FILTER('Compliance Summary'!$E$85:$E$123,('Compliance Summary'!$C$85:$C$123=$C144)*('Compliance Summary'!$D$85:$D$123=$D144),"n/a") -> n/a | F144: 2226 | G144: 2226 | H144: 2226 | I144: 2226 | K144: 0 | L144: 0 | M144: 0 | O144: 0 | P144: 0 | Q144: 0 | R144: Non-Recurring Charge
B145: 8.3 Installations and activations – NBN Co Satellite Network | C145: Subsequent Installation in Isolated Area - 0.8m NTD outdoor unit dish | D145: Satellite, Sky Muster Plus | E145: =_xlfn._xlws.FILTER('Compliance Summary'!$E$85:$E$123,('Compliance Summary'!$C$85:$C$123=$C145)*('Compliance Summary'!$D$85:$D$123=$D145),"n/a") -> n/a | F145: 1559 | G145: 1559 | H145: 1559 | I145: 1559 | K145: 0 | L145: 0 | M145: 0 | O145: 0 | P145: 0 | Q145: 0 | R145: Non-Recurring Charge
B146: 8.3 Installations and activations – NBN Co Satellite Network | C146: Subsequent Installation in Isolated Area - 1.2m NTD outdoor unit dish | D146: Satellite, Sky Muster Plus | E146: =_xlfn._xlws.FILTER('Compliance Summary'!$E$85:$E$123,('Compliance Summary'!$C$85:$C$123=$C146)*('Compliance Summary'!$D$85:$D$123=$D146),"n/a") -> n/a | F146: 1751 | G146: 1751 | H146: 1751 | I146: 1751 | K146: 0 | L146: 0 | M146: 0 | O146: 0 | P146: 0 | Q146: 0 | R146: Non-Recurring Charge
B147: 8.3 Installations and activations – NBN Co Satellite Network | C147: Subsequent Installation in Isolated Area - 1.8m NTD outdoor unit dish | D147: Satellite, Sky Muster Plus | E147: =_xlfn._xlws.FILTER('Compliance Summary'!$E$85:$E$123,('Compliance Summary'!$C$85:$C$123=$C147)*('Compliance Summary'!$D$85:$D$123=$D147),"n/a") -> n/a | F147: 3732 | G147: 3732 | H147: 3732 | I147: 3732 | K147: 0 | L147: 0 | M147: 0 | O147: 0 | P147: 0 | Q147: 0 | R147: Non-Recurring Charge
B148: 8.3 Installations and activations – NBN Co Satellite Network | C148: CVC Set-up & Activation | D148: Satellite | E148: =_xlfn._xlws.FILTER('Compliance Summary'!$E$85:$E$123,('Compliance Summary'!$C$85:$C$123=$C148)*('Compliance Summary'!$D$85:$D$123=$D148),"n/a") -> n/a | F148: 0 | G148: 0 | H148: 0 | I148: 0 | K148: =IF(AND(F148=0,G148=0),0,IF(F148>0,G148/F148-1,"-")) -> 0 | L148: =IF(AND(G148=0,H148=0),0,IF(G148>0,H148/G148-1,"-")) -> 0 | M148: =IF(AND(H148=0,I148=0),0,IF(H148>0,I148/H148-1,"-")) -> 0 | O148: 0 | P148: 0 | Q148: 0 | R148: Non-Recurring Charge
B149: 8.3 Installations and activations – NBN Co Satellite Network | C149: NNI 1000BaseLX - Set-up & Activation | D149: Satellite | E149: =_xlfn._xlws.FILTER('Compliance Summary'!$E$85:$E$123,('Compliance Summary'!$C$85:$C$123=$C149)*('Compliance Summary'!$D$85:$D$123=$D149),"n/a") -> n/a | F149: 1000 | G149: 1000 | H149: 1000 | I149: 1000 | K149: 0 | L149: 0 | M149: 0 | O149: 0 | P149: 0 | Q149: 0 | R149: Non-Recurring Charge
B150: 8.3 Installations and activations – NBN Co Satellite Network | C150: NNI 10GBaseLR - Set-up & Activation | D150: Satellite | E150: =_xlfn._xlws.FILTER('Compliance Summary'!$E$85:$E$123,('Compliance Summary'!$C$85:$C$123=$C150)*('Compliance Summary'!$D$85:$D$123=$D150),"n/a") -> n/a | F150: 3000 | G150: 3000 | H150: 3000 | I150: 3000 | K150: 0 | L150: 0 | M150: 0 | O150: 0 | P150: 0 | Q150: 0 | R150: Non-Recurring Charge
B151: 8.3 Installations and activations – NBN Co Satellite Network | C151: NNI 1000BaseEX - Set-up & Activation | D151: Satellite | E151: =_xlfn._xlws.FILTER('Compliance Summary'!$E$85:$E$123,('Compliance Summary'!$C$85:$C$123=$C151)*('Compliance Summary'!$D$85:$D$123=$D151),"n/a") -> n/a | F151: 2000 | G151: 2000 | H151: 2000 | I151: 2000 | K151: 0 | L151: 0 | M151: 0 | O151: 0 | P151: 0 | Q151: 0 | R151: Non-Recurring Charge
B152: 8.3 Installations and activations – NBN Co Satellite Network | C152: NNI 10GBaseER - Set-up & Activation | D152: Satellite | E152: =_xlfn._xlws.FILTER('Compliance Summary'!$E$85:$E$123,('Compliance Summary'!$C$85:$C$123=$C152)*('Compliance Summary'!$D$85:$D$123=$D152),"n/a") -> n/a | F152: 4000 | G152: 4000 | H152: 4000 | I152: 4000 | K152: 0 | L152: 0 | M152: 0 | O152: 0 | P152: 0 | Q152: 0 | R152: Non-Recurring Charge
B153: 8.4 Service modifications – NBN Co Networks other than the NBN Co Satellite Network | C153: Access Component Modification (no attendance at Premises required) | D153: Fibre, FTTB, FTTN, FTTC, HFC, Wireless | E153: =_xlfn._xlws.FILTER('Compliance Summary'!$E$85:$E$123,('Compliance Summary'!$C$85:$C$123=$C153)*('Compliance Summary'!$D$85:$D$123=$D153),"n/a") -> n/a | F153: 0 | G153: 0 | H153: 0 | I153: 0 | K153: 0 | L153: 0 | M153: 0 | O153: 0 | P153: 0 | Q153: 0 | R153: Non-Recurring Charge | S153: 11
B154: 8.4 Service modifications – NBN Co Networks other than the NBN Co Satellite Network | C154: CVC Modification | D154: Fibre, FTTB, FTTN, FTTC, HFC, Wireless | E154: =_xlfn._xlws.FILTER('Compliance Summary'!$E$85:$E$123,('Compliance Summary'!$C$85:$C$123=$C154)*('Compliance Summary'!$D$85:$D$123=$D154),"n/a") -> n/a | F154: 0 | G154: 0 | H154: 0 | I154: 0 | K154: 0 | L154: 0 | M154: 0 | O154: 0 | P154: 0 | Q154: 0 | R154: Non-Recurring Charge | S154: 11
B155: 8.4 Service modifications – NBN Co Networks other than the NBN Co Satellite Network | C155: NNI Modification | D155: Fibre, FTTB, FTTN, FTTC, HFC, Wireless | E155: =_xlfn._xlws.FILTER('Compliance Summary'!$E$85:$E$123,('Compliance Summary'!$C$85:$C$123=$C155)*('Compliance Summary'!$D$85:$D$123=$D155),"n/a") -> n/a | F155: 0 | G155: 0 | H155: 0 | I155: 0 | K155: 0 | L155: 0 | M155: 0 | O155: 0 | P155: 0 | Q155: 0 | R155: Non-Recurring Charge | S155: 11
B156: 8.4 Service modifications – NBN Co Networks other than the NBN Co Satellite Network | C156: NNI Link Modification | D156: Fibre, FTTB, FTTN, FTTC, HFC, Wireless | E156: =_xlfn._xlws.FILTER('Compliance Summary'!$E$85:$E$123,('Compliance Summary'!$C$85:$C$123=$C156)*('Compliance Summary'!$D$85:$D$123=$D156),"n/a") -> n/a | F156: 0 | G156: 0 | H156: 0 | I156: 0 | K156: 0 | L156: 0 | M156: 0 | O156: 0 | P156: 0 | Q156: 0 | R156: Non-Recurring Charge | S156: 11
B157: 8.5 Service modifications – Smart Places | C157: Smart Places - Access Component Modification (no attendance at Smart Location required) | D157: Fibre | E157: =_xlfn._xlws.FILTER('Compliance Summary'!$E$85:$E$123,('Compliance Summary'!$C$85:$C$123=$C157)*('Compliance Summary'!$D$85:$D$123=$D157),"n/a") -> n/a | F157: 0 | G157: 0 | H157: 0 | I157: 0 | K157: 0 | L157: 0 | M157: 0 | O157: 0 | P157: 0 | Q157: 0 | R157: Non-Recurring Charge | S157: 11
B158: 8.5 Service modifications – Smart Places | C158: Smart Places - CVC Modification | D158: Fibre | E158: =_xlfn._xlws.FILTER('Compliance Summary'!$E$85:$E$123,('Compliance Summary'!$C$85:$C$123=$C158)*('Compliance Summary'!$D$85:$D$123=$D158),"n/a") -> n/a | F158: 0 | G158: 0 | H158: 0 | I158: 0 | K158: 0 | L158: 0 | M158: 0 | O158: 0 | P158: 0 | Q158: 0 | R158: Non-Recurring Charge | S158: 11
B159: 8.5 Service modifications – Smart Places | C159: Smart Places - NNI Modification | D159: Fibre | E159: =_xlfn._xlws.FILTER('Compliance Summary'!$E$85:$E$123,('Compliance Summary'!$C$85:$C$123=$C159)*('Compliance Summary'!$D$85:$D$123=$D159),"n/a") -> n/a | F159: 0 | G159: 0 | H159: 0 | I159: 0 | K159: 0 | L159: 0 | M159: 0 | O159: 0 | P159: 0 | Q159: 0 | R159: Non-Recurring Charge | S159: 11
B160: 8.5 Service modifications – Smart Places | C160: Smart Places - NNI Link Modification | D160: Fibre | E160: =_xlfn._xlws.FILTER('Compliance Summary'!$E$85:$E$123,('Compliance Summary'!$C$85:$C$123=$C160)*('Compliance Summary'!$D$85:$D$123=$D160),"n/a") -> n/a | F160: 0 | G160: 0 | H160: 0 | I160: 0 | K160: 0 | L160: 0 | M160: 0 | O160: 0 | P160: 0 | Q160: 0 | R160: Non-Recurring Charge | S160: 11
B161: 8.6 Service modifications – NBN Co Satellite Network | C161: Equipment Modification (NTD indoor unit) (excluding any additional incidental charges which may apply for Limited Access Areas) | D161: Satellite, Sky Muster Plus | E161: =_xlfn._xlws.FILTER('Compliance Summary'!$E$85:$E$123,('Compliance Summary'!$C$85:$C$123=$C161)*('Compliance Summary'!$D$85:$D$123=$D161),"n/a") -> n/a | F161: 420 | G161: 420 | H161: 420 | I161: 420 | K161: 0 | L161: 0 | M161: 0 | O161: 0 | P161: 0 | Q161: 0 | R161: Non-Recurring Charge | S161: 9
B162: 8.6 Service modifications – NBN Co Satellite Network | C162: Access Component Modification (no attendance at Premises required) | D162: Satellite, Sky Muster Plus | E162: =_xlfn._xlws.FILTER('Compliance Summary'!$E$85:$E$123,('Compliance Summary'!$C$85:$C$123=$C162)*('Compliance Summary'!$D$85:$D$123=$D162),"n/a") -> n/a | F162: 0 | G162: 0 | H162: 0 | I162: 0 | K162: 0 | L162: 0 | M162: 0 | O162: 0 | P162: 0 | Q162: 0 | R162: Non-Recurring Charge | S162: 11
B163: 8.6 Service modifications – NBN Co Satellite Network | C163: CVC Modification | D163: Satellite | E163: =_xlfn._xlws.FILTER('Compliance Summary'!$E$85:$E$123,('Compliance Summary'!$C$85:$C$123=$C163)*('Compliance Summary'!$D$85:$D$123=$D163),"n/a") -> n/a | F163: 0 | G163: 0 | H163: 0 | I163: 0 | K163: 0 | L163: 0 | M163: 0 | O163: 0 | P163: 0 | Q163: 0 | R163: Non-Recurring Charge | S163: 11
B164: 8.6 Service modifications – NBN Co Satellite Network | C164: NNI Modification | D164: Satellite | E164: =_xlfn._xlws.FILTER('Compliance Summary'!$E$85:$E$123,('Compliance Summary'!$C$85:$C$123=$C164)*('Compliance Summary'!$D$85:$D$123=$D164),"n/a") -> n/a | F164: 0 | G164: 0 | H164: 0 | I164: 0 | K164: 0 | L164: 0 | M164: 0 | O164: 0 | P164: 0 | Q164: 0 | R164: Non-Recurring Charge | S164: 11
B165: 8.6 Service modifications – NBN Co Satellite Network | C165: Equipment Modification (NTD outdoor unit) in Urban Area, Major Rural Area, Minor Rural Area or Remote Area - 0.8m NTD outdoor unit dish | D165: Satellite, Sky Muster Plus | E165: =_xlfn._xlws.FILTER('Compliance Summary'!$E$85:$E$123,('Compliance Summary'!$C$85:$C$123=$C165)*('Compliance Summary'!$D$85:$D$123=$D165),"n/a") -> n/a | F165: 754 | G165: 754 | H165: 754 | I165: 754 | K165: 0 | L165: 0 | M165: 0 | O165: 0 | P165: 0 | Q165: 0 | R165: Non-Recurring Charge | S165: 9
B166: 8.6 Service modifications – NBN Co Satellite Network | C166: Equipment Modification (NTD outdoor unit) in Urban Area, Major Rural Area, Minor Rural Area or Remote Area - 1.2m NTD outdoor unit dish | D166: Satellite, Sky Muster Plus | E166: =_xlfn._xlws.FILTER('Compliance Summary'!$E$85:$E$123,('Compliance Summary'!$C$85:$C$123=$C166)*('Compliance Summary'!$D$85:$D$123=$D166),"n/a") -> n/a | F166: 1119 | G166: 1119 | H166: 1119 | I166: 1119 | K166: 0 | L166: 0 | M166: 0 | O166: 0 | P166: 0 | Q166: 0 | R166: Non-Recurring Charge | S166: 9
B167: 8.6 Service modifications – NBN Co Satellite Network | C167: Equipment Modification (NTD outdoor unit) in Urban Area, Major Rural Area, Minor Rural Area or Remote Area - 1.8m NTD outdoor unit dish | D167: Satellite, Sky Muster Plus | E167: =_xlfn._xlws.FILTER('Compliance Summary'!$E$85:$E$123,('Compliance Summary'!$C$85:$C$123=$C167)*('Compliance Summary'!$D$85:$D$123=$D167),"n/a") -> n/a | F167: 2288 | G167: 2288 | H167: 2288 | I167: 2288 | K167: 0 | L167: 0 | M167: 0 | O167: 0 | P167: 0 | Q167: 0 | R167: Non-Recurring Charge | S167: 9
B168: 8.6 Service modifications – NBN Co Satellite Network | C168: Equipment Modification (NTD outdoor unit) in Isolated Area - 0.8m NTD outdoor unit dish | D168: Satellite, Sky Muster Plus | E168: =_xlfn._xlws.FILTER('Compliance Summary'!$E$85:$E$123,('Compliance Summary'!$C$85:$C$123=$C168)*('Compliance Summary'!$D$85:$D$123=$D168),"n/a") -> n/a | F168: 1621 | G168: 1621 | H168: 1621 | I168: 1621 | K168: 0 | L168: 0 | M168: 0 | O168: 0 | P168: 0 | Q168: 0 | R168: Non-Recurring Charge | S168: 9
B169: 8.6 Service modifications – NBN Co Satellite Network | C169: Equipment Modification (NTD outdoor unit) in Isolated Area - 1.2m NTD outdoor unit dish | D169: Satellite, Sky Muster Plus | E169: =_xlfn._xlws.FILTER('Compliance Summary'!$E$85:$E$123,('Compliance Summary'!$C$85:$C$123=$C169)*('Compliance Summary'!$D$85:$D$123=$D169),"n/a") -> n/a | F169: 1812 | G169: 1812 | H169: 1812 | I169: 1812 | K169: 0 | L169: 0 | M169: 0 | O169: 0 | P169: 0 | Q169: 0 | R169: Non-Recurring Charge | S169: 9
B170: 8.6 Service modifications – NBN Co Satellite Network | C170: Equipment Modification (NTD outdoor unit) in Isolated Area - 1.8m NTD outdoor unit dish | D170: Satellite, Sky Muster Plus | E170: =_xlfn._xlws.FILTER('Compliance Summary'!$E$85:$E$123,('Compliance Summary'!$C$85:$C$123=$C170)*('Compliance Summary'!$D$85:$D$123=$D170),"n/a") -> n/a | F170: 3793 | G170: 3793 | H170: 3793 | I170: 3793 | K170: 0 | L170: 0 | M170: 0 | O170: 0 | P170: 0 | Q170: 0 | R170: Non-Recurring Charge | S170: 9
B171: 8.6 Service modifications – NBN Co Satellite Network | C171: Equipment Modification (NTD indoor and outdoor unit) in Urban Area, Major Rural Area, Minor Rural Area or Remote Area - 0.8m NTD outdoor unit dish | D171: Satellite, Sky Muster Plus | E171: =_xlfn._xlws.FILTER('Compliance Summary'!$E$85:$E$123,('Compliance Summary'!$C$85:$C$123=$C171)*('Compliance Summary'!$D$85:$D$123=$D171),"n/a") -> n/a | F171: 783 | G171: 783 | H171: 783 | I171: 783 | K171: 0 | L171: 0 | M171: 0 | O171: 0 | P171: 0 | Q171: 0 | R171: Non-Recurring Charge | S171: 9
B172: 8.6 Service modifications – NBN Co Satellite Network | C172: Equipment Modification (NTD indoor and outdoor unit) in Urban Area, Major Rural Area, Minor Rural Area or Remote Area - 1.2m NTD outdoor unit dish | D172: Satellite, Sky Muster Plus | E172: =_xlfn._xlws.FILTER('Compliance Summary'!$E$85:$E$123,('Compliance Summary'!$C$85:$C$123=$C172)*('Compliance Summary'!$D$85:$D$123=$D172),"n/a") -> n/a | F172: 1149 | G172: 1149 | H172: 1149 | I172: 1149 | K172: 0 | L172: 0 | M172: 0 | O172: 0 | P172: 0 | Q172: 0 | R172: Non-Recurring Charge | S172: 9
B173: 8.6 Service modifications – NBN Co Satellite Network | C173: Equipment Modification (NTD indoor and outdoor unit) in Urban Area, Major Rural Area, Minor Rural Area or Remote Area - 1.8m NTD outdoor unit dish | D173: Satellite, Sky Muster Plus | E173: =_xlfn._xlws.FILTER('Compliance Summary'!$E$85:$E$123,('Compliance Summary'!$C$85:$C$123=$C173)*('Compliance Summary'!$D$85:$D$123=$D173),"n/a") -> n/a | F173: 2317 | G173: 2317 | H173: 2317 | I173: 2317 | K173: 0 | L173: 0 | M173: 0 | O173: 0 | P173: 0 | Q173: 0 | R173: Non-Recurring Charge | S173: 9
B174: 8.6 Service modifications – NBN Co Satellite Network | C174: Equipment Modification (NTD indoor and outdoor unit) in Isolated Area - 0.8m NTD outdoor unit dish | D174: Satellite, Sky Muster Plus | E174: =_xlfn._xlws.FILTER('Compliance Summary'!$E$85:$E$123,('Compliance Summary'!$C$85:$C$123=$C174)*('Compliance Summary'!$D$85:$D$123=$D174),"n/a") -> n/a | F174: 1650 | G174: 1650 | H174: 1650 | I174: 1650 | K174: 0 | L174: 0 | M174: 0 | O174: 0 | P174: 0 | Q174: 0 | R174: Non-Recurring Charge | S174: 9
B175: 8.6 Service modifications – NBN Co Satellite Network | C175: Equipment Modification (NTD indoor and outdoor unit) in Isolated Area - 1.2m NTD outdoor unit dish | D175: Satellite, Sky Muster Plus | E175: =_xlfn._xlws.FILTER('Compliance Summary'!$E$85:$E$123,('Compliance Summary'!$C$85:$C$123=$C175)*('Compliance Summary'!$D$85:$D$123=$D175),"n/a") -> n/a | F175: 1842 | G175: 1842 | H175: 1842 | I175: 1842 | K175: 0 | L175: 0 | M175: 0 | O175: 0 | P175: 0 | Q175: 0 | R175: Non-Recurring Charge | S175: 9
B176: 8.6 Service modifications – NBN Co Satellite Network | C176: Equipment Modification (NTD indoor and outdoor unit) in Isolated Area - 1.8m NTD outdoor unit dish | D176: Satellite, Sky Muster Plus | E176: =_xlfn._xlws.FILTER('Compliance Summary'!$E$85:$E$123,('Compliance Summary'!$C$85:$C$123=$C176)*('Compliance Summary'!$D$85:$D$123=$D176),"n/a") -> n/a | F176: 3823 | G176: 3823 | H176: 3823 | I176: 3823 | K176: 0 | L176: 0 | M176: 0 | O176: 0 | P176: 0 | Q176: 0 | R176: Non-Recurring Charge | S176: 9
B177: 8.7 Service management – NBN Co Networks other than the NBN Co Satellite Network | C177: No Fault Found (No Truck Roll Required) | D177: Fibre, Wireless | E177: =_xlfn._xlws.FILTER('Compliance Summary'!$E$85:$E$123,('Compliance Summary'!$C$85:$C$123=$C177)*('Compliance Summary'!$D$85:$D$123=$D177),"n/a") -> n/a | F177: 50 | G177: 50 | H177: 50 | I177: 50 | K177: 0 | L177: 0 | M177: 0 | O177: 0 | P177: 0 | Q177: 0 | R177: Non-Recurring Charge | S177: 9
B178: 8.7 Service management – NBN Co Networks other than the NBN Co Satellite Network | C178: No Fault Found (No Truck Roll Required) | D178: FTTB, FTTN, FTTC | E178: =_xlfn._xlws.FILTER('Compliance Summary'!$E$85:$E$123,('Compliance Summary'!$C$85:$C$123=$C178)*('Compliance Summary'!$D$85:$D$123=$D178),"n/a") -> n/a | F178: 50 | G178: 50 | H178: 50 | I178: 50 | K178: 0 | L178: 0 | M178: 0 | O178: 0 | P178: 0 | Q178: 0 | R178: Non-Recurring Charge | S178: 9
B179: 8.7 Service management – NBN Co Networks other than the NBN Co Satellite Network | C179: No Fault Found (No Truck Roll Required) | D179: HFC | E179: =_xlfn._xlws.FILTER('Compliance Summary'!$E$85:$E$123,('Compliance Summary'!$C$85:$C$123=$C179)*('Compliance Summary'!$D$85:$D$123=$D179),"n/a") -> n/a | F179: 50 | G179: 50 | H179: 50 | I179: 50 | K179: 0 | L179: 0 | M179: 0 | O179: 0 | P179: 0 | Q179: 0 | R179: Non-Recurring Charge | S179: 9
B180: 8.7 Service management – NBN Co Networks other than the NBN Co Satellite Network | C180: Late Cancellation (Site Visit Required) | D180: Fibre, Wireless | E180: =_xlfn._xlws.FILTER('Compliance Summary'!$E$85:$E$123,('Compliance Summary'!$C$85:$C$123=$C180)*('Compliance Summary'!$D$85:$D$123=$D180),"n/a") -> n/a | F180: 0 | G180: 0 | H180: 0 | I180: 0 | K180: 0 | L180: 0 | M180: 0 | O180: 0 | P180: 0 | Q180: 0 | R180: Non-Recurring Charge | S180: 11
B181: 8.7 Service management – NBN Co Networks other than the NBN Co Satellite Network | C181: Late Cancellation (Site Visit Required) | D181: FTTB, FTTN, FTTC | E181: =_xlfn._xlws.FILTER('Compliance Summary'!$E$85:$E$123,('Compliance Summary'!$C$85:$C$123=$C181)*('Compliance Summary'!$D$85:$D$123=$D181),"n/a") -> n/a | F181: 75 | G181: 75 | H181: 75 | I181: 75 | K181: 0 | L181: 0 | M181: 0 | O181: 0 | P181: 0 | Q181: 0 | R181: Non-Recurring Charge | S181: 9
B182: 8.7 Service management – NBN Co Networks other than the NBN Co Satellite Network | C182: Late Cancellation (Site Visit Required) | D182: HFC | E182: =_xlfn._xlws.FILTER('Compliance Summary'!$E$85:$E$123,('Compliance Summary'!$C$85:$C$123=$C182)*('Compliance Summary'!$D$85:$D$123=$D182),"n/a") -> n/a | F182: 75 | G182: 75 | H182: 75 | I182: 75 | K182: 0 | L182: 0 | M182: 0 | O182: 0 | P182: 0 | Q182: 0 | R182: Non-Recurring Charge | S182: 9
B183: 8.7 Service management – NBN Co Networks other than the NBN Co Satellite Network | C183: First Missed Appointment | D183: Fibre, Wireless | E183: =_xlfn._xlws.FILTER('Compliance Summary'!$E$85:$E$123,('Compliance Summary'!$C$85:$C$123=$C183)*('Compliance Summary'!$D$85:$D$123=$D183),"n/a") -> n/a | F183: 0 | G183: 0 | H183: 0 | I183: 0 | K183: 0 | L183: 0 | M183: 0 | O183: 0 | P183: 0 | Q183: 0 | R183: Non-Recurring Charge | S183: 11
B184: 8.7 Service management – NBN Co Networks other than the NBN Co Satellite Network | C184: First Missed Appointment | D184: FTTB, FTTN, FTTC | E184: =_xlfn._xlws.FILTER('Compliance Summary'!$E$85:$E$123,('Compliance Summary'!$C$85:$C$123=$C184)*('Compliance Summary'!$D$85:$D$123=$D184),"n/a") -> n/a | F184: 50 | G184: 50 | H184: 50 | I184: 50 | K184: 0 | L184: 0 | M184: 0 | O184: 0 | P184: 0 | Q184: 0 | R184: Non-Recurring Charge | S184: 9
B185: 8.7 Service management – NBN Co Networks other than the NBN Co Satellite Network | C185: First Missed Appointment | D185: HFC | E185: =_xlfn._xlws.FILTER('Compliance Summary'!$E$85:$E$123,('Compliance Summary'!$C$85:$C$123=$C185)*('Compliance Summary'!$D$85:$D$123=$D185),"n/a") -> n/a | F185: 50 | G185: 50 | H185: 50 | I185: 50 | K185: 0 | L185: 0 | M185: 0 | O185: 0 | P185: 0 | Q185: 0 | R185: Non-Recurring Charge | S185: 9
B186: 8.7 Service management – NBN Co Networks other than the NBN Co Satellite Network | C186: Subsequent Missed Appointment | D186: Fibre, Wireless | E186: =_xlfn._xlws.FILTER('Compliance Summary'!$E$85:$E$123,('Compliance Summary'!$C$85:$C$123=$C186)*('Compliance Summary'!$D$85:$D$123=$D186),"n/a") -> n/a | F186: 0 | G186: 0 | H186: 0 | I186: 0 | K186: 0 | L186: 0 | M186: 0 | O186: 0 | P186: 0 | Q186: 0 | R186: Non-Recurring Charge | S186: 11
B187: 8.7 Service management – NBN Co Networks other than the NBN Co Satellite Network | C187: Subsequent Missed Appointment | D187: FTTB, FTTN, FTTC | E187: =_xlfn._xlws.FILTER('Compliance Summary'!$E$85:$E$123,('Compliance Summary'!$C$85:$C$123=$C187)*('Compliance Summary'!$D$85:$D$123=$D187),"n/a") -> n/a | F187: 75 | G187: 75 | H187: 75 | I187: 75 | K187: 0 | L187: 0 | M187: 0 | O187: 0 | P187: 0 | Q187: 0 | R187: Non-Recurring Charge | S187: 9
B188: 8.7 Service management – NBN Co Networks other than the NBN Co Satellite Network | C188: Subsequent Missed Appointment | D188: HFC | E188: =_xlfn._xlws.FILTER('Compliance Summary'!$E$85:$E$123,('Compliance Summary'!$C$85:$C$123=$C188)*('Compliance Summary'!$D$85:$D$123=$D188),"n/a") -> n/a | F188: 75 | G188: 75 | H188: 75 | I188: 75 | K188: 0 | L188: 0 | M188: 0 | O188: 0 | P188: 0 | Q188: 0 | R188: Non-Recurring Charge | S188: 9
B189: 8.7 Service management – NBN Co Networks other than the NBN Co Satellite Network | C189: Co-ordinated Appointment (Day) | D189: Fibre | E189: =_xlfn._xlws.FILTER('Compliance Summary'!$E$85:$E$123,('Compliance Summary'!$C$85:$C$123=$C189)*('Compliance Summary'!$D$85:$D$123=$D189),"n/a") -> n/a | F189: 200 | G189: 200 | H189: 200 | I189: 200 | K189: 0 | L189: 0 | M189: 0 | O189: 0 | P189: 0 | Q189: 0 | R189: Non-Recurring Charge | S189: 9
B190: 8.7 Service management – NBN Co Networks other than the NBN Co Satellite Network | C190: Co-ordinated Appointment (Day) | D190: FTTB, FTTN, FTTC | E190: =_xlfn._xlws.FILTER('Compliance Summary'!$E$85:$E$123,('Compliance Summary'!$C$85:$C$123=$C190)*('Compliance Summary'!$D$85:$D$123=$D190),"n/a") -> n/a | F190: 200 | G190: 200 | H190: 200 | I190: 200 | K190: 0 | L190: 0 | M190: 0 | O190: 0 | P190: 0 | Q190: 0 | R190: Non-Recurring Charge | S190: 9
B191: 8.7 Service management – NBN Co Networks other than the NBN Co Satellite Network | C191: Co-ordinated Appointment (Day) | D191: HFC | E191: =_xlfn._xlws.FILTER('Compliance Summary'!$E$85:$E$123,('Compliance Summary'!$C$85:$C$123=$C191)*('Compliance Summary'!$D$85:$D$123=$D191),"n/a") -> n/a | F191: 200 | G191: 200 | H191: 200 | I191: 200 | K191: 0 | L191: 0 | M191: 0 | O191: 0 | P191: 0 | Q191: 0 | R191: Non-Recurring Charge | S191: 9
B192: 8.7 Service management – NBN Co Networks other than the NBN Co Satellite Network | C192: Co-ordinated Appointment (Night) | D192: Fibre | E192: =_xlfn._xlws.FILTER('Compliance Summary'!$E$85:$E$123,('Compliance Summary'!$C$85:$C$123=$C192)*('Compliance Summary'!$D$85:$D$123=$D192),"n/a") -> n/a | F192: 300 | G192: 300 | H192: 300 | I192: 300 | K192: 0 | L192: 0 | M192: 0 | O192: 0 | P192: 0 | Q192: 0 | R192: Non-Recurring Charge | S192: 9
B193: 8.7 Service management – NBN Co Networks other than the NBN Co Satellite Network | C193: Co-ordinated Appointment (Night) | D193: FTTB, FTTN, FTTC | E193: =_xlfn._xlws.FILTER('Compliance Summary'!$E$85:$E$123,('Compliance Summary'!$C$85:$C$123=$C193)*('Compliance Summary'!$D$85:$D$123=$D193),"n/a") -> n/a | F193: 300 | G193: 300 | H193: 300 | I193: 300 | K193: 0 | L193: 0 | M193: 0 | O193: 0 | P193: 0 | Q193: 0 | R193: Non-Recurring Charge | S193: 9
B194: 8.7 Service management – NBN Co Networks other than the NBN Co Satellite Network | C194: Co-ordinated Appointment (Night) | D194: HFC | E194: =_xlfn._xlws.FILTER('Compliance Summary'!$E$85:$E$123,('Compliance Summary'!$C$85:$C$123=$C194)*('Compliance Summary'!$D$85:$D$123=$D194),"n/a") -> n/a | F194: 300 | G194: 300 | H194: 300 | I194: 300 | K194: 0 | L194: 0 | M194: 0 | O194: 0 | P194: 0 | Q194: 0 | R194: Non-Recurring Charge | S194: 9
B195: 8.7 Service management – NBN Co Networks other than the NBN Co Satellite Network | C195: Late Cancellation (After Hours Installation Appointment) | D195: Fibre | E195: =_xlfn._xlws.FILTER('Compliance Summary'!$E$85:$E$123,('Compliance Summary'!$C$85:$C$123=$C195)*('Compliance Summary'!$D$85:$D$123=$D195),"n/a") -> n/a | F195: 150 | G195: 150 | H195: 150 | I195: 150 | K195: 0 | L195: 0 | M195: 0 | O195: 0 | P195: 0 | Q195: 0 | R195: Non-Recurring Charge | S195: 9
B196: 8.7 Service management – NBN Co Networks other than the NBN Co Satellite Network | C196: Late Cancellation (After Hours Installation Appointment) | D196: FTTB, FTTN, FTTC | E196: =_xlfn._xlws.FILTER('Compliance Summary'!$E$85:$E$123,('Compliance Summary'!$C$85:$C$123=$C196)*('Compliance Summary'!$D$85:$D$123=$D196),"n/a") -> n/a | F196: 150 | G196: 150 | H196: 150 | I196: 150 | K196: 0 | L196: 0 | M196: 0 | O196: 0 | P196: 0 | Q196: 0 | R196: Non-Recurring Charge | S196: 9
B197: 8.7 Service management – NBN Co Networks other than the NBN Co Satellite Network | C197: Late Cancellation (Co-ordinated Appointment) (Day) | D197: Fibre | E197: =_xlfn._xlws.FILTER('Compliance Summary'!$E$85:$E$123,('Compliance Summary'!$C$85:$C$123=$C197)*('Compliance Summary'!$D$85:$D$123=$D197),"n/a") -> n/a | F197: 200 | G197: 200 | H197: 200 | I197: 200 | K197: 0 | L197: 0 | M197: 0 | O197: 0 | P197: 0 | Q197: 0 | R197: Non-Recurring Charge | S197: 9
B198: 8.7 Service management – NBN Co Networks other than the NBN Co Satellite Network | C198: Late Cancellation (Co-ordinated Appointment) (Day) | D198: FTTB, FTTN, FTTC | E198: =_xlfn._xlws.FILTER('Compliance Summary'!$E$85:$E$123,('Compliance Summary'!$C$85:$C$123=$C198)*('Compliance Summary'!$D$85:$D$123=$D198),"n/a") -> n/a | F198: 200 | G198: 200 | H198: 200 | I198: 200 | K198: 0 | L198: 0 | M198: 0 | O198: 0 | P198: 0 | Q198: 0 | R198: Non-Recurring Charge | S198: 9
B199: 8.7 Service management – NBN Co Networks other than the NBN Co Satellite Network | C199: Late Cancellation (Co-ordinated Appointment) (Day) | D199: HFC | E199: =_xlfn._xlws.FILTER('Compliance Summary'!$E$85:$E$123,('Compliance Summary'!$C$85:$C$123=$C199)*('Compliance Summary'!$D$85:$D$123=$D199),"n/a") -> n/a | F199: 200 | G199: 200 | H199: 200 | I199: 200 | K199: 0 | L199: 0 | M199: 0 | O199: 0 | P199: 0 | Q199: 0 | R199: Non-Recurring Charge | S199: 9
B200: 8.7 Service management – NBN Co Networks other than the NBN Co Satellite Network | C200: Late Cancellation (Co-ordinated Appointment) (Night) | D200: Fibre | E200: =_xlfn._xlws.FILTER('Compliance Summary'!$E$85:$E$123,('Compliance Summary'!$C$85:$C$123=$C200)*('Compliance Summary'!$D$85:$D$123=$D200),"n/a") -> n/a | F200: 300 | G200: 300 | H200: 300 | I200: 300 | K200: 0 | L200: 0 | M200: 0 | O200: 0 | P200: 0 | Q200: 0 | R200: Non-Recurring Charge | S200: 9
B201: 8.7 Service management – NBN Co Networks other than the NBN Co Satellite Network | C201: Late Cancellation (Co-ordinated Appointment) (Night) | D201: FTTB, FTTN, FTTC | E201: =_xlfn._xlws.FILTER('Compliance Summary'!$E$85:$E$123,('Compliance Summary'!$C$85:$C$123=$C201)*('Compliance Summary'!$D$85:$D$123=$D201),"n/a") -> n/a | F201: 300 | G201: 300 | H201: 300 | I201: 300 | K201: 0 | L201: 0 | M201: 0 | O201: 0 | P201: 0 | Q201: 0 | R201: Non-Recurring Charge | S201: 9
B202: 8.7 Service management – NBN Co Networks other than the NBN Co Satellite Network | C202: Late Cancellation (Co-ordinated Appointment) (Night) | D202: HFC | E202: =_xlfn._xlws.FILTER('Compliance Summary'!$E$85:$E$123,('Compliance Summary'!$C$85:$C$123=$C202)*('Compliance Summary'!$D$85:$D$123=$D202),"n/a") -> n/a | F202: 300 | G202: 300 | H202: 300 | I202: 300 | K202: 0 | L202: 0 | M202: 0 | O202: 0 | P202: 0 | Q202: 0 | R202: Non-Recurring Charge | S202: 9
B203: 8.7 Service management – NBN Co Networks other than the NBN Co Satellite Network | C203: Missed Appointment (After Hours Installation Appointment) | D203: Fibre | E203: =_xlfn._xlws.FILTER('Compliance Summary'!$E$85:$E$123,('Compliance Summary'!$C$85:$C$123=$C203)*('Compliance Summary'!$D$85:$D$123=$D203),"n/a") -> n/a | F203: 150 | G203: 150 | H203: 150 | I203: 150 | K203: 0 | L203: 0 | M203: 0 | O203: 0 | P203: 0 | Q203: 0 | R203: Non-Recurring Charge | S203: 9
B204: 8.7 Service management – NBN Co Networks other than the NBN Co Satellite Network | C204: Missed Appointment (After Hours Installation Appointment) | D204: FTTB, FTTN, FTTC | E204: =_xlfn._xlws.FILTER('Compliance Summary'!$E$85:$E$123,('Compliance Summary'!$C$85:$C$123=$C204)*('Compliance Summary'!$D$85:$D$123=$D204),"n/a") -> n/a | F204: 150 | G204: 150 | H204: 150 | I204: 150 | K204: 0 | L204: 0 | M204: 0 | O204: 0 | P204: 0 | Q204: 0 | R204: Non-Recurring Charge | S204: 9
B205: 8.7 Service management – NBN Co Networks other than the NBN Co Satellite Network | C205: Missed Appointment (Co-ordinated Appointment) (Day) | D205: Fibre | E205: =_xlfn._xlws.FILTER('Compliance Summary'!$E$85:$E$123,('Compliance Summary'!$C$85:$C$123=$C205)*('Compliance Summary'!$D$85:$D$123=$D205),"n/a") -> n/a | F205: 200 | G205: 200 | H205: 200 | I205: 200 | K205: 0 | L205: 0 | M205: 0 | O205: 0 | P205: 0 | Q205: 0 | R205: Non-Recurring Charge | S205: 9
B206: 8.7 Service management – NBN Co Networks other than the NBN Co Satellite Network | C206: Missed Appointment (Co-ordinated Appointment) (Day) | D206: FTTB, FTTN, FTTC | E206: =_xlfn._xlws.FILTER('Compliance Summary'!$E$85:$E$123,('Compliance Summary'!$C$85:$C$123=$C206)*('Compliance Summary'!$D$85:$D$123=$D206),"n/a") -> n/a | F206: 200 | G206: 200 | H206: 200 | I206: 200 | K206: 0 | L206: 0 | M206: 0 | O206: 0 | P206: 0 | Q206: 0 | R206: Non-Recurring Charge | S206: 9
B207: 8.7 Service management – NBN Co Networks other than the NBN Co Satellite Network | C207: Missed Appointment (Co-ordinated Appointment) (Day) | D207: HFC | E207: =_xlfn._xlws.FILTER('Compliance Summary'!$E$85:$E$123,('Compliance Summary'!$C$85:$C$123=$C207)*('Compliance Summary'!$D$85:$D$123=$D207),"n/a") -> n/a | F207: 200 | G207: 200 | H207: 200 | I207: 200 | K207: 0 | L207: 0 | M207: 0 | O207: 0 | P207: 0 | Q207: 0 | R207: Non-Recurring Charge | S207: 9
B208: 8.7 Service management – NBN Co Networks other than the NBN Co Satellite Network | C208: Missed Appointment (Co-ordinated Appointment) (Night) | D208: Fibre | E208: =_xlfn._xlws.FILTER('Compliance Summary'!$E$85:$E$123,('Compliance Summary'!$C$85:$C$123=$C208)*('Compliance Summary'!$D$85:$D$123=$D208),"n/a") -> n/a | F208: 300 | G208: 300 | H208: 300 | I208: 300 | K208: 0 | L208: 0 | M208: 0 | O208: 0 | P208: 0 | Q208: 0 | R208: Non-Recurring Charge | S208: 9
B209: 8.7 Service management – NBN Co Networks other than the NBN Co Satellite Network | C209: Missed Appointment (Co-ordinated Appointment) (Night) | D209: FTTB, FTTN, FTTC | E209: =_xlfn._xlws.FILTER('Compliance Summary'!$E$85:$E$123,('Compliance Summary'!$C$85:$C$123=$C209)*('Compliance Summary'!$D$85:$D$123=$D209),"n/a") -> n/a | F209: 300 | G209: 300 | H209: 300 | I209: 300 | K209: 0 | L209: 0 | M209: 0 | O209: 0 | P209: 0 | Q209: 0 | R209: Non-Recurring Charge | S209: 9
B210: 8.7 Service management – NBN Co Networks other than the NBN Co Satellite Network | C210: Missed Appointment (Co-ordinated Appointment) (Night) | D210: HFC | E210: =_xlfn._xlws.FILTER('Compliance Summary'!$E$85:$E$123,('Compliance Summary'!$C$85:$C$123=$C210)*('Compliance Summary'!$D$85:$D$123=$D210),"n/a") -> n/a | F210: 300 | G210: 300 | H210: 300 | I210: 300 | K210: 0 | L210: 0 | M210: 0 | O210: 0 | P210: 0 | Q210: 0 | R210: Non-Recurring Charge | S210: 9
... 110 more rows

Sheet WAPC Inputs
B1: Cell colour meanings
B2: Input cell
B3: Calculation cell
B5: WAPC Inputs
B7: Financial Year (t) | C7: FY27
B9: WAPC allowance | C9: =C7 -> FY27 | D9: ="FY"&RIGHT($C9,2)+1 -> FY28 | E9: ="FY"&RIGHT($C9,2)+2 -> FY29
C10: Actual | D10: Forecast | E10: Forecast
B11: Actual CPI based on December Quarter CPI published in Financial Year t − 1 published by the Australian Bureau of Statistics on 28 January 2026 for the 12 months to 31 December 2025, sourced from: https://www.abs.gov.au/statistics/economy/price-indexes-and-inflation/consumer-price-index-australia/latest-release Forecast CPI based on Statement on Monetary Policy published by the Reserve Bank of Australia on 3 February 2026, sourced from: https://www.rba.gov.au/publications/smp/2026/feb/pdf/statement-on-monetary-policy-2026-02.pdf | C11: =100.32/96.81-1 -> 0.03625658506 | D11: 0.036 | E11: 0.027
B13: X-factor | C13: 0 | D13: 0 | E13: 0
B14: Cost pass-through adjustment factor | C14: ='WAPC Inputs'!C31 -> 0 | D14: ='WAPC Inputs'!D31 -> 0 | E14: ='WAPC Inputs'!E31 -> 0
B15: Excess adjustment factor | C15: ='WAPC Inputs'!C43 -> -0.0002154427809 | D15: ='WAPC Inputs'!D43 -> -0.001225255098 | E15: ='WAPC Inputs'!E43 -> -0.0001814090594
B17: WAPC allowance | C17: =(1+C11)*(1-C13)*(1+C14)*(1+C15)-1 -> 0.03603333106 | D17: =(1+D11)*(1-D13)*(1+D14)*(1+D15)-1 -> 0.03473063572 | E17: =(1+E11)*(1-E13)*(1+E14)*(1+E15)-1 -> 0.0268136929
B19: Cost pass-through adjustment factor | C19: ='WAPC Inputs'!C9 -> FY27 | D19: ='WAPC Inputs'!D9 -> FY28 | E19: ='WAPC Inputs'!E9 -> FY29
B20: Note: Values for FY27, FY28, and FY29 below are 'n/a' as there were no cost pass through events in Financial Year t − 1. | C20: =C10 -> Actual | D20: =D10 -> Forecast | E20: =E10 -> Forecast
B22: Input to cost pass-through adjustment factor in Financial Year t − 1 | C22: 0 | D22: =C29 -> 0 | E22: =D29 -> 0
B24: Total cost pass-through amount for Financial Year t | C24: n/a | D24: n/a | E24: n/a
B25: CPI | C25: =INDEX('WAPC Inputs'!$C$11:$E$11,,MATCH('WAPC Inputs'!C19,'WAPC Inputs'!$C$9:$E$9,0)) -> 0.03625658506 | D25: =INDEX('WAPC Inputs'!$C$11:$E$11,,MATCH('WAPC Inputs'!D19,'WAPC Inputs'!$C$9:$E$9,0)) -> 0.036 | E25: =INDEX('WAPC Inputs'!$C$11:$E$11,,MATCH('WAPC Inputs'!E19,'WAPC Inputs'!$C$9:$E$9,0)) -> 0.027
B26: X-factor | C26: =INDEX('WAPC Inputs'!$C$13:$E$13,,MATCH('WAPC Inputs'!C19,'WAPC Inputs'!$C$9:$E$9,0)) -> 0 | D26: =INDEX('WAPC Inputs'!$C$13:$E$13,,MATCH('WAPC Inputs'!D19,'WAPC Inputs'!$C$9:$E$9,0)) -> 0 | E26: =INDEX('WAPC Inputs'!$C$13:$E$13,,MATCH('WAPC Inputs'!E19,'WAPC Inputs'!$C$9:$E$9,0)) -> 0
B27: Excess adjustment factor | C27: =C43 -> -0.0002154427809 | D27: =D43 -> -0.001225255098 | E27: =E43 -> -0.0001814090594
B28: Notional revenue in previous year | C28: n/a | D28: n/a | E28: n/a
B29: Input to cost pass-through adjustment factor in respect of current year | C29: =IF(C28="n/a",0,(IF((1+C25)*(1-C26)*(1+C27)*C28=0,0,C24/((1+C25)*(1-C26)*(1+C27)*C28)))) -> 0 | D29: =IF(D28="n/a",0,(IF((1+D25)*(1-D26)*(1+D27)*D28=0,0,D24/((1+D25)*(1-D26)*(1+D27)*D28)))) -> 0 | E29: 0
B31: Cost pass-through adjustment factor | C31: =(1+C29)/(1+C22)-1 -> 0 | D31: =(1+D29)/(1+D22)-1 -> 0 | E31: 0
B33: Excess adjustment factor | C33: =C19 -> FY27 | D33: FY28 | E33: FY29
C34: Actual | D34: Forecast | E34: Forecast
B36: CPI (t − 2) | C36: 0.041 | D36: 0.024 | E36: =C11 -> 0.03625658506
B37: X-factor (t − 2) | C37: 0 | D37: 0 | E37: =C13 -> 0
B38: Cost pass-through adjustment factor (t − 2) | C38: 0 | D38: 0 | E38: =C31 -> 0
B39: Excess adjustment factor (t − 2) | C39: 0 | D39: 0 | E39: =C43 -> -0.0002154427809
B41: WAP ratio (t − 2) | C41: =SUMPRODUCT('FY27 EM Inputs'!$F$14:$F$289,'FY27 EM Inputs'!$H$14:$H$289)/SUMPRODUCT('FY27 EM Inputs'!$E$14:$E$289,'FY27 EM Inputs'!$H$14:$H$289) -> 1.041224324 | D41: =SUMPRODUCT('FY28 EM Inputs'!$F$14:$F$267,'FY28 EM Inputs'!$H$14:$H$267)/SUMPRODUCT('FY28 EM Inputs'!$E$14:$E$267,'FY28 EM Inputs'!$H$14:$H$267) -> 1.0252562 | E41: =SUMPRODUCT('WAPC Price & Quantity'!G$19:G$286,'WAPC Price & Quantity'!O$19:O$286)/SUMPRODUCT('WAPC Price & Quantity'!F$19:F$286,'WAPC Price & Quantity'!O$19:O$286) -> 1.036221311
B43: Excess adjustment factor | C43: =MIN(0,(((1+C36)*(1-C37)*(1+C38)*(1+C39))/C41)-1) -> -0.0002154427809 | D43: =MIN(0,(((1+D36)*(1-D37)*(1+D38)*(1+D39))/D41)-1) -> -0.001225255098 | E43: =MIN(0,(((1+E36)*(1-E37)*(1+E38)*(1+E39))/E41)-1) -> -0.0001814090594

Sheet FY26 ACC
B1: Cell colour meanings
B2: Input cell
B3: Calculation cell
B5: Calculation of the Average Combined Charges for the period 1 July 2025 to 31 March 2026
B6: Note 1: The Average Daily AVC Overage Charge is calculated for each Bundled TC-4 Offer Group, where the Bundled TC-4 Offer Groups are (i) 12/1 Mbps (Basic Bundled Offer); (ii) 12/1 Mbps (Non-Basic Bundled Offer), 25/5 Mbps and 25/10 Mbps; and (iii) 50/20 Mbps and Up to 100/Up to 20 Mbps. Note 2: The Average Combined Charges for 1 July 2025 - 31 March 2026 are an input to the calculation of the FY26 ACC for the Bundled TC-4 Offers. Refer to the FY26 FACC tab. Note 3: There are separate offers for each of the 12/1 Mbps (Basic Bundled Offer), 12/1 Mbps (Non-Basic Bundled Offer), 25/5 Mbps, 25/10 Mbps, and 50/20 Mbps speed tiers on each relevant access technology, as well as a separate offer for the Up to 100/Up to 20 Mbps bandwidth profile. The calculations shown in the table below group each of the individual offers across their respective access technologies, since these have the same Bundled Price and Daily Combined Charge, and are within the same Bundled TC-4 Offer Group for which an Average Daily AVC Overage Charge is calculated. For example, the 12/1 Mbps (Basic Bundled Offer) item reflects the 12/1 Mbps (Basic Bundled Offer) on the FTTP, FTTB, FTTN, FTTC, and HFC access technologies.
C16: Bundled TC-4 Offer
C17: 12/1 Mbps (Basic Bundled Offer) | D17: 12/1 Mbps (Non-Basic Bundled Offer) | E17: 25/5 Mbps and 25/10 Mbps | F17: 50/20 Mbps and Up to 100/Up to 20 Mbps
B18: Average Combined Charge (1 July 2025 - 31 March 2026) | C18: =ROUND(SUM($E$26:$E$299)/COUNT($B$26:$B$299),2) -> 12.01 | D18: =ROUND(SUM($H$26:$H$299)/COUNT($B$26:$B$299),2) -> 33.77 | E18: =ROUND(SUM($K$26:$K$299)/COUNT($B$26:$B$299),2) -> 34.94 | F18: =ROUND(SUM($N$26:$N$299)/COUNT($B$26:$B$299),2) -> 55.23
B21: Calculation of the Daily Combined Charge (1 July 2025 - 31 March 2026)
C23: Bundled TC-4 Offer
C24: 12/1 Mbps (Basic Bundled Offer) | F24: 12/1 Mbps (Non-Basic Bundled Offer) | I24: 25/5 Mbps and 25/10 Mbps | L24: 50/20 Mbps and Up to 100/Up to 20 Mbps
B25: Date | C25: Bundled Price | D25: Average Daily AVC Overage Charge | E25: Daily Combined Charge | F25: Bundled Price | G25: Average Daily AVC Overage Charge | H25: Daily Combined Charge | I25: Bundled Price | J25: Average Daily AVC Overage Charge | K25: Daily Combined Charge | L25: Bundled Price | M25: Average Daily AVC Overage Charge | N25: Daily Combined Charge
B26: 2025-07-01 | C26: 12 | D26: 0 | E26: =SUM(C26:D26) -> 12 | F26: 28.64 | G26: 5.29 | H26: =SUM(F26:G26) -> 33.93 | I26: 29.81 | J26: 5.29 | K26: =SUM(I26:J26) -> 35.1 | L26: 54.2 | M26: 1.09 | N26: =SUM(L26:M26) -> 55.29
B27: 2025-07-02 | C27: 12 | D27: 0.01 | E27: =SUM(C27:D27) -> 12.01 | F27: 28.64 | G27: 5.18 | H27: =SUM(F27:G27) -> 33.82 | I27: 29.81 | J27: 5.18 | K27: =SUM(I27:J27) -> 34.99 | L27: 54.2 | M27: 1.06 | N27: =SUM(L27:M27) -> 55.26
B28: 2025-07-03 | C28: 12 | D28: 0.01 | E28: 12.01 | F28: 28.64 | G28: 5.15 | H28: 33.79 | I28: 29.81 | J28: 5.15 | K28: 34.96 | L28: 54.2 | M28: 1.06 | N28: 55.26
B29: 2025-07-04 | C29: 12 | D29: 0.01 | E29: 12.01 | F29: 28.64 | G29: 5.18 | H29: 33.82 | I29: 29.81 | J29: 5.18 | K29: 34.99 | L29: 54.2 | M29: 1.08 | N29: 55.28
B30: 2025-07-05 | C30: 12 | D30: 0.01 | E30: 12.01 | F30: 28.64 | G30: 5.62 | H30: 34.26 | I30: 29.81 | J30: 5.62 | K30: 35.43 | L30: 54.2 | M30: 1.14 | N30: 55.34
B31: 2025-07-06 | C31: 12 | D31: 0.01 | E31: 12.01 | F31: 28.64 | G31: 5.28 | H31: 33.92 | I31: 29.81 | J31: 5.28 | K31: 35.09 | L31: 54.2 | M31: 1.1 | N31: 55.3
B32: 2025-07-07 | C32: 12 | D32: 0.01 | E32: 12.01 | F32: 28.64 | G32: 5.03 | H32: 33.67 | I32: 29.81 | J32: 5.03 | K32: 34.84 | L32: 54.2 | M32: 1.03 | N32: 55.23
B33: 2025-07-08 | C33: 12 | D33: 0.01 | E33: 12.01 | F33: 28.64 | G33: 5.05 | H33: 33.69 | I33: 29.81 | J33: 5.05 | K33: 34.86 | L33: 54.2 | M33: 1.02 | N33: 55.22
B34: 2025-07-09 | C34: 12 | D34: 0 | E34: 12 | F34: 28.64 | G34: 5 | H34: 33.64 | I34: 29.81 | J34: 5 | K34: 34.81 | L34: 54.2 | M34: 1.02 | N34: 55.22
B35: 2025-07-10 | C35: 12 | D35: 0.01 | E35: 12.01 | F35: 28.64 | G35: 5.2 | H35: 33.84 | I35: 29.81 | J35: 5.2 | K35: 35.01 | L35: 54.2 | M35: 1.06 | N35: 55.26
B36: 2025-07-11 | C36: 12 | D36: 0 | E36: 12 | F36: 28.64 | G36: 5.16 | H36: 33.8 | I36: 29.81 | J36: 5.16 | K36: 34.97 | L36: 54.2 | M36: 1.07 | N36: 55.27
B37: 2025-07-12 | C37: 12 | D37: 0 | E37: 12 | F37: 28.64 | G37: 5.56 | H37: 34.2 | I37: 29.81 | J37: 5.56 | K37: 35.37 | L37: 54.2 | M37: 1.14 | N37: 55.34
B38: 2025-07-13 | C38: 12 | D38: 0.01 | E38: 12.01 | F38: 28.64 | G38: 5.42 | H38: 34.06 | I38: 29.81 | J38: 5.42 | K38: 35.23 | L38: 54.2 | M38: 1.14 | N38: 55.34
B39: 2025-07-14 | C39: 12 | D39: 0.01 | E39: 12.01 | F39: 28.64 | G39: 5.06 | H39: 33.7 | I39: 29.81 | J39: 5.06 | K39: 34.87 | L39: 54.2 | M39: 1.04 | N39: 55.24
B40: 2025-07-15 | C40: 12 | D40: 0.01 | E40: 12.01 | F40: 28.64 | G40: 5.09 | H40: 33.73 | I40: 29.81 | J40: 5.09 | K40: 34.9 | L40: 54.2 | M40: 1.05 | N40: 55.25
B41: 2025-07-16 | C41: 12 | D41: 0.01 | E41: 12.01 | F41: 28.64 | G41: 5.02 | H41: 33.66 | I41: 29.81 | J41: 5.02 | K41: 34.83 | L41: 54.2 | M41: 1.02 | N41: 55.22
B42: 2025-07-17 | C42: 12 | D42: 0.01 | E42: 12.01 | F42: 28.64 | G42: 5.23 | H42: 33.87 | I42: 29.81 | J42: 5.23 | K42: 35.04 | L42: 54.2 | M42: 1.08 | N42: 55.28
B43: 2025-07-18 | C43: 12 | D43: 0 | E43: 12 | F43: 28.64 | G43: 5.22 | H43: 33.86 | I43: 29.81 | J43: 5.22 | K43: 35.03 | L43: 54.2 | M43: 1.08 | N43: 55.28
B44: 2025-07-19 | C44: 12 | D44: 0 | E44: 12 | F44: 28.64 | G44: 5.52 | H44: 34.16 | I44: 29.81 | J44: 5.52 | K44: 35.33 | L44: 54.2 | M44: 1.13 | N44: 55.33
B45: 2025-07-20 | C45: 12 | D45: 0.01 | E45: 12.01 | F45: 28.64 | G45: 5.3 | H45: 33.94 | I45: 29.81 | J45: 5.3 | K45: 35.11 | L45: 54.2 | M45: 1.1 | N45: 55.3
B46: 2025-07-21 | C46: 12 | D46: 0.01 | E46: 12.01 | F46: 28.64 | G46: 4.96 | H46: 33.6 | I46: 29.81 | J46: 4.96 | K46: 34.77 | L46: 54.2 | M46: 1 | N46: 55.2
B47: 2025-07-22 | C47: 12 | D47: 0.01 | E47: 12.01 | F47: 28.64 | G47: 5.02 | H47: 33.66 | I47: 29.81 | J47: 5.02 | K47: 34.83 | L47: 54.2 | M47: 1.01 | N47: 55.21
B48: 2025-07-23 | C48: 12 | D48: 0 | E48: 12 | F48: 28.64 | G48: 4.97 | H48: 33.61 | I48: 29.81 | J48: 4.97 | K48: 34.78 | L48: 54.2 | M48: 1.01 | N48: 55.21
B49: 2025-07-24 | C49: 12 | D49: 0.01 | E49: 12.01 | F49: 28.64 | G49: 5.15 | H49: 33.79 | I49: 29.81 | J49: 5.15 | K49: 34.96 | L49: 54.2 | M49: 1.06 | N49: 55.26
B50: 2025-07-25 | C50: 12 | D50: 0 | E50: 12 | F50: 28.64 | G50: 5.45 | H50: 34.09 | I50: 29.81 | J50: 5.45 | K50: 35.26 | L50: 54.2 | M50: 1.15 | N50: 55.35
B51: 2025-07-26 | C51: 12 | D51: 0 | E51: 12 | F51: 28.64 | G51: 5.66 | H51: 34.3 | I51: 29.81 | J51: 5.66 | K51: 35.47 | L51: 54.2 | M51: 1.19 | N51: 55.39
B52: 2025-07-27 | C52: 12 | D52: 0.01 | E52: 12.01 | F52: 28.64 | G52: 5.36 | H52: 34 | I52: 29.81 | J52: 5.36 | K52: 35.17 | L52: 54.2 | M52: 1.12 | N52: 55.32
B53: 2025-07-28 | C53: 12 | D53: 0.01 | E53: 12.01 | F53: 28.64 | G53: 4.98 | H53: 33.62 | I53: 29.81 | J53: 4.98 | K53: 34.79 | L53: 54.2 | M53: 1.02 | N53: 55.22
B54: 2025-07-29 | C54: 12 | D54: 0.01 | E54: 12.01 | F54: 28.64 | G54: 5.03 | H54: 33.67 | I54: 29.81 | J54: 5.03 | K54: 34.84 | L54: 54.2 | M54: 1.03 | N54: 55.23
B55: 2025-07-30 | C55: 12 | D55: 0.01 | E55: 12.01 | F55: 28.64 | G55: 5.04 | H55: 33.68 | I55: 29.81 | J55: 5.04 | K55: 34.85 | L55: 54.2 | M55: 1.03 | N55: 55.23
B56: 2025-07-31 | C56: 12 | D56: 0.01 | E56: 12.01 | F56: 28.64 | G56: 5.18 | H56: 33.82 | I56: 29.81 | J56: 5.18 | K56: 34.99 | L56: 54.2 | M56: 1.08 | N56: 55.28
B57: 2025-08-01 | C57: 12 | D57: 0 | E57: 12 | F57: 28.64 | G57: 5.28 | H57: 33.92 | I57: 29.81 | J57: 5.28 | K57: 35.09 | L57: 54.2 | M57: 1.12 | N57: 55.32
B58: 2025-08-02 | C58: 12 | D58: 0 | E58: 12 | F58: 28.64 | G58: 5.85 | H58: 34.49 | I58: 29.81 | J58: 5.85 | K58: 35.66 | L58: 54.2 | M58: 1.22 | N58: 55.42
B59: 2025-08-03 | C59: 12 | D59: 0.01 | E59: 12.01 | F59: 28.64 | G59: 5.3 | H59: 33.94 | I59: 29.81 | J59: 5.3 | K59: 35.11 | L59: 54.2 | M59: 1.12 | N59: 55.32
B60: 2025-08-04 | C60: 12 | D60: 0.01 | E60: 12.01 | F60: 28.64 | G60: 4.98 | H60: 33.62 | I60: 29.81 | J60: 4.98 | K60: 34.79 | L60: 54.2 | M60: 1.03 | N60: 55.23
B61: 2025-08-05 | C61: 12 | D61: 0.01 | E61: 12.01 | F61: 28.64 | G61: 5.13 | H61: 33.77 | I61: 29.81 | J61: 5.13 | K61: 34.94 | L61: 54.2 | M61: 1.05 | N61: 55.25
B62: 2025-08-06 | C62: 12 | D62: 0 | E62: 12 | F62: 28.64 | G62: 5.01 | H62: 33.65 | I62: 29.81 | J62: 5.01 | K62: 34.82 | L62: 54.2 | M62: 1.02 | N62: 55.22
B63: 2025-08-07 | C63: 12 | D63: 0.01 | E63: 12.01 | F63: 28.64 | G63: 5.3 | H63: 33.94 | I63: 29.81 | J63: 5.3 | K63: 35.11 | L63: 54.2 | M63: 1.11 | N63: 55.31
B64: 2025-08-08 | C64: 12 | D64: 0 | E64: 12 | F64: 28.64 | G64: 5.33 | H64: 33.97 | I64: 29.81 | J64: 5.33 | K64: 35.14 | L64: 54.2 | M64: 1.12 | N64: 55.32
B65: 2025-08-09 | C65: 12 | D65: 0.01 | E65: 12.01 | F65: 28.64 | G65: 5.54 | H65: 34.18 | I65: 29.81 | J65: 5.54 | K65: 35.35 | L65: 54.2 | M65: 1.15 | N65: 55.35
B66: 2025-08-10 | C66: 12 | D66: 0.01 | E66: 12.01 | F66: 28.64 | G66: 5.37 | H66: 34.01 | I66: 29.81 | J66: 5.37 | K66: 35.18 | L66: 54.2 | M66: 1.13 | N66: 55.33
B67: 2025-08-11 | C67: 12 | D67: 0.01 | E67: 12.01 | F67: 28.64 | G67: 4.99 | H67: 33.63 | I67: 29.81 | J67: 4.99 | K67: 34.8 | L67: 54.2 | M67: 1.02 | N67: 55.22
B68: 2025-08-12 | C68: 12 | D68: 0.01 | E68: 12.01 | F68: 28.64 | G68: 5.02 | H68: 33.66 | I68: 29.81 | J68: 5.02 | K68: 34.83 | L68: 54.2 | M68: 1.03 | N68: 55.23
B69: 2025-08-13 | C69: 12 | D69: 0 | E69: 12 | F69: 28.64 | G69: 5.09 | H69: 33.73 | I69: 29.81 | J69: 5.09 | K69: 34.9 | L69: 54.2 | M69: 1.05 | N69: 55.25
B70: 2025-08-14 | C70: 12 | D70: 0.01 | E70: 12.01 | F70: 28.64 | G70: 5.14 | H70: 33.78 | I70: 29.81 | J70: 5.14 | K70: 34.95 | L70: 54.2 | M70: 1.07 | N70: 55.27
B71: 2025-08-15 | C71: 12 | D71: 0.01 | E71: 12.01 | F71: 28.64 | G71: 5.35 | H71: 33.99 | I71: 29.81 | J71: 5.35 | K71: 35.16 | L71: 54.2 | M71: 1.13 | N71: 55.33
B72: 2025-08-16 | C72: 12 | D72: 0.01 | E72: 12.01 | F72: 28.64 | G72: 5.61 | H72: 34.25 | I72: 29.81 | J72: 5.61 | K72: 35.42 | L72: 54.2 | M72: 1.17 | N72: 55.37
B73: 2025-08-17 | C73: 12 | D73: 0.01 | E73: 12.01 | F73: 28.64 | G73: 5.27 | H73: 33.91 | I73: 29.81 | J73: 5.27 | K73: 35.08 | L73: 54.2 | M73: 1.1 | N73: 55.3
B74: 2025-08-18 | C74: 12 | D74: 0.01 | E74: 12.01 | F74: 28.64 | G74: 5.02 | H74: 33.66 | I74: 29.81 | J74: 5.02 | K74: 34.83 | L74: 54.2 | M74: 1.02 | N74: 55.22
B75: 2025-08-19 | C75: 12 | D75: 0.01 | E75: 12.01 | F75: 28.64 | G75: 5.04 | H75: 33.68 | I75: 29.81 | J75: 5.04 | K75: 34.85 | L75: 54.2 | M75: 1.03 | N75: 55.23
B76: 2025-08-20 | C76: 12 | D76: 0.01 | E76: 12.01 | F76: 28.64 | G76: 5.03 | H76: 33.67 | I76: 29.81 | J76: 5.03 | K76: 34.84 | L76: 54.2 | M76: 1.03 | N76: 55.23
B77: 2025-08-21 | C77: 12 | D77: 0.01 | E77: 12.01 | F77: 28.64 | G77: 5.35 | H77: 33.99 | I77: 29.81 | J77: 5.35 | K77: 35.16 | L77: 54.2 | M77: 1.11 | N77: 55.31
B78: 2025-08-22 | C78: 12 | D78: 0.01 | E78: 12.01 | F78: 28.64 | G78: 5.4 | H78: 34.04 | I78: 29.81 | J78: 5.4 | K78: 35.21 | L78: 54.2 | M78: 1.14 | N78: 55.34
B79: 2025-08-23 | C79: 12 | D79: 0.01 | E79: 12.01 | F79: 28.64 | G79: 5.34 | H79: 33.98 | I79: 29.81 | J79: 5.34 | K79: 35.15 | L79: 54.2 | M79: 1.11 | N79: 55.31
B80: 2025-08-24 | C80: 12 | D80: 0.01 | E80: 12.01 | F80: 28.64 | G80: 5.47 | H80: 34.11 | I80: 29.81 | J80: 5.47 | K80: 35.28 | L80: 54.2 | M80: 1.14 | N80: 55.34
B81: 2025-08-25 | C81: 12 | D81: 0.01 | E81: 12.01 | F81: 28.64 | G81: 4.92 | H81: 33.56 | I81: 29.81 | J81: 4.92 | K81: 34.73 | L81: 54.2 | M81: 1 | N81: 55.2
B82: 2025-08-26 | C82: 12 | D82: 0.01 | E82: 12.01 | F82: 28.64 | G82: 4.97 | H82: 33.61 | I82: 29.81 | J82: 4.97 | K82: 34.78 | L82: 54.2 | M82: 1.02 | N82: 55.22
B83: 2025-08-27 | C83: 12 | D83: 0 | E83: 12 | F83: 28.64 | G83: 5.12 | H83: 33.76 | I83: 29.81 | J83: 5.12 | K83: 34.93 | L83: 54.2 | M83: 1.05 | N83: 55.25
B84: 2025-08-28 | C84: 12 | D84: 0.01 | E84: 12.01 | F84: 28.64 | G84: 4.99 | H84: 33.63 | I84: 29.81 | J84: 4.99 | K84: 34.8 | L84: 54.2 | M84: 1.03 | N84: 55.23
B85: 2025-08-29 | C85: 12 | D85: 0.01 | E85: 12.01 | F85: 28.64 | G85: 5.16 | H85: 33.8 | I85: 29.81 | J85: 5.16 | K85: 34.97 | L85: 54.2 | M85: 1.08 | N85: 55.28
B86: 2025-08-30 | C86: 12 | D86: 0.01 | E86: 12.01 | F86: 28.64 | G86: 5.24 | H86: 33.88 | I86: 29.81 | J86: 5.24 | K86: 35.05 | L86: 54.2 | M86: 1.07 | N86: 55.27
B87: 2025-08-31 | C87: 12 | D87: 0.01 | E87: 12.01 | F87: 28.64 | G87: 5.16 | H87: 33.8 | I87: 29.81 | J87: 5.16 | K87: 34.97 | L87: 54.2 | M87: 1.06 | N87: 55.26
B88: 2025-09-01 | C88: 12 | D88: 0.01 | E88: 12.01 | F88: 28.64 | G88: 5.04 | H88: 33.68 | I88: 29.81 | J88: 5.04 | K88: 34.85 | L88: 54.2 | M88: 1.02 | N88: 55.22
B89: 2025-09-02 | C89: 12 | D89: 0.01 | E89: 12.01 | F89: 28.64 | G89: 4.93 | H89: 33.57 | I89: 29.81 | J89: 4.93 | K89: 34.74 | L89: 54.2 | M89: 0.99 | N89: 55.19
B90: 2025-09-03 | C90: 12 | D90: 0 | E90: 12 | F90: 28.64 | G90: 4.92 | H90: 33.56 | I90: 29.81 | J90: 4.92 | K90: 34.73 | L90: 54.2 | M90: 1 | N90: 55.2
B91: 2025-09-04 | C91: 12 | D91: 0 | E91: =SUM(C91:D91) -> 12 | F91: 28.64 | G91: 5.19 | H91: =SUM(F91:G91) -> 33.83 | I91: 29.81 | J91: 5.19 | K91: =SUM(I91:J91) -> 35 | L91: 54.2 | M91: 1.09 | N91: =SUM(L91:M91) -> 55.29
B92: 2025-09-05 | C92: 12 | D92: 0.01 | E92: 12.01 | F92: 28.64 | G92: 5.27 | H92: 33.91 | I92: 29.81 | J92: 5.27 | K92: 35.08 | L92: 54.2 | M92: 1.1 | N92: 55.3
B93: 2025-09-06 | C93: 12 | D93: 0.01 | E93: 12.01 | F93: 28.64 | G93: 5.22 | H93: 33.86 | I93: 29.81 | J93: 5.22 | K93: 35.03 | L93: 54.2 | M93: 1.08 | N93: 55.28
B94: 2025-09-07 | C94: 12 | D94: 0.01 | E94: 12.01 | F94: 28.64 | G94: 5.08 | H94: 33.72 | I94: 29.81 | J94: 5.08 | K94: 34.89 | L94: 54.2 | M94: 1.04 | N94: 55.24
B95: 2025-09-08 | C95: 12 | D95: 0.01 | E95: 12.01 | F95: 28.64 | G95: 4.98 | H95: 33.62 | I95: 29.81 | J95: 4.98 | K95: 34.79 | L95: 54.2 | M95: 1.01 | N95: 55.21
B96: 2025-09-09 | C96: 12 | D96: 0.01 | E96: 12.01 | F96: 28.64 | G96: 4.92 | H96: 33.56 | I96: 29.81 | J96: 4.92 | K96: 34.73 | L96: 54.2 | M96: 0.99 | N96: 55.19
B97: 2025-09-10 | C97: 12 | D97: 0.01 | E97: 12.01 | F97: 28.64 | G97: 5.14 | H97: 33.78 | I97: 29.81 | J97: 5.14 | K97: 34.95 | L97: 54.2 | M97: 1.06 | N97: 55.26
B98: 2025-09-11 | C98: 12 | D98: 0.01 | E98: 12.01 | F98: 28.64 | G98: 4.96 | H98: 33.6 | I98: 29.81 | J98: 4.96 | K98: 34.77 | L98: 54.2 | M98: 1 | N98: 55.2
B99: 2025-09-12 | C99: 12 | D99: 0 | E99: 12 | F99: 28.64 | G99: 5.19 | H99: 33.83 | I99: 29.81 | J99: 5.19 | K99: 35 | L99: 54.2 | M99: 1.09 | N99: 55.29
B100: 2025-09-13 | C100: 12 | D100: 0 | E100: 12 | F100: 28.64 | G100: 5.24 | H100: 33.88 | I100: 29.81 | J100: 5.24 | K100: 35.05 | L100: 54.2 | M100: 1.09 | N100: 55.29
B101: 2025-09-14 | C101: 12 | D101: 0.01 | E101: 12.01 | F101: 28.64 | G101: 5.19 | H101: 33.83 | I101: 29.81 | J101: 5.19 | K101: 35 | L101: 54.2 | M101: 1.08 | N101: 55.28
B102: 2025-09-15 | C102: 12 | D102: 0.01 | E102: 12.01 | F102: 28.64 | G102: 4.95 | H102: 33.59 | I102: 29.81 | J102: 4.95 | K102: 34.76 | L102: 54.2 | M102: 1 | N102: 55.2
B103: 2025-09-16 | C103: 12 | D103: 0.01 | E103: 12.01 | F103: 28.64 | G103: 5.02 | H103: 33.66 | I103: 29.81 | J103: 5.02 | K103: 34.83 | L103: 54.2 | M103: 1.01 | N103: 55.21
B104: 2025-09-17 | C104: 12 | D104: 0.01 | E104: 12.01 | F104: 28.64 | G104: 5.05 | H104: 33.69 | I104: 29.81 | J104: 5.05 | K104: 34.86 | L104: 54.2 | M104: 1.04 | N104: 55.24
B105: 2025-09-18 | C105: 12 | D105: 0.01 | E105: 12.01 | F105: 28.64 | G105: 5.05 | H105: 33.69 | I105: 29.81 | J105: 5.05 | K105: 34.86 | L105: 54.2 | M105: 1.03 | N105: 55.23
B106: 2025-09-19 | C106: 12 | D106: 0 | E106: 12 | F106: 28.64 | G106: 5.14 | H106: 33.78 | I106: 29.81 | J106: 5.14 | K106: 34.95 | L106: 54.2 | M106: 1.06 | N106: 55.26
B107: 2025-09-20 | C107: 12 | D107: 0 | E107: 12 | F107: 28.64 | G107: 5.23 | H107: 33.87 | I107: 29.81 | J107: 5.23 | K107: 35.04 | L107: 54.2 | M107: 1.09 | N107: 55.29
B108: 2025-09-21 | C108: 12 | D108: 0.01 | E108: 12.01 | F108: 28.64 | G108: 5.29 | H108: 33.93 | I108: 29.81 | J108: 5.29 | K108: 35.1 | L108: 54.2 | M108: 1.11 | N108: 55.31
B109: 2025-09-22 | C109: 12 | D109: 0.01 | E109: 12.01 | F109: 28.64 | G109: 5.03 | H109: 33.67 | I109: 29.81 | J109: 5.03 | K109: 34.84 | L109: 54.2 | M109: 1.02 | N109: 55.22
B110: 2025-09-23 | C110: 12 | D110: 0.01 | E110: 12.01 | F110: 28.64 | G110: 5.02 | H110: 33.66 | I110: 29.81 | J110: 5.02 | K110: 34.83 | L110: 54.2 | M110: 1 | N110: 55.2
B111: 2025-09-24 | C111: 12 | D111: 0.01 | E111: 12.01 | F111: 28.64 | G111: 4.96 | H111: 33.6 | I111: 29.81 | J111: 4.96 | K111: 34.77 | L111: 54.2 | M111: 0.99 | N111: 55.19
B112: 2025-09-25 | C112: 12 | D112: 0.01 | E112: 12.01 | F112: 28.64 | G112: 4.98 | H112: 33.62 | I112: 29.81 | J112: 4.98 | K112: 34.79 | L112: 54.2 | M112: 1 | N112: 55.2
B113: 2025-09-26 | C113: 12 | D113: 0.01 | E113: 12.01 | F113: 28.64 | G113: 5.1 | H113: 33.74 | I113: 29.81 | J113: 5.1 | K113: 34.91 | L113: 54.2 | M113: 1.04 | N113: 55.24
B114: 2025-09-27 | C114: 12 | D114: 0.01 | E114: 12.01 | F114: 28.64 | G114: 4.99 | H114: 33.63 | I114: 29.81 | J114: 4.99 | K114: 34.8 | L114: 54.2 | M114: 0.99 | N114: 55.19
B115: 2025-09-28 | C115: 12 | D115: 0.01 | E115: 12.01 | F115: 28.64 | G115: 5.14 | H115: 33.78 | I115: 29.81 | J115: 5.14 | K115: 34.95 | L115: 54.2 | M115: 1.05 | N115: 55.25
B116: 2025-09-29 | C116: 12 | D116: 0.01 | E116: 12.01 | F116: 28.64 | G116: 5.05 | H116: 33.69 | I116: 29.81 | J116: 5.05 | K116: 34.86 | L116: 54.2 | M116: 1.01 | N116: 55.21
B117: 2025-09-30 | C117: 12 | D117: 0 | E117: 12 | F117: 28.64 | G117: 5.04 | H117: 33.68 | I117: 29.81 | J117: 5.04 | K117: 34.85 | L117: 54.2 | M117: 1 | N117: 55.2
B118: 2025-10-01 | C118: 12 | D118: 0.01 | E118: 12.01 | F118: 28.64 | G118: 5.11 | H118: 33.75 | I118: 29.81 | J118: 5.11 | K118: 34.92 | L118: 54.2 | M118: 1.03 | N118: 55.23
B119: 2025-10-02 | C119: 12 | D119: 0.01 | E119: 12.01 | F119: 28.64 | G119: 5.06 | H119: 33.7 | I119: 29.81 | J119: 5.06 | K119: 34.87 | L119: 54.2 | M119: 1.01 | N119: 55.21
B120: 2025-10-03 | C120: 12 | D120: 0.01 | E120: 12.01 | F120: 28.64 | G120: 5.04 | H120: 33.68 | I120: 29.81 | J120: 5.04 | K120: 34.85 | L120: 54.2 | M120: 0.99 | N120: 55.19
B121: 2025-10-04 | C121: 12 | D121: 0 | E121: 12 | F121: 28.64 | G121: 5.15 | H121: 33.79 | I121: 29.81 | J121: 5.15 | K121: 34.96 | L121: 54.2 | M121: 1.01 | N121: 55.21
B122: 2025-10-05 | C122: 12 | D122: 0.01 | E122: 12.01 | F122: 28.64 | G122: 5.04 | H122: 33.68 | I122: 29.81 | J122: 5.04 | K122: 34.85 | L122: 54.2 | M122: 1.01 | N122: 55.21
B123: 2025-10-06 | C123: 12 | D123: 0.01 | E123: 12.01 | F123: 28.64 | G123: 5.14 | H123: 33.78 | I123: 29.81 | J123: 5.14 | K123: 34.95 | L123: 54.2 | M123: 1.04 | N123: 55.24
B124: 2025-10-07 | C124: 12 | D124: 0.01 | E124: 12.01 | F124: 28.64 | G124: 5.06 | H124: 33.7 | I124: 29.81 | J124: 5.06 | K124: 34.87 | L124: 54.2 | M124: 1 | N124: 55.2
B125: 2025-10-08 | C125: 12 | D125: 0.01 | E125: 12.01 | F125: 28.64 | G125: 5.1 | H125: 33.74 | I125: 29.81 | J125: 5.1 | K125: 34.91 | L125: 54.2 | M125: 1.01 | N125: 55.21
B126: 2025-10-09 | C126: 12 | D126: 0.01 | E126: 12.01 | F126: 28.64 | G126: 5.11 | H126: 33.75 | I126: 29.81 | J126: 5.11 | K126: 34.92 | L126: 54.2 | M126: 1.01 | N126: 55.21
B127: 2025-10-10 | C127: 12 | D127: 0 | E127: 12 | F127: 28.64 | G127: 5.02 | H127: 33.66 | I127: 29.81 | J127: 5.02 | K127: 34.83 | L127: 54.2 | M127: 1 | N127: 55.2
B128: 2025-10-11 | C128: 12 | D128: 0.01 | E128: 12.01 | F128: 28.64 | G128: 5.05 | H128: 33.69 | I128: 29.81 | J128: 5.05 | K128: 34.86 | L128: 54.2 | M128: 0.99 | N128: 55.19
B129: 2025-10-12 | C129: 12 | D129: 0.01 | E129: 12.01 | F129: 28.64 | G129: 5.26 | H129: 33.9 | I129: 29.81 | J129: 5.26 | K129: 35.07 | L129: 54.2 | M129: 1.06 | N129: 55.26
B130: 2025-10-13 | C130: 12 | D130: 0.01 | E130: 12.01 | F130: 28.64 | G130: 4.94 | H130: 33.58 | I130: 29.81 | J130: 4.94 | K130: 34.75 | L130: 54.2 | M130: 0.97 | N130: 55.17
B131: 2025-10-14 | C131: 12 | D131: 0.01 | E131: 12.01 | F131: 28.64 | G131: 4.96 | H131: 33.6 | I131: 29.81 | J131: 4.96 | K131: 34.77 | L131: 54.2 | M131: 0.98 | N131: 55.18
B132: 2025-10-15 | C132: 12 | D132: 0.01 | E132: 12.01 | F132: 28.64 | G132: 5.02 | H132: 33.66 | I132: 29.81 | J132: 5.02 | K132: 34.83 | L132: 54.2 | M132: 0.99 | N132: 55.19
B133: 2025-10-16 | C133: 12 | D133: 0.01 | E133: 12.01 | F133: 28.64 | G133: 4.94 | H133: 33.58 | I133: 29.81 | J133: 4.94 | K133: 34.75 | L133: 54.2 | M133: 0.96 | N133: 55.16
B134: 2025-10-17 | C134: 12 | D134: 0.01 | E134: 12.01 | F134: 28.64 | G134: 5.04 | H134: 33.68 | I134: 29.81 | J134: 5.04 | K134: 34.85 | L134: 54.2 | M134: 1 | N134: 55.2
B135: 2025-10-18 | C135: 12 | D135: 0.01 | E135: 12.01 | F135: 28.64 | G135: 4.95 | H135: 33.59 | I135: 29.81 | J135: 4.95 | K135: 34.76 | L135: 54.2 | M135: 0.97 | N135: 55.17
B136: 2025-10-19 | C136: 12 | D136: 0.01 | E136: 12.01 | F136: 28.64 | G136: 5.3 | H136: 33.94 | I136: 29.81 | J136: 5.3 | K136: 35.11 | L136: 54.2 | M136: 1.08 | N136: 55.28
B137: 2025-10-20 | C137: 12 | D137: 0.01 | E137: 12.01 | F137: 28.64 | G137: 4.9 | H137: 33.54 | I137: 29.81 | J137: 4.9 | K137: 34.71 | L137: 54.2 | M137: 0.97 | N137: 55.17
B138: 2025-10-21 | C138: 12 | D138: 0.01 | E138: 12.01 | F138: 28.64 | G138: 4.89 | H138: 33.53 | I138: 29.81 | J138: 4.89 | K138: 34.7 | L138: 54.2 | M138: 0.95 | N138: 55.15
B139: 2025-10-22 | C139: 12 | D139: 0.01 | E139: 12.01 | F139: 28.64 | G139: 5.13 | H139: 33.77 | I139: 29.81 | J139: 5.13 | K139: 34.94 | L139: 54.2 | M139: 1.02 | N139: 55.22
B140: 2025-10-23 | C140: 12 | D140: 0.01 | E140: 12.01 | F140: 28.64 | G140: 5.09 | H140: 33.73 | I140: 29.81 | J140: 5.09 | K140: 34.9 | L140: 54.2 | M140: 1.01 | N140: 55.21
B141: 2025-10-24 | C141: 12 | D141: 0.01 | E141: 12.01 | F141: 28.64 | G141: 4.94 | H141: 33.58 | I141: 29.81 | J141: 4.94 | K141: 34.75 | L141: 54.2 | M141: 0.98 | N141: 55.18
B142: 2025-10-25 | C142: 12 | D142: 0.01 | E142: 12.01 | F142: 28.64 | G142: 5.15 | H142: 33.79 | I142: 29.81 | J142: 5.15 | K142: 34.96 | L142: 54.2 | M142: 1.01 | N142: 55.21
B143: 2025-10-26 | C143: 12 | D143: 0.01 | E143: 12.01 | F143: 28.64 | G143: 5.15 | H143: 33.79 | I143: 29.81 | J143: 5.15 | K143: 34.96 | L143: 54.2 | M143: 1.04 | N143: 55.24
B144: 2025-10-27 | C144: 12 | D144: 0.01 | E144: 12.01 | F144: 28.64 | G144: 4.96 | H144: 33.6 | I144: 29.81 | J144: 4.96 | K144: 34.77 | L144: 54.2 | M144: 0.99 | N144: 55.19
B145: 2025-10-28 | C145: 12 | D145: 0.01 | E145: 12.01 | F145: 28.64 | G145: 5.03 | H145: 33.67 | I145: 29.81 | J145: 5.03 | K145: 34.84 | L145: 54.2 | M145: 1 | N145: 55.2
B146: 2025-10-29 | C146: 12 | D146: 0.01 | E146: 12.01 | F146: 28.64 | G146: 5.15 | H146: 33.79 | I146: 29.81 | J146: 5.15 | K146: 34.96 | L146: 54.2 | M146: 1.03 | N146: 55.23
B147: 2025-10-30 | C147: 12 | D147: 0.01 | E147: 12.01 | F147: 28.64 | G147: 5.01 | H147: 33.65 | I147: 29.81 | J147: 5.01 | K147: 34.82 | L147: 54.2 | M147: 0.98 | N147: 55.18
B148: 2025-10-31 | C148: 12 | D148: 0.01 | E148: 12.01 | F148: 28.64 | G148: 5.04 | H148: 33.68 | I148: 29.81 | J148: 5.04 | K148: 34.85 | L148: 54.2 | M148: 0.99 | N148: 55.19
B149: 2025-11-01 | C149: 12 | D149: 0.01 | E149: 12.01 | F149: 28.64 | G149: 4.89 | H149: 33.53 | I149: 29.81 | J149: 4.89 | K149: 34.7 | L149: 54.2 | M149: 0.96 | N149: 55.16
B150: 2025-11-02 | C150: 12 | D150: 0.01 | E150: 12.01 | F150: 28.64 | G150: 5.3 | H150: 33.94 | I150: 29.81 | J150: 5.3 | K150: 35.11 | L150: 54.2 | M150: 1.09 | N150: 55.29
B151: 2025-11-03 | C151: 12 | D151: 0.01 | E151: 12.01 | F151: 28.64 | G151: 5.06 | H151: 33.7 | I151: 29.81 | J151: 5.06 | K151: 34.87 | L151: 54.2 | M151: 1.01 | N151: 55.21
B152: 2025-11-04 | C152: 12 | D152: 0.01 | E152: 12.01 | F152: 28.64 | G152: 5.12 | H152: 33.76 | I152: 29.81 | J152: 5.12 | K152: 34.93 | L152: 54.2 | M152: 1.02 | N152: 55.22
B153: 2025-11-05 | C153: 12 | D153: 0.01 | E153: 12.01 | F153: 28.64 | G153: 4.98 | H153: 33.62 | I153: 29.81 | J153: 4.98 | K153: 34.79 | L153: 54.2 | M153: 0.99 | N153: 55.19
B154: 2025-11-06 | C154: 12 | D154: 0.01 | E154: 12.01 | F154: 28.64 | G154: 5.13 | H154: 33.77 | I154: 29.81 | J154: 5.13 | K154: 34.94 | L154: 54.2 | M154: 1.02 | N154: 55.22
B155: 2025-11-07 | C155: 12 | D155: 0.01 | E155: =SUM(C155:D155) -> 12.01 | F155: 28.64 | G155: 5 | H155: =SUM(F155:G155) -> 33.64 | I155: 29.81 | J155: 5 | K155: =SUM(I155:J155) -> 34.81 | L155: 54.2 | M155: 1 | N155: =SUM(L155:M155) -> 55.2
B156: 2025-11-08 | C156: 12 | D156: 0.01 | E156: 12.01 | F156: 28.64 | G156: 5.11 | H156: 33.75 | I156: 29.81 | J156: 5.11 | K156: 34.92 | L156: 54.2 | M156: 1.01 | N156: 55.21
B157: 2025-11-09 | C157: 12 | D157: 0.01 | E157: 12.01 | F157: 28.64 | G157: 5.21 | H157: 33.85 | I157: 29.81 | J157: 5.21 | K157: 35.02 | L157: 54.2 | M157: 1.07 | N157: 55.27
B158: 2025-11-10 | C158: 12 | D158: 0.01 | E158: 12.01 | F158: 28.64 | G158: 4.98 | H158: 33.62 | I158: 29.81 | J158: 4.98 | K158: 34.79 | L158: 54.2 | M158: 1 | N158: 55.2
B159: 2025-11-11 | C159: 12 | D159: 0.01 | E159: 12.01 | F159: 28.64 | G159: 5.18 | H159: 33.82 | I159: 29.81 | J159: 5.18 | K159: 34.99 | L159: 54.2 | M159: 1.05 | N159: 55.25
B160: 2025-11-12 | C160: 12 | D160: 0.01 | E160: 12.01 | F160: 28.64 | G160: 5.06 | H160: 33.7 | I160: 29.81 | J160: 5.06 | K160: 34.87 | L160: 54.2 | M160: 1.01 | N160: 55.21
B161: 2025-11-13 | C161: 12 | D161: 0.01 | E161: 12.01 | F161: 28.64 | G161: 5.01 | H161: 33.65 | I161: 29.81 | J161: 5.01 | K161: 34.82 | L161: 54.2 | M161: 0.99 | N161: 55.19
B162: 2025-11-14 | C162: 12 | D162: 0.01 | E162: 12.01 | F162: 28.64 | G162: 5.09 | H162: 33.73 | I162: 29.81 | J162: 5.09 | K162: 34.9 | L162: 54.2 | M162: 1.02 | N162: 55.22
B163: 2025-11-15 | C163: 12 | D163: 0.01 | E163: 12.01 | F163: 28.64 | G163: 5.08 | H163: 33.72 | I163: 29.81 | J163: 5.08 | K163: 34.89 | L163: 54.2 | M163: 1.01 | N163: 55.21
B164: 2025-11-16 | C164: 12 | D164: 0.01 | E164: 12.01 | F164: 28.64 | G164: 5.23 | H164: 33.87 | I164: 29.81 | J164: 5.23 | K164: 35.04 | L164: 54.2 | M164: 1.08 | N164: 55.28
B165: 2025-11-17 | C165: 12 | D165: 0.01 | E165: 12.01 | F165: 28.64 | G165: 5.07 | H165: 33.71 | I165: 29.81 | J165: 5.07 | K165: 34.88 | L165: 54.2 | M165: 1.02 | N165: 55.22
B166: 2025-11-18 | C166: 12 | D166: 0.01 | E166: 12.01 | F166: 28.64 | G166: 5.14 | H166: 33.78 | I166: 29.81 | J166: 5.14 | K166: 34.95 | L166: 54.2 | M166: 1.03 | N166: 55.23
B167: 2025-11-19 | C167: 12 | D167: 0.01 | E167: 12.01 | F167: 28.64 | G167: 5.18 | H167: 33.82 | I167: 29.81 | J167: 5.18 | K167: 34.99 | L167: 54.2 | M167: 1.05 | N167: 55.25
B168: 2025-11-20 | C168: 12 | D168: 0.01 | E168: 12.01 | F168: 28.64 | G168: 5.07 | H168: 33.71 | I168: 29.81 | J168: 5.07 | K168: 34.88 | L168: 54.2 | M168: 1 | N168: 55.2
B169: 2025-11-21 | C169: 12 | D169: 0.01 | E169: 12.01 | F169: 28.64 | G169: 5.07 | H169: 33.71 | I169: 29.81 | J169: 5.07 | K169: 34.88 | L169: 54.2 | M169: 1.02 | N169: 55.22
B170: 2025-11-22 | C170: 12 | D170: 0.01 | E170: 12.01 | F170: 28.64 | G170: 5.06 | H170: 33.7 | I170: 29.81 | J170: 5.06 | K170: 34.87 | L170: 54.2 | M170: 1.02 | N170: 55.22
B171: 2025-11-23 | C171: 12 | D171: 0.01 | E171: 12.01 | F171: 28.64 | G171: 5.36 | H171: 34 | I171: 29.81 | J171: 5.36 | K171: 35.17 | L171: 54.2 | M171: 1.09 | N171: 55.29
B172: 2025-11-24 | C172: 12 | D172: 0.01 | E172: 12.01 | F172: 28.64 | G172: 5.04 | H172: 33.68 | I172: 29.81 | J172: 5.04 | K172: 34.85 | L172: 54.2 | M172: 1 | N172: 55.2
B173: 2025-11-25 | C173: 12 | D173: 0.01 | E173: 12.01 | F173: 28.64 | G173: 5.05 | H173: 33.69 | I173: 29.81 | J173: 5.05 | K173: 34.86 | L173: 54.2 | M173: 1 | N173: 55.2
B174: 2025-11-26 | C174: 12 | D174: 0.01 | E174: 12.01 | F174: 28.64 | G174: 4.97 | H174: 33.61 | I174: 29.81 | J174: 4.97 | K174: 34.78 | L174: 54.2 | M174: 0.97 | N174: 55.17
B175: 2025-11-27 | C175: 12 | D175: 0.01 | E175: 12.01 | F175: 28.64 | G175: 4.96 | H175: 33.6 | I175: 29.81 | J175: 4.96 | K175: 34.77 | L175: 54.2 | M175: 0.97 | N175: 55.17
B176: 2025-11-28 | C176: 12 | D176: 0.01 | E176: 12.01 | F176: 28.64 | G176: 4.93 | H176: 33.57 | I176: 29.81 | J176: 4.93 | K176: 34.74 | L176: 54.2 | M176: 0.97 | N176: 55.17
B177: 2025-11-29 | C177: 12 | D177: 0.01 | E177: 12.01 | F177: 28.64 | G177: 4.9 | H177: 33.54 | I177: 29.81 | J177: 4.9 | K177: 34.71 | L177: 54.2 | M177: 0.97 | N177: 55.17
B178: 2025-11-30 | C178: 12 | D178: 0.01 | E178: 12.01 | F178: 28.64 | G178: 5.35 | H178: 33.99 | I178: 29.81 | J178: 5.35 | K178: 35.16 | L178: 54.2 | M178: 1.08 | N178: 55.28
B179: 2025-12-01 | C179: 12 | D179: 0.01 | E179: 12.01 | F179: 28.64 | G179: 5.17 | H179: 33.81 | I179: 29.81 | J179: 5.17 | K179: 34.98 | L179: 54.2 | M179: 1.02 | N179: 55.22
B180: 2025-12-02 | C180: 12 | D180: 0.01 | E180: 12.01 | F180: 28.64 | G180: 5.1 | H180: 33.74 | I180: 29.81 | J180: 5.1 | K180: 34.91 | L180: 54.2 | M180: 1.01 | N180: 55.21
B181: 2025-12-03 | C181: 12 | D181: 0.01 | E181: 12.01 | F181: 28.64 | G181: 4.95 | H181: 33.59 | I181: 29.81 | J181: 4.95 | K181: 34.76 | L181: 54.2 | M181: 0.97 | N181: 55.17
B182: 2025-12-04 | C182: 12 | D182: 0.01 | E182: 12.01 | F182: 28.64 | G182: 5.06 | H182: 33.7 | I182: 29.81 | J182: 5.06 | K182: 34.87 | L182: 54.2 | M182: 1.01 | N182: 55.21
B183: 2025-12-05 | C183: 12 | D183: 0.01 | E183: 12.01 | F183: 28.64 | G183: 4.99 | H183: 33.63 | I183: 29.81 | J183: 4.99 | K183: 34.8 | L183: 54.2 | M183: 1.01 | N183: 55.21
B184: 2025-12-06 | C184: 12 | D184: 0.01 | E184: 12.01 | F184: 28.64 | G184: 5.04 | H184: 33.68 | I184: 29.81 | J184: 5.04 | K184: 34.85 | L184: 54.2 | M184: 1.02 | N184: 55.22
B185: 2025-12-07 | C185: 12 | D185: 0.01 | E185: 12.01 | F185: 28.64 | G185: 5.39 | H185: 34.03 | I185: 29.81 | J185: 5.39 | K185: 35.2 | L185: 54.2 | M185: 1.1 | N185: 55.3
B186: 2025-12-08 | C186: 12 | D186: 0.01 | E186: 12.01 | F186: 28.64 | G186: 5.19 | H186: 33.83 | I186: 29.81 | J186: 5.19 | K186: 35 | L186: 54.2 | M186: 1.02 | N186: 55.22
B187: 2025-12-09 | C187: 12 | D187: 0.01 | E187: 12.01 | F187: 28.64 | G187: 5.16 | H187: 33.8 | I187: 29.81 | J187: 5.16 | K187: 34.97 | L187: 54.2 | M187: 1.02 | N187: 55.22
B188: 2025-12-10 | C188: 12 | D188: 0.01 | E188: 12.01 | F188: 28.64 | G188: 5.17 | H188: 33.81 | I188: 29.81 | J188: 5.17 | K188: 34.98 | L188: 54.2 | M188: 1.02 | N188: 55.22
B189: 2025-12-11 | C189: 12 | D189: 0.01 | E189: 12.01 | F189: 28.64 | G189: 5.12 | H189: 33.76 | I189: 29.81 | J189: 5.12 | K189: 34.93 | L189: 54.2 | M189: 1.03 | N189: 55.23
B190: 2025-12-12 | C190: 12 | D190: 0.01 | E190: 12.01 | F190: 28.64 | G190: 4.94 | H190: 33.58 | I190: 29.81 | J190: 4.94 | K190: 34.75 | L190: 54.2 | M190: 0.98 | N190: 55.18
B191: 2025-12-13 | C191: 12 | D191: 0.01 | E191: 12.01 | F191: 28.64 | G191: 4.89 | H191: 33.53 | I191: 29.81 | J191: 4.89 | K191: 34.7 | L191: 54.2 | M191: 0.96 | N191: 55.16
B192: 2025-12-14 | C192: 12 | D192: 0.01 | E192: 12.01 | F192: 28.64 | G192: 5.04 | H192: 33.68 | I192: 29.81 | J192: 5.04 | K192: 34.85 | L192: 54.2 | M192: 1.02 | N192: 55.22
B193: 2025-12-15 | C193: 12 | D193: 0.01 | E193: 12.01 | F193: 28.64 | G193: 5.25 | H193: 33.89 | I193: 29.81 | J193: 5.25 | K193: 35.06 | L193: 54.2 | M193: 1.05 | N193: 55.25
B194: 2025-12-16 | C194: 12 | D194: 0.01 | E194: 12.01 | F194: 28.64 | G194: 5.16 | H194: 33.8 | I194: 29.81 | J194: 5.16 | K194: 34.97 | L194: 54.2 | M194: 1.03 | N194: 55.23
B195: 2025-12-17 | C195: 12 | D195: 0.01 | E195: 12.01 | F195: 28.64 | G195: 5 | H195: 33.64 | I195: 29.81 | J195: 5 | K195: 34.81 | L195: 54.2 | M195: 0.99 | N195: 55.19
B196: 2025-12-18 | C196: 12 | D196: 0.01 | E196: 12.01 | F196: 28.64 | G196: 4.93 | H196: 33.57 | I196: 29.81 | J196: 4.93 | K196: 34.74 | L196: 54.2 | M196: 0.99 | N196: 55.19
B197: 2025-12-19 | C197: 12 | D197: 0.01 | E197: 12.01 | F197: 28.64 | G197: 4.9 | H197: 33.54 | I197: 29.81 | J197: 4.9 | K197: 34.71 | L197: 54.2 | M197: 0.98 | N197: 55.18
B198: 2025-12-20 | C198: 12 | D198: 0.01 | E198: 12.01 | F198: 28.64 | G198: 4.81 | H198: 33.45 | I198: 29.81 | J198: 4.81 | K198: 34.62 | L198: 54.2 | M198: 0.95 | N198: 55.15
B199: 2025-12-21 | C199: 12 | D199: 0.01 | E199: 12.01 | F199: 28.64 | G199: 5.18 | H199: 33.82 | I199: 29.81 | J199: 5.18 | K199: 34.99 | L199: 54.2 | M199: 1.05 | N199: 55.25
B200: 2025-12-22 | C200: 12 | D200: 0.01 | E200: 12.01 | F200: 28.64 | G200: 4.98 | H200: 33.62 | I200: 29.81 | J200: 4.98 | K200: 34.79 | L200: 54.2 | M200: 0.99 | N200: 55.19
B201: 2025-12-23 | C201: 12 | D201: 0.01 | E201: 12.01 | F201: 28.64 | G201: 4.76 | H201: 33.4 | I201: 29.81 | J201: 4.76 | K201: 34.57 | L201: 54.2 | M201: 0.94 | N201: 55.14
B202: 2025-12-24 | C202: 12 | D202: 0.01 | E202: 12.01 | F202: 28.64 | G202: 4.15 | H202: 32.79 | I202: 29.81 | J202: 4.15 | K202: 33.96 | L202: 54.2 | M202: 0.81 | N202: 55.01
B203: 2025-12-25 | C203: 12 | D203: 0.01 | E203: 12.01 | F203: 28.64 | G203: 4.22 | H203: 32.86 | I203: 29.81 | J203: 4.22 | K203: 34.03 | L203: 54.2 | M203: 0.83 | N203: 55.03
B204: 2025-12-26 | C204: 12 | D204: 0.01 | E204: 12.01 | F204: 28.64 | G204: 5.06 | H204: 33.7 | I204: 29.81 | J204: 5.06 | K204: 34.87 | L204: 54.2 | M204: 1.01 | N204: 55.21
B205: 2025-12-27 | C205: 12 | D205: 0.01 | E205: 12.01 | F205: 28.64 | G205: 5.01 | H205: 33.65 | I205: 29.81 | J205: 5.01 | K205: 34.82 | L205: 54.2 | M205: 0.98 | N205: 55.18
B206: 2025-12-28 | C206: 12 | D206: 0.01 | E206: 12.01 | F206: 28.64 | G206: 5 | H206: 33.64 | I206: 29.81 | J206: 5 | K206: 34.81 | L206: 54.2 | M206: 0.98 | N206: 55.18
B207: 2025-12-29 | C207: 12 | D207: 0.01 | E207: 12.01 | F207: 28.64 | G207: 4.99 | H207: 33.63 | I207: 29.81 | J207: 4.99 | K207: 34.8 | L207: 54.2 | M207: 0.97 | N207: 55.17
B208: 2025-12-30 | C208: 12 | D208: 0.01 | E208: 12.01 | F208: 28.64 | G208: 5.02 | H208: 33.66 | I208: 29.81 | J208: 5.02 | K208: 34.83 | L208: 54.2 | M208: 0.97 | N208: 55.17
B209: 2025-12-31 | C209: 12 | D209: 0.01 | E209: 12.01 | F209: 28.64 | G209: 3.66 | H209: 32.3 | I209: 29.81 | J209: 3.66 | K209: 33.47 | L209: 54.2 | M209: 0.67 | N209: 54.87
B210: 2026-01-01 | C210: 12 | D210: 0.01 | E210: 12.01 | F210: 28.64 | G210: 5.13 | H210: 33.77 | I210: 29.81 | J210: 5.13 | K210: 34.94 | L210: 54.2 | M210: 1.01 | N210: 55.21
B211: 2026-01-02 | C211: 12 | D211: 0.01 | E211: 12.01 | F211: 28.64 | G211: 5.04 | H211: 33.68 | I211: 29.81 | J211: 5.04 | K211: 34.85 | L211: 54.2 | M211: 0.98 | N211: 55.18
B212: 2026-01-03 | C212: 12 | D212: 0.01 | E212: 12.01 | F212: 28.64 | G212: 5.13 | H212: 33.77 | I212: 29.81 | J212: 5.13 | K212: 34.94 | L212: 54.2 | M212: 0.99 | N212: 55.19
B213: 2026-01-04 | C213: 12 | D213: 0.01 | E213: 12.01 | F213: 28.64 | G213: 5.24 | H213: 33.88 | I213: 29.81 | J213: 5.24 | K213: 35.05 | L213: 54.2 | M213: 1.04 | N213: 55.24
... 86 more rows

Sheet FY26 FACC
B1: Cell colour meanings
B2: Input cell
B3: Calculation cell
B5: Calculation of the Forecast Average Combined Charge (FACC)
B6: FY26 ACC using Average Combined Charge (from 1 July 2025 to 31 March 2026) and FACC (for 1 April 2026 to 30 June 2026)
B7: Note 1: As per clause 2D.2.2(e)(i) of the SAU, the FY26 ACC (from 1 July 2025 to 30 June 2026), as reflected in the WAPC Price & Quantity tab, is calculated using (i) the Average Combined Charge for the period 1 July 2025 to 31 March 2026; and (ii) the FACC for the period 1 April 2026 to 30 June 2026. For each Bundled TC-4 Offer, the FY26 ACC is the sum of: (a) the Average Combined Charge (refer to the FY26 ACC tab) multiplied by 274/365 (representing the number of days between 1 July 2025 and 31 March 2026, as a proportion of the total number of days between 1 July 2025 and 30 June 2026); and (b) the FY26 FACC multiplied by 91/365 (representing the number of days between 1 April 2026 and 30 June 2026, as a proportion of the total number of days between 1 July 2025 and 30 June 2026).
C14: 12/1 Mbps (Basic Bundled Offer) | D14: 12/1 Mbps (Non-Basic Bundled Offer) | E14: 25/5 Mbps and 25/10 Mbps | F14: 50/20 Mbps and Up to 100/Up to 20 Mbps
B15: FY26 ACC 1 July 2025 - 30 June 2026 | C15: =ROUND(INDEX('FY26 ACC'!$C$18:$F$18,,MATCH(C14,'FY26 ACC'!$C$17:$F$17,0))*(274/365)+INDEX($C$37:$F$37,,MATCH(C14,$C$36:$F$36,0))*(91/365),2) -> 12.01 | D15: =ROUND(INDEX('FY26 ACC'!$C$18:$F$18,,MATCH(D14,'FY26 ACC'!$C$17:$F$17,0))*(274/365)+INDEX($C$37:$F$37,,MATCH(D14,$C$36:$F$36,0))*(91/365),2) -> 33.9 | E15: =ROUND(INDEX('FY26 ACC'!$C$18:$F$18,,MATCH(E14,'FY26 ACC'!$C$17:$F$17,0))*(274/365)+INDEX($C$37:$F$37,,MATCH(E14,$C$36:$F$36,0))*(91/365),2) -> 35.07 | F15: =ROUND(INDEX('FY26 ACC'!$C$18:$F$18,,MATCH(F14,'FY26 ACC'!$C$17:$F$17,0))*(274/365)+INDEX($C$37:$F$37,,MATCH(F14,$C$36:$F$36,0))*(91/365),2) -> 55.26
B18: FY26 FACC
B19: Note 2: The forecast average of the Average Daily AVC Overage Charge is provided for each Bundled TC-4 Offer Group, where the Bundled TC-4 Offer Groups are (i) 12/1 Mbps (Basic Bundled Offer); (ii) 12/1 Mbps (Non-Basic Bundled Offer), 25/5 Mbps and 25/10 Mbps; and (iii) 50/20 Mbps and Up to 100/Up to 20 Mbps. Note 3: If daily usage on the 12/1 Mbps (Basic Bundled Offer) exceeds 0.1 Mbps, the charge will revert to the rate for the 12/1 Mbps (Non-Basic Bundled Offer). Note 4: From FY27, the CVC TC-4 (non-Satellite) price will be $0. Accordingly, the Bundled TC-4 Offers in FY26 will transition to Flat-Rate Offers in FY27, as per clause 2B.3.1(d) of the SAU. Note 5: There are separate offers for each of the 12/1 Mbps (Basic Bundled Offer), 12/1 Mbps (Non-Basic Bundled Offer), 25/5 Mbps, 25/10 Mbps, and 50/20 Mbps speed tiers on each relevant access technology, as well as a separate offer for the Up to 100/Up to 20 Mbps bandwidth profile. For each such offer, nbn has forecast the proportion of AVCs that fall within the three categories specified in clause 2F.4.2(a)(ii)(A)-(C) of the SAU. These categories are referred to as “Floor”, “In between” and “Ceiling”, and collectively referred to as "Overage Groups". In developing such forecast proportions for each relevant offer, nbn has used forecasts of the Average Daily AVC Overage Charge calculated across all offers sharing the same forecast fixed bundled price and CVC inclusion. Accordingly, the proportions of AVCs subject to each Bundled TC-4 Offer that fall within each of the categories in clause 2F.4.2(a)(ii)(A)-(C) of the SAU are the same across Bundled TC-4 Offers that share the same forecast fixed bundled price and CVC inclusion. Note 6: In accordance with clause 2F.4.2(a)(ii) of the SAU, nbn forecasts the proportion of AVC TC-4s for each Bundled TC-4 Offer that will fall into the three Overage Groups for each day within the specified period for which the FACC is calculated. This forecast proportion is based on forecast monthly utilisation (such that the proportion for each day is the same across each month). For informational purposes, the table below shows the forecast average proportion of AVC TC-4s for each Bundled TC-4 Offer that will fall into each Overage Group, averaged over the specified periods (i.e., 1 April 2026 to 30 June 2026).
B36: FACC | C36: 12/1 Mbps (Basic Bundled Offer) | D36: 12/1 Mbps (Non-Basic Bundled Offer) | E36: 25/5 Mbps and 25/10 Mbps | F36: 50/20 Mbps and Up to 100/Up to 20 Mbps
B37: 1 April 2026 - 30 June 2026 (Q4 FY26) | C37: =C43+E56 -> 12.01 | D37: =C46+E57 -> 34.31 | E37: =C49+E57 -> 35.48 | F37: =C52+E58 -> 55.34
C40: 1 April 2026 - 30 June 2026 (Q4 FY26)
C41: Forecast Avg. Monthly Price in Tariff List | D41: Overage Group | E41: Forecast Avg. Daily AVC Overage Charge | F41: Avg. Proportion of AVCs in Overage Group
B42: 12/1 Mbps (Basic Bundled Offer) Bundled Offer Group 1 | D42: Floor | E42: n/a | F42: n/a
C43: 12 | D43: In between | E43: 0.01 | F43: 1
D44: Ceiling | E44: n/a | F44: n/a
B45: 12/1 Mbps (Non-Basic Bundled Offer) Bundled Offer Group 2 | D45: Floor | E45: 0 | F45: 0.01619561174
C46: 28.64 | D46: In between | E46: 3 | F46: 0.9729362424
D47: Ceiling | E47: 29.89 | F47: 0.01086814588
B48: 25/5 Mbps and 25/10 Mbps Bundled Offer Group 2 | D48: Floor | E48: 0 | F48: 0.4149002355
C49: 29.81 | D49: In between | E49: 8.41 | F49: 0.5373970495
D50: Ceiling | E50: 28.72 | F50: 0.04770271502
B51: 50/20 Mbps and Up to 100/Up to 20 Mbps Bundled Offer Group 3 | D51: Floor | E51: 0 | F51: 0.6957620549
C52: 54.2 | D52: In between | E52: 2.06 | F52: 0.07717819935
D53: Ceiling | E53: 4.33 | F53: 0.2270597457
B55: Bundled TC-4 Offer Group | E55: Forecast Avg. Daily AVC Overage Charge
B56: Bundled Offer Group 1 | E56: 0.01
B57: Bundled Offer Group 2 | E57: 5.67
B58: Bundled Offer Group 3 | E58: 1.14
B60: CVC TC-4 (non-Satellite) Price (FY26) | C60: 3.5
B61: Bundled Offer Ceiling (FY26) | C61: =_xlfn.XLOOKUP("AVC TC-4 500/50 Mbps",'WAPC Price & Quantity'!$C:$C,'WAPC Price & Quantity'!$F:$F) -> 58.53
B64: Lookup table
B65: Note 7: The following lookup table supports the functionality of this model.
C67: Tariff List Table References | D67: WAPC Charge Component | E67: Access Network
B68: 12/1 Mbps (Basic Bundled Offer) | C68: 1.3 Bundled TC-4 Offers | D68: AVC TC-4 12/1 Mbps (Basic Bundled Offer) | E68: Fibre, FTTB, FTTN, FTTC, HFC
B69: 12/1 Mbps (Non-Basic Bundled Offer) | C69: 1.3 Bundled TC-4 Offers | D69: AVC TC-4 12/1 Mbps | E69: Fibre, FTTB, FTTN, FTTC, HFC, Wireless
B70: 25/5 Mbps and 25/10 Mbps | C70: 1.3 Bundled TC-4 Offers | D70: AVC TC-4 25/5 Mbps | E70: Fibre, FTTB, FTTN, FTTC, HFC, Wireless
B71: 25/5 Mbps and 25/10 Mbps | C71: 1.3 Bundled TC-4 Offers | D71: AVC TC-4 25/5 Mbps | E71: Fibre, FTTB, FTTN, FTTC, HFC
B72: 25/5 Mbps and 25/10 Mbps | C72: 1.3 Bundled TC-4 Offers | D72: AVC TC-4 25/5 Mbps | E72: Wireless
B73: 25/5 Mbps and 25/10 Mbps | C73: 1.3 Bundled TC-4 Offers | D73: AVC TC-4 25/5-10 Mbps | E73: FTTB, FTTN
B74: 25/5 Mbps and 25/10 Mbps | C74: 1.3 Bundled TC-4 Offers | D74: AVC TC-4 25/10 Mbps | E74: Fibre, FTTC, HFC
B75: 50/20 Mbps and Up to 100/Up to 20 Mbps | C75: 1.3 Bundled TC-4 Offers | D75: AVC TC-4 25-50/5-20 Mbps | E75: FTTB, FTTN
B76: 50/20 Mbps and Up to 100/Up to 20 Mbps | C76: 1.3 Bundled TC-4 Offers | D76: AVC TC-4 50/20 Mbps | E76: Fibre, FTTC, HFC
B77: 50/20 Mbps and Up to 100/Up to 20 Mbps | C77: 1.3 Bundled TC-4 Offers | D77: AVC TC-4 up to 100/up to 20 Mbps | E77: Wireless
B78: 25/5 Mbps and 25/10 Mbps | C78: 1.4 Bundled TC-4 Offers: Smart Places | D78: Smart Places - AVC TC-4 25/10 Mbps | E78: Fibre
B79: 50/20 Mbps and Up to 100/Up to 20 Mbps | C79: 1.4 Bundled TC-4 Offers: Smart Places | D79: Smart Places - AVC TC-4 50/20 Mbps | E79: Fibre

Sheet FY25 Average Combined Charges
B1: Cell colour meanings
B2: Input cell
B3: Calculation cell
B5: Calculation of the Average Combined Charges for the period 1 July 2024 to 30 June 2025
B6: Note 1: The Average Daily AVC Overage Charge is calculated for each Bundled TC-4 Offer Group, where the Bundled TC-4 Offer Groups are (i) 12/1 Mbps (Basic Bundled Offer); (ii) 12/1 Mbps (Non-Basic Bundled Offer), 25/5 Mbps and 25/10 Mbps; and (iii) 50/20 Mbps and Up to 100/Up to 20 Mbps. Note 2: There are separate offers for each of the 12/1 Mbps (Basic Bundled Offer), 12/1 Mbps (Non-Basic Bundled Offer), 25/5 Mbps, 25/10 Mbps, and 50/20 Mbps speed tiers on each relevant access technology, as well as a separate offer for the Up to 100/Up to 20 Mbps bandwidth profile. The calculations shown in the table below group each of the individual offers across their respective access technologies, since these have the same Bundled Price and Daily Combined Charge, and are within the same Bundled TC-4 Offer Group for which an Average Daily AVC Overage Charge is calculated. For example, the 12/1 Mbps (Basic Bundled Offer) item reflects the 12/1 Mbps (Basic Bundled Offer) on the FTTP, FTTB, FTTN, FTTC, and HFC access technologies.
C15: Bundled TC-4 Offer
C16: 12/1 Mbps (Basic Bundled Offer) | D16: 12/1 Mbps (Non-Basic Bundled Offer) | E16: 25/5 Mbps and 25/10 Mbps | F16: 50/20 Mbps and Up to 100/Up to 20 Mbps
B17: Average Combined Charge (1 July 2024 - 30 June 2025) | C17: =ROUND(SUM($E$24:$E$388)/COUNT($B$24:$B$388),2) -> 12.01 | D17: =ROUND(SUM($H$24:$H$388)/COUNT($B$24:$B$388),2) -> 32.68 | E17: =ROUND(SUM($K$24:$K$388)/COUNT($B$24:$B$388),2) -> 34.07 | F17: =ROUND(SUM($N$24:$N$388)/COUNT($B$24:$B$388),2) -> 53.62
B19: Calculation of the Daily Combined Charge (1 July 2024 - 30 June 2025)
C21: Bundled TC-4 Offer
C22: 12/1 Mbps (Basic Bundled Offer) | F22: 12/1 Mbps (Non-Basic Bundled Offer) | I22: 25/5 Mbps and 25/10 Mbps | L22: 50/20 Mbps and Up to 100/ Up to 20 Mbps
B23: Date | C23: Bundled Price | D23: Average Daily AVC Overage Charge | E23: Daily Combined Charge | F23: Bundled Price | G23: Average Daily AVC Overage Charge | H23: Daily Combined Charge | I23: Bundled Price | J23: Average Daily AVC Overage Charge | K23: Daily Combined Charge | L23: Bundled Price | M23: Average Daily AVC Overage Charge | N23: Daily Combined Charge
B24: 2024-07-01 | C24: 12 | D24: 0.01 | E24: =SUM(C24:D24) -> 12.01 | F24: 26.85 | G24: 5.85 | H24: =SUM(F24:G24) -> 32.7 | I24: 28.24 | J24: 5.85 | K24: =SUM(I24:J24) -> 34.09 | L24: 52.52 | M24: 1.1 | N24: =SUM(L24:M24) -> 53.62
B25: 2024-07-02 | C25: 12 | D25: 0.01 | E25: =SUM(C25:D25) -> 12.01 | F25: 26.85 | G25: 5.77 | H25: 32.62 | I25: 28.24 | J25: 5.77 | K25: 34.01 | L25: 52.52 | M25: 1.08 | N25: 53.6
B26: 2024-07-03 | C26: 12 | D26: 0.01 | E26: 12.01 | F26: 26.85 | G26: 5.68 | H26: 32.53 | I26: 28.24 | J26: 5.68 | K26: 33.92 | L26: 52.52 | M26: 1.06 | N26: 53.58
B27: 2024-07-04 | C27: 12 | D27: 0.01 | E27: 12.01 | F27: 26.85 | G27: 5.79 | H27: 32.64 | I27: 28.24 | J27: 5.79 | K27: 34.03 | L27: 52.52 | M27: 1.1 | N27: 53.62
B28: 2024-07-05 | C28: 12 | D28: 0.01 | E28: 12.01 | F28: 26.85 | G28: 5.8 | H28: 32.65 | I28: 28.24 | J28: 5.8 | K28: 34.04 | L28: 52.52 | M28: 1.11 | N28: 53.63
B29: 2024-07-06 | C29: 12 | D29: 0.01 | E29: 12.01 | F29: 26.85 | G29: 6.18 | H29: 33.03 | I29: 28.24 | J29: 6.18 | K29: 34.42 | L29: 52.52 | M29: 1.18 | N29: 53.7
B30: 2024-07-07 | C30: 12 | D30: 0.01 | E30: 12.01 | F30: 26.85 | G30: 5.93 | H30: 32.78 | I30: 28.24 | J30: 5.93 | K30: 34.17 | L30: 52.52 | M30: 1.14 | N30: 53.66
B31: 2024-07-08 | C31: 12 | D31: 0.01 | E31: 12.01 | F31: 26.85 | G31: 5.75 | H31: 32.6 | I31: 28.24 | J31: 5.75 | K31: 33.99 | L31: 52.52 | M31: 1.08 | N31: 53.6
B32: 2024-07-09 | C32: 12 | D32: 0.01 | E32: 12.01 | F32: 26.85 | G32: 5.66 | H32: 32.51 | I32: 28.24 | J32: 5.66 | K32: 33.9 | L32: 52.52 | M32: 1.06 | N32: 53.58
B33: 2024-07-10 | C33: 12 | D33: 0.01 | E33: 12.01 | F33: 26.85 | G33: 5.74 | H33: 32.59 | I33: 28.24 | J33: 5.74 | K33: 33.98 | L33: 52.52 | M33: 1.07 | N33: 53.59
B34: 2024-07-11 | C34: 12 | D34: 0.01 | E34: 12.01 | F34: 26.85 | G34: 5.78 | H34: 32.63 | I34: 28.24 | J34: 5.78 | K34: 34.02 | L34: 52.52 | M34: 1.09 | N34: 53.61
B35: 2024-07-12 | C35: 12 | D35: 0.01 | E35: 12.01 | F35: 26.85 | G35: 5.7 | H35: 32.55 | I35: 28.24 | J35: 5.7 | K35: 33.94 | L35: 52.52 | M35: 1.08 | N35: 53.6
B36: 2024-07-13 | C36: 12 | D36: 0 | E36: 12 | F36: 26.85 | G36: 6.1 | H36: 32.95 | I36: 28.24 | J36: 6.1 | K36: 34.34 | L36: 52.52 | M36: 1.15 | N36: 53.67
B37: 2024-07-14 | C37: 12 | D37: 0.01 | E37: 12.01 | F37: 26.85 | G37: 5.87 | H37: 32.72 | I37: 28.24 | J37: 5.87 | K37: 34.11 | L37: 52.52 | M37: 1.12 | N37: 53.64
B38: 2024-07-15 | C38: 12 | D38: 0.01 | E38: 12.01 | F38: 26.85 | G38: 5.71 | H38: 32.56 | I38: 28.24 | J38: 5.71 | K38: 33.95 | L38: 52.52 | M38: 1.06 | N38: 53.58
B39: 2024-07-16 | C39: 12 | D39: 0.01 | E39: 12.01 | F39: 26.85 | G39: 5.67 | H39: 32.52 | I39: 28.24 | J39: 5.67 | K39: 33.91 | L39: 52.52 | M39: 1.05 | N39: 53.57
B40: 2024-07-17 | C40: 12 | D40: 0.01 | E40: 12.01 | F40: 26.85 | G40: 5.46 | H40: 32.31 | I40: 28.24 | J40: 5.46 | K40: 33.7 | L40: 52.52 | M40: 1.04 | N40: 53.56
B41: 2024-07-18 | C41: 12 | D41: 0.01 | E41: 12.01 | F41: 26.85 | G41: 5.72 | H41: 32.57 | I41: 28.24 | J41: 5.72 | K41: 33.96 | L41: 52.52 | M41: 1.06 | N41: 53.58
B42: 2024-07-19 | C42: 12 | D42: 0 | E42: 12 | F42: 26.85 | G42: 5.85 | H42: 32.7 | I42: 28.24 | J42: 5.85 | K42: 34.09 | L42: 52.52 | M42: 1.12 | N42: 53.64
B43: 2024-07-20 | C43: 12 | D43: 0 | E43: 12 | F43: 26.85 | G43: 6.1 | H43: 32.95 | I43: 28.24 | J43: 6.1 | K43: 34.34 | L43: 52.52 | M43: 1.18 | N43: 53.7
B44: 2024-07-21 | C44: 12 | D44: 0.01 | E44: 12.01 | F44: 26.85 | G44: 6.12 | H44: 32.97 | I44: 28.24 | J44: 6.12 | K44: 34.36 | L44: 52.52 | M44: 1.2 | N44: 53.72
B45: 2024-07-22 | C45: 12 | D45: 0.01 | E45: 12.01 | F45: 26.85 | G45: 5.78 | H45: 32.63 | I45: 28.24 | J45: 5.78 | K45: 34.02 | L45: 52.52 | M45: 1.07 | N45: 53.59
B46: 2024-07-23 | C46: 12 | D46: 0.01 | E46: 12.01 | F46: 26.85 | G46: 5.89 | H46: 32.74 | I46: 28.24 | J46: 5.89 | K46: 34.13 | L46: 52.52 | M46: 1.13 | N46: 53.65
B47: 2024-07-24 | C47: 12 | D47: 0.01 | E47: 12.01 | F47: 26.85 | G47: 5.67 | H47: 32.52 | I47: 28.24 | J47: 5.67 | K47: 33.91 | L47: 52.52 | M47: 1.05 | N47: 53.57
B48: 2024-07-25 | C48: 12 | D48: 0.01 | E48: 12.01 | F48: 26.85 | G48: 5.63 | H48: 32.48 | I48: 28.24 | J48: 5.63 | K48: 33.87 | L48: 52.52 | M48: 1.05 | N48: 53.57
B49: 2024-07-26 | C49: 12 | D49: 0 | E49: 12 | F49: 26.85 | G49: 5.72 | H49: 32.57 | I49: 28.24 | J49: 5.72 | K49: 33.96 | L49: 52.52 | M49: 1.11 | N49: 53.63
B50: 2024-07-27 | C50: 12 | D50: 0 | E50: 12 | F50: 26.85 | G50: 6 | H50: 32.85 | I50: 28.24 | J50: 6 | K50: 34.24 | L50: 52.52 | M50: 1.18 | N50: 53.7
B51: 2024-07-28 | C51: 12 | D51: 0.01 | E51: 12.01 | F51: 26.85 | G51: 6.32 | H51: 33.17 | I51: 28.24 | J51: 6.32 | K51: 34.56 | L51: 52.52 | M51: 1.28 | N51: 53.8
B52: 2024-07-29 | C52: 12 | D52: 0.01 | E52: 12.01 | F52: 26.85 | G52: 6.14 | H52: 32.99 | I52: 28.24 | J52: 6.14 | K52: 34.38 | L52: 52.52 | M52: 1.2 | N52: 53.72
B53: 2024-07-30 | C53: 12 | D53: 0.01 | E53: 12.01 | F53: 26.85 | G53: 6.02 | H53: 32.87 | I53: 28.24 | J53: 6.02 | K53: 34.26 | L53: 52.52 | M53: 1.17 | N53: 53.69
B54: 2024-07-31 | C54: 12 | D54: 0.01 | E54: 12.01 | F54: 26.85 | G54: 5.91 | H54: 32.76 | I54: 28.24 | J54: 5.91 | K54: 34.15 | L54: 52.52 | M54: 1.14 | N54: 53.66
B55: 2024-08-01 | C55: 12 | D55: 0.01 | E55: 12.01 | F55: 26.85 | G55: 5.85 | H55: 32.7 | I55: 28.24 | J55: 5.85 | K55: 34.09 | L55: 52.52 | M55: 1.14 | N55: 53.66
B56: 2024-08-02 | C56: 12 | D56: 0 | E56: 12 | F56: 26.85 | G56: 6 | H56: 32.85 | I56: 28.24 | J56: 6 | K56: 34.24 | L56: 52.52 | M56: 1.19 | N56: 53.71
B57: 2024-08-03 | C57: 12 | D57: 0 | E57: 12 | F57: 26.85 | G57: 6.08 | H57: 32.93 | I57: 28.24 | J57: 6.08 | K57: 34.32 | L57: 52.52 | M57: 1.19 | N57: 53.71
B58: 2024-08-04 | C58: 12 | D58: 0.01 | E58: 12.01 | F58: 26.85 | G58: 6.16 | H58: 33.01 | I58: 28.24 | J58: 6.16 | K58: 34.4 | L58: 52.52 | M58: 1.23 | N58: 53.75
B59: 2024-08-05 | C59: 12 | D59: 0.01 | E59: 12.01 | F59: 26.85 | G59: 5.97 | H59: 32.82 | I59: 28.24 | J59: 5.97 | K59: 34.21 | L59: 52.52 | M59: 1.15 | N59: 53.67
B60: 2024-08-06 | C60: 12 | D60: 0.01 | E60: 12.01 | F60: 26.85 | G60: 6.05 | H60: 32.9 | I60: 28.24 | J60: 6.05 | K60: 34.29 | L60: 52.52 | M60: 1.19 | N60: 53.71
B61: 2024-08-07 | C61: 12 | D61: 0.01 | E61: 12.01 | F61: 26.85 | G61: 5.8 | H61: 32.65 | I61: 28.24 | J61: 5.8 | K61: 34.04 | L61: 52.52 | M61: 1.12 | N61: 53.64
B62: 2024-08-08 | C62: 12 | D62: 0.01 | E62: 12.01 | F62: 26.85 | G62: 5.82 | H62: 32.67 | I62: 28.24 | J62: 5.82 | K62: 34.06 | L62: 52.52 | M62: 1.12 | N62: 53.64
B63: 2024-08-09 | C63: 12 | D63: 0 | E63: 12 | F63: 26.85 | G63: 5.89 | H63: 32.74 | I63: 28.24 | J63: 5.89 | K63: 34.13 | L63: 52.52 | M63: 1.16 | N63: 53.68
B64: 2024-08-10 | C64: 12 | D64: 0 | E64: 12 | F64: 26.85 | G64: 6.07 | H64: 32.92 | I64: 28.24 | J64: 6.07 | K64: 34.31 | L64: 52.52 | M64: 1.18 | N64: 53.7
B65: 2024-08-11 | C65: 12 | D65: 0.01 | E65: 12.01 | F65: 26.85 | G65: 5.99 | H65: 32.84 | I65: 28.24 | J65: 5.99 | K65: 34.23 | L65: 52.52 | M65: 1.18 | N65: 53.7
B66: 2024-08-12 | C66: 12 | D66: 0.01 | E66: 12.01 | F66: 26.85 | G66: 5.56 | H66: 32.41 | I66: 28.24 | J66: 5.56 | K66: 33.8 | L66: 52.52 | M66: 1.04 | N66: 53.56
B67: 2024-08-13 | C67: 12 | D67: 0.01 | E67: 12.01 | F67: 26.85 | G67: 5.63 | H67: 32.48 | I67: 28.24 | J67: 5.63 | K67: 33.87 | L67: 52.52 | M67: 1.04 | N67: 53.56
B68: 2024-08-14 | C68: 12 | D68: 0.01 | E68: 12.01 | F68: 26.85 | G68: 5.63 | H68: 32.48 | I68: 28.24 | J68: 5.63 | K68: 33.87 | L68: 52.52 | M68: 1.04 | N68: 53.56
B69: 2024-08-15 | C69: 12 | D69: 0.01 | E69: 12.01 | F69: 26.85 | G69: 5.73 | H69: 32.58 | I69: 28.24 | J69: 5.73 | K69: 33.97 | L69: 52.52 | M69: 1.08 | N69: 53.6
B70: 2024-08-16 | C70: 12 | D70: 0.01 | E70: 12.01 | F70: 26.85 | G70: 5.94 | H70: 32.79 | I70: 28.24 | J70: 5.94 | K70: 34.18 | L70: 52.52 | M70: 1.15 | N70: 53.67
B71: 2024-08-17 | C71: 12 | D71: 0 | E71: 12 | F71: 26.85 | G71: 6.05 | H71: 32.9 | I71: 28.24 | J71: 6.05 | K71: 34.29 | L71: 52.52 | M71: 1.16 | N71: 53.68
B72: 2024-08-18 | C72: 12 | D72: 0.01 | E72: 12.01 | F72: 26.85 | G72: 5.8 | H72: 32.65 | I72: 28.24 | J72: 5.8 | K72: 34.04 | L72: 52.52 | M72: 1.11 | N72: 53.63
B73: 2024-08-19 | C73: 12 | D73: 0.01 | E73: 12.01 | F73: 26.85 | G73: 5.54 | H73: 32.39 | I73: 28.24 | J73: 5.54 | K73: 33.78 | L73: 52.52 | M73: 1.02 | N73: 53.54
B74: 2024-08-20 | C74: 12 | D74: 0.01 | E74: 12.01 | F74: 26.85 | G74: 5.5 | H74: 32.35 | I74: 28.24 | J74: 5.5 | K74: 33.74 | L74: 52.52 | M74: 1.01 | N74: 53.53
B75: 2024-08-21 | C75: 12 | D75: 0.01 | E75: 12.01 | F75: 26.85 | G75: 5.45 | H75: 32.3 | I75: 28.24 | J75: 5.45 | K75: 33.69 | L75: 52.52 | M75: 1 | N75: 53.52
B76: 2024-08-22 | C76: 12 | D76: 0.01 | E76: 12.01 | F76: 26.85 | G76: 5.57 | H76: 32.42 | I76: 28.24 | J76: 5.57 | K76: 33.81 | L76: 52.52 | M76: 1.03 | N76: 53.55
B77: 2024-08-23 | C77: 12 | D77: 0.01 | E77: 12.01 | F77: 26.85 | G77: 5.8 | H77: 32.65 | I77: 28.24 | J77: 5.8 | K77: 34.04 | L77: 52.52 | M77: 1.1 | N77: 53.62
B78: 2024-08-24 | C78: 12 | D78: 0 | E78: 12 | F78: 26.85 | G78: 5.86 | H78: 32.71 | I78: 28.24 | J78: 5.86 | K78: 34.1 | L78: 52.52 | M78: 1.11 | N78: 53.63
B79: 2024-08-25 | C79: 12 | D79: 0.01 | E79: 12.01 | F79: 26.85 | G79: 5.97 | H79: 32.82 | I79: 28.24 | J79: 5.97 | K79: 34.21 | L79: 52.52 | M79: 1.16 | N79: 53.68
B80: 2024-08-26 | C80: 12 | D80: 0.01 | E80: 12.01 | F80: 26.85 | G80: 5.51 | H80: 32.36 | I80: 28.24 | J80: 5.51 | K80: 33.75 | L80: 52.52 | M80: 1.01 | N80: 53.53
B81: 2024-08-27 | C81: 12 | D81: 0.01 | E81: 12.01 | F81: 26.85 | G81: 5.47 | H81: 32.32 | I81: 28.24 | J81: 5.47 | K81: 33.71 | L81: 52.52 | M81: 1 | N81: 53.52
B82: 2024-08-28 | C82: 12 | D82: 0.01 | E82: 12.01 | F82: 26.85 | G82: 5.54 | H82: 32.39 | I82: 28.24 | J82: 5.54 | K82: 33.78 | L82: 52.52 | M82: 1.01 | N82: 53.53
B83: 2024-08-29 | C83: 12 | D83: 0.01 | E83: 12.01 | F83: 26.85 | G83: 5.71 | H83: 32.56 | I83: 28.24 | J83: 5.71 | K83: 33.95 | L83: 52.52 | M83: 1.08 | N83: 53.6
B84: 2024-08-30 | C84: 12 | D84: 0 | E84: 12 | F84: 26.85 | G84: 5.77 | H84: 32.62 | I84: 28.24 | J84: 5.77 | K84: 34.01 | L84: 52.52 | M84: 1.09 | N84: 53.61
B85: 2024-08-31 | C85: 12 | D85: 0 | E85: 12 | F85: 26.85 | G85: 5.79 | H85: 32.64 | I85: 28.24 | J85: 5.79 | K85: 34.03 | L85: 52.52 | M85: 1.1 | N85: 53.62
B86: 2024-09-01 | C86: 12 | D86: 0.01 | E86: 12.01 | F86: 26.85 | G86: 5.7 | H86: 32.55 | I86: 28.24 | J86: 5.7 | K86: 33.94 | L86: 52.52 | M86: 1.09 | N86: 53.61
B87: 2024-09-02 | C87: 12 | D87: 0.01 | E87: 12.01 | F87: 26.85 | G87: 5.57 | H87: 32.42 | I87: 28.24 | J87: 5.57 | K87: 33.81 | L87: 52.52 | M87: 1.04 | N87: 53.56
B88: 2024-09-03 | C88: 12 | D88: 0.01 | E88: 12.01 | F88: 26.85 | G88: 5.5 | H88: =SUM(F88:G88) -> 32.35 | I88: 28.24 | J88: 5.5 | K88: =SUM(I88:J88) -> 33.74 | L88: 52.52 | M88: 1.01 | N88: =SUM(L88:M88) -> 53.53
B89: 2024-09-04 | C89: 12 | D89: 0.01 | E89: =SUM(C89:D89) -> 12.01 | F89: 26.85 | G89: 5.68 | H89: 32.53 | I89: 28.24 | J89: 5.68 | K89: 33.92 | L89: 52.52 | M89: 1.07 | N89: 53.59
B90: 2024-09-05 | C90: 12 | D90: 0.01 | E90: 12.01 | F90: 26.85 | G90: 5.75 | H90: 32.6 | I90: 28.24 | J90: 5.75 | K90: 33.99 | L90: 52.52 | M90: 1.09 | N90: 53.61
B91: 2024-09-06 | C91: 12 | D91: 0.01 | E91: 12.01 | F91: 26.85 | G91: 5.73 | H91: 32.58 | I91: 28.24 | J91: 5.73 | K91: 33.97 | L91: 52.52 | M91: 1.1 | N91: 53.62
B92: 2024-09-07 | C92: 12 | D92: 0 | E92: 12 | F92: 26.85 | G92: 5.74 | H92: 32.59 | I92: 28.24 | J92: 5.74 | K92: 33.98 | L92: 52.52 | M92: 1.09 | N92: 53.61
B93: 2024-09-08 | C93: 12 | D93: 0.01 | E93: 12.01 | F93: 26.85 | G93: 5.7 | H93: 32.55 | I93: 28.24 | J93: 5.7 | K93: 33.94 | L93: 52.52 | M93: 1.1 | N93: 53.62
B94: 2024-09-09 | C94: 12 | D94: 0.01 | E94: 12.01 | F94: 26.85 | G94: 5.55 | H94: 32.4 | I94: 28.24 | J94: 5.55 | K94: 33.79 | L94: 52.52 | M94: 1.03 | N94: 53.55
B95: 2024-09-10 | C95: 12 | D95: 0.01 | E95: 12.01 | F95: 26.85 | G95: 5.54 | H95: 32.39 | I95: 28.24 | J95: 5.54 | K95: 33.78 | L95: 52.52 | M95: 1.02 | N95: 53.54
B96: 2024-09-11 | C96: 12 | D96: 0.01 | E96: 12.01 | F96: 26.85 | G96: 5.52 | H96: 32.37 | I96: 28.24 | J96: 5.52 | K96: 33.76 | L96: 52.52 | M96: 1.02 | N96: 53.54
B97: 2024-09-12 | C97: 12 | D97: 0.01 | E97: 12.01 | F97: 26.85 | G97: 5.58 | H97: 32.43 | I97: 28.24 | J97: 5.58 | K97: 33.82 | L97: 52.52 | M97: 1.04 | N97: 53.56
B98: 2024-09-13 | C98: 12 | D98: 0 | E98: 12 | F98: 26.85 | G98: 5.6 | H98: 32.45 | I98: 28.24 | J98: 5.6 | K98: 33.84 | L98: 52.52 | M98: 1.09 | N98: 53.61
B99: 2024-09-14 | C99: 12 | D99: 0 | E99: 12 | F99: 26.85 | G99: 5.71 | H99: 32.56 | I99: 28.24 | J99: 5.71 | K99: 33.95 | L99: 52.52 | M99: 1.11 | N99: 53.63
B100: 2024-09-15 | C100: 12 | D100: 0.01 | E100: 12.01 | F100: 26.85 | G100: 5.77 | H100: 32.62 | I100: 28.24 | J100: 5.77 | K100: 34.01 | L100: 52.52 | M100: 1.11 | N100: 53.63
B101: 2024-09-16 | C101: 12 | D101: 0.01 | E101: 12.01 | F101: 26.85 | G101: 5.55 | H101: 32.4 | I101: 28.24 | J101: 5.55 | K101: 33.79 | L101: 52.52 | M101: 1.02 | N101: 53.54
B102: 2024-09-17 | C102: 12 | D102: 0.01 | E102: 12.01 | F102: 26.85 | G102: 5.68 | H102: 32.53 | I102: 28.24 | J102: 5.68 | K102: 33.92 | L102: 52.52 | M102: 1.08 | N102: 53.6
B103: 2024-09-18 | C103: 12 | D103: 0.01 | E103: 12.01 | F103: 26.85 | G103: 5.61 | H103: 32.46 | I103: 28.24 | J103: 5.61 | K103: 33.85 | L103: 52.52 | M103: 1.04 | N103: 53.56
B104: 2024-09-19 | C104: 12 | D104: 0.01 | E104: 12.01 | F104: 26.85 | G104: 5.66 | H104: 32.51 | I104: 28.24 | J104: 5.66 | K104: 33.9 | L104: 52.52 | M104: 1.05 | N104: 53.57
B105: 2024-09-20 | C105: 12 | D105: 0.01 | E105: 12.01 | F105: 26.85 | G105: 5.66 | H105: 32.51 | I105: 28.24 | J105: 5.66 | K105: 33.9 | L105: 52.52 | M105: 1.1 | N105: 53.62
B106: 2024-09-21 | C106: 12 | D106: 0 | E106: 12 | F106: 26.85 | G106: 5.67 | H106: 32.52 | I106: 28.24 | J106: 5.67 | K106: 33.91 | L106: 52.52 | M106: 1.08 | N106: 53.6
B107: 2024-09-22 | C107: 12 | D107: 0.01 | E107: 12.01 | F107: 26.85 | G107: 5.72 | H107: 32.57 | I107: 28.24 | J107: 5.72 | K107: 33.96 | L107: 52.52 | M107: 1.09 | N107: 53.61
B108: 2024-09-23 | C108: 12 | D108: 0.01 | E108: 12.01 | F108: 26.85 | G108: 5.56 | H108: 32.41 | I108: 28.24 | J108: 5.56 | K108: 33.8 | L108: 52.52 | M108: 1.03 | N108: 53.55
B109: 2024-09-24 | C109: 12 | D109: 0.01 | E109: 12.01 | F109: 26.85 | G109: 5.59 | H109: 32.44 | I109: 28.24 | J109: 5.59 | K109: 33.83 | L109: 52.52 | M109: 1.03 | N109: 53.55
B110: 2024-09-25 | C110: 12 | D110: 0.01 | E110: 12.01 | F110: 26.85 | G110: 5.64 | H110: 32.49 | I110: 28.24 | J110: 5.64 | K110: 33.88 | L110: 52.52 | M110: 1.05 | N110: 53.57
B111: 2024-09-26 | C111: 12 | D111: 0.01 | E111: 12.01 | F111: 26.85 | G111: 5.55 | H111: 32.4 | I111: 28.24 | J111: 5.55 | K111: 33.79 | L111: 52.52 | M111: 1.03 | N111: 53.55
B112: 2024-09-27 | C112: 12 | D112: 0.01 | E112: 12.01 | F112: 26.85 | G112: 5.72 | H112: 32.57 | I112: 28.24 | J112: 5.72 | K112: 33.96 | L112: 52.52 | M112: 1.09 | N112: 53.61
B113: 2024-09-28 | C113: 12 | D113: 0 | E113: 12 | F113: 26.85 | G113: 5.66 | H113: 32.51 | I113: 28.24 | J113: 5.66 | K113: 33.9 | L113: 52.52 | M113: 1.07 | N113: 53.59
B114: 2024-09-29 | C114: 12 | D114: 0.01 | E114: 12.01 | F114: 26.85 | G114: 5.84 | H114: 32.69 | I114: 28.24 | J114: 5.84 | K114: 34.08 | L114: 52.52 | M114: 1.12 | N114: 53.64
B115: 2024-09-30 | C115: 12 | D115: 0.01 | E115: 12.01 | F115: 26.85 | G115: 5.64 | H115: 32.49 | I115: 28.24 | J115: 5.64 | K115: 33.88 | L115: 52.52 | M115: 1.05 | N115: 53.57
B116: 2024-10-01 | C116: 12 | D116: 0.01 | E116: 12.01 | F116: 26.85 | G116: 5.72 | H116: 32.57 | I116: 28.24 | J116: 5.72 | K116: 33.96 | L116: 52.52 | M116: 1.08 | N116: 53.6
B117: 2024-10-02 | C117: 12 | D117: 0 | E117: 12 | F117: 26.85 | G117: 5.7 | H117: 32.55 | I117: 28.24 | J117: 5.7 | K117: 33.94 | L117: 52.52 | M117: 1.06 | N117: 53.58
B118: 2024-10-03 | C118: 12 | D118: 0.01 | E118: 12.01 | F118: 26.85 | G118: 5.53 | H118: 32.38 | I118: 28.24 | J118: 5.53 | K118: 33.77 | L118: 52.52 | M118: 1.02 | N118: 53.54
B119: 2024-10-04 | C119: 12 | D119: 0.01 | E119: 12.01 | F119: 26.85 | G119: 5.6 | H119: 32.45 | I119: 28.24 | J119: 5.6 | K119: 33.84 | L119: 52.52 | M119: 1.02 | N119: 53.54
B120: 2024-10-05 | C120: 12 | D120: 0 | E120: 12 | F120: 26.85 | G120: 5.53 | H120: 32.38 | I120: 28.24 | J120: 5.53 | K120: 33.77 | L120: 52.52 | M120: 1.01 | N120: 53.53
B121: 2024-10-06 | C121: 12 | D121: 0.01 | E121: 12.01 | F121: 26.85 | G121: 5.42 | H121: 32.27 | I121: 28.24 | J121: 5.42 | K121: 33.66 | L121: 52.52 | M121: 1.03 | N121: 53.55
B122: 2024-10-07 | C122: 12 | D122: 0.01 | E122: 12.01 | F122: 26.85 | G122: 5.67 | H122: 32.52 | I122: 28.24 | J122: 5.67 | K122: 33.91 | L122: 52.52 | M122: 1.06 | N122: 53.58
B123: 2024-10-08 | C123: 12 | D123: 0.01 | E123: 12.01 | F123: 26.85 | G123: 5.67 | H123: 32.52 | I123: 28.24 | J123: 5.67 | K123: 33.91 | L123: 52.52 | M123: 1.04 | N123: 53.56
B124: 2024-10-09 | C124: 12 | D124: 0.01 | E124: 12.01 | F124: 26.85 | G124: 5.77 | H124: 32.62 | I124: 28.24 | J124: 5.77 | K124: 34.01 | L124: 52.52 | M124: 1.07 | N124: 53.59
B125: 2024-10-10 | C125: 12 | D125: 0.01 | E125: 12.01 | F125: 26.85 | G125: 5.55 | H125: 32.4 | I125: 28.24 | J125: 5.55 | K125: 33.79 | L125: 52.52 | M125: 1.02 | N125: 53.54
B126: 2024-10-11 | C126: 12 | D126: 0.01 | E126: 12.01 | F126: 26.85 | G126: 5.56 | H126: 32.41 | I126: 28.24 | J126: 5.56 | K126: 33.8 | L126: 52.52 | M126: 1.02 | N126: 53.54
B127: 2024-10-12 | C127: 12 | D127: 0 | E127: 12 | F127: 26.85 | G127: 5.7 | H127: 32.55 | I127: 28.24 | J127: 5.7 | K127: 33.94 | L127: 52.52 | M127: 1.06 | N127: 53.58
B128: 2024-10-13 | C128: 12 | D128: 0.01 | E128: 12.01 | F128: 26.85 | G128: 5.74 | H128: 32.59 | I128: 28.24 | J128: 5.74 | K128: 33.98 | L128: 52.52 | M128: 1.08 | N128: 53.6
B129: 2024-10-14 | C129: 12 | D129: 0.01 | E129: 12.01 | F129: 26.85 | G129: 5.54 | H129: 32.39 | I129: 28.24 | J129: 5.54 | K129: 33.78 | L129: 52.52 | M129: 1.02 | N129: 53.54
B130: 2024-10-15 | C130: 12 | D130: 0.01 | E130: 12.01 | F130: 26.85 | G130: 5.55 | H130: 32.4 | I130: 28.24 | J130: 5.55 | K130: 33.79 | L130: 52.52 | M130: 1.01 | N130: 53.53
B131: 2024-10-16 | C131: 12 | D131: 0.01 | E131: 12.01 | F131: 26.85 | G131: 5.48 | H131: 32.33 | I131: 28.24 | J131: 5.48 | K131: 33.72 | L131: 52.52 | M131: 1 | N131: 53.52
B132: 2024-10-17 | C132: 12 | D132: 0.01 | E132: 12.01 | F132: 26.85 | G132: 5.45 | H132: 32.3 | I132: 28.24 | J132: 5.45 | K132: 33.69 | L132: 52.52 | M132: 1 | N132: 53.52
B133: 2024-10-18 | C133: 12 | D133: 0.01 | E133: 12.01 | F133: 26.85 | G133: 5.72 | H133: 32.57 | I133: 28.24 | J133: 5.72 | K133: 33.96 | L133: 52.52 | M133: 1.08 | N133: 53.6
B134: 2024-10-19 | C134: 12 | D134: 0 | E134: 12 | F134: 26.85 | G134: 5.56 | H134: 32.41 | I134: 28.24 | J134: 5.56 | K134: 33.8 | L134: 52.52 | M134: 1.03 | N134: 53.55
B135: 2024-10-20 | C135: 12 | D135: 0.01 | E135: 12.01 | F135: 26.85 | G135: 5.68 | H135: 32.53 | I135: 28.24 | J135: 5.68 | K135: 33.92 | L135: 52.52 | M135: 1.07 | N135: 53.59
B136: 2024-10-21 | C136: 12 | D136: 0.01 | E136: 12.01 | F136: 26.85 | G136: 5.49 | H136: 32.34 | I136: 28.24 | J136: 5.49 | K136: 33.73 | L136: 52.52 | M136: 1.01 | N136: 53.53
B137: 2024-10-22 | C137: 12 | D137: 0.01 | E137: 12.01 | F137: 26.85 | G137: 5.46 | H137: 32.31 | I137: 28.24 | J137: 5.46 | K137: 33.7 | L137: 52.52 | M137: 0.99 | N137: 53.51
B138: 2024-10-23 | C138: 12 | D138: 0.01 | E138: 12.01 | F138: 26.85 | G138: 5.57 | H138: 32.42 | I138: 28.24 | J138: 5.57 | K138: 33.81 | L138: 52.52 | M138: 1.01 | N138: 53.53
B139: 2024-10-24 | C139: 12 | D139: 0.01 | E139: 12.01 | F139: 26.85 | G139: 5.56 | H139: 32.41 | I139: 28.24 | J139: 5.56 | K139: 33.8 | L139: 52.52 | M139: 1.02 | N139: 53.54
B140: 2024-10-25 | C140: 12 | D140: 0.01 | E140: 12.01 | F140: 26.85 | G140: 5.67 | H140: 32.52 | I140: 28.24 | J140: 5.67 | K140: 33.91 | L140: 52.52 | M140: 1.07 | N140: 53.59
B141: 2024-10-26 | C141: 12 | D141: 0 | E141: 12 | F141: 26.85 | G141: 5.53 | H141: 32.38 | I141: 28.24 | J141: 5.53 | K141: 33.77 | L141: 52.52 | M141: 1.02 | N141: 53.54
B142: 2024-10-27 | C142: 12 | D142: 0.01 | E142: 12.01 | F142: 26.85 | G142: 5.69 | H142: 32.54 | I142: 28.24 | J142: 5.69 | K142: 33.93 | L142: 52.52 | M142: 1.08 | N142: 53.6
B143: 2024-10-28 | C143: 12 | D143: 0.01 | E143: 12.01 | F143: 26.85 | G143: 5.61 | H143: 32.46 | I143: 28.24 | J143: 5.61 | K143: 33.85 | L143: 52.52 | M143: 1.03 | N143: 53.55
B144: 2024-10-29 | C144: 12 | D144: 0.01 | E144: 12.01 | F144: 26.85 | G144: 5.51 | H144: 32.36 | I144: 28.24 | J144: 5.51 | K144: 33.75 | L144: 52.52 | M144: 1 | N144: 53.52
B145: 2024-10-30 | C145: 12 | D145: 0.01 | E145: 12.01 | F145: 26.85 | G145: 5.57 | H145: 32.42 | I145: 28.24 | J145: 5.57 | K145: 33.81 | L145: 52.52 | M145: 1 | N145: 53.52
B146: 2024-10-31 | C146: 12 | D146: 0.01 | E146: 12.01 | F146: 26.85 | G146: 5.4 | H146: 32.25 | I146: 28.24 | J146: 5.4 | K146: 33.64 | L146: 52.52 | M146: 0.98 | N146: 53.5
B147: 2024-11-01 | C147: 12 | D147: 0.01 | E147: 12.01 | F147: 26.85 | G147: 5.51 | H147: 32.36 | I147: 28.24 | J147: 5.51 | K147: 33.75 | L147: 52.52 | M147: 1.01 | N147: 53.53
B148: 2024-11-02 | C148: 12 | D148: 0.01 | E148: 12.01 | F148: 26.85 | G148: 5.5 | H148: 32.35 | I148: 28.24 | J148: 5.5 | K148: 33.74 | L148: 52.52 | M148: 1.06 | N148: 53.58
B149: 2024-11-03 | C149: 12 | D149: 0.01 | E149: 12.01 | F149: 26.85 | G149: 5.73 | H149: 32.58 | I149: 28.24 | J149: 5.73 | K149: 33.97 | L149: 52.52 | M149: 1.07 | N149: 53.59
B150: 2024-11-04 | C150: 12 | D150: 0.01 | E150: 12.01 | F150: 26.85 | G150: 5.65 | H150: 32.5 | I150: 28.24 | J150: 5.65 | K150: 33.89 | L150: 52.52 | M150: 1.05 | N150: 53.57
B151: 2024-11-05 | C151: 12 | D151: 0.01 | E151: 12.01 | F151: 26.85 | G151: 5.55 | H151: 32.4 | I151: 28.24 | J151: 5.55 | K151: 33.79 | L151: 52.52 | M151: 1.02 | N151: 53.54
B152: 2024-11-06 | C152: 12 | D152: 0.01 | E152: 12.01 | F152: 26.85 | G152: 5.53 | H152: =SUM(F152:G152) -> 32.38 | I152: 28.24 | J152: 5.53 | K152: =SUM(I152:J152) -> 33.77 | L152: 52.52 | M152: 0.99 | N152: =SUM(L152:M152) -> 53.51
B153: 2024-11-07 | C153: 12 | D153: 0.01 | E153: =SUM(C153:D153) -> 12.01 | F153: 26.85 | G153: 5.63 | H153: 32.48 | I153: 28.24 | J153: 5.63 | K153: 33.87 | L153: 52.52 | M153: 1.03 | N153: 53.55
B154: 2024-11-08 | C154: 12 | D154: 0.01 | E154: 12.01 | F154: 26.85 | G154: 5.57 | H154: 32.42 | I154: 28.24 | J154: 5.57 | K154: 33.81 | L154: 52.52 | M154: 1.03 | N154: 53.55
B155: 2024-11-09 | C155: 12 | D155: 0.01 | E155: 12.01 | F155: 26.85 | G155: 5.55 | H155: 32.4 | I155: 28.24 | J155: 5.55 | K155: 33.79 | L155: 52.52 | M155: 1.02 | N155: 53.54
B156: 2024-11-10 | C156: 12 | D156: 0.01 | E156: 12.01 | F156: 26.85 | G156: 5.62 | H156: 32.47 | I156: 28.24 | J156: 5.62 | K156: 33.86 | L156: 52.52 | M156: 1.06 | N156: 53.58
B157: 2024-11-11 | C157: 12 | D157: 0.01 | E157: 12.01 | F157: 26.85 | G157: 5.6 | H157: 32.45 | I157: 28.24 | J157: 5.6 | K157: 33.84 | L157: 52.52 | M157: 1.03 | N157: 53.55
B158: 2024-11-12 | C158: 12 | D158: 0.01 | E158: 12.01 | F158: 26.85 | G158: 5.54 | H158: 32.39 | I158: 28.24 | J158: 5.54 | K158: 33.78 | L158: 52.52 | M158: 1 | N158: 53.52
B159: 2024-11-13 | C159: 12 | D159: 0.01 | E159: 12.01 | F159: 26.85 | G159: 5.81 | H159: 32.66 | I159: 28.24 | J159: 5.81 | K159: 34.05 | L159: 52.52 | M159: 1.1 | N159: 53.62
B160: 2024-11-14 | C160: 12 | D160: 0.01 | E160: 12.01 | F160: 26.85 | G160: 5.65 | H160: 32.5 | I160: 28.24 | J160: 5.65 | K160: 33.89 | L160: 52.52 | M160: 1.04 | N160: 53.56
B161: 2024-11-15 | C161: 12 | D161: 0.01 | E161: 12.01 | F161: 26.85 | G161: 5.57 | H161: 32.42 | I161: 28.24 | J161: 5.57 | K161: 33.81 | L161: 52.52 | M161: 1.05 | N161: 53.57
B162: 2024-11-16 | C162: 12 | D162: 0.01 | E162: 12.01 | F162: 26.85 | G162: 5.71 | H162: 32.56 | I162: 28.24 | J162: 5.71 | K162: 33.95 | L162: 52.52 | M162: 1.23 | N162: 53.75
B163: 2024-11-17 | C163: 12 | D163: 0.01 | E163: 12.01 | F163: 26.85 | G163: 5.82 | H163: 32.67 | I163: 28.24 | J163: 5.82 | K163: 34.06 | L163: 52.52 | M163: 1.1 | N163: 53.62
B164: 2024-11-18 | C164: 12 | D164: 0.01 | E164: 12.01 | F164: 26.85 | G164: 5.71 | H164: 32.56 | I164: 28.24 | J164: 5.71 | K164: 33.95 | L164: 52.52 | M164: 1.06 | N164: 53.58
B165: 2024-11-19 | C165: 12 | D165: 0.01 | E165: 12.01 | F165: 26.85 | G165: 5.57 | H165: 32.42 | I165: 28.24 | J165: 5.57 | K165: 33.81 | L165: 52.52 | M165: 1.03 | N165: 53.55
B166: 2024-11-20 | C166: 12 | D166: 0.01 | E166: 12.01 | F166: 26.85 | G166: 5.74 | H166: 32.59 | I166: 28.24 | J166: 5.74 | K166: 33.98 | L166: 52.52 | M166: 1.06 | N166: 53.58
B167: 2024-11-21 | C167: 12 | D167: 0.01 | E167: 12.01 | F167: 26.85 | G167: 5.7 | H167: 32.55 | I167: 28.24 | J167: 5.7 | K167: 33.94 | L167: 52.52 | M167: 1.07 | N167: 53.59
B168: 2024-11-22 | C168: 12 | D168: 0.01 | E168: 12.01 | F168: 26.85 | G168: 5.64 | H168: 32.49 | I168: 28.24 | J168: 5.64 | K168: 33.88 | L168: 52.52 | M168: 1.05 | N168: 53.57
B169: 2024-11-23 | C169: 12 | D169: 0 | E169: 12 | F169: 26.85 | G169: 5.63 | H169: 32.48 | I169: 28.24 | J169: 5.63 | K169: 33.87 | L169: 52.52 | M169: 1.05 | N169: 53.57
B170: 2024-11-24 | C170: 12 | D170: 0.01 | E170: 12.01 | F170: 26.85 | G170: 6.02 | H170: 32.87 | I170: 28.24 | J170: 6.02 | K170: 34.26 | L170: 52.52 | M170: 1.15 | N170: 53.67
B171: 2024-11-25 | C171: 12 | D171: 0.01 | E171: 12.01 | F171: 26.85 | G171: 5.9 | H171: 32.75 | I171: 28.24 | J171: 5.9 | K171: 34.14 | L171: 52.52 | M171: 1.09 | N171: 53.61
B172: 2024-11-26 | C172: 12 | D172: 0.01 | E172: 12.01 | F172: 26.85 | G172: 5.7 | H172: 32.55 | I172: 28.24 | J172: 5.7 | K172: 33.94 | L172: 52.52 | M172: 1.04 | N172: 53.56
B173: 2024-11-27 | C173: 12 | D173: 0.01 | E173: 12.01 | F173: 26.85 | G173: 5.67 | H173: 32.52 | I173: 28.24 | J173: 5.67 | K173: 33.91 | L173: 52.52 | M173: 1.03 | N173: 53.55
B174: 2024-11-28 | C174: 12 | D174: 0.01 | E174: 12.01 | F174: 26.85 | G174: 5.48 | H174: 32.33 | I174: 28.24 | J174: 5.48 | K174: 33.72 | L174: 52.52 | M174: 0.99 | N174: 53.51
B175: 2024-11-29 | C175: 12 | D175: 0.01 | E175: 12.01 | F175: 26.85 | G175: 5.43 | H175: 32.28 | I175: 28.24 | J175: 5.43 | K175: 33.67 | L175: 52.52 | M175: 1 | N175: 53.52
B176: 2024-11-30 | C176: 12 | D176: 0.01 | E176: 12.01 | F176: 26.85 | G176: 5.6 | H176: 32.45 | I176: 28.24 | J176: 5.6 | K176: 33.84 | L176: 52.52 | M176: 1.03 | N176: 53.55
B177: 2024-12-01 | C177: 12 | D177: 0.01 | E177: 12.01 | F177: 26.85 | G177: 5.62 | H177: 32.47 | I177: 28.24 | J177: 5.62 | K177: 33.86 | L177: 52.52 | M177: 1.09 | N177: 53.61
B178: 2024-12-02 | C178: 12 | D178: 0.01 | E178: 12.01 | F178: 26.85 | G178: 5.64 | H178: 32.49 | I178: 28.24 | J178: 5.64 | K178: 33.88 | L178: 52.52 | M178: 1.04 | N178: 53.56
B179: 2024-12-03 | C179: 12 | D179: 0.01 | E179: 12.01 | F179: 26.85 | G179: 5.64 | H179: 32.49 | I179: 28.24 | J179: 5.64 | K179: 33.88 | L179: 52.52 | M179: 1.02 | N179: 53.54
B180: 2024-12-04 | C180: 12 | D180: 0.01 | E180: 12.01 | F180: 26.85 | G180: 5.52 | H180: 32.37 | I180: 28.24 | J180: 5.52 | K180: 33.76 | L180: 52.52 | M180: 1 | N180: 53.52
B181: 2024-12-05 | C181: 12 | D181: 0.01 | E181: 12.01 | F181: 26.85 | G181: 5.4 | H181: 32.25 | I181: 28.24 | J181: 5.4 | K181: 33.64 | L181: 52.52 | M181: 0.97 | N181: 53.49
B182: 2024-12-06 | C182: 12 | D182: 0.01 | E182: 12.01 | F182: 26.85 | G182: 5.39 | H182: 32.24 | I182: 28.24 | J182: 5.39 | K182: 33.63 | L182: 52.52 | M182: 1.02 | N182: 53.54
B183: 2024-12-07 | C183: 12 | D183: 0 | E183: 12 | F183: 26.85 | G183: 5.35 | H183: 32.2 | I183: 28.24 | J183: 5.35 | K183: 33.59 | L183: 52.52 | M183: 1 | N183: 53.52
B184: 2024-12-08 | C184: 12 | D184: 0.01 | E184: 12.01 | F184: 26.85 | G184: 5.7 | H184: 32.55 | I184: 28.24 | J184: 5.7 | K184: 33.94 | L184: 52.52 | M184: 1.07 | N184: 53.59
B185: 2024-12-09 | C185: 12 | D185: 0.01 | E185: 12.01 | F185: 26.85 | G185: 5.62 | H185: 32.47 | I185: 28.24 | J185: 5.62 | K185: 33.86 | L185: 52.52 | M185: 1.03 | N185: 53.55
B186: 2024-12-10 | C186: 12 | D186: 0.01 | E186: 12.01 | F186: 26.85 | G186: 5.71 | H186: 32.56 | I186: 28.24 | J186: 5.71 | K186: 33.95 | L186: 52.52 | M186: 1.1 | N186: 53.62
B187: 2024-12-11 | C187: 12 | D187: 0.01 | E187: 12.01 | F187: 26.85 | G187: 5.55 | H187: 32.4 | I187: 28.24 | J187: 5.55 | K187: 33.79 | L187: 52.52 | M187: 1.02 | N187: 53.54
B188: 2024-12-12 | C188: 12 | D188: 0.01 | E188: 12.01 | F188: 26.85 | G188: 5.42 | H188: 32.27 | I188: 28.24 | J188: 5.42 | K188: 33.66 | L188: 52.52 | M188: 0.98 | N188: 53.5
B189: 2024-12-13 | C189: 12 | D189: 0.01 | E189: 12.01 | F189: 26.85 | G189: 5.31 | H189: 32.16 | I189: 28.24 | J189: 5.31 | K189: 33.55 | L189: 52.52 | M189: 0.97 | N189: 53.49
B190: 2024-12-14 | C190: 12 | D190: 0 | E190: 12 | F190: 26.85 | G190: 5.24 | H190: 32.09 | I190: 28.24 | J190: 5.24 | K190: 33.48 | L190: 52.52 | M190: 0.95 | N190: 53.47
B191: 2024-12-15 | C191: 12 | D191: 0.01 | E191: 12.01 | F191: 26.85 | G191: 5.65 | H191: 32.5 | I191: 28.24 | J191: 5.65 | K191: 33.89 | L191: 52.52 | M191: 1.07 | N191: 53.59
B192: 2024-12-16 | C192: 12 | D192: 0.01 | E192: 12.01 | F192: 26.85 | G192: 5.82 | H192: 32.67 | I192: 28.24 | J192: 5.82 | K192: 34.06 | L192: 52.52 | M192: 1.09 | N192: 53.61
B193: 2024-12-17 | C193: 12 | D193: 0.01 | E193: 12.01 | F193: 26.85 | G193: 5.86 | H193: 32.71 | I193: 28.24 | J193: 5.86 | K193: 34.1 | L193: 52.52 | M193: 1.09 | N193: 53.61
B194: 2024-12-18 | C194: 12 | D194: 0.01 | E194: 12.01 | F194: 26.85 | G194: 5.62 | H194: 32.47 | I194: 28.24 | J194: 5.62 | K194: 33.86 | L194: 52.52 | M194: 1.04 | N194: 53.56
B195: 2024-12-19 | C195: 12 | D195: 0.01 | E195: 12.01 | F195: 26.85 | G195: 5.42 | H195: 32.27 | I195: 28.24 | J195: 5.42 | K195: 33.66 | L195: 52.52 | M195: 1 | N195: 53.52
B196: 2024-12-20 | C196: 12 | D196: 0.01 | E196: 12.01 | F196: 26.85 | G196: 5.37 | H196: 32.22 | I196: 28.24 | J196: 5.37 | K196: 33.61 | L196: 52.52 | M196: 0.98 | N196: 53.5
B197: 2024-12-21 | C197: 12 | D197: 0 | E197: 12 | F197: 26.85 | G197: 5.23 | H197: 32.08 | I197: 28.24 | J197: 5.23 | K197: 33.47 | L197: 52.52 | M197: 0.96 | N197: 53.48
B198: 2024-12-22 | C198: 12 | D198: 0.01 | E198: 12.01 | F198: 26.85 | G198: 5.55 | H198: 32.4 | I198: 28.24 | J198: 5.55 | K198: 33.79 | L198: 52.52 | M198: 1.03 | N198: 53.55
B199: 2024-12-23 | C199: 12 | D199: 0.01 | E199: 12.01 | F199: 26.85 | G199: 5.31 | H199: 32.16 | I199: 28.24 | J199: 5.31 | K199: 33.55 | L199: 52.52 | M199: 0.98 | N199: 53.5
B200: 2024-12-24 | C200: 12 | D200: 0.01 | E200: 12.01 | F200: 26.85 | G200: 4.5 | H200: 31.35 | I200: 28.24 | J200: 4.5 | K200: 32.74 | L200: 52.52 | M200: 0.82 | N200: 53.34
B201: 2024-12-25 | C201: 12 | D201: 0.01 | E201: 12.01 | F201: 26.85 | G201: 4.55 | H201: 31.4 | I201: 28.24 | J201: 4.55 | K201: 32.79 | L201: 52.52 | M201: 0.82 | N201: 53.34
B202: 2024-12-26 | C202: 12 | D202: 0.01 | E202: 12.01 | F202: 26.85 | G202: 5.55 | H202: 32.4 | I202: 28.24 | J202: 5.55 | K202: 33.79 | L202: 52.52 | M202: 1.04 | N202: 53.56
B203: 2024-12-27 | C203: 12 | D203: 0.01 | E203: 12.01 | F203: 26.85 | G203: 5.6 | H203: 32.45 | I203: 28.24 | J203: 5.6 | K203: 33.84 | L203: 52.52 | M203: 1.03 | N203: 53.55
B204: 2024-12-28 | C204: 12 | D204: 0.01 | E204: 12.01 | F204: 26.85 | G204: 5.62 | H204: 32.47 | I204: 28.24 | J204: 5.62 | K204: 33.86 | L204: 52.52 | M204: 1.02 | N204: 53.54
B205: 2024-12-29 | C205: 12 | D205: 0.01 | E205: 12.01 | F205: 26.85 | G205: 5.62 | H205: 32.47 | I205: 28.24 | J205: 5.62 | K205: 33.86 | L205: 52.52 | M205: 1.03 | N205: 53.55
B206: 2024-12-30 | C206: 12 | D206: 0.01 | E206: 12.01 | F206: 26.85 | G206: 5.62 | H206: 32.47 | I206: 28.24 | J206: 5.62 | K206: 33.86 | L206: 52.52 | M206: 1.02 | N206: 53.54
B207: 2024-12-31 | C207: 12 | D207: 0.01 | E207: 12.01 | F207: 26.85 | G207: 3.96 | H207: 30.81 | I207: 28.24 | J207: 3.96 | K207: 32.2 | L207: 52.52 | M207: 0.67 | N207: 53.19
B208: 2025-01-01 | C208: 12 | D208: 0.01 | E208: 12.01 | F208: 26.85 | G208: 5.73 | H208: 32.58 | I208: 28.24 | J208: 5.73 | K208: 33.97 | L208: 52.52 | M208: 1.05 | N208: 53.57
B209: 2025-01-02 | C209: 12 | D209: 0.01 | E209: 12.01 | F209: 26.85 | G209: 5.76 | H209: 32.61 | I209: 28.24 | J209: 5.76 | K209: 34 | L209: 52.52 | M209: 1.05 | N209: 53.57
B210: 2025-01-03 | C210: 12 | D210: 0.01 | E210: 12.01 | F210: 26.85 | G210: 5.62 | H210: 32.47 | I210: 28.24 | J210: 5.62 | K210: 33.86 | L210: 52.52 | M210: 1.02 | N210: 53.54
B211: 2025-01-04 | C211: 12 | D211: 0.01 | E211: 12.01 | F211: 26.85 | G211: 5.73 | H211: 32.58 | I211: 28.24 | J211: 5.73 | K211: 33.97 | L211: 52.52 | M211: 1.04 | N211: 53.56
... 177 more rows

Sheet TC-4 Price Relativity Inputs
B1: Cell colour meanings
B2: Input cell
B3: Calculation cell
B5: TC-4 Prices in FY26-28 Pricing Roadmap
B6: Note 1: The 'FY27' prices in column E below, are the 'Year 2' indicative prices in the FY26-28 Pricing Roadmap published by nbn on 1 May 2025, with the exception of the following WAPC Charge Components, which were later published by nbn in the FY26-28 Pricing Roadmap on 14 September 2025: AVC TC-4 250/100 Mbps (HFC); AVC TC-4 2000/100 Mbps (HFC); AVC TC-4 2000/200 Mbps (Fibre); AVC TC-4 2000/500 Mbps (Fibre). Note 2: The Bundled TC‑4 Offers listed below transition to Flat‑Rate Offers from 1 July 2026.
B12: t−1 Tariff List Table References | C12: WAPC Charge Component | D12: Access Network | E12: Year 2 Indicative Prices in Roadmap t − 1
B13: 1.1 Flat-Rate Offers | C13: AVC TC-4 25-100/5-20 Mbps | D13: FTTB, FTTN | E13: 60.94
B14: 1.1 Flat-Rate Offers | C14: AVC TC-4 50-100/20 Mbps | D14: FTTC | E14: 60.94
B15: 1.1 Flat-Rate Offers | C15: AVC TC-4 500/50 Mbps | D15: Fibre, HFC | E15: 60.94
B16: 1.1 Flat-Rate Offers | C16: AVC TC-4 200-250/8-20 Mbps | D16: Wireless | E16: 60.94
B17: 1.1 Flat-Rate Offers | C17: AVC TC-4 25-100/5-40 Mbps | D17: FTTB, FTTN | E17: 63.94
B18: 1.1 Flat-Rate Offers | C18: AVC TC-4 50-100/20-40 Mbps | D18: FTTC | E18: 63.94
B19: 1.1 Flat-Rate Offers | C19: AVC TC-4 100/40 Mbps | D19: Fibre, HFC | E19: 63.94
B20: 1.1 Flat-Rate Offers | C20: AVC TC-4 750/50 Mbps | D20: Fibre, HFC | E20: 66.8
B21: 1.1 Flat-Rate Offers | C21: AVC TC-4 400/10-40 Mbps | D21: Wireless | E21: 66.8
B22: 1.1 Flat-Rate Offers | C22: AVC TC-4 250/100 Mbps | D22: Fibre | E22: 63.94
B23: 1.1 Flat-Rate Offers | C23: AVC TC-4 250/100 Mbps | D23: HFC | E23: 63.94
B24: 1.1 Flat-Rate Offers | C24: AVC TC-4 500/200 Mbps | D24: Fibre | E24: 79
B25: 1.1 Flat-Rate Offers | C25: AVC TC-4 1000/100 Mbps | D25: Fibre, HFC | E25: 75.94
B26: 1.1 Flat-Rate Offers | C26: AVC TC-4 1000/400 Mbps | D26: Fibre | E26: 96
B27: 1.1 Flat-Rate Offers | C27: AVC TC-4 2000/100 Mbps | D27: HFC | E27: 118.13
B28: 1.1 Flat-Rate Offers | C28: AVC TC-4 2000/200 Mbps | D28: Fibre | E28: 118.13
B29: 1.1 Flat-Rate Offers | C29: AVC TC-4 2000/500 Mbps | D29: Fibre | E29: 154.08
B30: 1.2 Flat-Rate Offers - Smart Places | C30: Smart Places - AVC TC-4 100/40 Mbps | D30: Fibre | E30: 63.94
B31: 1.2 Flat-Rate Offers - Smart Places | C31: Smart Places - AVC TC-4 250/100 Mbps | D31: Fibre | E31: 63.94
B32: 1.2 Flat-Rate Offers - Smart Places | C32: Smart Places - AVC TC-4 500/200 Mbps | D32: Fibre | E32: 79
B33: 1.2 Flat-Rate Offers - Smart Places | C33: Smart Places - AVC TC-4 1000/400 Mbps | D33: Fibre | E33: 96
B34: 1.3 Bundled TC-4 Offers | C34: AVC TC-4 12/1 Mbps (Basic Bundled Offer) | D34: Fibre, FTTB, FTTN, FTTC, HFC | E34: 12
B35: 1.3 Bundled TC-4 Offers | C35: AVC TC-4 12/1 Mbps | D35: Fibre, FTTB, FTTN, FTTC, HFC, Wireless | E35: 35.14
B36: 1.3 Bundled TC-4 Offers | C36: AVC TC-4 25/5 Mbps | D36: Fibre, FTTB, FTTN, FTTC, HFC | E36: 35.92
B37: 1.3 Bundled TC-4 Offers | C37: AVC TC-4 25/5 Mbps | D37: Wireless | E37: 35.92
B38: 1.3 Bundled TC-4 Offers | C38: AVC TC-4 25/5-10 Mbps | D38: FTTB, FTTN | E38: 35.92
B39: 1.3 Bundled TC-4 Offers | C39: AVC TC-4 25/10 Mbps | D39: Fibre, FTTC, HFC | E39: 35.92
B40: 1.3 Bundled TC-4 Offers | C40: AVC TC-4 25-50/5-20 Mbps | D40: FTTB, FTTN | E40: 57.69
B41: 1.3 Bundled TC-4 Offers | C41: AVC TC-4 50/20 Mbps | D41: Fibre, FTTC, HFC | E41: 57.69
B42: 1.3 Bundled TC-4 Offers | C42: AVC TC-4 up to 100/up to 20 Mbps | D42: Wireless | E42: 57.69
B43: 1.4 Bundled TC-4 Offers: Smart Places | C43: Smart Places - AVC TC-4 25/10 Mbps | D43: Fibre | E43: 35.92
B44: 1.4 Bundled TC-4 Offers: Smart Places | C44: Smart Places - AVC TC-4 50/20 Mbps | D44: Fibre | E44: 57.69
B45: 1.5 Asymmetric AVC Offers in respect of the NBN Co Satellite Network | C45: AVC TC-4 12/1 Mbps | D45: Satellite | E45: 24
B46: 1.5 Asymmetric AVC Offers in respect of the NBN Co Satellite Network | C46: AVC TC-4 25/5 Mbps | D46: Satellite | E46: 27

Sheet FY27 EM Inputs
B1: Cell colour meanings
B2: Input cell
B3: Calculation cell
B6: FY27 Excess Adjustment Factor Inputs
B7: Note 1: nbn notes that quantities are annualised, consistent with clause 2D.2.2(g) of the SAU. For example, the quantities for monthly charges are multiplied by 12 for an annualised quantity. Quantities for charges with other billing periods are adjusted as required to an annualised basis. Note 2: The qt − 1.25 volumes shown in the t = FY25 column represent volumes supplied from 1 April 2023 and 31 March 2024, annualised in accordance with clause 2D.2.2(g) of the SAU.
E11: Prices | H11: Quantities
E12: pt − 1 | F12: pt | H12: qt − 1.25
B13: Tariff List Table References | C13: WAPC Charge Component | D13: Access Network | E13: FY24 | F13: FY25 | H13: t = FY25
B14: 1.1 Flat-Rate Offers | C14: AVC TC-4 25-100/5-20 Mbps | D14: FTTB and FTTN | E14: 55 | F14: 57.22 | H14: 3236816.21
B15: 1.1 Flat-Rate Offers | C15: AVC TC-4 50-100/20 Mbps | D15: FTTC | E15: 55 | F15: 57.22 | H15: 1882996.34
B16: 1.1 Flat-Rate Offers | C16: AVC TC-4 100/20 Mbps | D16: Fibre and HFC | E16: 55 | F16: 57.22 | H16: 9010905.77
B17: 1.1 Flat-Rate Offers | C17: AVC TC-4 50-100/20-40 Mbps | D17: FTTC | E17: 58 | F17: 60.22 | H17: 1261324.01
B18: 1.1 Flat-Rate Offers | C18: AVC TC-4 25-100/5-40 Mbps | D18: FTTB and FTTN | E18: 58 | F18: 60.22 | H18: 543879.9
B19: 1.1 Flat-Rate Offers | C19: AVC TC-4 100/40 Mbps | D19: Fibre and HFC | E19: 58 | F19: 60.22 | H19: 2005324.66
B20: 1.1 Flat-Rate Offers | C20: AVC TC-4 250/25 Mbps | D20: Fibre and HFC | E20: 60 | F20: 62.22 | H20: 2284439.1
B21: 1.1 Flat-Rate Offers | C21: AVC TC-4 250/100 Mbps | D21: Fibre | E21: 100 | F21: 75 | H21: 86166.28
B22: 1.1 Flat-Rate Offers | C22: AVC TC-4 500/200 Mbps | D22: Fibre | E22: 160 | F22: 100 | H22: 16782.2
B23: 1.1 Flat-Rate Offers | C23: AVC TC-4 1000/50 Mbps | D23: Fibre and HFC | E23: 70 | F23: 72.22 | H23: 1465479.93
B24: 1.1 Flat-Rate Offers | C24: AVC TC-4 1000/400 Mbps | D24: Fibre | E24: 230 | F24: 125 | H24: 13542.81
B25: 1.2 Flat-Rate Offers - Smart Places | C25: Smart Places - AVC TC-4 100/40 Mbps | D25: Fibre | E25: 58 | F25: 60.22 | H25: 36
B26: 1.2 Flat-Rate Offers - Smart Places | C26: Smart Places - AVC TC-4 250/100 Mbps | D26: Fibre | E26: 100 | F26: 75 | H26: 0
B27: 1.2 Flat-Rate Offers - Smart Places | C27: Smart Places - AVC TC-4 500/200 Mbps | D27: Fibre | E27: 160 | F27: 100 | H27: 0
B28: 1.2 Flat-Rate Offers - Smart Places | C28: Smart Places - AVC TC-4 1000/400 Mbps | D28: Fibre | E28: 230 | F28: 125 | H28: 0
B29: 1.3 Bundled TC-4 Offers | C29: AVC TC-4 12/1 Mbps (Basic Bundled Offer) | D29: Fibre, FTTB, FTTN, FTTC, HFC | E29: 12.01 | F29: =INDEX('FY25 Average Combined Charges'!$C$17:$F$17,,MATCH(_xlfn._xlws.FILTER('FY26 FACC'!$B$68:$B$79,('FY26 FACC'!$D$68:$D$79=$C29)*('FY26 FACC'!$E$68:$E$79=$D29)),'FY25 Average Combined Charges'!$C$16:$F$16,0)) -> 12.01 | H29: 4148067.93
B30: 1.3 Bundled TC-4 Offers | C30: AVC TC-4 12/1 Mbps | D30: Fibre, FTTB, FTTN, FTTC, HFC, Wireless | E30: 30.9 | F30: =INDEX('FY25 Average Combined Charges'!$C$17:$F$17,,MATCH(_xlfn._xlws.FILTER('FY26 FACC'!$B$68:$B$79,('FY26 FACC'!$D$68:$D$79=$C30)*('FY26 FACC'!$E$68:$E$79=$D30)),'FY25 Average Combined Charges'!$C$16:$F$16,0)) -> 32.68 | H30: 3678475.33
B31: 1.3 Bundled TC-4 Offers | C31: AVC TC-4 25/5 Mbps | D31: Fibre, FTTB, FTTN, FTTC, HFC, Wireless | E31: 32.5 | F31: =INDEX('FY25 Average Combined Charges'!$C$17:$F$17,,MATCH(_xlfn._xlws.FILTER('FY26 FACC'!$B$68:$B$79,('FY26 FACC'!$D$68:$D$79=$C31)*('FY26 FACC'!$E$68:$E$79=$D31)),'FY25 Average Combined Charges'!$C$16:$F$16,0)) -> 34.07 | H31: 15564071.81
B32: 1.3 Bundled TC-4 Offers | C32: AVC TC-4 25/5-10 Mbps | D32: FTTB, FTTN | E32: 32.5 | F32: =INDEX('FY25 Average Combined Charges'!$C$17:$F$17,,MATCH(_xlfn._xlws.FILTER('FY26 FACC'!$B$68:$B$79,('FY26 FACC'!$D$68:$D$79=$C32)*('FY26 FACC'!$E$68:$E$79=$D32)),'FY25 Average Combined Charges'!$C$16:$F$16,0)) -> 34.07 | H32: 1475437.25
B33: 1.3 Bundled TC-4 Offers | C33: AVC TC-4 25/10 Mbps | D33: Fibre, FTTC, HFC | E33: 32.5 | F33: =INDEX('FY25 Average Combined Charges'!$C$17:$F$17,,MATCH(_xlfn._xlws.FILTER('FY26 FACC'!$B$68:$B$79,('FY26 FACC'!$D$68:$D$79=$C33)*('FY26 FACC'!$E$68:$E$79=$D33)),'FY25 Average Combined Charges'!$C$16:$F$16,0)) -> 34.07 | H33: 1899841.01
B34: 1.3 Bundled TC-4 Offers | C34: AVC TC-4 25-50/5-20 Mbps | D34: FTTB, FTTN | E34: 51.16 | F34: =INDEX('FY25 Average Combined Charges'!$C$17:$F$17,,MATCH(_xlfn._xlws.FILTER('FY26 FACC'!$B$68:$B$79,('FY26 FACC'!$D$68:$D$79=$C34)*('FY26 FACC'!$E$68:$E$79=$D34)),'FY25 Average Combined Charges'!$C$16:$F$16,0)) -> 53.62 | H34: 22133622.75
B35: 1.3 Bundled TC-4 Offers | C35: AVC TC-4 50/20 Mbps | D35: Fibre, FTTC, HFC | E35: 51.16 | F35: =INDEX('FY25 Average Combined Charges'!$C$17:$F$17,,MATCH(_xlfn._xlws.FILTER('FY26 FACC'!$B$68:$B$79,('FY26 FACC'!$D$68:$D$79=$C35)*('FY26 FACC'!$E$68:$E$79=$D35)),'FY25 Average Combined Charges'!$C$16:$F$16,0)) -> 53.62 | H35: 30605439.71
B36: 1.3 Bundled TC-4 Offers | C36: AVC TC-4 up to 100/up to 20 Mbps | D36: Wireless | E36: 51.16 | F36: =INDEX('FY25 Average Combined Charges'!$C$17:$F$17,,MATCH(_xlfn._xlws.FILTER('FY26 FACC'!$B$68:$B$79,('FY26 FACC'!$D$68:$D$79=$C36)*('FY26 FACC'!$E$68:$E$79=$D36)),'FY25 Average Combined Charges'!$C$16:$F$16,0)) -> 53.62 | H36: 2978399.53
B37: 1.4 Bundled TC-4 Offers: Smart Places | C37: Smart Places - AVC TC-4 25/10 Mbps | D37: Fibre | E37: 32.5 | F37: =INDEX('FY25 Average Combined Charges'!$C$17:$F$17,,MATCH(_xlfn._xlws.FILTER('FY26 FACC'!$B$68:$B$79,('FY26 FACC'!$D$68:$D$79=$C37)*('FY26 FACC'!$E$68:$E$79=$D37)),'FY25 Average Combined Charges'!$C$16:$F$16,0)) -> 34.07 | H37: 187.06
B38: 1.4 Bundled TC-4 Offers: Smart Places | C38: Smart Places - AVC TC-4 50/20 Mbps | D38: Fibre | E38: 51.16 | F38: =INDEX('FY25 Average Combined Charges'!$C$17:$F$17,,MATCH(_xlfn._xlws.FILTER('FY26 FACC'!$B$68:$B$79,('FY26 FACC'!$D$68:$D$79=$C38)*('FY26 FACC'!$E$68:$E$79=$D38)),'FY25 Average Combined Charges'!$C$16:$F$16,0)) -> 53.62 | H38: 120
B39: 1.5 Asymmetric AVC Offers in respect of the NBN Co Satellite Network | C39: AVC TC-4 12/1 Mbps | D39: Satellite | E39: 24 | F39: 24 | H39: 168421.67
B40: 1.5 Asymmetric AVC Offers in respect of the NBN Co Satellite Network | C40: AVC TC-4 25/5 Mbps | D40: Satellite | E40: 27 | F40: 27 | H40: 301962.34
B41: 2.1 Bundled TC-2 Offers | C41: AVC TC-2 5/5 Mbps | D41: Fibre, FTTB, FTTN, FTTC, HFC | E41: 50 | F41: 50 | H41: 127776.8
B42: 2.1 Bundled TC-2 Offers | C42: AVC TC-2 10/10 Mbps | D42: Fibre, FTTB, FTTN, FTTC, HFC | E42: 131 | F42: 131 | H42: 91747.54
B43: 2.1 Bundled TC-2 Offers | C43: AVC TC-2 20/20 Mbps | D43: Fibre, FTTB, FTTN, FTTC | E43: 192 | F43: 172 | H43: 52210.41
B44: 2.1 Bundled TC-2 Offers | C44: AVC TC-2 30/30 Mbps | D44: Fibre | E44: 220 | F44: 175 | H44: 3659.9
B45: 2.1 Bundled TC-2 Offers | C45: AVC TC-2 40/40 Mbps | D45: Fibre | E45: 223 | F45: 175 | H45: 7583.25
B46: 2.1 Bundled TC-2 Offers | C46: AVC TC-2 50/50 Mbps | D46: Fibre | E46: 225 | F46: 175 | H46: 9723.6
B47: 2.1 Bundled TC-2 Offers | C47: AVC TC-2 60/60 Mbps | D47: Fibre | E47: 581 | F47: 175 | H47: 570.41
B48: 2.1 Bundled TC-2 Offers | C48: AVC TC-2 70/70 Mbps | D48: Fibre | E48: 626 | F48: 175 | H48: 0
B49: 2.1 Bundled TC-2 Offers | C49: AVC TC-2 80/80 Mbps | D49: Fibre | E49: 672 | F49: 175 | H49: 32.13
B50: 2.1 Bundled TC-2 Offers | C50: AVC TC-2 90/90 Mbps | D50: Fibre | E50: 704 | F50: 175 | H50: 6.1
B51: 2.1 Bundled TC-2 Offers | C51: AVC TC-2 100/100 Mbps | D51: Fibre | E51: 714 | F51: 175 | H51: 1895.64
B52: 2.2 Bundled TC-2 Offers: Smart Places | C52: Smart Places - AVC TC-2 5/5 Mbps | D52: Fibre | E52: 50 | F52: 50 | H52: 0
B53: 2.2 Bundled TC-2 Offers: Smart Places | C53: Smart Places - AVC TC-2 10/10 Mbps | D53: Fibre | E53: 131 | F53: 131 | H53: 0
B54: 2.2 Bundled TC-2 Offers: Smart Places | C54: Smart Places - AVC TC-2 20/20 Mbps | D54: Fibre | E54: 192 | F54: 172 | H54: 0
B55: 2.2 Bundled TC-2 Offers: Smart Places | C55: Smart Places - AVC TC-2 50/50 Mbps | D55: Fibre | E55: 225 | F55: 175 | H55: 0
B56: 2.3 Symmetric Access Capacity Offers (TC-1) | C56: AVC TC-1 0.15 Mbps | D56: Fibre, FTTB, FTTN, FTTC, HFC, Wireless and Satellite | E56: 10 | F56: 10 | H56: 0
B57: 2.3 Symmetric Access Capacity Offers (TC-1) | C57: AVC TC-1 0.3 Mbps | D57: Fibre, FTTB, FTTN, FTTC, HFC and Wireless | E57: 20 | F57: 20 | H57: 666822.88
B58: 2.3 Symmetric Access Capacity Offers (TC-1) | C58: AVC TC-1 0.5 Mbps | D58: Fibre, FTTB, FTTN, FTTC and HFC | E58: 33 | F58: 33 | H58: 127321.34
B59: 2.3 Symmetric Access Capacity Offers (TC-1) | C59: AVC TC-1 1 Mbps | D59: Fibre, FTTB, FTTN, FTTC and HFC | E59: 66 | F59: 66 | H59: 35192.2
B60: 2.3 Symmetric Access Capacity Offers (TC-1) | C60: AVC TC-1 2 Mbps | D60: Fibre, FTTB, FTTN, FTTC and HFC | E60: 132 | F60: 132 | H60: 669.79
B61: 2.3 Symmetric Access Capacity Offers (TC-1) | C61: AVC TC-1 5 Mbps | D61: Fibre, FTTB, FTTN, FTTC and HFC | E61: 330 | F61: 330 | H61: 364.35
B62: 3.2 Connectivity Virtual Circuit Offers | C62: CVC TC-4 (Satellite) | D62: Satellite | E62: 15.75 | F62: 15.75 | H62: 174087
B63: 3.2 Connectivity Virtual Circuit Offers | C63: CVC TC-1 | D63: Fibre, FTTB, FTTN, FTTC and HFC | E63: 17.5 | F63: 17.5 | H63: 468106.23
B64: 3.2 Connectivity Virtual Circuit Offers | C64: CVC TC-2 | D64: Fibre, FTTB, FTTN, FTTC and HFC | E64: 17.5 | F64: 17.5 | H64: 0
B65: 4 CVC Class Offers for the NBN Co Satellite Network | C65: CVC Class 0 | D65: Satellite | E65: 0 | F65: 0 | H65: 0
B66: 4 CVC Class Offers for the NBN Co Satellite Network | C66: CVC Class 1 | D66: Satellite | E66: 18 | F66: 18 | H66: 13274.74
B67: 4 CVC Class Offers for the NBN Co Satellite Network | C67: CVC Class 2 | D67: Satellite | E67: 40 | F67: 40 | H67: 8092.41
B68: 5.1 Network to Network Interface Offers | C68: NNI 1000BaseLX - per NNI Bearer - Recurring | D68: All | E68: 100 | F68: 100 | H68: 4257.48
B69: 5.1 Network to Network Interface Offers | C69: NNI 10GBaseLR - per NNI Bearer - Recurring | D69: All | E69: 400 | F69: 400 | H69: 113032.28
B70: 5.1 Network to Network Interface Offers | C70: NNI 100GBaseLR4 - per NNI Bearer - Recurring | D70: All | E70: 2400 | F70: 2400 | H70: 2434.06
B71: 5.1 Network to Network Interface Offers | C71: NNI 1000BaseEX - per NNI Bearer - Recurring | D71: All | E71: 125 | F71: 125 | H71: 12
B72: 5.1 Network to Network Interface Offers | C72: NNI 10GBaseER - per NNI Bearer - Recurring | D72: All | E72: 500 | F72: 500 | H72: 3814.3
B73: 5.1 Network to Network Interface Offers | C73: NNI 100GBaseER4 - per NNI Bearer - Recurring | D73: All | E73: 3000 | F73: 3000 | H73: 480
B74: 5.1 Network to Network Interface Offers | C74: V-NNI | D74: Fibre, FTTB, FTTN, FTTC, HFC and Wireless | E74: 65 | F74: 65 | H74: 22293.02
B75: 5.1 Network to Network Interface Offers | C75: NNI Link | D75: Fibre, FTTB, FTTN, FTTC, HFC and Wireless | E75: 0 | F75: 0 | H75: 0
B76: 6. Second UNI-V and AVC Offer | C76: Second UNI-V and AVC offer | D76: Fibre | E76: 17.5 | F76: 17.5 | H76: 0
B77: 7.1 Enhanced Fault Service Level Offers | C77: Enhanced SLA - 12 | D77: Fibre, FTTB, FTTN, FTTC and HFC | E77: 15 | F77: 15 | H77: 143408.29
B78: 7.1 Enhanced Fault Service Level Offers | C78: Enhanced SLA - 12 (24/7) | D78: Fibre, FTTB, FTTN, FTTC and HFC | E78: 15 | F78: 15 | H78: 248417.28
B79: 7.1 Enhanced Fault Service Level Offers | C79: Enhanced SLA - 8 | D79: Fibre, FTTB, FTTN, FTTC and HFC | E79: 25 | F79: 25 | H79: 9303.21
B80: 7.1 Enhanced Fault Service Level Offers | C80: Enhanced SLA - 8 (24/7) | D80: Fibre, FTTB, FTTN, FTTC and HFC | E80: 55 | F80: 55 | H80: 17198.03
B81: 7.1 Enhanced Fault Service Level Offers | C81: Enhanced SLA - 6 | D81: Fibre, FTTB, FTTN, FTTC and HFC | E81: 32.5 | F81: 32.5 | H81: 132
B82: 7.1 Enhanced Fault Service Level Offers | C82: Enhanced SLA - 6 (24/7) | D82: Fibre, FTTB, FTTN, FTTC and HFC | E82: 65 | F82: 65 | H82: 370.06
B83: 7.1 Enhanced Fault Service Level Offers | C83: Enhanced SLA - 4 | D83: Fibre, FTTB, FTTN, FTTC and HFC | E83: 40 | F83: 40 | H83: 4453.75
B84: 7.1 Enhanced Fault Service Level Offers | C84: Enhanced SLA - 4 (24/7) | D84: Fibre, FTTB, FTTN, FTTC and HFC | E84: 25 | F84: 25 | H84: 11660.7
B85: 7.2 Enhanced Fault Service level Offers | C85: Enhanced SLA - 90 days (24/7) | D85: Fibre, FTTB, FTTN, FTTC and HFC | E85: 150 | F85: 150 | H85: 0
B86: 7.3 Enhanced Fault Service Level Offers: Smart Places | C86: Smart Places - Enhanced SLA - 12 | D86: Fibre | E86: 15 | F86: 15 | H86: 0
B87: 7.3 Enhanced Fault Service Level Offers: Smart Places | C87: Smart Places - Enhanced SLA - 12 (24/7) | D87: Fibre | E87: 15 | F87: 15 | H87: 0
B88: 7.3 Enhanced Fault Service Level Offers: Smart Places | C88: Smart Places - Enhanced SLA - 8 | D88: Fibre | E88: 25 | F88: 25 | H88: 0
B89: 7.3 Enhanced Fault Service Level Offers: Smart Places | C89: Smart places - Enhanced SLA - 8 (24/7) | D89: Fibre | E89: 55 | F89: 55 | H89: 0
B90: 8.1 Installations and activations – NBN Co Networks other than the NBN Co Satellite Network | C90: Initial Standard Installation | D90: Fibre, FTTB, FTTN, FTTC, HFC and Wireless | E90: 0 | F90: 0 | H90: 0
B91: 8.1 Installations and activations – NBN Co Networks other than the NBN Co Satellite Network | C91: After Hours Installation | D91: Fibre, FTTB, FTTN, FTTC and HFC | E91: 150 | F91: 150 | H91: 0
B92: 8.1 Installations and activations – NBN Co Networks other than the NBN Co Satellite Network | C92: Fibre upgrade installation | D92: Fibre | E92: 200 | F92: 200 | H92: 325230
B93: 8.1 Installations and activations – NBN Co Networks other than the NBN Co Satellite Network | C93: Subsequent Installation of power supply with battery backup – Fibre Network only | D93: Fibre | E93: 0 | F93: 0 | H93: 0
B94: 8.1 Installations and activations – NBN Co Networks other than the NBN Co Satellite Network | C94: Access Component Reactivation | D94: Fibre, FTTB, FTTN, FTTC, HFC and Wireless | E94: 5 | F94: 5 | H94: 1442283
B95: 8.1 Installations and activations – NBN Co Networks other than the NBN Co Satellite Network | C95: CVC Set-up & Activation | D95: Fibre, FTTB, FTTN, FTTC, HFC and Wireless | E95: 0 | F95: 0 | H95: 0
B96: 8.1 Installations and activations – NBN Co Networks other than the NBN Co Satellite Network | C96: NNI 1000BaseLX - Set-up & Activation | D96: Fibre, FTTB, FTTN, FTTC, HFC and Wireless | E96: 1000 | F96: 1000 | H96: 0
B97: 8.1 Installations and activations – NBN Co Networks other than the NBN Co Satellite Network | C97: NNI 10GBaseLR - Set-up & Activation | D97: Fibre, FTTB, FTTN, FTTC, HFC and Wireless | E97: 5000 | F97: 3000 | H97: 672
B98: 8.1 Installations and activations – NBN Co Networks other than the NBN Co Satellite Network | C98: NNI 100GBaseLR4 - Set-up & Activation | D98: Fibre, FTTB, FTTN, FTTC, HFC and Wireless | E98: 30000 | F98: 20000 | H98: 24
B99: 8.1 Installations and activations – NBN Co Networks other than the NBN Co Satellite Network | C99: NNI 1000BaseEX - Set-up & Activation | D99: Fibre, FTTB, FTTN, FTTC, HFC and Wireless | E99: 2000 | F99: 2000 | H99: 0
B100: 8.1 Installations and activations – NBN Co Networks other than the NBN Co Satellite Network | C100: NNI 10GBaseER - Set-up & Activation | D100: Fibre, FTTB, FTTN, FTTC, HFC and Wireless | E100: 6000 | F100: 4000 | H100: 18
B101: 8.1 Installations and activations – NBN Co Networks other than the NBN Co Satellite Network | C101: NNI 100GBaseER4 - Set-up & Activation | D101: Fibre, FTTB, FTTN, FTTC, HFC and Wireless | E101: 36000 | F101: 24000 | H101: 0
B102: 8.1 Installations and activations – NBN Co Networks other than the NBN Co Satellite Network | C102: NNI Link Activation | D102: Fibre, FTTB, FTTN, FTTC, HFC and Wireless | E102: 0 | F102: 0 | H102: 0
B103: 8.1 Installations and activations – NBN Co Networks other than the NBN Co Satellite Network | C103: Virtual NNI Activation | D103: Fibre, FTTB, FTTN, FTTC, HFC and Wireless | E103: 250 | F103: 250 | H103: 513
B104: 8.1 Installations and activations – NBN Co Networks other than the NBN Co Satellite Network | C104: Service Qualification Enquiry | D104: Fibre, FTTB, FTTN, FTTC, HFC and Wireless | E104: 0 | F104: 0 | H104: 0
B105: 8.2 Installations and activations – Smart Places | C105: Smart Places - Initial Standard Installation | D105: Fibre | E105: 0 | F105: 0 | H105: 0
B106: 8.2 Installations and activations – Smart Places | C106: Smart Places - Access Component Reactivation | D106: Fibre | E106: 5 | F106: 5 | H106: 0
B107: 8.2 Installations and activations – Smart Places | C107: Smart Places - CVC Set-up & Activation | D107: Fibre | E107: 0 | F107: 0 | H107: 0
B108: 8.2 Installations and activations – Smart Places | C108: Smart Places - NNI 1000BaseLX - Set-up & Activation | D108: Fibre | E108: 1000 | F108: 1000 | H108: 0
B109: 8.2 Installations and activations – Smart Places | C109: Smart Places - NNI 10GBaseLR - Set-up & Activation | D109: Fibre | E109: 5000 | F109: 3000 | H109: 0
B110: 8.2 Installations and activations – Smart Places | C110: Smart Places - NNI 100GBaseLR4 - Set-up & Activation | D110: Fibre | E110: 30000 | F110: 20000 | H110: 0
B111: 8.2 Installations and activations – Smart Places | C111: Smart Places - NNI 1000BaseEX - Set-up & Activation | D111: Fibre | E111: 2000 | F111: 2000 | H111: 0
B112: 8.2 Installations and activations – Smart Places | C112: Smart Places - NNI 10GBaseER - Set-up & Activation | D112: Fibre | E112: 6000 | F112: 4000 | H112: 0
B113: 8.2 Installations and activations – Smart Places | C113: Smart Places - NNI 100GBaseER4 - Set-up & Activation | D113: Fibre | E113: 36000 | F113: 24000 | H113: 0
B114: 8.2 Installations and activations – Smart Places | C114: Smart Places - NNI Link Activation | D114: Fibre | E114: 0 | F114: 0 | H114: 0
B115: 8.2 Installations and activations – Smart Places | C115: Smart Places - Virtual NNI Activation | D115: Fibre | E115: 250 | F115: 250 | H115: 0
B116: 8.3 Installations and activations – NBN Co Satellite Network | C116: Initial Standard Installation (excluding any additional incidental charges which may apply for Limited Access Areas) | D116: Satellite | E116: 0 | F116: 0 | H116: 0
B117: 8.3 Installations and activations – NBN Co Satellite Network | C117: Access Component Reactivation (excluding any additional incidental charges which may apply for Limited Access Areas) | D117: Satellite | E117: 5 | F117: 5 | H117: 0
B118: 8.3 Installations and activations – NBN Co Satellite Network | C118: Subsequent Installation in Urban Area, Major Rural Area, Minor Rural Area or Remote Area - 0.8m NTD outdoor unit dish | D118: Satellite | E118: 692 | F118: 692 | H118: 0
B119: 8.3 Installations and activations – NBN Co Satellite Network | C119: Subsequent Installation in Urban Area, Major Rural Area, Minor Rural Area or Remote Area - 1.2m NTD outdoor unit dish | D119: Satellite | E119: 1057 | F119: 1057 | H119: 0
B120: 8.3 Installations and activations – NBN Co Satellite Network | C120: Subsequent Installation in Urban Area, Major Rural Area, Minor Rural Area or Remote Area - 1.8m NTD outdoor unit dish | D120: Satellite | E120: 2226 | F120: 2226 | H120: 0
B121: 8.3 Installations and activations – NBN Co Satellite Network | C121: Subsequent Installation in Isolated Area - 0.8m NTD outdoor unit dish | D121: Satellite | E121: 1559 | F121: 1559 | H121: 0
B122: 8.3 Installations and activations – NBN Co Satellite Network | C122: Subsequent Installation in Isolated Area - 1.2m NTD outdoor unit dish | D122: Satellite | E122: 1751 | F122: 1751 | H122: 0
B123: 8.3 Installations and activations – NBN Co Satellite Network | C123: Subsequent Installation in Isolated Area - 1.8m NTD outdoor unit dish | D123: Satellite | E123: 3732 | F123: 3732 | H123: 0
B124: 8.3 Installations and activations – NBN Co Satellite Network | C124: CVC Set-up & Activation | D124: Satellite | E124: 0 | F124: 0 | H124: 0
B125: 8.3 Installations and activations – NBN Co Satellite Network | C125: NNI 1000BaseLX - Set-up & Activation | D125: Satellite | E125: 1000 | F125: 1000 | H125: 0
B126: 8.3 Installations and activations – NBN Co Satellite Network | C126: NNI 10GBaseLR - Set-up & Activation | D126: Satellite | E126: 5000 | F126: 3000 | H126: 0
B127: 8.3 Installations and activations – NBN Co Satellite Network | C127: NNI 1000BaseEX - Set-up & Activation | D127: Satellite | E127: 2000 | F127: 2000 | H127: 0
B128: 8.3 Installations and activations – NBN Co Satellite Network | C128: NNI 10GBaseER - Set-up & Activation | D128: Satellite | E128: 6000 | F128: 4000 | H128: 0
B129: 8.3 Installations and activations – NBN Co Satellite Network | C129: Site Survey Charge | D129: Satellite | E129: 225 | F129: 225 | H129: 0
B130: 8.4 Service modifications – NBN Co Networks other than the NBN Co Satellite Network | C130: Access Component Modification (no attendance at Premises required) | D130: Fibre, FTTB, FTTN, FTTC, HFC and Wireless | E130: 0 | F130: 0 | H130: 0
B131: 8.4 Service modifications – NBN Co Networks other than the NBN Co Satellite Network | C131: CVC Modification | D131: Fibre, FTTB, FTTN, FTTC, HFC and Wireless | E131: 0 | F131: 0 | H131: 0
B132: 8.4 Service modifications – NBN Co Networks other than the NBN Co Satellite Network | C132: NNI Modification | D132: Fibre, FTTB, FTTN, FTTC, HFC and Wireless | E132: 0 | F132: 0 | H132: 0
B133: 8.4 Service modifications – NBN Co Networks other than the NBN Co Satellite Network | C133: NNI Link Modification | D133: Fibre, FTTB, FTTN, FTTC, HFC and Wireless | E133: 0 | F133: 0 | H133: 0
B134: 8.5 Service modifications – Smart Places | C134: Smart Places - Access Component Modification (no attendance at Smart Location required) | D134: Fibre | E134: 0 | F134: 0 | H134: 0
B135: 8.5 Service modifications – Smart Places | C135: Smart Places - CVC Modification | D135: Fibre | E135: 0 | F135: 0 | H135: 0
B136: 8.5 Service modifications – Smart Places | C136: Smart Places - NNI Modification | D136: Fibre | E136: 0 | F136: 0 | H136: 0
B137: 8.5 Service modifications – Smart Places | C137: Smart Places - NNI Link Modification | D137: Fibre | E137: 0 | F137: 0 | H137: 0
B138: 8.6 Service modifications – NBN Co Satellite Network | C138: Equipment Modification (NTD Indoor Unit)(excluding any additional incidental charges which may apply for Limited Access Areas) | D138: Satellite | E138: 420 | F138: 420 | H138: 0
B139: 8.6 Service modifications – NBN Co Satellite Network | C139: Access Component Modification (no attendance at Premises required) | D139: Satellite | E139: 0 | F139: 0 | H139: 0
B140: 8.6 Service modifications – NBN Co Satellite Network | C140: CVC Modification | D140: Satellite | E140: 0 | F140: 0 | H140: 0
B141: 8.6 Service modifications – NBN Co Satellite Network | C141: NNI Modification | D141: Satellite | E141: 0 | F141: 0 | H141: 0
B142: 8.6 Service modifications – NBN Co Satellite Network | C142: Equipment Modification (NTD outdoor unit) in Urban Area, Major Rural Area, Minor Rural Area or Remote Area - 0.8m NTD outdoor unit dish | D142: Satellite | E142: 754 | F142: 754 | H142: 0
B143: 8.6 Service modifications – NBN Co Satellite Network | C143: Equipment Modification (NTD outdoor unit) in Urban Area, Major Rural Area, Minor Rural Area or Remote Area - 1.2m NTD outdoor unit dish | D143: Satellite | E143: 1119 | F143: 1119 | H143: 0
B144: 8.6 Service modifications – NBN Co Satellite Network | C144: Equipment Modification (NTD outdoor unit) in Urban Area, Major Rural Area, Minor Rural Area or Remote Area - 1.8m NTD outdoor unit dish | D144: Satellite | E144: 2288 | F144: 2288 | H144: 0
B145: 8.6 Service modifications – NBN Co Satellite Network | C145: Equipment Modification (NTD outdoor unit) in Isolated Area - 0.8m NTD outdoor unit dish | D145: Satellite | E145: 1621 | F145: 1621 | H145: 0
B146: 8.6 Service modifications – NBN Co Satellite Network | C146: Equipment Modification (NTD outdoor unit) in Isolated Area - 1.2m NTD outdoor unit dish | D146: Satellite | E146: 1812 | F146: 1812 | H146: 0
B147: 8.6 Service modifications – NBN Co Satellite Network | C147: Equipment Modification (NTD outdoor unit) in Isolated Area - 1.8m NTD outdoor unit dish | D147: Satellite | E147: 3793 | F147: 3793 | H147: 0
B148: 8.6 Service modifications – NBN Co Satellite Network | C148: Equipment Modification (NTD indoor and outdoor unit) in Urban Area, Major Rural Area, Minor Rural Area or Remote Area - 0.8m NTD outdoor unit dish | D148: Satellite | E148: 783 | F148: 783 | H148: 0
B149: 8.6 Service modifications – NBN Co Satellite Network | C149: Equipment Modification (NTD indoor and outdoor unit) in Urban Area, Major Rural Area, Minor Rural Area or Remote Area - 1.2m NTD outdoor unit dish | D149: Satellite | E149: 1149 | F149: 1149 | H149: 0
B150: 8.6 Service modifications – NBN Co Satellite Network | C150: Equipment Modification (NTD indoor and outdoor unit) in Urban Area, Major Rural Area, Minor Rural Area or Remote Area - 1.8m NTD outdoor unit dish | D150: Satellite | E150: 2317 | F150: 2317 | H150: 0
B151: 8.6 Service modifications – NBN Co Satellite Network | C151: Equipment Modification (NTD indoor and outdoor unit) in Isolated Area - 0.8m NTD outdoor unit dish | D151: Satellite | E151: 1650 | F151: 1650 | H151: 0
B152: 8.6 Service modifications – NBN Co Satellite Network | C152: Equipment Modification (NTD indoor and outdoor unit) in Isolated Area - 1.2m NTD outdoor unit dish | D152: Satellite | E152: 1842 | F152: 1842 | H152: 0
B153: 8.6 Service modifications – NBN Co Satellite Network | C153: Equipment Modification (NTD indoor and outdoor unit) in Isolated Area - 1.8m NTD outdoor unit dish | D153: Satellite | E153: 3823 | F153: 3823 | H153: 0
B154: 8.7 Service management – NBN Co Networks other than the NBN Co Satellite Network | C154: On Site Maintenance Call Out | D154: Fibre and Wireless | E154: 0 | F154: 0 | H154: 0
B155: 8.7 Service management – NBN Co Networks other than the NBN Co Satellite Network | C155: No Fault Found (No Truck Roll Required) | D155: Fibre and Wireless | E155: 50 | F155: 50 | H155: 0
B156: 8.7 Service management – NBN Co Networks other than the NBN Co Satellite Network | C156: No Fault Found (No Truck Roll Required) | D156: FTTB and FTTN and FTTC | E156: 50 | F156: 50 | H156: 0
B157: 8.7 Service management – NBN Co Networks other than the NBN Co Satellite Network | C157: No Fault Found (No Truck Roll Required) | D157: HFC | E157: 50 | F157: 50 | H157: 0
B158: 8.7 Service management – NBN Co Networks other than the NBN Co Satellite Network | C158: Late Cancellation (Site Visit Required) | D158: Fibre and Wireless | E158: 0 | F158: 0 | H158: 0
B159: 8.7 Service management – NBN Co Networks other than the NBN Co Satellite Network | C159: Late Cancellation (Site Visit Required) | D159: FTTB and FTTN and FTTC | E159: 75 | F159: 75 | H159: 0
B160: 8.7 Service management – NBN Co Networks other than the NBN Co Satellite Network | C160: Late Cancellation (Site Visit Required) | D160: HFC | E160: 75 | F160: 75 | H160: 0
B161: 8.7 Service management – NBN Co Networks other than the NBN Co Satellite Network | C161: First Missed Appointment | D161: Fibre and Wireless | E161: 0 | F161: 0 | H161: 0
B162: 8.7 Service management – NBN Co Networks other than the NBN Co Satellite Network | C162: First Missed Appointment | D162: FTTB and FTTN and FTTC | E162: 50 | F162: 50 | H162: 0
B163: 8.7 Service management – NBN Co Networks other than the NBN Co Satellite Network | C163: First Missed Appointment | D163: HFC | E163: 50 | F163: 50 | H163: 0
B164: 8.7 Service management – NBN Co Networks other than the NBN Co Satellite Network | C164: Subsequent Missed Appointment | D164: Fibre and Wireless | E164: 0 | F164: 0 | H164: 0
B165: 8.7 Service management – NBN Co Networks other than the NBN Co Satellite Network | C165: Subsequent Missed Appointment | D165: FTTB and FTTN and FTTC | E165: 75 | F165: 75 | H165: 0
B166: 8.7 Service management – NBN Co Networks other than the NBN Co Satellite Network | C166: Subsequent Missed Appointment | D166: HFC | E166: 75 | F166: 75 | H166: 0
B167: 8.7 Service management – NBN Co Networks other than the NBN Co Satellite Network | C167: Co-ordinated Appointment (Day) | D167: Fibre | E167: 200 | F167: 200 | H167: 0
B168: 8.7 Service management – NBN Co Networks other than the NBN Co Satellite Network | C168: Co-ordinated Appointment (Day) | D168: FTTB and FTTN and FTTC | E168: 200 | F168: 200 | H168: 0
B169: 8.7 Service management – NBN Co Networks other than the NBN Co Satellite Network | C169: Co-ordinated Appointment (Day) | D169: HFC | E169: 200 | F169: 200 | H169: 0
B170: 8.7 Service management – NBN Co Networks other than the NBN Co Satellite Network | C170: Co-ordinated Appointment (Night) | D170: Fibre | E170: 300 | F170: 300 | H170: 0
B171: 8.7 Service management – NBN Co Networks other than the NBN Co Satellite Network | C171: Co-ordinated Appointment (Night) | D171: FTTB and FTTN and FTTC | E171: 300 | F171: 300 | H171: 0
B172: 8.7 Service management – NBN Co Networks other than the NBN Co Satellite Network | C172: Co-ordinated Appointment (Night) | D172: HFC | E172: 300 | F172: 300 | H172: 0
B173: 8.7 Service management – NBN Co Networks other than the NBN Co Satellite Network | C173: Late Cancellation (After Hours Installation Appointment) | D173: Fibre | E173: 150 | F173: 150 | H173: 0
B174: 8.7 Service management – NBN Co Networks other than the NBN Co Satellite Network | C174: Late Cancellation (After Hours Installation Appointment) | D174: FTTB and FTTN and FTTC | E174: 150 | F174: 150 | H174: 0
B175: 8.7 Service management – NBN Co Networks other than the NBN Co Satellite Network | C175: Late Cancellation (Co-ordinated Appointment) (Day) | D175: Fibre and Wireless | E175: 200 | F175: 200 | H175: 0
B176: 8.7 Service management – NBN Co Networks other than the NBN Co Satellite Network | C176: Late Cancellation (Co-ordinated Appointment) (Day) | D176: FTTB and FTTN and FTTC | E176: 200 | F176: 200 | H176: 0
B177: 8.7 Service management – NBN Co Networks other than the NBN Co Satellite Network | C177: Late Cancellation (Co-ordinated Appointment) (Day) | D177: HFC | E177: 200 | F177: 200 | H177: 0
B178: 8.7 Service management – NBN Co Networks other than the NBN Co Satellite Network | C178: Late Cancellation (Co-ordinated Appointment) (Night) | D178: Fibre and Wireless | E178: 300 | F178: 300 | H178: 0
B179: 8.7 Service management – NBN Co Networks other than the NBN Co Satellite Network | C179: Late Cancellation (Co-ordinated Appointment) (Night) | D179: FTTB and FTTN and FTTC | E179: 300 | F179: 300 | H179: 0
B180: 8.7 Service management – NBN Co Networks other than the NBN Co Satellite Network | C180: Late Cancellation (Co-ordinated Appointment) (Night) | D180: HFC | E180: 300 | F180: 300 | H180: 0
B181: 8.7 Service management – NBN Co Networks other than the NBN Co Satellite Network | C181: Late Rescheduling (Co-ordinated Appointment) (Day) | D181: Fibre and Wireless | E181: 200 | F181: 200 | H181: 0
B182: 8.7 Service management – NBN Co Networks other than the NBN Co Satellite Network | C182: Late Rescheduling (Co-ordinated Appointment) (Day) | D182: FTTB and FTTN and FTTC | E182: 200 | F182: 200 | H182: 0
B183: 8.7 Service management – NBN Co Networks other than the NBN Co Satellite Network | C183: Late Rescheduling (Co-ordinated Appointment) (Day) | D183: HFC | E183: 200 | F183: 200 | H183: 0
B184: 8.7 Service management – NBN Co Networks other than the NBN Co Satellite Network | C184: Late Rescheduling (Co-ordinated Appointment) (Night) | D184: Fibre and Wireless | E184: 300 | F184: 300 | H184: 0
B185: 8.7 Service management – NBN Co Networks other than the NBN Co Satellite Network | C185: Late Rescheduling (Co-ordinated Appointment) (Night) | D185: FTTB and FTTN and FTTC | E185: 300 | F185: 300 | H185: 0
B186: 8.7 Service management – NBN Co Networks other than the NBN Co Satellite Network | C186: Late Rescheduling (Co-ordinated Appointment) (Night) | D186: HFC | E186: 300 | F186: 300 | H186: 0
B187: 8.7 Service management – NBN Co Networks other than the NBN Co Satellite Network | C187: Restoration of an Ordered Product | D187: Fibre and Wireless | E187: 50 | F187: 50 | H187: 0
B188: 8.7 Service management – NBN Co Networks other than the NBN Co Satellite Network | C188: Restoration of an Ordered Product | D188: FTTB and FTTN and FTTC | E188: 50 | F188: 50 | H188: 0
B189: 8.7 Service management – NBN Co Networks other than the NBN Co Satellite Network | C189: Restoration of an Ordered Product | D189: HFC | E189: 50 | F189: 50 | H189: 0
B190: 8.7 Service management – NBN Co Networks other than the NBN Co Satellite Network | C190: Missed Appointment (After Hours Installation Appointment) | D190: Fibre | E190: 150 | F190: 150 | H190: 0
B191: 8.7 Service management – NBN Co Networks other than the NBN Co Satellite Network | C191: Missed Appointment (After Hours Installation Appointment) | D191: FTTB and FTTN and FTTC | E191: 150 | F191: 150 | H191: 0
B192: 8.7 Service management – NBN Co Networks other than the NBN Co Satellite Network | C192: Missed Appointment (Co-ordinated Appointment) (Day) | D192: Fibre | E192: 200 | F192: 200 | H192: 0
B193: 8.7 Service management – NBN Co Networks other than the NBN Co Satellite Network | C193: Missed Appointment (Co-ordinated Appointment) (Day) | D193: FTTB and FTTN and FTTC | E193: 200 | F193: 200 | H193: 0
B194: 8.7 Service management – NBN Co Networks other than the NBN Co Satellite Network | C194: Missed Appointment (Co-ordinated Appointment) (Day) | D194: HFC | E194: 200 | F194: 200 | H194: 0
B195: 8.7 Service management – NBN Co Networks other than the NBN Co Satellite Network | C195: Missed Appointment (Co-ordinated Appointment) (Night) | D195: Fibre | E195: 300 | F195: 300 | H195: 0
B196: 8.7 Service management – NBN Co Networks other than the NBN Co Satellite Network | C196: Missed Appointment (Co-ordinated Appointment) (Night) | D196: FTTB and FTTN and FTTC | E196: 300 | F196: 300 | H196: 0
B197: 8.7 Service management – NBN Co Networks other than the NBN Co Satellite Network | C197: Missed Appointment (Co-ordinated Appointment) (Night) | D197: HFC | E197: 300 | F197: 300 | H197: 0
B198: 8.7 Service management – NBN Co Networks other than the NBN Co Satellite Network | C198: Incorrect Callout | D198: FTTB and FTTN and FTTC | E198: 75 | F198: 75 | H198: 0
B199: 8.7 Service management – NBN Co Networks other than the NBN Co Satellite Network | C199: Incorrect Callout | D199: HFC | E199: 75 | F199: 75 | H199: 0
B200: 8.7 Service management – NBN Co Networks other than the NBN Co Satellite Network | C200: Voiceband Reinstatement | D200: FTTB and FTTN | E200: 250 | F200: 250 | H200: 0
B201: 8.7 Service management – NBN Co Networks other than the NBN Co Satellite Network | C201: Transition Reversal | D201: FTTB and FTTN and FTTC | E201: 250 | F201: 250 | H201: 0
B202: 8.8 Service management – Smart Places | C202: Smart Places - On Site Maintenance Call Out | D202: Fibre | E202: 0 | F202: 0 | H202: 0
B203: 8.8 Service management – Smart Places | C203: Smart Places - No Fault Found (No Truck Roll Required) | D203: Fibre | E203: 50 | F203: 50 | H203: 0
B204: 8.8 Service management – Smart Places | C204: Smart Places - First Missed Appointment (Trouble Ticket Appointment) | D204: Fibre | E204: 0 | F204: 0 | H204: 0
B205: 8.8 Service management – Smart Places | C205: Smart Places - Subsequent Missed Appointment (Trouble Ticket Appointment) | D205: Fibre | E205: 0 | F205: 0 | H205: 0
... 93 more rows

Sheet FY28 EM Inputs
B1: Cell colour meanings
B2: Input cell
B3: Calculation cell
B6: FY28 Excess Adjustment Factor Inputs
B7: Note 1: nbn notes that quantities are annualised, consistent with clause 2D.2.2(g) of the SAU. For example, the quantities for monthly charges are multiplied by 12 for an annualised quantity. Quantities for charges with other billing periods are adjusted as required to an annualised basis. Note 2: The qt − 1.25 volumes shown in the t = FY26 column represent volumes supplied from 1 April 2024 and 31 March 2025, annualised in accordance with clause 2D.2.2(g) of the SAU.
